Workbook

Sheet data (hidden)
A1: first_find | C1: a
A2: 8 | B2: 9
A3: total rec | B3: last_row | C3: Claim # | I3: Summary of All Students
A4: =COUNTA(A8:A1684) -> 0 | B4: =A4+ 7 -> 7 | C4: =Claim!D7 -> 0
A5: lea | C5: sec lea | E5: Sasid | O5: Placement | T5: Claims | Z5: Cost Share % | AE5: In district | AG5: b1_36 | AJ5: b1_10 | AM5: d1_36 | AP5: d1_10 | AS5: d2_36 | AV5: d2_10 | AY5: d3_36 | BB5: d3_10 | BE5: d4_36 | BH5: d4_10 | BK5: d5_36 | BN5: d5_10 | BQ5: d6_36 | BT5: d6_10 | BW5: d7_36 | BZ5: d7_10 | CC5: d8_36 | CF5: d8_10 | CI5: e1_36 | CL5: e1_10 | CO5: e2_36 | CR5: e2_10 | CU5: f1_36 | CX5: f1_10 | DA5: f2_36 | DD5: f2_10 | DG5: f3_36 | DJ5: f3_10 | DM5: f4_36 | DP5: f4_10 | DS5: f5_36 | DV5: f5_10 | DY5: f6_36 | EB5: f6_10 | EE5: f7_36 | EH5: f7_10 | EK5: g1_36 | EN5: g1_10 | EQ5: g2_36 | ET5: g2_10 | EW5: g3_36 | EZ5: g3_10 | FC5: g4_36 | FF5: g4_10 | FI5: g5_36 | FL5: g5_10 | FO5: h1_36 | FR5: h1_10 | FU5: h2_36 | FX5: h2_10 | GA5: h3_36 | GD5: h3_10 | GG5: I1_36 | GJ5: I1_10 | GL5: j1
A6: lea_num | B6: lea_code | C6: sec_num | D6: sec_code | E6: Sasid | F6: claim_num | G6: Order | H6: SASID_C | I6: last_name | J6: first_name | K6: DOB | L6: in_out | M6: prog_type | N6: prog_code | O6: place_type | P6: school | Q6: rate_ann | R6: rate_daily | S6: date_start | T6: date_end | U6: total_days | V6: claim_amt | W6: Sp_ind | X6: cs_dss | Y6: cs_lea | Z6: cs3 | AA6: cs3_amt | AB6: cs4 | AC6: cs4_amt | AD6: cs_total | AE6: days_in_cy | AF6: b1_36_type | AG6: b1_36_hour | AH6: b1_36_total | AI6: b1_10_type | AJ6: b1_10_hour | AK6: b1_10_total | AL6: d1_36_type | AM6: d1_36_hour | AN6: d1_36_Total | AO6: d1_10_type | AP6: d1_10_hour | AQ6: d1_10_Total | AR6: D2_36_type | AS6: D2_36_hour | AT6: D2_36_total | AU6: D2_10_type | AV6: D2_10_hour | AW6: D2_10_total | AX6: D3_36_type | AY6: D3_36_hour | AZ6: D3_36_Total | BA6: D3_10_type | BB6: D3_10_hour | BC6: D3_10_Total | BD6: D4_36_type | BE6: D4_36_hour | BF6: D4_36_Total | BG6: D4_10_type | BH6: D4_10_hour | BI6: D4_10_Total | BJ6: D5_36_type | BK6: D5_36_hour | BL6: D5_36_Total | BM6: D5_10_type | BN6: D5_10_hour | BO6: D5_10_Total | BP6: D6_36_type | BQ6: D6_36_hour | BR6: D6_36_Total | BS6: D6_10_type | BT6: D6_10_hour | BU6: D6_10_Total | BV6: D7_36_type | BW6: D7_36_hour | BX6: D7_36_Total | BY6: D7_10_type | BZ6: D7_10_hour | CA6: D7_10_Total | CB6: D8_36_type | CC6: D8_36_hour | CD6: D8_36_Total | CE6: D8_10_type | CF6: D8_10_hour | CG6: D8_10_Total | CH6: E1_36_type | CI6: E1_36_hour | CJ6: E1_36_Total | CK6: E1_10_type | CL6: E1_10_hour | CM6: E1_10_Total | CN6: E2_36_type | CO6: E2_36_hour | CP6: E2_36_total | CQ6: E2_10_type | CR6: E2_10_hour | CS6: E2_10_total | CT6: F1_36_type | CU6: F1_36_hour | CV6: F1_36_total | CW6: F1_10_type | CX6: F1_10_hour | CY6: F1_10_total | CZ6: F2_36_type | DA6: F2_36_hour | DB6: F2_36_Total | DC6: F2_10_type | DD6: F2_10_hour | DE6: F2_10_Total | DF6: F3_36_type | DG6: F3_36_hour | DH6: F3_36_Total | DI6: F3_10_type | DJ6: F3_10_hour | DK6: F3_10_Total | DL6: F4_36_type | DM6: F4_36_hour | DN6: F4_36_total | DO6: F4_10_type | DP6: F4_10_hour | DQ6: F4_10_Total | DR6: F5_36_type | DS6: F5_36_hour | DT6: F5_36_Total | DU6: F5_10_type | DV6: F5_10_hour | DW6: F5_10_Total | DX6: F6_36_type | DY6: F6_36_hour | DZ6: F6_36_Total | EA6: F6_10_type | EB6: F6_10_hour | EC6: F6_10_Total | ED6: F7_36_type | EE6: F7_36_hour | EF6: F7_36_Total | EG6: F7_10_type | EH6: F7_10_hour | EI6: F7_10_Total | EJ6: G1_36_type | EK6: G1_36_hour | EL6: G1_36_Total | EM6: G1_10_type | EN6: G1_10_hour | EO6: G1_10_Total | EP6: G2_36_type | EQ6: G2_36_hour | ER6: G2_36_Total | ES6: G2_10_type | ET6: G2_10_hour | EU6: G2_10_Total | EV6: G3_36_type | EW6: G3_36_hour | EX6: G3_36_Total | EY6: G3_10_type | EZ6: G3_10_hour | FA6: G3_10_Total | FB6: G4_36_type | FC6: G4_36_hour | FD6: G4_36_Total | FE6: G4_10_type | FF6: G4_10_hour | FG6: G4_10_Total | FH6: G5_36_type | FI6: G5_36_hour | FJ6: G5_36_Total | FK6: G5_10_type | FL6: G5_10_hour | FM6: G5_10_Total | FN6: H1_36_type | FO6: H1_36_hour | FP6: H1_36_Total | FQ6: H1_10_type | FR6: H1_10_hour | FS6: H1_10_Total | FT6: H2_36_type | FU6: H2_36_hour | FV6: H2_36_total | FW6: H2_10_type | FX6: H2_10_hour | FY6: H2_10_total | FZ6: h3_36_type | GA6: h3_36_hour | GB6: h3_36_Total | GC6: h3_10_type | GD6: h3_10_hour | GE6: h3_10_total | GF6: I1_36_type | GG6: I1_36_hour | GH6: I1_36_Total | GI6: I1_10_type | GJ6: I1_10_hour | GK6: I1_10_Total | GL6: J1 | GN6: SASID | GO6: in district days | GP6: Totol in | GQ6: total out
GN7: =E7 -> 0 | GO7: =IF(L7="Out District",0,U7) -> 0 | GP7: =IF(L7="in District",V7,0) -> 0 | GQ7: =IF(L7="Out District",V7,0) -> 0

Sheet District_Info (hidden)
A1: FY21 SCHOOL CHOICE SPED INCREMENT UPDATE
A2: Please enter the information below to help us expedite processing your claims:
A4: Contact Information:
A5: District: | D5: =+Sum_All!C3 -> 0
A6: Name: | F6: Title:
A7: Phone #: | F7: Email:
A10: Please define your In District summer program(s): July and Aug 2020 & June 2021 if applicable
D12: Program # 1 | F12: Program # 2 | H12: Program # 3 | J12: Program # 4
A13: Program Name:
A14: Start Date:
A15: End Date:
A16: Weekly hours of Operation:
A17: Weekly Operating Days (e.g. M,T,W,Th,F):
A18: Total # Operating Days:
D19: Program # 5 | F19: Program # 6 | H19: Program # 7 | J19: Program # 8
A20: Program Name:
A21: Start Date:
A22: End Date:
A23: Weekly hours of Operation:
A24: Weekly Operating Days (e.g. M,T,W,Th,F):
A25: Total # Operating Days:
A28: Please provide appropriate comments to support your claim and assist with our review process.
A30: Student Name | B30: Comments

Sheet Sum_All
A1: =COUNT(B9:B1910) -> 0 | B1: =B2+8 -> 8 | C1: last_row | E1: ="$B$8:" & ADDRESS(8+B2,2) -> $B$8:$B$8 | G1: RowNum | H1: ColNum
A2: 11 | B2: =COUNTA(B9:B1910) -> 0 | C2: 10 | D2: 24 | E2: =INDIRECT(E1) -> 0 | G2: 9 | H2: 2
C3: =Claim!C4 -> 0 | D3: FY21 SCHOOL CHOICE SPED INCREMENT STUDENT DATA | Q3: 2021-09-21
G4: FY21 School Choice Increment Claim Detail | T4: FY19 Estimated Reimbursement
G5: A | H5: B | I5: C | J5: D | T5: =COUNTIF(T9:T4988,">0") -> 0 | U5: =COUNTIF(U9:U4988,">0") -> 0
B6: SASID | C6: Last Name | D6: First Name | E6: DOB | F6: Total Place- ments | G6: Total In District days | H6: Total In District | I6: Total Out of District | J6: Total Claim | T6: Special Indicator Reimb | U6: Regular Reimb | V6: Total Reimb
B7: Total Students: | C7: =COUNTA(B9:B1996) -> 0 | H7: =SUM(H9:H1996) -> 0 | I7: =SUM(I9:I1996) -> 0 | J7: =SUM(J9:J1996) -> 0 | T7: =SUM(T9:T910) -> 0 | U7: =SUM(U9:U910) -> 0 | V7: =+T7+U7 -> 0
C8: =IF(B8="","",VLOOKUP(B8,Data_Name,5)) ->  | D8: =IF(B8="","",VLOOKUP(B8,Data_Name,6)) ->  | E8: =IF(B8="","",VLOOKUP(B8,Data_Name,7)) ->  | F8: =IF(B8="","",COUNTIF(Data_SASID,B8)) ->  | G8: =IF(B8="","",SUMIF(Data_SASID,B8,Data_In_Days)) ->  | H8: =IF(B8="","",SUMIF(Data_SASID,B8,Data_Totalin)) ->  | I8: =IF(B8="","",SUMIF(Data_SASID,B8,Data_TotalOut)) ->  | J8: =IF(OR(H8="",I8=""),"",SUM(H8:I8)) ->  | T8: =IF(AND(G8="",R8=""),"",ROUND(IF(G8="",0,+R8*1),0)) ->  | U8: =IF(AND(G8="",R8=""),"",ROUND(IF(AND(G8="",R8<>""),+R8*0.75,0),0)) ->  | V8: =IF(AND(T8="",U8=""),"",+T8+U8) -> 
T9: =IF(AND(G9="",R9=""),"",ROUND(IF(G9="",0,+R9*1),0)) ->  | U9: =IF(AND(G9="",R9=""),"",ROUND(IF(AND(G9="",R9<>""),+R9*0.75,0),0)) ->  | V9: =IF(AND(T9="",U9=""),"",+T9+U9) -> 

Sheet Sum_SASID
A1: drop_# | B1: SASID# | C1: first_find | D1: last_find | E1: total rec | G1: RowNum | H1: ColNum
A2: 1 | B2: =A2-1 -> 0 | C2: 8 | D2: 8 | E2: =IF((D2-C2)=0,1,(D2-C2+1)) -> 1 | G2: 12 | H2: 3
C3: =Claim!C4 -> 0 | G3: FY21 SCHOOL CHOICE SPED INCREMENT UPDATE FORM | N3: Date: | O3: =TODAY() -> 2021-11-10
B5: Summary by SASID | H5: SASID | I5: Last | K5: First | L5: DOB
C9: Student | G9: Prog | H9: School | L9: FY21 Rates | N9: Service Dates | P9: Total | Q9: Prorated
C10: Placement# | D10: Placement Type | G10: Code | L10: Annual | M10: Daily | N10: Start | O10: End | P10: Days | Q10: Amount
D11: =IF(C11="","",VLOOKUP(C11,Data_Claim,5)&" - "&VLOOKUP(C11,Data_Claim,6)&" - "&VLOOKUP(C11,Data_Claim,8)) ->  | G11: =IF(C11="","",IF(C11="","",IF(VLOOKUP(C11,Data_Claim,7)="","",VLOOKUP(C11,Data_Claim,7)))) ->  | H11: =IF(C11="","",IF(VLOOKUP(C11,Data_Claim,9)="","",VLOOKUP(C11,Data_Claim,9))) ->  | L11: =IF(C11="","",IF(VLOOKUP(C11,Data_Claim,10)=0,"",VLOOKUP(C11,Data_Claim,10))) ->  | M11: =IF(C11="","",IF(VLOOKUP(C11,Data_Claim,11)=0,"",VLOOKUP(C11,Data_Claim,11))) ->  | N11: =IF(C11="","",IF(VLOOKUP(C11,Data_Claim,12)="","",VLOOKUP(C11,Data_Claim,12))) ->  | O11: =IF(C11="","",IF(VLOOKUP(C11,Data_Claim,13)="","",VLOOKUP(C11,Data_Claim,13))) ->  | P11: =IF(C11="","",IF(VLOOKUP(C11,Data_Claim,14)="","",VLOOKUP(C11,Data_Claim,14))) ->  | Q11: =IF(C11="","",IF(VLOOKUP(C11,Data_Claim,15)="","",VLOOKUP(C11,Data_Claim,15))) -> 

Sheet Claim
A1: lea_drop | B1: lea_num | C1: lea_code | D1: lea_name | E1: sec_drop | F1: sec_num | G1: sec_code | H1: sec_name | I1: in_out_drop | J1: in_out_num | K1: claim_drop | L1: SC_num | M1: claim | N1: order | O1: S_C_combine | P1: check Sp_Ind
A2: 4 | B2: =A2+3 -> 7 | C2: 0003 | D2: =VLOOKUP(C2,Lea_data,2) -> Acushnet | E2: 1 | F2: =E2+3 -> 4 | H2: =VLOOKUP(E2,list_sec_lea_detail,3) -> 0 | I2: 2 | J2: =I2+4 -> 6 | K2: 1 | L2: =K2+6 -> 7 | N2: 4 | O2: =IF(D7<=9,C7&" - 0"&D7,C7&" - "&D7) -> - 00 | P2: =C7&" - "&Q2 -> - -1 | Q2: =D7-1 -> -1
E3: FY21 School Choice Sped Increment Update Form | M3: Cost Share Agency: | N3: Cost Share % | O3: Total Cost Share %
A4: LEA: | B4: 1 | E4: If Joint Responsibility (2nd Lea): | F4: 1 | M4: DCF | N4: 0 | O4: =SUM(N4:N7) -> 0 | Q4: In or out | R4: In or Sup
H5: In or Out | M5: 2nd Lea | N5: 0 | O5: =IF(N4+N5+N6+N7>100%,"Cost Share Exceed 100%","") ->  | Q5: Out District | R5: In district
C6: SASID | D6: Placement # | E6: Last Name | F6: First Name | G6: DOB | H6: District | N6: 0 | Q6: In District | R6: Supplemental
D7: 0 | H7: In District | N7: 0 | O7: =IF(N4+N5+N6+N7>100%,0,(N4+N5+N6+N7)) -> 0
B8: Buttons for All Claims
B9: Buttons for Out District Claims
A11: 1. IN DISTRICT | D11: =IF(G7="","",IF((F16-G7)>8036,"Not valid end date, Over 22 Yr old!","")) ->  | G11: =IF(OR(G7="",E16=""),"",DATEDIF(G7,E16,"y")) -> 
D13: =IF(AND(D15<>"",D16=""),"Must select a placement type.",IF(AND(D16<>"",D15=""),"Must select a program Type","")) -> Must select a placement type.
B14: Data must be entered in highlighted yellow cells! | F14: Days in cycle: | G14: 0 | H14: =IF(AND(G16<>0,OR(G14=0,G14="")),"Must enter # days in cell G14 to start the calculation","") -> 
B15: Program Type: | D15: In District | E15: Start | F15: End | G15: Total Days | H15: FY21 RATE | I15: 36 Week Program | L15: Extended School Year | O15: Total | Q15: =IF(P16="","",IF(O15="Individual",(P16*180/$G$14)*N16,IF(O15="Small-G",(P16*180/$G$14)*N16/4,IF(O15="Group",(P16*180/$G$14)*N16/8,"")))) -> 
B16: Placement Type: | G16: 0 | I16: Service Delivery Group Type | J16: Hours Per Cycle | K16: Cost | L16: Service Delivery Group Type | M16: Hours Per Cycle | N16: Cost
D17: =GetWorkingDays(E16,F16) -> 0 | E17: =IF(OR(E16="",F16=0),"",IF(E16<K67,"Wrong FY !",IF(AND(G16>D17,D17>0),"Total days cannot exceed "&D17&" days!!!",IF(D17<=0,"End Date < Start Date",IF(G11<3,"Not 3yr yet",""))))) ->  | H17: =IF(AND(D16="Summer", G16>47),"Summer Program can not exceed 44 days","") -> 
C18: Specialty Consultation Services (Doctorate level) | H18: 122.17 | K18: =IF(OR($D$16="summer",$D$16=""),0,IF(OR(J18="",$G$14=0),0,IF(I18="Individual",(J18*$G$16/$G$14)*H18,IF(I18="Small-G",(J18*$G$16/$G$14)*H18/4,IF(I18="Group",(J18*$G$16/$G$14)*H18/8,0))))) -> 0 | N18: =IF(OR($G$16>50,$D$16="36 WK",$D$16=""),0,IF(OR(M18="",$G$14=0),0,IF(L18="Individual",(M18*$G$16/$G$14)*H18,IF(L18="Small-G",(M18*$G$16/$G$14)*H18/4,IF(L18="Group",(M18*$G$16/$G$14)*H18/8,0))))) -> 0 | Q18: Special Indicators:
C19: General Education Services | H19: 0 | K19: =IF(OR(D15="Supplemental",D16="Summer",$G$14="",$G$14=0),0,H19*$G$16/180) -> 0 | N19: =IF(M19="","",IF(L19="Individual",(M19*50/$G$14)*H19,IF(L19="Small-G",(M19*50/$G$14)*H19/4,IF(L19="Group",(M19*50/$G$14)*H19/8,"")))) -> 
C20: Special Education Teaching Services (Certified teachers only) | H20: 64.47 | K20: =IF(OR($D$16="summer",$D$16=""),0,IF(OR(J20="",$G$14=0),0,IF(I20="Individual",(J20*$G$16/$G$14)*H20,IF(I20="Small-G",(J20*$G$16/$G$14)*H20/4,IF(I20="Group",(J20*$G$16/$G$14)*H20/8,0))))) -> 0 | N20: =IF(OR($G$16>50,$D$16="36 WK",$D$16=""),0,IF(OR(M20="",$G$14=0),0,IF(L20="Individual",(M20*$G$16/$G$14)*H20,IF(L20="Small-G",(M20*$G$16/$G$14)*H20/4,IF(L20="Group",(M20*$G$16/$G$14)*H20/8,0))))) -> 0 | Q20: Abandoned
C21: Additional Special Education Teaching Services and/or Consultation | H21: 64.47 | K21: =IF(OR($D$16="summer",$D$16=""),0,IF(OR(J21="",$G$14=0),0,IF(I21="Individual",(J21*$G$16/$G$14)*H21,IF(I21="Small-G",(J21*$G$16/$G$14)*H21/4,IF(I21="Group",(J21*$G$16/$G$14)*H21/8,0))))) -> 0 | N21: =IF(OR($G$16>50,$D$16="36 WK",$D$16=""),0,IF(OR(M21="",$G$14=0),0,IF(L21="Individual",(M21*$G$16/$G$14)*H21,IF(L21="Small-G",(M21*$G$16/$G$14)*H21/4,IF(L21="Group",(M21*$G$16/$G$14)*H21/8,0))))) -> 0 | Q21: Homeless
C22: Related Services (Certified or licensed providers only): | Q22: State Ward
C23: Consultation (by service providers listed in this category) | H23: 73.59 | K23: =IF(OR($D$16="summer",$D$16=""),0,IF(OR(J23="",$G$14=0),0,IF(I23="Individual",(J23*$G$16/$G$14)*H23,IF(I23="Small-G",(J23*$G$16/$G$14)*H23/4,IF(I23="Group",(J23*$G$16/$G$14)*H23/8,0))))) -> 0 | N23: =IF(OR($G$16>50,$D$16="36 WK",$D$16=""),0,IF(OR(M23="",$G$14=0),0,IF(L23="Individual",(M23*$G$16/$G$14)*H23,IF(L23="Small-G",(M23*$G$16/$G$14)*H23/4,IF(L23="Group",(M23*$G$16/$G$14)*H23/8,0))))) -> 0
C24: Occupational Therapy | H24: 73.59 | K24: =IF(OR($D$16="summer",$D$16=""),0,IF(OR(J24="",$G$14=0),0,IF(I24="Individual",(J24*$G$16/$G$14)*H24,IF(I24="Small-G",(J24*$G$16/$G$14)*H24/4,IF(I24="Group",(J24*$G$16/$G$14)*H24/8,0))))) -> 0 | N24: 0 | Q24: Placement Type
C25: Speech and Language Therapy/Audiology | H25: 73.59 | K25: 0 | N25: 0 | Q25: In District
C26: Orientation & Mobility | H26: 73.59 | K26: 0 | N26: 0 | Q26: Supplemental In Dist Services
C27: Physical Therapy | H27: 73.59 | K27: 0 | N27: 0
C28: Counseling | H28: 73.59 | K28: 0 | N28: 0
C29: Specialized Health Care Services (RN or LPN): | Q29: Group Type
C30: Nursing Services | H30: 49.04 | K30: 0 | N30: =IF(OR($G$16>50,$D$16="36 WK",$D$16=""),0,IF(OR(M30="",$G$14=0),0,IF(L30="Individual",(M30*$G$16/$G$14)*H30,IF(L30="Small-G",(M30*$G$16/$G$14)*H30/4,IF(L30="Group",(M30*$G$16/$G$14)*H30/8,0))))) -> 0
C31: Individualized Services Associated with Special Health Care Needs | H31: 49.04 | K31: 0 | N31: =IF(OR($G$16>50,$D$16="36 WK",$D$16=""),0,IF(OR(M31="",$G$14=0),0,IF(L31="Individual",(M31*$G$16/$G$14)*H31,IF(L31="Small-G",(M31*$G$16/$G$14)*H31/4,IF(L31="Group",(M31*$G$16/$G$14)*H31/8,0))))) -> 0 | Q31: Individual
C32: Other Specialized Services Provided by Professional Staff: | Q32: Small-G
C33: Consultation (by service providers listed in this category incl. BCBA) | H33: 78.36 | K33: 0 | N33: =IF(OR($G$16>50,$D$16="36 WK",$D$16=""),0,IF(OR(M33="",$G$14=0),0,IF(L33="Individual",(M33*$G$16/$G$14)*H33,IF(L33="Small-G",(M33*$G$16/$G$14)*H33/4,IF(L33="Group",(M33*$G$16/$G$14)*H33/8,0))))) -> 0 | Q33: Group
C34: Adaptive Physical Education | H34: 78.36 | K34: 0 | N34: =IF(OR($G$16>50,$D$16="36 WK",$D$16=""),0,IF(OR(M34="",$G$14=0),0,IF(L34="Individual",(M34*$G$16/$G$14)*H34,IF(L34="Small-G",(M34*$G$16/$G$14)*H34/4,IF(L34="Group",(M34*$G$16/$G$14)*H34/8,0))))) -> 0
C35: Recreation Therapy | H35: 78.36 | K35: 0 | N35: 0 | Q35: Place Type | R35: Place_typeOut
C36: Vision Training | H36: 78.36 | K36: 0 | N36: 0
C37: Interpretation for the Deaf or Hard of Hearing | H37: 78.36 | K37: 0 | N37: 0 | Q37: 36 Wk | R37: Day
C38: MusicTherapy | H38: 78.36 | K38: 0 | N38: 0 | Q38: Summer | R38: Res
C39: Home School Facilitator (BCBA) | H39: 78.36 | K39: 0 | N39: 0 | R39: Summer
C40: Specialized Services Provided by Staff Who Have Received Specialized Training: | R40: Sch Choice
C41: Applied Behavior Analysis | H41: 31.13 | K41: 0 | N41: =IF(OR($G$16>50,$D$16="36 WK",$D$16=""),0,IF(OR(M41="",$G$14=0),0,IF(L41="Individual",(M41*$G$16/$G$14)*H41,IF(L41="Small-G",(M41*$G$16/$G$14)*H41/4,IF(L41="Group",(M41*$G$16/$G$14)*H41/8,0))))) -> 0 | Q41: Cost Share
C42: COTA, PTA, SLA | H42: 31.13 | K42: 0 | N42: =IF(OR($G$16>50,$D$16="36 WK",$D$16=""),0,IF(OR(M42="",$G$14=0),0,IF(L42="Individual",(M42*$G$16/$G$14)*H42,IF(L42="Small-G",(M42*$G$16/$G$14)*H42/4,IF(L42="Group",(M42*$G$16/$G$14)*H42/8,0))))) -> 0
C43: Job Coach | H43: 31.13 | K43: 0 | N43: =IF(OR($G$16>50,$D$16="36 WK",$D$16=""),0,IF(OR(M43="",$G$14=0),0,IF(L43="Individual",(M43*$G$16/$G$14)*H43,IF(L43="Small-G",(M43*$G$16/$G$14)*H43/4,IF(L43="Group",(M43*$G$16/$G$14)*H43/8,0))))) -> 0 | Q43: DMA
C44: Work Experience Assistant | H44: 31.13 | K44: 0 | N44: =IF(OR($G$16>50,$D$16="36 WK",$D$16=""),0,IF(OR(M44="",$G$14=0),0,IF(L44="Individual",(M44*$G$16/$G$14)*H44,IF(L44="Small-G",(M44*$G$16/$G$14)*H44/4,IF(L44="Group",(M44*$G$16/$G$14)*H44/8,0))))) -> 0 | Q44: DDS
C45: Instruction on the use of Specialized Equipment | H45: 31.13 | K45: 0 | N45: =IF(OR($G$16>50,$D$16="36 WK",$D$16=""),0,IF(OR(M45="",$G$14=0),0,IF(L45="Individual",(M45*$G$16/$G$14)*H45,IF(L45="Small-G",(M45*$G$16/$G$14)*H45/4,IF(L45="Group",(M45*$G$16/$G$14)*H45/8,0))))) -> 0 | Q45: DMH
C46: Services Provided by Non-professional Staff: | Q46: DPH
C47: Personal Care Assistant or Certified Nursing Assistant | H47: 23.27 | K47: 0 | N47: =IF(OR($G$16>50,$D$16="36 WK",$D$16=""),0,IF(OR(M47="",$G$14=0),0,IF(L47="Individual",(M47*$G$16/$G$14)*H47,IF(L47="Small-G",(M47*$G$16/$G$14)*H47/4,IF(L47="Group",(M47*$G$16/$G$14)*H47/8,0))))) -> 0 | Q47: Other
C48: Teaching Assistant | H48: 23.27 | K48: 0 | N48: =IF(OR($G$16>50,$D$16="36 WK",$D$16=""),0,IF(OR(M48="",$G$14=0),0,IF(L48="Individual",(M48*$G$16/$G$14)*H48,IF(L48="Small-G",(M48*$G$16/$G$14)*H48/4,IF(L48="Group",(M48*$G$16/$G$14)*H48/8,0))))) -> 0
C49: Aide | H49: 23.27 | K49: 0 | N49: =IF(OR($G$16>50,$D$16="36 WK",$D$16=""),0,IF(OR(M49="",$G$14=0),0,IF(L49="Individual",(M49*$G$16/$G$14)*H49,IF(L49="Small-G",(M49*$G$16/$G$14)*H49/4,IF(L49="Group",(M49*$G$16/$G$14)*H49/8,0))))) -> 0
C51: Specialized Equipment (Documented on Student's IEP) | K51: =IF(OR($D$16="summer",$D$16=""),0,H51) -> 0 | N51: 0
H52: =SUM(K18:K21)+SUM(K23:K28)+SUM(K30:K31)+SUM(K33:K39)+SUM(K41:K45)+SUM(K47:K51) -> 0 | I52: 36wk Prog Total: | K52: =IF(OR(E16<K67,F53="Date Entry Errors",H52=K19),0,H52) -> 0 | L52: Summer Total: | N52: =IF(OR(E16<K67,F53="Date Entry Errors"),0,H53) -> 0 | O52: =IF(D11<>"","Date error",IF(AND(K52>0,N52>0),0,IF(K52>0,K52,N52))) -> 0
F53: =IF(OR(E17<>"",H17<>""),"Date entry errors","") ->  | H53: =N18+N20+N21+SUM(N23:N28)+N30+N31+SUM(N33:N39)+SUM(N41:N45)+SUM(N47:N50) -> 0
H56: =IF(K64="","",IF(AND(F64<>"Summer",(K64-"8/21/2020")<0),"Regular Program Start Date Must Be > 8/22/20","")) ->  | Q56: Out District Lines
A57: 2. OUT OF DISTRICT | E57: =IF(OR((L61-$G$7)>8036,(L62-$G$7)>8036,(L63-$G$7)>8036,(L64-$G$7)>8036, (L65-$G$7)>8036,(L66-$G$7)>8036), "End date cannot exceed 22nd birthday!","") ->  | H57: =IF(L64="","",IF(AND(F64="Summer",(L64-"8/31/20")>0),"Enter Summer end date < 9/1","")) ->  | K57: =IF(AND(K63<K67,K63<>""),"Wrong FY!", IF(AND(K62<K67,K62<>""),"Wrong FY!","")) ->  | Q57: Exclude summer | U57: summer | V57: Line#3+line#4
B58: Enter one placement at a time. | E58: =IF(COUNTA(E61:E66)>1,"WARNING: only select one program at a time!","") ->  | J58: =IF(COUNTA(K61:K66)>1,"WARNING: select one program at a time!","") ->  | Q58: line #3 | R58: line #4 | S58: Line #5 | T58: Line #6 | U58: Line #2 | V58: Line #1
A59: =COUNTA(E61:E66) -> 0 | B59: (a) | C59: Tuition | I59: FY20 Rate | K59: Service Dates | N59: Cost | Q59: Col #3 | R59: Col #4 | S59: Sole #5 | T59: Sole #6 | U59: Rates(#2) | V59: Rates(#1)
A60: 65 | B60: Program Type | E60: Prog Code | F60: Placement type | G60: School | I60: Annual Rate | J60: Daily or Hourly Rate | K60: Start | L60: End | M60: Total Days or Hours
A61: 1 | B61: DESE/OSD Approved 1:1 HOURLY Services; Individual Price Authorization REQUIRED | G61: =IF(E61="","",IF(LEFT(E61,1) <"9",VLOOKUP(E61,Rates,3),VLOOKUP(E61,List_Colla,3))) ->  | N61: =IF(OR(E61="",$A$59>1,L61-K61<0, K61<$K$67,$E$57<>"",$O$61="Not 3yr old yet!",$P$61="wrong code"),0,IF((M61*J61)>I61,I61,M61*J61)) -> 0 | O61: =IF(L61="","",IF(K61<$K$67,"Wrong FY!",IF((L61-K61)<0,"End Date < Start Date",IF(DATEDIF(G7,K61,"Y")<3,"Not 3yr old yet!","")))) ->  | P61: =IF(EXACT(E61,E68),"","Wrong Code") ->  | Q61: 5017A | R61: C0502 | S61: 5000 | T61: 0000 | U61: 5097B | V61: 5017A
A62: 2 | B62: DESE/OSD Approved Summer Program | G62: =IF(E62="","",VLOOKUP(E62,Rates,3)) ->  | I62: =IF(E62="","",VLOOKUP(E62,Rates,5)) ->  | J62: =IF(E62="","",VLOOKUP(E62,Rates,6)) ->  | N62: =IF(OR(J62="",$A$59>1,$E$57<>"",X62<>"",$O$62="Not 3yr old yet!"),0,IF((M62*J62)>I62,I62,M62*J62)) -> 0 | O62: =IF(L62="","",IF(K62<$K$67,"Wrong FY!",IF((L62-K62)<0,"End Date < Start Date",IF(DATEDIF(G7,K62,"Y")<3,"Not 3yr old yet!","")))) ->  | P62: =IF(EXACT(E62,F68),"","Wrong Code") ->  | Q62: 5017B | R62: C0504 | S62: 5001 | T62: 5000 | U62: 5110A | V62: 5017B | X62: =IF(K62="","",IF(DATEDIF(G7,K62,"Y")<3,"Not 3yr old yet!","")) -> 
A63: 3 | B63: DESE/OSD Approved 10/12 Mon Program | G63: =IF(E63="","",VLOOKUP(E63,Rates,3)) ->  | I63: =IF(E63="","",VLOOKUP(E63,Rates,5)) ->  | J63: =IF(E63="","",VLOOKUP(E63,Rates,6)) ->  | N63: =IF(OR(J63="",$A$59>1,$E$57<>"",X63<>"",$X$63="Not 3yr old yet!"),0,IF((M63*J63)>I63,I63,M63*J63)) -> 0 | O63: =GetWorkingDays(K64,L64) -> 0 | P63: =IF(EXACT(E63,G68),"","Wrong code") ->  | Q63: 5021C | R63: C0512 | S63: 5002 | T63: 5001 | U63: 5177H | V63: 5021C | X63: =IF(K63="","",IF(DATEDIF(G7,K63,"Y")<3,"Not 3yr old yet!","")) -> 
A64: 4 | B64: LEA/Collaborative | G64: =IF(E64="","",VLOOKUP(E64,List_Colla,3)) ->  | J64: =IF(F64="Summer",0,IF(I64="","",I64/180)) ->  | N64: =IF(OR(E64="",I64="",$A$59>1,L64-K64<0,M64>L64-K64+1,K64<$K$67,$E$57<>"",H56<>"",H57<>"",$O$64="Not 3yr old yet!"),0,IF(F64="Summer",I64,IF(M64*J64>I64,I64,M64*J64))) -> 0 | O64: =IF(OR(L64="",K64="",M64=""),"",IF(K64<$K$67,"Wrong FY",IF(E64="","Prog Code?",IF($A$59>1,"Clear 1 prog",IF(AND(M64>(L64-K64)+1,(L64-K64>0)),"Total days >"&(L64-K64+1),IF((L64-K64)<0,"End date < Start date",IF(DATEDIF(G7,K64,"y")<3,"Not 3yr old yet!",""))))))) ->  | P64: =IF(EXACT(E64,H68),"","Wrong Code") ->  | Q64: 5021E | R64: C0514 | S64: 5003 | T64: 5002 | U64: 5258B | V64: 5021E
A65: 5 | B65: DESE/OSD Authorization for Pricing; OSD Authorization REQUIRED | G65: =IF(E65="","",VLOOKUP(E65,SS_list_data,2)) ->  | N65: =IF(OR(E65="",I65="",$A$59>1,L65-K65<0,M65>L65-K65+1,K65<$K$67,$E$57<>"",$O$65="Not 3yr old yet!"),0,IF(M65*J65>I65,I65,M65*J65)) -> 0 | O65: =IF(OR(L65="",K65="",M65=""),"",IF(K65<$K$67,"Wrong FY!",IF(E65="","Prog Code?",IF($A$59>1,"Clear 1 prog",IF(AND(M65>(L65-K65)+1,(L65-K65>0)),"Total days >"&(L65-K65+1),IF((L65-K65)<0,"End date < Start date",IF(DATEDIF(G7,K65,"Y")<3,"Not 3yr old yet!",""))))))) ->  | P65: =IF(EXACT(E65,I68),"","Wrong code") ->  | Q65: 5021G | R65: C0516 | S65: 5006 | T65: 5003 | U65: 5265B | V65: 5021G
A66: 6 | B66: Other Authorization for Pricing; OSD Authorization REQUIRED | G66: =IF(E66="","",VLOOKUP(E66,SS_list_data,2)) ->  | N66: =IF(OR(E66="",I66="",$A$59>1,L66-K66<0,M66>L66-K66+1,K66<$K$67,$E$57<>"",$O$66="Not 3yr old yet!"),0,IF(M66*J66>I66,I66,M66*J66)) -> 0 | O66: =IF(OR(L66="",K66="",M66=""),"",IF(K66<$K$67,"Wrong FY!",IF(E66="","Prog Code?",IF($A$59>1,"Clear 1 prog",IF(AND(M66>(L66-K66)+1,(L66-K66>0)),"Total days >"&(L66-K66+1),IF((L66-K66)<0,"End date < Start date",IF(DATEDIF(G7,K66,"Y")<3,"Not 3yr old yet!",""))))))) ->  | P66: =IF(EXACT(E66,J68),"","Wrong Code") ->  | Q66: 5021Z | R66: C0518 | S66: 5007 | T66: 5006 | U66: 5274B | V66: 5021Z
A67: 1 | B67: =A67+3 -> 4 | K67: 2019-07-01 | Q67: 5034A | R67: C0522 | S67: 5008 | T67: 5007 | U67: 5306C | V67: 5034A
E68: =IF(E61="","",VLOOKUP(E61,Line1,1)) ->  | F68: =IF(E62="","",VLOOKUP(E62,Line2,1)) ->  | G68: =IF(E63="","",VLOOKUP(E63,Line3,1)) ->  | H68: =IF(E64="","",VLOOKUP(E64,Line4,1)) ->  | I68: =IF(E65="","",VLOOKUP(E65,Line5,1)) ->  | J68: =IF(E66="","",VLOOKUP(E66,Line6,1)) ->  | Q68: 5036A | R68: C0523 | S68: 5010 | T68: 5008 | U68: 5381C | V68: 5036A
Q69: 5036I | R69: C0524 | S69: 5015 | T69: 5010 | U69: 5440B | V69: 5036I
Q70: 5049A | R70: C0528 | S70: 5017 | T70: 5015 | U70: 5785G | V70: 5049A
Q71: 5088D | R71: C0532 | S71: 5021 | T71: 5017 | U71: 6002D | V71: 5088D
Q72: 5088E | R72: C0534 | S72: 5025 | T72: 5017A | U72: 6185B | V72: 5088E
Q73: 5088F | R73: C0536 | S73: 5034 | T73: 5017B | U73: 6255A | V73: 5088F
Q74: 5088G | R74: C0540 | S74: 5036 | T74: 5021 | U74: 6263B | V74: 5088G
Q75: 5088H | R75: C0544 | S75: 5040 | T75: 5021C | V75: 5088H
Q76: 5095A | R76: C0546 | S76: 5047 | T76: 5021E | V76: 5095A
Q77: 5095B | R77: C0548 | S77: 5048 | T77: 5021G | V77: 5095B
Q78: 5095Y | R78: C0550 | S78: 5049 | T78: 5021Z | V78: 5095Y
Q79: 5095Z | R79: C0558 | S79: 5083 | T79: 5025 | V79: 5095Z
Q80: 5097A | R80: C0562 | S80: 5088 | T80: 5034 | V80: 5097A
Q81: 5110B | R81: C0564 | S81: 5090 | T81: 5034A | V81: 5110B
Q82: 5110C | R82: C0570 | S82: 5095 | T82: 5036 | V82: 5110C
Q83: 5112B | R83: C0572 | S83: 5097 | T83: 5036A | V83: 5112B
Q84: 5113A | R84: C0574 | S84: 5099 | T84: 5036I | V84: 5113A
Q85: 5120A | R85: C0576 | S85: 5100 | T85: 5040 | V85: 5120A
Q86: 5121A | R86: H0407 | S86: 5101 | T86: 5047 | V86: 5121A
Q87: 5121B | R87: H0409 | S87: 5110 | T87: 5048 | V87: 5121B
Q88: 5121Z | R88: H0410 | S88: 5111 | T88: 5049 | V88: 5121Z
Q89: 5127C | R89: H0411 | S89: 5112 | T89: 5049A | V89: 5127C
Q90: 5127D | R90: H0412 | S90: 5113 | T90: 5083 | V90: 5127D
Q91: 5127E | R91: H0413 | S91: 5115 | T91: 5088 | V91: 5127E
Q92: 5134B | R92: H0414 | S92: 5118 | T92: 5088D | V92: 5134B
Q93: 5134C | R93: H0416 | S93: 5120 | T93: 5088E | V93: 5134C
Q94: 5154A | R94: H0417 | S94: 5121 | T94: 5088F | V94: 5154A
Q95: 5154B | R95: H0418 | S95: 5122 | T95: 5088G | V95: 5154B
Q96: 5154C | R96: H0419 | S96: 5123 | T96: 5088H | V96: 5154C
Q97: 5157A | R97: H0420 | S97: 5124 | T97: 5090 | V97: 5157A
Q98: 5160C | R98: H0424 | S98: 5125 | T98: 5095 | V98: 5160C
Q99: 5160D | R99: H0426 | S99: 5126 | T99: 5095A | V99: 5160D
Q100: 5160Q | R100: H0428 | S100: 5127 | T100: 5095B | V100: 5160Q
Q101: 5165A | R101: H0429 | S101: 5128 | T101: 5095Y | V101: 5165A
Q102: 5165Z | R102: H0430 | S102: 5129 | T102: 5095Z | V102: 5165Z
Q103: 5177G | R103: H0431 | S103: 5130 | T103: 5097 | V103: 5177G
Q104: 5224A | R104: H0432 | S104: 5132 | T104: 5097A | V104: 5224A
Q105: 5227A | R105: H0435 | S105: 5134 | T105: 5097B | V105: 5227A
Q106: 5227B | R106: H0436 | S106: 5140 | T106: 5099 | V106: 5227B
Q107: 5238E | R107: H0437 | S107: 5145 | T107: 5100 | V107: 5238E
Q108: 5238F | R108: H0438 | S108: 5151 | T108: 5101 | V108: 5238F
Q109: 5242A | R109: H0439 | S109: 5154 | T109: 5110 | V109: 5242A
Q110: 5249A | R110: H0440 | S110: 5155 | T110: 5110A | V110: 5249A
Q111: 5249G | R111: H0441 | S111: 5157 | T111: 5110B | V111: 5249G
Q112: 5253A | R112: H0444 | S112: 5158 | T112: 5110C | V112: 5253A
Q113: 5257A | R113: H0445 | S113: 5160 | T113: 5111 | V113: 5257A
Q114: 5257B | R114: H0446 | S114: 5163 | T114: 5112 | V114: 5257B
Q115: 5257D | R115: H0447 | S115: 5164 | T115: 5112B | V115: 5257D
Q116: 5258A | R116: H0449 | S116: 5165 | T116: 5113 | V116: 5258A
Q117: 5265A | R117: H0450 | S117: 5170 | T117: 5113A | V117: 5265A
Q118: 5272A | R118: H0452 | S118: 5177 | T118: 5115 | V118: 5272A
Q119: 5274A | R119: H0453 | S119: 5180 | T119: 5118 | V119: 5274A
Q120: 5274E | R120: H0454 | S120: 5183 | T120: 5120 | V120: 5274E
Q121: 5276A | R121: H0455 | S121: 5185 | T121: 5120A | V121: 5276A
Q122: 5276D | R122: H0456 | S122: 5186 | T122: 5121 | V122: 5276D
Q123: 5296A | R123: H0458 | S123: 5188 | T123: 5121A | V123: 5296A
Q124: 5296C | R124: H0463 | S124: 5190 | T124: 5121B | V124: 5296C
Q125: 5296E | R125: H0464 | S125: 5200 | T125: 5121Z | V125: 5296E
Q126: 5297A | R126: H0466 | S126: 5202 | T126: 5122 | V126: 5297A
Q127: 5303A | R127: H0469 | S127: 5203 | T127: 5123 | V127: 5303A
Q128: 5303C | R128: H0470 | S128: 5204 | T128: 5124 | V128: 5303C
Q129: 5306B | R129: H0474 | S129: 5209 | T129: 5125 | V129: 5306B
Q130: 5306D | R130: H0478 | S130: 5210 | T130: 5126 | V130: 5306D
Q131: 5324B | R131: H0479 | S131: 5211 | T131: 5127 | V131: 5324B
Q132: 5324D | R132: H0480 | S132: 5212 | T132: 5127C | V132: 5324D
Q133: 5324E | R133: H0481 | S133: 5215 | T133: 5127D | V133: 5324E
Q134: 5324P | R134: H0482 | S134: 5220 | T134: 5127E | V134: 5324P
Q135: 5324Q | R135: H0483 | S135: 5223 | T135: 5128 | V135: 5324Q
Q136: 5338C | R136: H0484 | S136: 5224 | T136: 5129 | V136: 5338C
Q137: 5338D | R137: H0485 | S137: 5226 | T137: 5130 | V137: 5338D
Q138: 5338E | R138: H0486 | S138: 5227 | T138: 5132 | V138: 5338E
Q139: 5338F | R139: H0487 | S139: 5238 | T139: 5134 | V139: 5338F
Q140: 5338G | R140: H0488 | S140: 5240 | T140: 5134B | V140: 5338G
Q141: 5338H | R141: H0489 | S141: 5241 | T141: 5134C | V141: 5338H
Q142: 5338I | R142: H0491 | S142: 5242 | T142: 5140 | V142: 5338I
Q143: 5338J | R143: H0492 | S143: 5245 | T143: 5145 | V143: 5338J
Q144: 5341B | R144: H0493 | S144: 5247 | T144: 5151 | V144: 5341B
Q145: 5341D | R145: H0494 | S145: 5248 | T145: 5154 | V145: 5341D
Q146: 5341E | R146: H0496 | S146: 5249 | T146: 5154A | V146: 5341E
Q147: 5341J | R147: H0497 | S147: 5250 | T147: 5154B | V147: 5341J
Q148: 5341N | R148: H0498 | S148: 5251 | T148: 5154C | V148: 5341N
Q149: 5341P | R149: H0499 | S149: 5253 | T149: 5155 | V149: 5341P
Q150: 5341S | R150: H3501 | S150: 5255 | T150: 5157 | V150: 5341S
Q151: 5341T | R151: H3502 | S151: 5256 | T151: 5157A | V151: 5341T
Q152: 5343B | R152: H3503 | S152: 5257 | T152: 5158 | V152: 5343B
Q153: 5343C | R153: H3505 | S153: 5258 | T153: 5160 | V153: 5343C
Q154: 5343D | R154: H3506 | S154: 5259 | T154: 5160C | V154: 5343D
Q155: 5343E | R155: H3508 | S155: 5260 | T155: 5160D | V155: 5343E
Q156: 5360A | R156: H3509 | S156: 5261 | T156: 5160Q | V156: 5360A
Q157: 5360Z | R157: H3510 | S157: 5262 | T157: 5163 | V157: 5360Z
Q158: 5365A | R158: H3513 | S158: 5264 | T158: 5164 | V158: 5365A
Q159: 5365Z | R159: H3514 | S159: 5265 | T159: 5165 | V159: 5365Z
Q160: 5381A | R160: H3515 | S160: 5266 | T160: 5165A | V160: 5381A
Q161: 5385A | R161: H3516 | S161: 5267 | T161: 5165Z | V161: 5385A
Q162: 5385B | R162: H3517 | S162: 5268 | T162: 5170 | V162: 5385B
Q163: 5415A | R163: H3518 | S163: 5269 | T163: 5177 | V163: 5415A
Q164: 5440A | R164: L0001 | S164: 5270 | T164: 5177G | V164: 5440A
Q165: 5451A | R165: L0003 | S165: 5271 | T165: 5177H | V165: 5451A
Q166: 5451B | R166: L0005 | S166: 5272 | T166: 5180 | V166: 5451B
Q167: 5451Y | R167: L0007 | S167: 5273 | T167: 5183 | V167: 5451Y
Q168: 5451Z | R168: L0008 | S168: 5274 | T168: 5185 | V168: 5451Z
Q169: 5454B | R169: L0009 | S169: 5275 | T169: 5186 | V169: 5454B
Q170: 5454C | R170: L0010 | S170: 5276 | T170: 5188 | V170: 5454C
Q171: 5454E | R171: L0014 | S171: 5277 | T171: 5190 | V171: 5454E
Q172: 5454X | R172: L0016 | S172: 5278 | T172: 5200 | V172: 5454X
Q173: 5454Y | R173: L0017 | S173: 5296 | T173: 5202 | V173: 5454Y
Q174: 5454Z | R174: L0018 | S174: 5297 | T174: 5203 | V174: 5454Z
Q175: 5472A | R175: L0020 | S175: 5300 | T175: 5204 | V175: 5472A
Q176: 5488A | R176: L0023 | S176: 5303 | T176: 5209 | V176: 5488A
Q177: 5495A | R177: L0024 | S177: 5304 | T177: 5210 | V177: 5495A
Q178: 5495B | R178: L0025 | S178: 5306 | T178: 5211 | V178: 5495B
Q179: 5498B | R179: L0026 | S179: 5315 | T179: 5212 | V179: 5498B
Q180: 5530C | R180: L0027 | S180: 5317 | T180: 5215 | V180: 5530C
Q181: 5534A | R181: L0030 | S181: 5320 | T181: 5220 | V181: 5534A
Q182: 5534B | R182: L0031 | S182: 5324 | T182: 5223 | V182: 5534B
Q183: 5534Q | R183: L0035 | S183: 5325 | T183: 5224 | V183: 5534Q
Q184: 5582A | R184: L0036 | S184: 5328 | T184: 5224A | V184: 5582A
Q185: 5607A | R185: L0038 | S185: 5329 | T185: 5226 | V185: 5607A
Q186: 5607B | R186: L0040 | S186: 5330 | T186: 5227 | V186: 5607B
Q187: 5614A | R187: L0041 | S187: 5331 | T187: 5227A | V187: 5614A
Q188: 5614B | R188: L0043 | S188: 5333 | T188: 5227B | V188: 5614B
Q189: 5617B | R189: L0044 | S189: 5334 | T189: 5238 | V189: 5617B
Q190: 5617G | R190: L0045 | S190: 5335 | T190: 5238E | V190: 5617G
Q191: 5617H | R191: L0046 | S191: 5336 | T191: 5238F | V191: 5617H
Q192: 5617I | R192: L0048 | S192: 5337 | T192: 5240 | V192: 5617I
Q193: 5620B | R193: L0049 | S193: 5338 | T193: 5241 | V193: 5620B
Q194: 5620E | R194: L0050 | S194: 5339 | T194: 5242 | V194: 5620E
Q195: 5625A | R195: L0051 | S195: 5340 | T195: 5242A | V195: 5625A
Q196: 5625B | R196: L0052 | S196: 5341 | T196: 5245 | V196: 5625B
Q197: 5643A | R197: L0056 | S197: 5343 | T197: 5247 | V197: 5643A
Q198: 5685B | R198: L0057 | S198: 5360 | T198: 5248 | V198: 5685B
Q199: 5685C | R199: L0061 | S199: 5362 | T199: 5249 | V199: 5685C
Q200: 5695A | R200: L0063 | S200: 5365 | T200: 5249A | V200: 5695A
Q201: 5706B | R201: L0064 | S201: 5381 | T201: 5249G | V201: 5706B
Q202: 5706E | R202: L0065 | S202: 5385 | T202: 5250 | V202: 5706E
Q203: 5706G | R203: L0067 | S203: 5387 | T203: 5251 | V203: 5706G
Q204: 5706H | R204: L0068 | S204: 5390 | T204: 5253 | V204: 5706H
Q205: 5706N | R205: L0071 | S205: 5401 | T205: 5253A | V205: 5706N
... 1076 more rows

Sheet Info
A1: =COUNTA(A4:A1000) -> 546 | B1: Reporting Districts | F1: All OP Leas=Collaborative Schools (C) & Leas (L) & Charter Schools (H) | K1: FY21 Program Rates (Day, Res, and Summer) | U1: Sole Source Schools | Y1: Second Leas (Both Op & Charter Schools) | AD1: FY21 Program Rates (Day, Res, and Summer) | AM1: LEA/Collab=Collaborative (C) & Leas (L) & Charter Schools (H) | AR1: Unapproved School Codes
A3: leacode | B3: leaname | C3: School | E3: Code | F3: Type | G3: School Name | H3: School | J3: Code | K3: Type | L3: School Name | M3: Program | N3: Annual Price | O3: Daily Rate | P3: Start | Q3: End | R3: Days | T3: Code | U3: School | W3: lea_num | X3: dropbox_num | Y3: lea_code | Z3: lea_name | AA3: school | AC3: Code | AD3: Type | AE3: School Name | AF3: Program | AG3: Annual Price | AH3: Daily Rate | AI3: Start | AJ3: End | AK3: Total Days | AM3: Code | AN3: School Name | AO3: Type | AQ3: Code | AR3: Prog
S4: 1 | W4: 4 | X4: 1 | AA4: =Y4&" "&Z4 -> 
A5: 0001 | B5: Abington | C5: =A5&" "&B5 -> 0001 Abington | E5: C0502 | F5: Col | G5: Assabet Valley Collaborative | H5: =E5&" "&G5 -> C0502 Assabet Valley Collaborative | J5: 5017A | K5: Res Ed | L5: Amego | M5: Autistic | N5: 248738.27 | O5: 681.4747 | P5: 2020-07-01 | Q5: 2021-06-30 | R5: 365 | S5: 2 | T5: 5000 | U5: Abigail Rockwell/Brattleboro Retreat | V5: =T5&"-"&U5 -> 5000-Abigail Rockwell/Brattleboro Retreat | W5: 5 | X5: 2 | Y5: 0001 | Z5: Abington | AA5: 0001 Abington | AC5: 5017B | AD5: Day | AE5: Amego | AF5: Amego School Day | AG5: 124078.4525 | AH5: 523.5377743 | AI5: 2020-07-01 | AJ5: 2021-06-30 | AK5: 237 | AM5: C0502 | AN5: Assabet Valley Collaborative | AO5: =IF(LEFT(AM5,1)="C","Col",IF(LEFT(AM5,1)="L","Public",IF(LEFT(AM5,1)="H","Charter",""))) -> Col | AQ5: 0000 | AR5: New School
A6: 0002 | B6: Acton | C6: 0002 Acton | E6: C0504 | F6: Col | G6: Bi-County Collaborative (BICO) | H6: C0504 Bi-County Collaborative (BICO) | J6: 5017B | K6: Day | L6: Amego | M6: Amego School Day | N6: 124078.4525 | O6: 523.5378 | P6: 2020-07-01 | Q6: 2021-06-30 | R6: 237 | S6: 3 | T6: 5001 | U6: Accept Educ Collaborative | V6: =T6&"-"&U6 -> 5001-Accept Educ Collaborative | W6: 6 | X6: 3 | Y6: 0003 | Z6: Acushnet | AA6: 0003 Acushnet | AC6: 5017A | AD6: Res Ed | AE6: Amego | AF6: Autistic | AG6: 248738.27 | AH6: 681.4747123 | AI6: 2020-07-01 | AJ6: 2021-06-30 | AK6: 365 | AM6: C0504 | AN6: Bi-County Collaborative (BICO) | AO6: Col | AQ6: 5000 | AR6: Abigail Rockwell/Brattleboro Retreat
A7: 0003 | B7: Acushnet | C7: 0003 Acushnet | E7: C0512 | F7: Col | G7: Cape Cod Collaborative | H7: C0512 Cape Cod Collaborative | J7: 5021C | K7: Day | L7: American School for the Deaf | M7: MA Educational/Day | N7: 72618 | O7: 403.4333 | P7: 2020-09-02 | Q7: 2021-06-14 | R7: 180 | S7: 4 | T7: 5002 | U7: Aditus, Inc | V7: 5002-Aditus, Inc | W7: 7 | X7: 4 | Y7: 0005 | Z7: Agawam | AA7: 0005 Agawam | AC7: 5021C | AD7: Day | AE7: American School for the Deaf | AF7: MA Educational/Day | AG7: 72618 | AH7: 403.4333333 | AI7: 2020-09-02 | AJ7: 2021-06-14 | AK7: 180 | AM7: C0512 | AN7: Cape Cod Collaborative | AO7: Col | AQ7: 5001 | AR7: Accept Educ Collaborative
A8: 0004 | B8: Adams | C8: 0004 Adams | E8: C0514 | F8: Col | G8: CAPS Education Collaborative | H8: C0514 CAPS Education Collaborative | J8: 5021E | K8: Res Ed | L8: American School for the Deaf | M8: MA Educational/Residential | N8: 104786 | O8: 582.1444 | P8: 2020-09-02 | Q8: 2021-06-14 | R8: 180 | S8: 5 | T8: 5003 | U8: The Bridge of Central Mass, Stanley Hall | V8: 5003-The Bridge of Central Mass, Stanley Hall | W8: 8 | X8: 5 | Y8: 0007 | Z8: Amesbury | AA8: 0007 Amesbury | AC8: 5021E | AD8: Res Ed | AE8: American School for the Deaf | AF8: MA Educational/Residential | AG8: 104786 | AH8: 582.1444444 | AI8: 2020-09-02 | AJ8: 2021-06-14 | AK8: 180 | AM8: C0514 | AN8: CAPS Education Collaborative | AO8: Col | AQ8: 5002 | AR8: Aditus, Inc
A9: 0005 | B9: Agawam | C9: 0005 Agawam | E9: C0516 | F9: Col | G9: C.A.S.E. Concord Area SPED Collaborative | H9: C0516 C.A.S.E. Concord Area SPED Collaborative | J9: 5021G | K9: Res Ed | L9: American School for the Deaf | M9: MA PACES 365 | N9: 447012.24 | O9: 1338.36 | P9: 2020-08-01 | Q9: 2021-06-30 | R9: 334 | S9: 6 | T9: 5006 | U9: Action for Boston Comm Dev/Wm Ostiguy Hs | V9: 5006-Action for Boston Comm Dev/Wm Ostiguy Hs | W9: 9 | X9: 6 | Y9: 0008 | Z9: Amherst | AA9: 0008 Amherst | AC9: 5021Z | AD9: Res Ed | AE9: American School for the Deaf | AF9: MA PACES 365 | AG9: 41554.26 | AH9: 1340.46 | AI9: 2020-07-01 | AJ9: 2020-07-31 | AK9: =365-AK10 -> 31 | AM9: C0516 | AN9: C.A.S.E. Concord Area SPED Collaborative | AO9: Col | AQ9: 5003 | AR9: The Bridge of Central Mass, Stanley Hall
A10: 0006 | B10: Alford | C10: 0006 Alford | E10: C0518 | F10: Col | G10: Central Massachusetts SPED Collaborative | H10: C0518 Central Massachusetts SPED Collaborative | J10: 5021Z | K10: Res Ed | L10: American School for the Deaf | M10: MA PACES 365 | N10: 41554.26 | O10: 1340.46 | P10: 2020-07-01 | Q10: 2020-07-31 | R10: 31 | S10: 7 | T10: 5007 | U10: Adelbrook School | V10: 5007-Adelbrook School | W10: 10 | X10: 7 | Y10: 0009 | Z10: Andover | AA10: 0009 Andover | AC10: 5021G | AD10: Res Ed | AE10: American School for the Deaf | AF10: MA PACES 365 | AG10: 447012.24 | AH10: 1338.36 | AI10: 2020-08-01 | AJ10: 2021-06-30 | AK10: 334 | AM10: C0518 | AN10: Central Massachusetts SPED Collaborative | AO10: Col | AQ10: 5006 | AR10: Action for Boston Comm Dev/Wm Ostiguy Hs
A11: 0007 | B11: Amesbury | C11: 0007 Amesbury | E11: C0522 | F11: Col | G11: South Coast Educational Collaborative | H11: C0522 South Coast Educational Collaborative | J11: 5034A | K11: Res Ed | L11: Archway, Inc. | M11: Archway | N11: 181577.39 | O11: 497.4723 | P11: 2020-07-01 | Q11: 2021-06-30 | R11: 365 | S11: 8 | T11: 5008 | U11: Advocates Inc. | V11: 5008-Advocates Inc. | W11: 11 | X11: 8 | Y11: 0010 | Z11: Arlington | AA11: 0010 Arlington | AC11: 5034A | AD11: Res Ed | AE11: Archway, Inc. | AF11: Archway | AG11: 181577.39 | AH11: 497.4723014 | AI11: 2020-07-01 | AJ11: 2021-06-30 | AK11: 365 | AM11: C0522 | AN11: South Coast Educational Collaborative | AO11: Col | AQ11: 5008 | AR11: Advocates Inc.
A12: 0008 | B12: Amherst | C12: 0008 Amherst | E12: C0523 | F12: Col | G12: EDCO Collaborative | H12: C0523 EDCO Collaborative | J12: 5036A | K12: Day | L12: McLean Hospital, Inc. | M12: Arlington-Academy | N12: 74850.93 | O12: 378.035 | P12: 2020-07-06 | Q12: 2021-06-18 | R12: 198 | S12: 9 | T12: 5010 | U12: Agape Inn - Farr Academy | V12: 5010-Agape Inn - Farr Academy | W12: 12 | X12: 9 | Y12: 0014 | Z12: Ashland | AA12: 0014 Ashland | AC12: 6276C | AD12: Res Ed | AE12: Becket | AF12: Belgrade | AG12: 224777.95 | AH12: 615.83 | AI12: 2020-07-01 | AJ12: 2021-06-30 | AK12: 365 | AM12: C0523 | AN12: EDCO Collaborative | AO12: Col | AQ12: 5010 | AR12: Agape Inn - Farr Academy
A13: 0009 | B13: Andover | C13: 0009 Andover | E13: C0524 | F13: Col | G13: FLLAC Collaborative | H13: C0524 FLLAC Collaborative | J13: 5036I | K13: Day | L13: McLean Hospital, Inc. | M13: CNS | N13: 108723.05 | O13: 503.3475 | P13: 2020-07-08 | Q13: 2021-06-17 | R13: 216 | S13: 10 | T13: 5015 | U13: Alternative Support Inc. | V13: 5015-Alternative Support Inc. | W13: 13 | X13: 10 | Y13: 0016 | Z13: Attleboro | AA13: 0016 Attleboro | AC13: 6276H | AD13: Res Ed | AE13: Becket | AF13: Mount Prospect Academy/Campton | AG13: 259434.7 | AH13: 710.78 | AI13: 2020-07-01 | AJ13: 2021-06-30 | AK13: 365 | AM13: C0524 | AN13: FLLAC Collaborative | AO13: Col | AQ13: 5015 | AR13: Alternative Support Inc.
A14: 0010 | B14: Arlington | C14: 0010 Arlington | E14: C0528 | F14: Col | G14: Collaborative for Regional Educational Service and Training (CREST) | H14: C0528 Collaborative for Regional Educational Service and Training (CREST) | J14: 5049A | K14: Day | L14: Mass. Found. for Learning Disabilities | M14: White Oak School | N14: 49079.43 | O14: 272.6635 | P14: 2020-08-31 | Q14: 2021-06-14 | R14: 180 | S14: 11 | T14: 5017 | U14: Amego, Inc. | V14: 5017-Amego, Inc. | W14: 14 | X14: 11 | Y14: 0017 | Z14: Auburn | AA14: 0017 Auburn | AC14: 6276I | AD14: Res Ed | AE14: Becket | AF14: Mount Prospect Academy/Rummey | AG14: 186664.65 | AH14: 511.41 | AI14: 2020-07-01 | AJ14: 2021-06-30 | AK14: 365 | AM14: C0528 | AN14: Collaborative for Regional Educational Service and Training (CREST) | AO14: Col | AQ14: 5017 | AR14: Amego, Inc.
A15: 0011 | B15: Ashburnham | C15: 0011 Ashburnham | E15: C0532 | F15: Col | G15: Collaborative for Educational Services | H15: C0532 Collaborative for Educational Services | J15: 5088D | K15: Res Ed | L15: Hillcrest Educational Centers, Inc. | M15: Hillcrest | N15: 217335.96 | O15: 595.441 | P15: 2020-07-01 | Q15: 2021-06-30 | R15: 365 | S15: 12 | T15: 5017A | U15: Amego | V15: 5017A-Amego | W15: 15 | X15: 12 | Y15: 0018 | Z15: Avon | AA15: 0018 Avon | AC15: 6276J | AD15: Res Ed | AE15: Becket | AF15: Mount Prospect Academy/Pike | AG15: 185076.9 | AH15: 507.06 | AI15: 2020-07-01 | AJ15: 2021-06-30 | AK15: 365 | AM15: C0532 | AN15: Collaborative for Educational Services | AO15: Col | AQ15: 5021 | AR15: American School for the Deaf
A16: 0012 | B16: Ashby | C16: 0012 Ashby | E16: C0534 | F16: Col | G16: LABBB Collaborative | H16: C0534 LABBB Collaborative | J16: 5088E | K16: Res Ed | L16: Hillcrest Educational Centers, Inc. | M16: Intensive Tx Unit | N16: 351937.16 | O16: 964.2114 | P16: 2020-07-01 | Q16: 2021-06-30 | R16: 365 | S16: 13 | T16: 5017B | U16: Amego | V16: 5017B-Amego | W16: 16 | X16: 13 | Y16: 0020 | Z16: Barnstable | AA16: 0020 Barnstable | AC16: 6276M | AD16: Res Ed | AE16: Becket | AF16: Mount Prospect Academy/ Depot (Subacute) | AG16: 307289.85 | AH16: 841.89 | AI16: 2020-07-01 | AJ16: 2021-06-30 | AK16: 365 | AM16: C0534 | AN16: LABBB Collaborative | AO16: Col | AQ16: 5025 | AR16: Anderson School
A17: 0013 | B17: Ashfield | C17: 0013 Ashfield | E17: C0536 | F17: Col | G17: Lower Pioneer Valley Educational Collaborative | H17: C0536 Lower Pioneer Valley Educational Collaborative | J17: 5088F | K17: Day | L17: Hillcrest Educational Centers, Inc. | M17: Housatonic Academy | N17: 59681.47 | O17: 276.3031 | P17: 2020-07-07 | Q17: 2021-06-21 | R17: 216 | S17: 14 | T17: 5021 | U17: American School for the Deaf | V17: 5021-American School for the Deaf | W17: 17 | X17: 14 | Y17: 0023 | Z17: Bedford | AA17: 0023 Bedford | AC17: 6276N | AD17: Res Ed | AE17: Becket | AF17: Mount Prospect Academy/Plymouth | AG17: 181266.3 | AH17: 496.62 | AI17: 2020-07-01 | AJ17: 2021-06-30 | AK17: 365 | AM17: C0536 | AN17: Lower Pioneer Valley Educational Collaborative | AO17: Col | AQ17: 5034 | AR17: Archway, Inc
A18: 0014 | B18: Ashland | C18: 0014 Ashland | E18: C0540 | F18: Col | G18: Valley Collaborative | H18: C0540 Valley Collaborative | J18: 5088G | K18: Res Ed | L18: Hillcrest Educational Centers, Inc. | M18: Autism Spectrum Disorders | N18: 373153.64 | O18: 1022.3387 | P18: 2020-07-01 | Q18: 2021-06-30 | R18: 365 | S18: 15 | T18: 5021C | U18: American School for the Deaf | V18: 5021C-American School for the Deaf | W18: 18 | X18: 15 | Y18: 0024 | Z18: Belchertown | AA18: 0024 Belchertown | AC18: 6276P | AD18: Res Ed | AE18: Becket | AF18: Vermont School for Girls | AG18: 141729.5 | AH18: 388.3 | AI18: 2020-07-01 | AJ18: 2021-06-30 | AK18: 365 | AM18: C0540 | AN18: Valley Collaborative | AO18: Col | AQ18: 5036 | AR18: Arlington School/Mclean Hospital
A19: 0015 | B19: Athol | C19: =A19&" "&B19 -> 0015 Athol | E19: C0544 | F19: Col | G19: North River Collaborative | H19: C0544 North River Collaborative | J19: 5088H | K19: Day | L19: Hillcrest Educational Centers, Inc. | M19: ASD -Day program | N19: 120874.64 | O19: 559.6048 | P19: 2020-09-02 | Q19: 2021-06-21 | R19: 180 | S19: 16 | T19: 5021E | U19: American School for the Deaf | V19: 5021E-American School for the Deaf | W19: 19 | X19: 16 | Y19: 0025 | Z19: Bellingham | AA19: 0025 Bellingham | AC19: 6276S | AD19: Res Ed | AE19: Becket | AF19: NESFG Green Meadows Subacute | AG19: 295102.5 | AH19: 808.5 | AI19: 2020-07-01 | AJ19: 2021-06-30 | AK19: 365 | AM19: C0544 | AN19: North River Collaborative | AO19: Col | AQ19: 5040 | AR19: Aspen Ranch
A20: 0016 | B20: Attleboro | C20: 0016 Attleboro | E20: C0546 | F20: Col | G20: Northshore Education Consortium | H20: C0546 Northshore Education Consortium | J20: 5095A | K20: Res Ed | L20: Home for Little Wanderers | M20: Southeast Campus Res. | N20: 142149.8508 | O20: 670.5182 | P20: 2020-12-01 | Q20: 2021-06-30 | R20: 212 | S20: 17 | T20: 5021G | U20: American School for the Deaf | V20: 5021G-American School for the Deaf | W20: 20 | X20: 17 | Y20: 0026 | Z20: Belmont | AA20: 0026 Belmont | AC20: 6276T | AD20: Res Ed | AE20: Becket | AF20: NESFG Intensive Residential | AG20: 200056.5 | AH20: 548.1 | AI20: 2020-07-01 | AJ20: 2021-06-30 | AK20: 365 | AM20: C0546 | AN20: Northshore Education Consortium | AO20: Col | AQ20: 5047 | AR20: Association for Community Living
A21: 0017 | B21: Auburn | C21: 0017 Auburn | E21: C0548 | F21: Col | G21: Pilgrim Area Collaborative (PAC) | H21: C0548 Pilgrim Area Collaborative (PAC) | J21: 5095B | K21: Day | L21: Home for Little Wanderers | M21: Southeast Campus Day | N21: 54764.9697 | O21: 448.8932 | P21: 2020-12-01 | Q21: 2021-06-17 | R21: 122 | S21: 18 | T21: 5021Z | U21: American School for the Deaf | V21: 5021Z-American School for the Deaf | W21: 21 | X21: 18 | Y21: 0027 | Z21: Berkley | AA21: 0027 Berkley | AC21: 5121Z | AD21: Res Ed | AE21: Bellefaire Jewish Childrens Bureau | AF21: Monarch School | AG21: 18031.15 | AH21: 581.65 | AI21: 2020-07-01 | AJ21: 2020-07-31 | AK21: 31 | AM21: C0548 | AN21: Pilgrim Area Collaborative (PAC) | AO21: Col | AQ21: 5048 | AR21: American Int. College/Curtis Blake Cntr
A22: 0018 | B22: Avon | C22: 0018 Avon | E22: C0550 | F22: Col | G22: ACCEPT Education Collaborative | H22: C0550 ACCEPT Education Collaborative | J22: 5095Y | K22: Day | L22: Home for Little Wanderers | M22: Southeast Campus Day | N22: 32659.2904 | O22: 347.4393 | P22: 2020-07-06 | Q22: 2020-11-30 | R22: 94 | S22: 19 | T22: 5025 | U22: Anderson School | V22: 5025-Anderson School | W22: 22 | X22: 19 | Y22: 0030 | Z22: Beverly | AA22: 0030 Beverly | AC22: 5121A | AD22: Res Ed | AE22: Bellefaire Jewish Childrens Bureau | AF22: Monarch School | AG22: 187240.4 | AH22: 560.6 | AI22: 2020-08-01 | AJ22: 2021-06-30 | AK22: 334 | AM22: C0550 | AN22: ACCEPT Education Collaborative | AO22: Col | AQ22: 5049 | AR22: White Oak School
A23: 0019 | B23: Ayer | C23: 0019 Ayer | E23: C0558 | F23: Col | G23: READS Collaborative | H23: C0558 READS Collaborative | J23: 5095Z | K23: Res Ed | L23: Home for Little Wanderers | M23: Southeast Campus Res. | N23: 94299.2655 | O23: 616.3351 | P23: 2020-07-01 | Q23: 2020-11-30 | R23: 153 | S23: 20 | T23: 5034 | U23: Archway, Inc | V23: 5034-Archway, Inc | W23: 23 | X23: 20 | Y23: 0031 | Z23: Billerica | AA23: 0031 Billerica | AC23: 5121B | AD23: Day | AE23: Bellefaire Jewish Childrens Bureau | AF23: Monarch School | AG23: 81885.6 | AH23: 454.92 | AI23: 2020-09-01 | AJ23: 2021-06-11 | AK23: 180 | AM23: C0558 | AN23: READS Collaborative | AO23: Col | AQ23: 5083 | AR23: Austine School for The Deaf
A24: 0020 | B24: Barnstable | C24: 0020 Barnstable | E24: C0562 | F24: Col | G24: SEEM Collaborative | H24: C0562 SEEM Collaborative | J24: 5097A | K24: Day | L24: Judge Baker Children's Center, Inc. | M24: Manville | N24: 96110.91 | O24: 533.9495 | P24: 2020-09-14 | Q24: 2021-06-23 | R24: 180 | S24: 21 | T24: 5034A | U24: Archway, Inc. | V24: 5034A-Archway, Inc. | W24: 24 | X24: 21 | Y24: 0035 | Z24: Boston | AA24: 0035 Boston | AC24: 5134B | AD24: Day | AE24: Beverly School for the Deaf | AF24: BSD | AG24: 81414.57 | AH24: 399.0910294 | AI24: 2020-07-07 | AJ24: 2021-06-17 | AK24: 204 | AM24: C0562 | AN24: SEEM Collaborative | AO24: Col | AQ24: 5088 | AR24: Hillcrest Educational Centers,
A25: 0021 | B25: Barre | C25: 0021 Barre | E25: C0564 | F25: Col | G25: Shore Educational Collaborative | H25: C0564 Shore Educational Collaborative | J25: 5097B | K25: Summer | L25: Judge Baker Children's Center, Inc. | M25: Manville-Summer | N25: 9552.46 | O25: 477.623 | P25: 2020-07-06 | Q25: 2020-08-06 | R25: 20 | S25: 22 | T25: 5036 | U25: Arlington School/Mclean Hospital | V25: 5036-Arlington School/Mclean Hospital | W25: 25 | X25: 22 | Y25: 0036 | Z25: Bourne | AA25: 0036 Bourne | AC25: 5134C | AD25: Day | AE25: Beverly School for the Deaf | AF25: Child. Comm. Ctr. | AG25: 99590.32 | AH25: 488.1878431 | AI25: 2020-07-07 | AJ25: 2021-06-17 | AK25: 204 | AM25: C0564 | AN25: Shore Educational Collaborative | AO25: Col | AQ25: 5090 | AR25: Hillside
A26: 0022 | B26: Becket | C26: 0022 Becket | E26: C0570 | F26: Col | G26: Southeastern Mass. Educational Collaborative (SMEC) | H26: C0570 Southeastern Mass. Educational Collaborative (SMEC) | J26: 5110A | K26: Summer | L26: COMPASS, Inc. | M26: Summer | N26: 7891.6 | O26: 328.8167 | P26: 2020-07-06 | Q26: 2020-08-13 | R26: 24 | S26: 23 | T26: 5036A | U26: McLean Hospital, Inc. | V26: 5036A-McLean Hospital, Inc. | W26: 26 | X26: 23 | Y26: 0038 | Z26: Boxford | AA26: 0038 Boxford | AC26: 5157A | AD26: Day | AE26: Boston College Campus School | AF26: Campus School | AG26: 95706.032 | AH26: 483.363798 | AI26: 2020-07-13 | AJ26: 2021-06-16 | AK26: 198 | AM26: C0570 | AN26: Southeastern Mass. Educational Collaborative (SMEC) | AO26: Col | AQ26: 5095 | AR26: Baird Ctr - Home for Little Wanderers
A27: 0023 | B27: Bedford | C27: 0023 Bedford | E27: C0572 | F27: Col | G27: Southern Worcester County Educational Collaborative | H27: C0572 Southern Worcester County Educational Collaborative | J27: 5110B | K27: Day | L27: COMPASS, Inc. | M27: Short Term Crisis | N27: 31326.66 | O27: 174.037 | P27: 2020-09-08 | Q27: 2021-06-18 | R27: 180 | S27: 24 | T27: 5036I | U27: McLean Hospital, Inc. | V27: 5036I-McLean Hospital, Inc. | W27: 27 | X27: 24 | Y27: 0040 | Z27: Braintree | AA27: 0040 Braintree | AC27: 5154A | AD27: Day | AE27: Boston Higashi School | AF27: Day Education | AG27: 80877.702 | AH27: 372.7083041 | AI27: 2020-07-06 | AJ27: 2021-06-27 | AK27: 217 | AM27: C0572 | AN27: Southern Worcester County Educational Collaborative | AO27: Col | AQ27: 5097 | AR27: Judge Baker Children's Center
A28: 0024 | B28: Belchertown | C28: 0024 Belchertown | E28: C0574 | F28: Col | G28: South Shore Educational Collaborative | H28: C0574 South Shore Educational Collaborative | J28: 5110C | K28: Day | L28: COMPASS, Inc. | M28: 766 Day School | N28: 74930.59 | O28: 416.2811 | P28: 2020-09-08 | Q28: 2021-06-18 | R28: 180 | S28: 25 | T28: 5040 | U28: Aspen Ranch | V28: 5040-Aspen Ranch | W28: 28 | X28: 25 | Y28: 0041 | Z28: Brewster | AA28: 0041 Brewster | AC28: 5154B | AD28: Res Ed | AE28: Boston Higashi School | AF28: Residential Ed. | AG28: 198031.3 | AH28: 651.41875 | AI28: 2020-07-06 | AJ28: 2021-06-27 | AK28: 304 | AM28: C0574 | AN28: South Shore Educational Collaborative | AO28: Col | AQ28: 5099 | AR28: Penikese Land School
A29: 0025 | B29: Bellingham | C29: 0025 Bellingham | E29: C0576 | F29: Col | G29: The Education Cooperative (TEC) | H29: C0576 The Education Cooperative (TEC) | J29: 5112B | K29: Day | L29: Justice Resource Institute | M29: Bay Cove | N29: 80080.83 | O29: 364.0038 | P29: 2020-07-01 | Q29: 2021-06-30 | R29: 220 | S29: 26 | T29: 5047 | U29: Association for Community Living | V29: 5047-Association for Community Living | W29: 29 | X29: 26 | Y29: 0043 | Z29: Brimfield | AA29: 0043 Brimfield | AC29: 5154C | AD29: Res Ed | AE29: Boston Higashi School | AF29: Residential Ed. 365 | AG29: 237759.12 | AH29: 651.3948493 | AI29: 2020-07-01 | AJ29: 2021-06-30 | AK29: 365 | AM29: C0576 | AN29: The Education Cooperative (TEC) | AO29: Col | AQ29: 5100 | AR29: Berkshire County Arc / Comm Based Prog
A30: 0026 | B30: Belmont | C30: 0026 Belmont | E30: H0407 | F30: Day | G30: Dudley Street Neighborhood Charter School | H30: H0407 Dudley Street Neighborhood Charter School | J30: 5113A | K30: Day | L30: New England Pediatric Nursing Home | M30: Pediatric | N30: 64458.08 | O30: 256.8051 | P30: 2020-07-01 | Q30: 2021-06-30 | R30: 251 | S30: 27 | T30: 5048 | U30: American Int. College/Curtis Blake Cntr | V30: 5048-American Int. College/Curtis Blake Cntr | W30: 30 | X30: 27 | Y30: 0044 | Z30: Brockton | AA30: 0044 Brockton | AC30: 5160D | AD30: Res Ed | AE30: Brandon Residential Treatment Center | AF30: Intensive Res. | AG30: 211044 | AH30: 578.2027397 | AI30: 2020-07-01 | AJ30: 2021-06-30 | AK30: 365 | AM30: H0407 | AN30: Dudley Street Neighborhood Charter School | AO30: Charter | AQ30: 5101 | AR30: Bancroft School
A31: 0027 | B31: Berkley | C31: 0027 Berkley | E31: H0409 | F31: Day | G31: Alma del Mar Charter School | H31: H0409 Alma del Mar Charter School | J31: 5120A | K31: Res Ed | L31: Judge Rotenberg Educational Center | M31: Judge Rotenberg | N31: 277915.18 | O31: 761.4115 | P31: 2020-07-01 | Q31: 2021-06-30 | R31: 365 | S31: 28 | T31: 5049 | U31: White Oak School | V31: 5049-White Oak School | W31: 31 | X31: 28 | Y31: 0045 | Z31: Brookfield | AA31: 0045 Brookfield | AC31: 5160C | AD31: Day | AE31: Brandon Residential Treatment Center | AF31: Intensive Day | AG31: 82981.37 | AH31: 384.1730093 | AI31: 2020-07-06 | AJ31: 2021-06-22 | AK31: 216 | AM31: H0409 | AN31: Alma del Mar Charter School | AO31: Charter | AQ31: 5110 | AR31: Compass
A32: 0028 | B32: Berlin | C32: 0028 Berlin | E32: H0410 | F32: Day | G32: Excel Academy Charter School | H32: H0410 Excel Academy Charter School | J32: 5121A | K32: Res Ed | L32: Bellefaire Jewish Childrens Bureau | M32: Monarch School | N32: 187240.4 | O32: 560.6 | P32: 2020-08-01 | Q32: 2021-06-30 | R32: 334 | S32: 29 | T32: 5049A | U32: Mass. Found. for Learning Disabilities | V32: 5049A-Mass. Found. for Learning Disabilities | W32: 32 | X32: 29 | Y32: 0046 | Z32: Brookline | AA32: 0046 Brookline | AC32: 5160Q | AD32: Day | AE32: Brandon Residential Treatment Center | AF32: Intensive Day | AG32: 82981.37 | AH32: 227.3462192 | AI32: 2020-07-01 | AJ32: 2021-06-30 | AK32: 365 | AM32: H0410 | AN32: Excel Academy Charter School | AO32: Charter | AQ32: 5111 | AR32: Barrington Teacch
A33: 0029 | B33: Bernardston | C33: 0029 Bernardston | E33: H0411 | F33: Day | G33: Boston Green Academy Horace Mann Charter School | H33: H0411 Boston Green Academy Horace Mann Charter School | J33: 5121B | K33: Day | L33: Bellefaire Jewish Childrens Bureau | M33: Monarch School | N33: 81885.6 | O33: 454.92 | P33: 2020-08-25 | Q33: 2021-06-11 | R33: 180 | S33: 30 | T33: 5083 | U33: Austine School for The Deaf | V33: 5083-Austine School for The Deaf | W33: 33 | X33: 30 | Y33: 0048 | Z33: Burlington | AA33: 0048 Burlington | AC33: 5165Z | AD33: Day | AE33: Broccoli Hall, Inc. | AF33: Corwin-Russell | AG33: 5821.717778 | AH33: 223.9122222 | AI33: 2020-08-25 | AJ33: 2020-09-30 | AK33: 26 | AM33: H0411 | AN33: Boston Green Academy Horace Mann Charter School | AO33: Charter | AQ33: 5112 | AR33: Bay Cove Day Center
A34: 0030 | B34: Beverly | C34: 0030 Beverly | E34: H0412 | F34: Day | G34: Academy Of the Pacific Rim Charter Public School | H34: H0412 Academy Of the Pacific Rim Charter Public School | J34: 5121Z | K34: Res Ed | L34: Bellefaire Jewish Childrens Bureau | M34: Monarch School | N34: 18031.15 | O34: 581.65 | P34: 2020-07-01 | Q34: 2020-07-31 | R34: 31 | S34: 31 | T34: 5088 | U34: Hillcrest Educational Centers, | V34: 5088-Hillcrest Educational Centers, | W34: 34 | X34: 31 | Y34: 0049 | Z34: Cambridge | AA34: 0049 Cambridge | AC34: 5165A | AD34: Day | AE34: Broccoli Hall, Inc. | AF34: Corwin-Russell | AG34: 45771.62333 | AH34: 297.2183333 | AI34: 2020-10-01 | AJ34: 2021-06-11 | AK34: =180-AK33 -> 154 | AM34: H0412 | AN34: Academy Of the Pacific Rim Charter Public School | AO34: Charter | AQ34: 5113 | AR34: New England Pediatric Care
A35: 0031 | B35: Billerica | C35: 0031 Billerica | E35: H0413 | F35: Day | G35: Four Rivers Charter Public School | H35: H0413 Four Rivers Charter Public School | J35: 5127C | K35: Res Ed | L35: Justice Resource Institute | M35: Berkshire Meadows | N35: 237166.28 | O35: 649.7706 | P35: 2020-07-01 | Q35: 2021-06-30 | R35: 365 | S35: 32 | T35: 5088D | U35: Hillcrest Educational Centers, Inc. | V35: 5088D-Hillcrest Educational Centers, Inc. | W35: 35 | X35: 32 | Y35: 0050 | Z35: Canton | AA35: 0050 Canton | AC35: 5947Z | AD35: Day | AE35: Camp Sunshine Day | AF35: Reed Academy Day | AG35: 8654.509741 | AH35: 298.4313704 | AI35: 2020-07-06 | AJ35: 2020-08-13 | AK35: 29 | AM35: H0413 | AN35: Four Rivers Charter Public School | AO35: Charter | AQ35: 5115 | AR35: Baystate Medical Ctr Day School
A36: 0032 | B36: Blackstone | C36: 0032 Blackstone | E36: H0414 | F36: Day | G36: Berkshire Arts and Technology Charter Public School | H36: H0414 Berkshire Arts and Technology Charter Public School | J36: 5127D | K36: Day | L36: Justice Resource Institute | M36: Victor School | N36: 58982.08 | O36: 273.0652 | P36: 2020-07-01 | Q36: 2021-06-25 | R36: 216 | S36: 33 | T36: 5088E | U36: Hillcrest Educational Centers, Inc. | V36: 5088E-Hillcrest Educational Centers, Inc. | W36: 36 | X36: 33 | Y36: 0051 | Z36: Carlisle | AA36: 0051 Carlisle | AC36: 5947C | AD36: Day | AE36: Camp Sunshine Day | AF36: Reed Academy Day | AG36: 76262.93736 | AH36: 407.8231944 | AI36: 2020-09-02 | AJ36: 2021-06-22 | AK36: =216-AK35 -> 187 | AM36: H0414 | AN36: Berkshire Arts and Technology Charter Public School | AO36: Charter | AQ36: 5118 | AR36: Ben Bronz Academy
A37: 0033 | B37: Blandford | C37: 0033 Blandford | E37: H0416 | F37: Day | G37: Boston Preparatory Charter Public School | H37: H0416 Boston Preparatory Charter Public School | J37: 5127E | K37: Res Ed | L37: Justice Resource Institute | M37: Littleton Academy | N37: 271193.94 | O37: 742.9971 | P37: 2021-01-01 | Q37: 2021-06-30 | R37: 181 | S37: 34 | T37: 5088F | U37: Hillcrest Educational Centers, Inc. | V37: 5088F-Hillcrest Educational Centers, Inc. | W37: 37 | X37: 34 | Y37: 0052 | Z37: Carver | AA37: 0052 Carver | AC37: 6012A | AD37: Day | AE37: Cardinal Cushing School & Training Ctr. | AF37: Braintree St. Coletta | AG37: 90965.53717 | AH37: 421.1367461 | AI37: 2020-07-06 | AJ37: 2021-06-21 | AK37: 216 | AM37: H0416 | AN37: Boston Preparatory Charter Public School | AO37: Charter | AQ37: 5120 | AR37: Judge Rotenberg Education Center
A38: 0034 | B38: Bolton | C38: 0034 Bolton | E38: H0417 | F38: Day | G38: Bridge Boston Charter School | H38: H0417 Bridge Boston Charter School | J38: 5134B | K38: Day | L38: Beverly School for the Deaf | M38: BSD | N38: 81414.57 | O38: 399.091 | P38: 2020-07-07 | Q38: 2021-06-17 | R38: 204 | S38: 35 | T38: 5088G | U38: Hillcrest Educational Centers, Inc. | V38: 5088G-Hillcrest Educational Centers, Inc. | W38: 38 | X38: 35 | Y38: 0056 | Z38: Chelmsford | AA38: 0056 Chelmsford | AC38: 6012Q | AD38: Day | AE38: Cardinal Cushing School & Training Ctr. | AF38: Braintree St. Coletta | AG38: 90965.53717 | AH38: 249.2206498 | AI38: 2020-07-01 | AJ38: 2021-06-30 | AK38: 365 | AM38: H0417 | AN38: Bridge Boston Charter School | AO38: Charter | AQ38: 5121 | AR38: Bellefaire Jewish Children's Bureau - Monarch Program
A39: 0035 | B39: Boston | C39: 0035 Boston | E39: H0418 | F39: Day | G39: Christa McAuliffe Charter Public School | H39: H0418 Christa McAuliffe Charter Public School | J39: 5134C | K39: Day | L39: Beverly School for the Deaf | M39: Child. Comm. Ctr. | N39: 99590.32 | O39: 488.1878 | P39: 2020-07-07 | Q39: 2021-06-17 | R39: 204 | S39: 36 | T39: 5088H | U39: Hillcrest Educational Centers, Inc. | V39: 5088H-Hillcrest Educational Centers, Inc. | W39: 39 | X39: 36 | Y39: 0057 | Z39: Chelsea | AA39: 0057 Chelsea | AC39: 5296A | AD39: Day | AE39: Cardinal Cushing School & Training Ctr. | AF39: Day/Vocational | AG39: 97195.376 | AH39: 449.9785926 | AI39: 2020-07-06 | AJ39: 2021-06-18 | AK39: 216 | AM39: H0418 | AN39: Christa McAuliffe Charter Public School | AO39: Charter | AQ39: 5122 | AR39: Beal Street Academy
A40: 0036 | B40: Bourne | C40: 0036 Bourne | E40: H0419 | F40: Day | G40: Helen Y. Davis Leadership Academy Charter Public School | H40: H0419 Helen Y. Davis Leadership Academy Charter Public School | J40: 5154A | K40: Day | L40: Boston Higashi School | M40: Day Education | N40: 80877.702 | O40: 372.7083 | P40: 2020-07-06 | Q40: 2021-06-27 | R40: 217 | S40: 37 | T40: 5090 | U40: Hillside | V40: 5090-Hillside | W40: 40 | X40: 37 | Y40: 0061 | Z40: Chicopee | AA40: 0061 Chicopee | AC40: 5296C | AD40: Res Ed | AE40: Cardinal Cushing School & Training Ctr. | AF40: Residential | AG40: 253807.1538 | AH40: 695.3620652 | AI40: 2020-07-01 | AJ40: 2021-06-30 | AK40: 365 | AM40: H0419 | AN40: Helen Y. Davis Leadership Academy Charter Public School | AO40: Charter | AQ40: 5123 | AR40: Becket School
A41: 0037 | B41: Boxborough | C41: 0037 Boxborough | E41: H0420 | F41: Day | G41: Benjamin Banneker Charter Public School | H41: H0420 Benjamin Banneker Charter Public School | J41: 5154B | K41: Res Ed | L41: Boston Higashi School | M41: Residential Ed. | N41: 198031.3 | O41: 651.4187 | P41: 2020-07-06 | Q41: 2021-06-27 | R41: 304 | S41: 38 | T41: 5095 | U41: Baird Ctr - Home for Little Wanderers | V41: 5095-Baird Ctr - Home for Little Wanderers | W41: 41 | X41: 38 | Y41: 0063 | Z41: Clarksburg | AA41: 0063 Clarksburg | AC41: 5296E | AD41: Res Ed | AE41: Cardinal Cushing School & Training Ctr. | AF41: Residential | AG41: 219039.0505 | AH41: 695.3620652 | AI41: 2020-07-05 | AJ41: 2021-06-18 | AK41: 315 | AM41: H0420 | AN41: Benjamin Banneker Charter Public School | AO41: Charter | AQ41: 5124 | AR41: Behavioral Connections
A42: 0038 | B42: Boxford | C42: 0038 Boxford | E42: H0424 | F42: Day | G42: Boston Day and Evening Academy Charter School | H42: H0424 Boston Day and Evening Academy Charter School | J42: 5154C | K42: Res Ed | L42: Boston Higashi School | M42: Residential Ed. 365 | N42: 237759.12 | O42: 651.3948 | P42: 2020-07-01 | Q42: 2021-06-30 | R42: 365 | S42: 39 | T42: 5095A | U42: Home for Little Wanderers | V42: 5095A-Home for Little Wanderers | W42: 42 | X42: 39 | Y42: 0064 | Z42: Clinton | AA42: 0064 Clinton | AC42: 5224A | AD42: Day | AE42: Center for Applied Behavioral Instruction | AF42: Day Program | AG42: 95849.91 | AH42: 424.114646 | AI42: 2020-07-01 | AJ42: 2021-06-30 | AK42: 226 | AM42: H0424 | AN42: Boston Day and Evening Academy Charter School | AO42: Charter | AQ42: 5125 | AR42: Bennington School
A43: 0039 | B43: Boylston | C43: 0039 Boylston | E43: H0426 | F43: Day | G43: Community Day Charter Public School - Gateway | H43: H0426 Community Day Charter Public School - Gateway | J43: 5157A | K43: Day | L43: Boston College Campus School | M43: Campus School | N43: 95706.032 | O43: 483.3638 | P43: 2020-07-13 | Q43: 2021-06-16 | R43: 198 | S43: 40 | T43: 5095B | U43: Home for Little Wanderers | V43: 5095B-Home for Little Wanderers | W43: 43 | X43: 40 | Y43: 0065 | Z43: Cohasset | AA43: 0065 Cohasset | AC43: 5227B | AD43: Day | AE43: Center for School Crisis Inter. & Assess. | AF43: Center School | AG43: 81303.95 | AH43: 369.5634091 | AI43: 2020-07-01 | AJ43: 2021-06-16 | AK43: 220 | AM43: H0426 | AN43: Community Day Charter Public School - Gateway | AO43: Charter | AQ43: 5126 | AR43: Bershire Center
A44: 0040 | B44: Braintree | C44: 0040 Braintree | E44: H0428 | F44: Day | G44: Brooke Charter School | H44: H0428 Brooke Charter School | J44: 5160C | K44: Day | L44: Brandon Residential Treatment Center | M44: Intensive Day | N44: 82981.37 | O44: 384.173 | P44: 2020-07-06 | Q44: 2021-06-22 | R44: 216 | S44: 41 | T44: 5095Y | U44: Home for Little Wanderers | V44: 5095Y-Home for Little Wanderers | W44: 44 | X44: 41 | Y44: 0067 | Z44: Concord | AA44: 0067 Concord | AC44: 5249G | AD44: Day | AE44: Children's Study Home | AF44: Curtis Blake Day School | AG44: 44747.94 | AH44: 248.5996667 | AI44: 2020-09-08 | AJ44: 2021-06-18 | AK44: 180 | AM44: H0428 | AN44: Brooke Charter School | AO44: Charter | AQ44: 5127 | AR44: Berkshire Meadows
A45: 0041 | B45: Brewster | C45: 0041 Brewster | E45: H0429 | F45: Day | G45: KIPP Academy Lynn Charter School | H45: H0429 KIPP Academy Lynn Charter School | J45: 5160D | K45: Res Ed | L45: Brandon Residential Treatment Center | M45: Intensive Res. | N45: 211044 | O45: 578.2027 | P45: 2020-07-01 | Q45: 2021-06-30 | R45: 365 | S45: 42 | T45: 5095Z | U45: Home for Little Wanderers | V45: 5095Z-Home for Little Wanderers | W45: 45 | X45: 42 | Y45: 0068 | Z45: Conway | AA45: 0068 Conway | AC45: 5249A | AD45: Day | AE45: Children's Study Home | AF45: Mill Pond Day Program | AG45: 52292.36 | AH45: 242.0942593 | AI45: 2020-07-01 | AJ45: 2021-06-18 | AK45: 216 | AM45: H0429 | AN45: KIPP Academy Lynn Charter School | AO45: Charter | AQ45: 5128 | AR45: Berkshire Learning Center
A46: 0042 | B46: Bridgewater | C46: 0042 Bridgewater | E46: H0430 | F46: Day | G46: Advanced Math and Science Academy Charter School | H46: H0430 Advanced Math and Science Academy Charter School | J46: 5160Q | K46: Day | L46: Brandon Residential Treatment Center | M46: Intensive Day | N46: 82981.37 | O46: 227.3462 | P46: 2020-07-01 | Q46: 2021-06-30 | R46: 365 | S46: 43 | T46: 5097 | U46: Judge Baker Children's Center | V46: 5097-Judge Baker Children's Center | W46: 46 | X46: 43 | Y46: 0071 | Z46: Danvers | AA46: 0071 Danvers | AC46: 5257A | AD46: Day | AE46: Clarke School for the Deaf | AF46: Day Education | AG46: 61622.43677 | AH46: 342.3468709 | AI46: 2020-09-02 | AJ46: 2021-06-16 | AK46: 180 | AM46: H0430 | AN46: Advanced Math and Science Academy Charter School | AO46: Charter | AQ46: 5129 | AR46: Berkshire County Arc / Comm Based Prog
A47: 0043 | B47: Brimfield | C47: 0043 Brimfield | E47: H0431 | F47: Day | G47: Community Day Charter Public School - R. Kingman Webster | H47: H0431 Community Day Charter Public School - R. Kingman Webster | J47: 5165A | K47: Day | L47: Broccoli Hall, Inc. | M47: Corwin-Russell | N47: 45771.6233 | O47: 297.2183 | P47: 2020-10-01 | Q47: 2021-06-11 | R47: 154 | S47: 44 | T47: 5097A | U47: Judge Baker Children's Center, Inc. | V47: 5097A-Judge Baker Children's Center, Inc. | W47: 47 | X47: 44 | Y47: 0072 | Z47: Dartmouth | AA47: 0072 Dartmouth | AC47: 5257B | AD47: Day | AE47: Clarke School for the Deaf | AF47: Preschool | AG47: 51957.70685 | AH47: 262.4126609 | AI47: 2020-07-06 | AJ47: 2021-06-16 | AK47: 198 | AM47: H0431 | AN47: Community Day Charter Public School - R. Kingman Webster | AO47: Charter | AQ47: 5130 | AR47: Berkshire Hills Music Academy
A48: 0044 | B48: Brockton | C48: 0044 Brockton | E48: H0432 | F48: Day | G48: Cape Cod Lighthouse Charter School | H48: H0432 Cape Cod Lighthouse Charter School | J48: 5165Z | K48: Day | L48: Broccoli Hall, Inc. | M48: Corwin-Russell | N48: 5821.7178 | O48: 223.9122 | P48: 2020-08-25 | Q48: 2020-09-30 | R48: 26 | S48: 45 | T48: 5097B | U48: Judge Baker Children's Center, Inc. | V48: 5097B-Judge Baker Children's Center, Inc. | W48: 48 | X48: 45 | Y48: 0073 | Z48: Dedham | AA48: 0073 Dedham | AC48: 5257D | AD48: Day | AE48: Clarke School for the Deaf | AF48: Clarke School East | AG48: 57422.39 | AH48: 299.0749479 | AI48: 2020-07-06 | AJ48: 2021-06-18 | AK48: 192 | AM48: H0432 | AN48: Cape Cod Lighthouse Charter School | AO48: Charter | AQ48: 5132 | AR48: Berkshire Family and Individual Resources
A49: 0045 | B49: Brookfield | C49: 0045 Brookfield | E49: H0435 | F49: Day | G49: Innovation Academy Charter School | H49: H0435 Innovation Academy Charter School | J49: 5177G | K49: Day | L49: Specialized Education Services, Inc. | M49: High Road School of MA. | N49: 41888.49 | O49: 232.7138 | P49: 2020-09-02 | Q49: 2021-06-17 | R49: 180 | S49: 46 | T49: 5099 | U49: Penikese Land School | V49: 5099-Penikese Land School | W49: 49 | X49: 46 | Y49: 0074 | Z49: Deerfield | AA49: 0074 Deerfield | AC49: 5258B | AD49: Summer | AE49: Clearway School, Inc. | AF49: Summer | AG49: 5912.97 | AH49: 246.37375 | AI49: 2020-07-01 | AJ49: 2020-07-31 | AK49: 24 | AM49: H0435 | AN49: Innovation Academy Charter School | AO49: Charter | AQ49: 5134 | AR49: Beverly School for the Deaf
A50: 0046 | B50: Brookline | C50: 0046 Brookline | E50: H0436 | F50: Day | G50: Community Charter School of Cambridge | H50: H0436 Community Charter School of Cambridge | J50: 5177H | K50: Summer | L50: Specialized Education Services, Inc. | M50: High Road School of MA. | N50: 6558.76 | O50: 218.6253 | P50: 2020-07-06 | Q50: 2020-08-14 | R50: 30 | S50: 47 | T50: 5100 | U50: Berkshire County Arc / Comm Based Prog | V50: 5100-Berkshire County Arc / Comm Based Prog | W50: 50 | X50: 47 | Y50: 0077 | Z50: Douglas | AA50: 0077 Douglas | AC50: 5258A | AD50: Day | AE50: Clearway School, Inc. | AF50: 766 School | AG50: 51180.68 | AH50: 284.3371111 | AI50: 2020-09-09 | AJ50: 2021-06-21 | AK50: 180 | AM50: H0436 | AN50: Community Charter School of Cambridge | AO50: Charter | AQ50: 5140 | AR50: Birchtree Center
A51: 0047 | B51: Buckland | C51: 0047 Buckland | E51: H0437 | F51: Day | G51: City on a Hill Charter Public School Circuit Street | H51: H0437 City on a Hill Charter Public School Circuit Street | J51: 5224A | K51: Day | L51: Center for Applied Behavioral Instruction | M51: Day Program | N51: 95849.91 | O51: 424.1146 | P51: 2020-07-01 | Q51: 2021-06-30 | R51: 226 | S51: 48 | T51: 5101 | U51: Bancroft School | V51: 5101-Bancroft School | W51: 51 | X51: 48 | Y51: 0078 | Z51: Dover | AA51: 0078 Dover | AC51: 5265B | AD51: Summer | AE51: Community Therapeutic Day School | AF51: Summer | AG51: 7269.95 | AH51: 363.4975 | AI51: 2020-07-01 | AJ51: 2020-07-28 | AK51: 20 | AM51: H0437 | AN51: City on a Hill Charter Public School Circuit Street | AO51: Charter | AQ51: 5145 | AR51: Black Moutain Academy
A52: 0048 | B52: Burlington | C52: 0048 Burlington | E52: H0438 | F52: Day | G52: Codman Academy Charter Public School | H52: H0438 Codman Academy Charter Public School | J52: 5227A | K52: Day | L52: Springdale Education Center | M52: Springdale Ed. Center | N52: 76028.58 | O52: 345.5845 | P52: 2020-07-01 | Q52: 2021-06-16 | R52: 220 | S52: 49 | T52: 5110 | U52: Compass | V52: 5110-Compass | W52: 52 | X52: 49 | Y52: 0079 | Z52: Dracut | AA52: 0079 Dracut | AC52: 5265A | AD52: Day | AE52: Community Therapeutic Day School | AF52: Day School | AG52: 81708.11 | AH52: 453.9339444 | AI52: 2020-09-10 | AJ52: 2021-06-25 | AK52: 180 | AM52: H0438 | AN52: Codman Academy Charter Public School | AO52: Charter | AQ52: 5151 | AR52: Boston Center for Blind Children
A53: 0049 | B53: Cambridge | C53: 0049 Cambridge | E53: H0439 | F53: Day | G53: Conservatory Lab Charter School | H53: H0439 Conservatory Lab Charter School | J53: 5227B | K53: Day | L53: Center for School Crisis Inter. & Assess. | M53: Center School | N53: 81303.95 | O53: 369.5634 | P53: 2020-07-01 | Q53: 2021-06-16 | R53: 220 | S53: 50 | T53: 5110A | U53: COMPASS, Inc. | V53: 5110A-COMPASS, Inc. | W53: 53 | X53: 50 | Y53: 0082 | Z53: Duxbury | AA53: 0082 Duxbury | AC53: 5110C | AD53: Day | AE53: COMPASS, Inc. | AF53: 766 Day School | AG53: 74930.59 | AH53: 416.2810556 | AI53: 2020-09-08 | AJ53: 2021-06-18 | AK53: 180 | AM53: H0439 | AN53: Conservatory Lab Charter School | AO53: Charter | AQ53: 5154 | AR53: Boston Higashi Day School
A54: 0050 | B54: Canton | C54: 0050 Canton | E54: H0440 | F54: Day | G54: Community Day Charter Public School - Prospect | H54: H0440 Community Day Charter Public School - Prospect | J54: 5238E | K54: Day | L54: F. L. Chamberlain School, Inc. | M54: Day | N54: 104620.03 | O54: 484.35 | P54: 2020-07-02 | Q54: 2021-06-22 | R54: 216 | S54: 51 | T54: 5110B | U54: COMPASS, Inc. | V54: 5110B-COMPASS, Inc. | W54: 54 | X54: 51 | Y54: 0083 | Z54: East Bridgewater | AA54: 0083 East Bridgewater | AC54: 5110A | AD54: Summer | AE54: COMPASS, Inc. | AF54: Summer | AG54: 7891.6 | AH54: 328.8166667 | AI54: 2020-07-06 | AJ54: 2020-08-13 | AK54: 24 | AM54: H0440 | AN54: Community Day Charter Public School - Prospect | AO54: Charter | AQ54: 5155 | AR54: Boston School for the Deaf
A55: 0051 | B55: Carlisle | C55: 0051 Carlisle | E55: H0441 | F55: Day | G55: Sabis International Charter School | H55: H0441 Sabis International Charter School | J55: 5238F | K55: Res Ed | L55: F. L. Chamberlain School, Inc. | M55: 365 Day Residential | N55: 176121.28 | O55: 482.52 | P55: 2020-07-01 | Q55: 2021-06-30 | R55: 365 | S55: 52 | T55: 5110C | U55: COMPASS, Inc. | V55: 5110C-COMPASS, Inc. | W55: 55 | X55: 52 | Y55: 0085 | Z55: Eastham | AA55: 0085 Eastham | AC55: 5110B | AD55: Day | AE55: COMPASS, Inc. | AF55: Short Term Crisis | AG55: 31326.66 | AH55: 174.037 | AI55: 2020-09-08 | AJ55: 2021-06-18 | AK55: 180 | AM55: H0441 | AN55: Sabis International Charter School | AO55: Charter | AQ55: 5157 | AR55: Boston College Campus School
A56: 0052 | B56: Carver | C56: 0052 Carver | E56: H0444 | F56: Day | G56: Neighborhood House Charter School | H56: H0444 Neighborhood House Charter School | J56: 5242A | K56: Day | L56: Seven Hills Foundation, Inc. | M56: Groton - Clin Nursery | N56: 51470.38 | O56: 205.0613 | P56: 2020-07-01 | Q56: 2021-06-30 | R56: 250 | S56: 53 | T56: 5111 | U56: Barrington Teacch | V56: 5111-Barrington Teacch | W56: 56 | X56: 53 | Y56: 0086 | Z56: Easthampton | AA56: 0086 Easthampton | AC56: 5274A | AD56: Day | AE56: Cotting School, Inc. | AF56: Cotting Day | AG56: 92509.04 | AH56: 513.9391111 | AI56: 2020-09-03 | AJ56: 2021-06-18 | AK56: 180 | AM56: H0444 | AN56: Neighborhood House Charter School | AO56: Charter | AQ56: 5158 | AR56: Bradley Hospital
A57: 0053 | B57: Charlemont | C57: 0053 Charlemont | E57: H0445 | F57: Day | G57: Abby Kelley Foster Charter Public School | H57: H0445 Abby Kelley Foster Charter Public School | J57: 5249A | K57: Day | L57: Children's Study Home | M57: Mill Pond Day Program | N57: 52292.36 | O57: 242.0943 | P57: 2020-07-01 | Q57: 2021-06-18 | R57: 216 | S57: 54 | T57: 5112 | U57: Bay Cove Day Center | V57: 5112-Bay Cove Day Center | W57: 57 | X57: 54 | Y57: 0087 | Z57: East Longmeadow | AA57: 0087 East Longmeadow | AC57: 5274B | AD57: Summer | AE57: Cotting School, Inc. | AF57: Cotting Summer | AG57: 7956.94 | AH57: 318.2776 | AI57: 2020-07-06 | AJ57: 2020-08-07 | AK57: 25 | AM57: H0445 | AN57: Abby Kelley Foster Charter Public School | AO57: Charter | AQ57: 5160 | AR57: Brandon School & Treatment Center
A58: 0054 | B58: Charlton | C58: 0054 Charlton | E58: H0446 | F58: Day | G58: Foxborough Regional Charter School | H58: H0446 Foxborough Regional Charter School | J58: 5249G | K58: Day | L58: Children's Study Home | M58: Curtis Blake Day School | N58: 44747.94 | O58: 248.5997 | P58: 2020-09-08 | Q58: 2021-06-18 | R58: 180 | S58: 55 | T58: 5112B | U58: Justice Resource Institute | V58: 5112B-Justice Resource Institute | W58: 58 | X58: 55 | Y58: 0088 | Z58: Easton | AA58: 0088 Easton | AC58: 5274E | AD58: Res Ed | AE58: Cotting School, Inc. | AF58: HOPEhouse | AG58: 100542.52 | AH58: 558.5695556 | AI58: 2020-09-03 | AJ58: 2021-06-18 | AK58: 180 | AM58: H0446 | AN58: Foxborough Regional Charter School | AO58: Charter | AQ58: 5163 | AR58: Brehm Prep School
A59: 0055 | B59: Chatham | C59: 0055 Chatham | E59: H0447 | F59: Day | G59: Benjamin Franklin Classical Charter Public School | H59: H0447 Benjamin Franklin Classical Charter Public School | J59: 5253A | K59: Day | L59: Professional Ctr. for Handicapped Child. | M59: Day Program | N59: 91176.53 | O59: 460.4875 | P59: 2020-07-13 | Q59: 2021-06-14 | R59: 198 | S59: 56 | T59: 5113 | U59: New England Pediatric Care | V59: 5113-New England Pediatric Care | W59: 59 | X59: 56 | Y59: 0089 | Z59: Edgartown | AA59: 0089 Edgartown | AC59: 5272A | AD59: Day | AE59: Crossroads School Children, Inc. | AF59: Crossroads School | AG59: 125847.4683 | AH59: 556.8472049 | AI59: 2020-07-08 | AJ59: 2021-06-28 | AK59: 226 | AM59: H0447 | AN59: Benjamin Franklin Classical Charter Public School | AO59: Charter | AQ59: 5164 | AR59: Bridgewell
A60: 0056 | B60: Chelmsford | C60: 0056 Chelmsford | E60: H0449 | F60: Day | G60: Boston Collegiate Charter School | H60: H0449 Boston Collegiate Charter School | J60: 5257A | K60: Day | L60: Clarke School for the Deaf | M60: Day Education | N60: 61622.4368 | O60: 342.3469 | P60: 2020-09-02 | Q60: 2021-06-16 | R60: 180 | S60: 57 | T60: 5113A | U60: New England Pediatric Nursing Home | V60: 5113A-New England Pediatric Nursing Home | W60: 60 | X60: 57 | Y60: 0091 | Z60: Erving | AA60: 0091 Erving | AC60: 5276A | AD60: Res Ed | AE60: Crotched Mountain Rehabilitation | AF60: Residential | AG60: 242841 | AH60: 665.3178082 | AI60: 2020-07-01 | AJ60: 2021-06-30 | AK60: 365 | AM60: H0449 | AN60: Boston Collegiate Charter School | AO60: Charter | AQ60: 5165 | AR60: Broccoli Hall
A61: 0057 | B61: Chelsea | C61: 0057 Chelsea | E61: H0450 | F61: Day | G61: Hilltown Cooperative Charter Public School | H61: H0450 Hilltown Cooperative Charter Public School | J61: 5257B | K61: Day | L61: Clarke School for the Deaf | M61: Preschool | N61: 51957.7069 | O61: 262.4127 | P61: 2020-07-06 | Q61: 2021-06-16 | R61: 198 | S61: 58 | T61: 5115 | U61: Baystate Medical Ctr Day School | V61: 5115-Baystate Medical Ctr Day School | W61: 61 | X61: 58 | Y61: 0093 | Z61: Everett | AA61: 0093 Everett | AC61: 5276D | AD61: Day | AE61: Crotched Mountain Rehabilitation | AF61: Day | AG61: 119766 | AH61: 544.3909091 | AI61: 2020-07-01 | AJ61: 2021-06-16 | AK61: 220 | AM61: H0450 | AN61: Hilltown Cooperative Charter Public School | AO61: Charter | AQ61: 5170 | AR61: The Bridge Center/King Solomon Foundation for Handicapped Children
A62: 0058 | B62: Cheshire | C62: 0058 Cheshire | E62: H0452 | F62: Day | G62: Edward M. Kennedy Academy for Health Careers | H62: H0452 Edward M. Kennedy Academy for Health Careers | J62: 5257D | K62: Day | L62: Clarke School for the Deaf | M62: Clarke School East | N62: 57422.39 | O62: 299.0749 | P62: 2020-07-06 | Q62: 2021-06-18 | R62: 192 | S62: 59 | T62: 5118 | U62: Ben Bronz Academy | V62: 5118-Ben Bronz Academy | W62: 62 | X62: 59 | Y62: 0094 | Z62: Fairhaven | AA62: 0094 Fairhaven | AC62: 5297A | AD62: Res Ed | AE62: Crystal Springs, Inc. | AF62: Main Program | AG62: 295099.69 | AH62: 808.4923014 | AI62: 2020-07-01 | AJ62: 2021-06-30 | AK62: 365 | AM62: H0452 | AN62: Edward M. Kennedy Academy for Health Careers | AO62: Charter | AQ62: 5177 | AR62: Brockton Area Multi-Services
A63: 0059 | B63: Chester | C63: 0059 Chester | E63: H0453 | F63: Day | G63: Holyoke Community Charter School | H63: H0453 Holyoke Community Charter School | J63: 5258A | K63: Day | L63: Clearway School, Inc. | M63: 766 School | N63: 51180.68 | O63: 284.3371 | P63: 2020-09-09 | Q63: 2021-06-21 | R63: 180 | S63: 60 | T63: 5120 | U63: Judge Rotenberg Education Center | V63: 5120-Judge Rotenberg Education Center | W63: 63 | X63: 60 | Y63: 0095 | Z63: Fall River | AA63: 0095 Fall River | AC63: 5811A | AD63: Day | AE63: Cutchins Programs for Children & Fam. | AF63: New Directions | AG63: 78585.01591 | AH63: 360.4817244 | AI63: 2020-07-01 | AJ63: 2021-06-30 | AK63: 218 | AM63: H0453 | AN63: Holyoke Community Charter School | AO63: Charter | AQ63: 5180 | AR63: Bromley Brook School
A64: 0060 | B64: Chesterfield | C64: 0060 Chesterfield | E64: H0454 | F64: Day | G64: Lawrence Family Development Charter School | H64: H0454 Lawrence Family Development Charter School | J64: 5258B | K64: Summer | L64: Clearway School, Inc. | M64: Summer | N64: 5912.97 | O64: 246.3738 | P64: 2020-07-01 | Q64: 2020-07-31 | R64: 22 | S64: 61 | T64: 5120A | U64: Judge Rotenberg Educational Center | V64: 5120A-Judge Rotenberg Educational Center | W64: 64 | X64: 61 | Y64: 0096 | Z64: Falmouth | AA64: 0096 Falmouth | AC64: 5324D | AD64: Res Ed | AE64: Devereux -Ackerman Academy | AF64: Residential/Treatment Services | AG64: 127629.55 | AH64: 349.67 | AI64: 2020-07-01 | AJ64: 2021-06-30 | AK64: 365 | AM64: H0454 | AN64: Lawrence Family Development Charter School | AO64: Charter | AQ64: 5183 | AR64: Brown & Sullivan
A65: 0061 | B65: Chicopee | C65: 0061 Chicopee | E65: H0455 | F65: Day | G65: Hill View Montessori Charter Public School | H65: H0455 Hill View Montessori Charter Public School | J65: 5265A | K65: Day | L65: Community Therapeutic Day School | M65: Day School | N65: 81708.11 | O65: 453.9339 | P65: 2020-09-10 | Q65: 2021-06-25 | R65: 180 | S65: 62 | T65: 5121 | U65: Bellefaire Jewish Children's Bureau - Monarch Program | V65: 5121-Bellefaire Jewish Children's Bureau - Monarch Program | W65: 65 | X65: 62 | Y65: 0097 | Z65: Fitchburg | AA65: 0097 Fitchburg | AC65: 5324B | AD65: Res Ed | AE65: Devereux Foundation of Mass., Inc. | AF65: West Meadow | AG65: 205095.7 | AH65: 561.9060274 | AI65: 2020-07-01 | AJ65: 2021-06-30 | AK65: 365 | AM65: H0455 | AN65: Hill View Montessori Charter Public School | AO65: Charter | AQ65: 5185 | AR65: Brown School/San Marcos Treatment Ctr
A66: 0062 | B66: Chilmark | C66: 0062 Chilmark | E66: H0456 | F66: Day | G66: Lowell Community Charter Public School | H66: H0456 Lowell Community Charter Public School | J66: 5265B | K66: Summer | L66: Community Therapeutic Day School | M66: Summer | N66: 7269.95 | O66: 363.4975 | P66: 2020-07-01 | Q66: 2020-07-28 | R66: 20 | S66: 63 | T66: 5121A | U66: Bellefaire Jewish Childrens Bureau | V66: 5121A-Bellefaire Jewish Childrens Bureau | W66: 66 | X66: 63 | Y66: 0098 | Z66: Florida | AA66: 0098 Florida | AC66: 5324P | AD66: Day | AE66: Devereux Foundation of Mass., Inc. | AF66: Day Program | AG66: 62152.85 | AH66: 287.7446759 | AI66: 2020-07-01 | AJ66: 2021-06-30 | AK66: 216 | AM66: H0456 | AN66: Lowell Community Charter Public School | AO66: Charter | AQ66: 5186 | AR66: Burnham Brook School (Synergistice Lrng Corp)
A67: 0063 | B67: Clarksburg | C67: 0063 Clarksburg | E67: H0458 | F67: Day | G67: Lowell Middlesex Academy Charter School | H67: H0458 Lowell Middlesex Academy Charter School | J67: 5272A | K67: Day | L67: Crossroads School Children, Inc. | M67: Crossroads School | N67: 125847.4683 | O67: 556.8472 | P67: 2020-07-08 | Q67: 2021-06-28 | R67: 226 | S67: 64 | T67: 5121B | U67: Bellefaire Jewish Childrens Bureau | V67: 5121B-Bellefaire Jewish Childrens Bureau | W67: 67 | X67: 64 | Y67: 0099 | Z67: Foxborough | AA67: 0099 Foxborough | AC67: 5324Q | AD67: Day | AE67: Devereux Foundation of Mass., Inc. | AF67: Day Program | AG67: 62152.85 | AH67: 170.2817808 | AI67: 2020-07-01 | AJ67: 2021-06-30 | AK67: 365 | AM67: H0458 | AN67: Lowell Middlesex Academy Charter School | AO67: Charter | AQ67: 5188 | AR67: Cadmus Lifesharing Association Inc.
A68: 0064 | B68: Clinton | C68: 0064 Clinton | E68: H0463 | F68: Day | G68: KIPP Academy Boston Charter School | H68: H0463 KIPP Academy Boston Charter School | J68: 5274A | K68: Day | L68: Cotting School, Inc. | M68: Cotting Day | N68: 92509.04 | O68: 513.9391 | P68: 2020-09-03 | Q68: 2021-06-18 | R68: 180 | S68: 65 | T68: 5121Z | U68: Bellefaire Jewish Childrens Bureau | V68: 5121Z-Bellefaire Jewish Childrens Bureau | W68: 68 | X68: 65 | Y68: 0100 | Z68: Framingham | AA68: =Y68&" "&Z68 -> 0100 Framingham | AC68: 5530C | AD68: Day | AE68: Devereux Foundation of Mass., Inc. | AF68: CARES | AG68: 92347.06 | AH68: 427.5326852 | AI68: 2020-07-01 | AJ68: 2021-06-30 | AK68: 216 | AM68: H0463 | AN68: KIPP Academy Boston Charter School | AO68: Charter | AQ68: 5190 | AR68: Cambridge School of Weston
A69: 0065 | B69: Cohasset | C69: =A69&" "&B69 -> 0065 Cohasset | E69: H0464 | F69: Day | G69: Marblehead Community Charter Public School | H69: =E69&" "&G69 -> H0464 Marblehead Community Charter Public School | J69: 5274B | K69: Summer | L69: Cotting School, Inc. | M69: Cotting Summer | N69: 7956.94 | O69: 318.2776 | P69: 2020-07-06 | Q69: 2020-08-07 | R69: 25 | S69: 66 | T69: 5122 | U69: Beal Street Academy | V69: 5122-Beal Street Academy | W69: 69 | X69: 66 | Y69: 0101 | Z69: Franklin | AA69: 0101 Franklin | AC69: 5324E | AD69: Res Ed | AE69: Devereux Glenholme | AF69: Glenholme | AG69: 141547 | AH69: 387.8 | AI69: 2020-07-01 | AJ69: 2021-06-30 | AK69: 365 | AM69: H0464 | AN69: Marblehead Community Charter Public School | AO69: =IF(LEFT(AM69,1)="C","Col",IF(LEFT(AM69,1)="L","Public",IF(LEFT(AM69,1)="H","Charter",""))) -> Charter | AQ69: 5200 | AR69: Camp Hill
A70: 0066 | B70: Colrain | C70: 0066 Colrain | E70: H0466 | F70: Day | G70: Martha's Vineyard Charter School | H70: H0466 Martha's Vineyard Charter School | J70: 5274E | K70: Res Ed | L70: Cotting School, Inc. | M70: HOPEhouse | N70: 100542.52 | O70: 558.5696 | P70: 2020-09-03 | Q70: 2021-06-18 | R70: 180 | S70: 67 | T70: 5123 | U70: Becket School | V70: =T70&"-"&U70 -> 5123-Becket School | W70: 70 | X70: 67 | Y70: 0103 | Z70: Gardner | AA70: 0103 Gardner | AC70: 5887A | AD70: Res Ed | AE70: Dr. Franklin Perkins School, Inc. | AF70: Intensive | AG70: 226794.2771 | AH70: 621.3541838 | AI70: 2020-07-01 | AJ70: 2021-06-30 | AK70: 365 | AM70: H0466 | AN70: Martha's Vineyard Charter School | AO70: Charter | AQ70: 5202 | AR70: Camp Northwood
A71: 0067 | B71: Concord | C71: 0067 Concord | E71: H0469 | F71: Day | G71: MATCH Charter Public School | H71: H0469 MATCH Charter Public School | J71: 5276A | K71: Res Ed | L71: Crotched Mountain Rehabilitation | M71: Residential | N71: 242841 | O71: 665.3178 | P71: 2020-07-01 | Q71: 2021-06-30 | R71: 365 | S71: 68 | T71: 5124 | U71: Behavioral Connections | V71: 5124-Behavioral Connections | W71: 71 | X71: 68 | Y71: 0105 | Z71: Georgetown | AA71: 0105 Georgetown | AC71: 5887B | AD71: Day | AE71: Dr. Franklin Perkins School, Inc. | AF71: Day Program | AG71: 76994.53784 | AH71: 353.1859534 | AI71: 2020-07-08 | AJ71: 2021-06-23 | AK71: 218 | AM71: H0469 | AN71: MATCH Charter Public School | AO71: Charter | AQ71: 5203 | AR71: Triumph Center, Inc / Camp Triumph
A72: 0068 | B72: Conway | C72: 0068 Conway | E72: H0470 | F72: Day | G72: Mystic Valley Regional Charter School | H72: H0470 Mystic Valley Regional Charter School | J72: 5276D | K72: Day | L72: Crotched Mountain Rehabilitation | M72: Day | N72: 119766 | O72: 544.3909 | P72: 2020-07-01 | Q72: 2021-06-16 | R72: 220 | S72: 69 | T72: 5125 | U72: Bennington School | V72: 5125-Bennington School | W72: 72 | X72: 69 | Y72: 0107 | Z72: Gloucester | AA72: 0107 Gloucester | AC72: 5887Q | AD72: Day | AE72: Dr. Franklin Perkins School, Inc. | AF72: Day Program | AG72: 76994.53784 | AH72: 210.9439393 | AI72: 2020-07-01 | AJ72: 2021-06-30 | AK72: 365 | AM72: H0470 | AN72: Mystic Valley Regional Charter School | AO72: Charter | AQ72: 5204 | AR72: Paul Center for Learning and Recreation
A73: 0069 | B73: Cummington | C73: 0069 Cummington | E73: H0474 | F73: Day | G73: A North Central Charter Essential (District) | H73: H0474 A North Central Charter Essential (District) | J73: 5296A | K73: Day | L73: Cardinal Cushing School & Training Ctr. | M73: Day/Vocational | N73: 97195.376 | O73: 449.9786 | P73: 2020-07-06 | Q73: 2021-06-18 | R73: 216 | S73: 70 | T73: 5126 | U73: Bershire Center | V73: 5126-Bershire Center | W73: 73 | X73: 70 | Y73: 0109 | Z73: Gosnold | AA73: 0109 Gosnold | AC73: 5338C | AD73: Res Ed | AE73: Easter Seals of New Hampshire | AF73: Jolicouer - Krol Residential - Regular | AG73: 205851.0137 | AH73: 563.97538 | AI73: 2020-07-01 | AJ73: 2021-06-30 | AK73: 365 | AM73: H0474 | AN73: A North Central Charter Essential (District) | AO73: Charter | AQ73: 5209 | AR73: Carroll School
A74: 0070 | B74: Dalton | C74: 0070 Dalton | E74: H0478 | F74: Day | G74: Francis W. Parker Charter Essential School | H74: H0478 Francis W. Parker Charter Essential School | J74: 5296C | K74: Res Ed | L74: Cardinal Cushing School & Training Ctr. | M74: Residential | N74: 253807.1538 | O74: 695.3621 | P74: 2020-07-01 | Q74: 2021-06-30 | R74: 365 | S74: 71 | T74: 5127 | U74: Berkshire Meadows | V74: 5127-Berkshire Meadows | W74: 74 | X74: 71 | Y74: 0110 | Z74: Grafton | AA74: 0110 Grafton | AC74: 5338D | AD74: Res Ed | AE74: Easter Seals of New Hampshire | AF74: Jolicouer - Krol Residential - Int | AG74: 339766.184 | AH74: 930.8662576 | AI74: 2020-07-01 | AJ74: 2021-06-30 | AK74: 365 | AM74: H0478 | AN74: Francis W. Parker Charter Essential School | AO74: Charter | AQ74: 5210 | AR74: Carroll Center for the Blind
A75: 0071 | B75: Danvers | C75: 0071 Danvers | E75: H0479 | F75: Day | G75: Pioneer Valley Performing Arts Charter Public School | H75: H0479 Pioneer Valley Performing Arts Charter Public School | J75: 5296E | K75: Res Ed | L75: Cardinal Cushing School & Training Ctr. | M75: Residential | N75: 219039.0505 | O75: 695.3621 | P75: 2020-07-06 | Q75: 2021-06-18 | R75: 315 | S75: 72 | T75: 5127C | U75: Justice Resource Institute | V75: 5127C-Justice Resource Institute | W75: 75 | X75: 72 | Y75: 0111 | Z75: Granby | AA75: 0111 Granby | AC75: 5338E | AD75: Res Ed | AE75: Easter Seals of New Hampshire | AF75: Jolicouer - Zachery Road Residential - Regular | AG75: 221674.9208 | AH75: 607.3285503 | AI75: 2020-07-01 | AJ75: 2021-06-30 | AK75: 365 | AM75: H0479 | AN75: Pioneer Valley Performing Arts Charter Public School | AO75: Charter | AQ75: 5211 | AR75: Cascade School
A76: 0072 | B76: Dartmouth | C76: 0072 Dartmouth | E76: H0480 | F76: Day | G76: UP Academy Charter School of Boston | H76: H0480 UP Academy Charter School of Boston | J76: 5297A | K76: Res Ed | L76: Crystal Springs, Inc. | M76: Main Program | N76: 295099.69 | O76: 808.4923 | P76: 2020-07-01 | Q76: 2021-06-30 | R76: 365 | S76: 73 | T76: 5127D | U76: Justice Resource Institute | V76: 5127D-Justice Resource Institute | W76: 76 | X76: 73 | Y76: 0114 | Z76: Greenfield | AA76: 0114 Greenfield | AC76: 5338F | AD76: Res Ed | AE76: Easter Seals of New Hampshire | AF76: Jolicouer - Zachery Road Residential - Intensive | AG76: 355590.0912 | AH76: 974.2194279 | AI76: 2020-07-01 | AJ76: 2021-06-30 | AK76: 365 | AM76: H0480 | AN76: UP Academy Charter School of Boston | AO76: Charter | AQ76: 5212 | AR76: Castle School, Inc
A77: 0073 | B77: Dedham | C77: 0073 Dedham | E77: H0481 | F77: Day | G77: Boston Renaissance Charter Public School | H77: H0481 Boston Renaissance Charter Public School | J77: 5303A | K77: Res Ed | L77: Fall River Deaconess, Inc. | M77: Residential Program | N77: 173554.55 | O77: 475.4919 | P77: 2020-07-01 | Q77: 2021-06-30 | R77: 365 | S77: 74 | T77: 5127E | U77: Justice Resource Institute | V77: 5127E-Justice Resource Institute | W77: 77 | X77: 74 | Y77: 0117 | Z77: Hadley | AA77: 0117 Hadley | AC77: 5338G | AD77: Res Ed | AE77: Easter Seals of New Hampshire | AF77: Jolicouer - House III Males Residential - Regular | AG77: 203384.7708 | AH77: 557.2185503 | AI77: 2020-07-01 | AJ77: 2021-06-30 | AK77: 365 | AM77: H0481 | AN77: Boston Renaissance Charter Public School | AO77: Charter | AQ77: 5215 | AR77: Catalyst Residential Treatment Program
A78: 0074 | B78: Deerfield | C78: 0074 Deerfield | E78: H0482 | F78: Day | G78: River Valley Charter School | H78: H0482 River Valley Charter School | J78: 5303C | K78: Day | L78: Fall River Deaconess, Inc. | M78: Day Program | N78: 61174.01 | O78: 283.213 | P78: 2020-07-06 | Q78: 2021-06-25 | R78: 216 | S78: 75 | T78: 5128 | U78: Berkshire Learning Center | V78: 5128-Berkshire Learning Center | W78: 78 | X78: 75 | Y78: 0118 | Z78: Halifax | AA78: 0118 Halifax | AC78: 5338H | AD78: Res Ed | AE78: Easter Seals of New Hampshire | AF78: Jolicouer - House III Males Residential - Int | AG78: 337299.9412 | AH78: 924.1094279 | AI78: 2020-07-01 | AJ78: 2021-06-30 | AK78: 365 | AM78: H0482 | AN78: River Valley Charter School | AO78: Charter | AQ78: 5220 | AR78: Cedars Residential
A79: 0075 | B79: Dennis | C79: 0075 Dennis | E79: H0483 | F79: Day | G79: Rising Tide Charter Public School | H79: H0483 Rising Tide Charter Public School | J79: 5306B | K79: Day | L79: Schools for Children | M79: Dearborn Academy | N79: 89307.62 | O79: 496.1534 | P79: 2020-09-08 | Q79: 2021-06-21 | R79: 180 | S79: 76 | T79: 5129 | U79: Berkshire County Arc / Comm Based Prog | V79: 5129-Berkshire County Arc / Comm Based Prog | W79: 79 | X79: 76 | Y79: 0121 | Z79: Hancock | AA79: 0121 Hancock | AC79: 5338I | AD79: Res Ed | AE79: Easter Seals of New Hampshire | AF79: DVPMTL Disabled MSchool - Lancaster - Regular | AG79: 225950.5208 | AH79: 619.0425229 | AI79: 2020-07-01 | AJ79: 2021-06-30 | AK79: 365 | AM79: H0483 | AN79: Rising Tide Charter Public School | AO79: Charter | AQ79: 5223 | AR79: Cedu Middle School
A80: 0076 | B80: Dighton | C80: 0076 Dighton | E80: H0484 | F80: Day | G80: Roxbury Preparatory Charter School | H80: H0484 Roxbury Preparatory Charter School | J80: 5306C | K80: Summer | L80: Schools for Children | M80: Dearborn Summer | N80: 5918.43 | O80: 197.281 | P80: 2020-07-01 | Q80: 2020-08-12 | R80: 30 | S80: 77 | T80: 5130 | U80: Berkshire Hills Music Academy | V80: 5130-Berkshire Hills Music Academy | W80: 80 | X80: 77 | Y80: 0122 | Z80: Hanover | AA80: 0122 Hanover | AC80: 5338J | AD80: Res Ed | AE80: Easter Seals of New Hampshire | AF80: DVPMTL Disabled MSchool - Lancaster - Int. | AG80: 359865.69 | AH80: 985.93 | AI80: 2020-07-01 | AJ80: 2021-06-30 | AK80: 365 | AM80: H0484 | AN80: Roxbury Preparatory Charter School | AO80: Charter | AQ80: 5224 | AR80: Center for Applied Behavioral Instruction
A81: 0077 | B81: Douglas | C81: 0077 Douglas | E81: H0485 | F81: Day | G81: Salem Academy Charter School | H81: H0485 Salem Academy Charter School | J81: 5306D | K81: Day | L81: Schools for Children | M81: Seaport Campus | N81: 71843.07 | O81: 399.1282 | P81: 2020-09-08 | Q81: 2021-06-22 | R81: 180 | S81: 78 | T81: 5132 | U81: Berkshire Family and Individual Resources | V81: 5132-Berkshire Family and Individual Resources | W81: 81 | X81: 78 | Y81: 0125 | Z81: Harvard | AA81: 0125 Harvard | AC81: 5385A | AD81: Res Ed | AE81: Evergreen Center, Inc. | AF81: BDU | AG81: 254556.32 | AH81: 697.4145753 | AI81: 2020-07-01 | AJ81: 2021-06-30 | AK81: 365 | AM81: H0485 | AN81: Salem Academy Charter School | AO81: Charter | AQ81: 5226 | AR81: Center on Deafness
A82: 0078 | B82: Dover | C82: 0078 Dover | E82: H0486 | F82: Day | G82: Seven Hills Charter School | H82: H0486 Seven Hills Charter School | J82: 5324B | K82: Res Ed | L82: Devereux Foundation of Mass., Inc. | M82: West Meadow | N82: 205095.7 | O82: 561.906 | P82: 2020-07-01 | Q82: 2021-06-30 | R82: 365 | S82: 79 | T82: 5134 | U82: Beverly School for the Deaf | V82: 5134-Beverly School for the Deaf | W82: 82 | X82: 79 | Y82: 0127 | Z82: Hatfield | AA82: 0127 Hatfield | AC82: 5385B | AD82: Res Ed | AE82: Evergreen Center, Inc. | AF82: Multi H. | AG82: 230109.52 | AH82: 630.4370411 | AI82: 2020-07-01 | AJ82: 2021-06-30 | AK82: 365 | AM82: H0486 | AN82: Seven Hills Charter School | AO82: Charter | AQ82: 5227 | AR82: Center for School Crisis Intervention
A83: 0079 | B83: Dracut | C83: 0079 Dracut | E83: H0487 | F83: Day | G83: Prospect Hill Academy Charter School | H83: H0487 Prospect Hill Academy Charter School | J83: 5324D | K83: Res Ed | L83: Devereux -Ackerman Academy | M83: Residential/Treatment Services | N83: 127629.55 | O83: 349.67 | P83: 2020-07-01 | Q83: 2021-06-30 | R83: 365 | S83: 80 | T83: 5134B | U83: Beverly School for the Deaf | V83: 5134B-Beverly School for the Deaf | W83: 83 | X83: 80 | Y83: 0128 | Z83: Haverhill | AA83: 0128 Haverhill | AC83: 5238E | AD83: Day | AE83: F. L. Chamberlain School, Inc. | AF83: Day | AG83: 104620.03 | AH83: 484.35 | AI83: 2020-07-02 | AJ83: 2021-06-22 | AK83: 216 | AM83: H0487 | AN83: Prospect Hill Academy Charter School | AO83: Charter | AQ83: 5238 | AR83: F L Chamberlain School
A84: 0080 | B84: Dudley | C84: 0080 Dudley | E84: H0488 | F84: Day | G84: South Shore Charter Public School | H84: H0488 South Shore Charter Public School | J84: 5324E | K84: Res Ed | L84: Devereux Glenholme | M84: Glenholme | N84: 141547 | O84: 387.8 | P84: 2020-07-01 | Q84: 2021-06-30 | R84: 365 | S84: 81 | T84: 5134C | U84: Beverly School for the Deaf | V84: 5134C-Beverly School for the Deaf | W84: 84 | X84: 81 | Y84: 0131 | Z84: Hingham | AA84: 0131 Hingham | AC84: 5238F | AD84: Res Ed | AE84: F. L. Chamberlain School, Inc. | AF84: 365 Day Residential | AG84: 176121.28 | AH84: 482.52 | AI84: 2020-07-01 | AJ84: 2021-06-30 | AK84: 365 | AM84: H0488 | AN84: South Shore Charter Public School | AO84: Charter | AQ84: 5240 | AR84: Chapel Hill - Chauncy Hall
A85: 0081 | B85: Dunstable | C85: 0081 Dunstable | E85: H0489 | F85: Day | G85: Sturgis Charter Public School | H85: H0489 Sturgis Charter Public School | J85: 5324P | K85: Day | L85: Devereux Foundation of Mass., Inc. | M85: Day Program | N85: 62152.85 | O85: 287.7447 | P85: 2020-07-01 | Q85: 2021-06-30 | R85: 216 | S85: 82 | T85: 5140 | U85: Birchtree Center | V85: 5140-Birchtree Center | W85: 85 | X85: 82 | Y85: 0133 | Z85: Holbrook | AA85: 0133 Holbrook | AC85: 5303A | AD85: Res Ed | AE85: Fall River Deaconess, Inc. | AF85: Residential Program | AG85: 173554.55 | AH85: 475.4919178 | AI85: 2020-07-01 | AJ85: 2021-06-30 | AK85: 365 | AM85: H0489 | AN85: Sturgis Charter Public School | AO85: Charter | AQ85: 5241 | AR85: Chapel Haven Inc.
A86: 0082 | B86: Duxbury | C86: 0082 Duxbury | E86: H0491 | F86: Day | G86: Atlantis Charter School | H86: H0491 Atlantis Charter School | J86: 5324Q | K86: Day | L86: Devereux Foundation of Mass., Inc. | M86: Day Program | N86: 62152.85 | O86: 170.2818 | P86: 2020-07-01 | Q86: 2021-06-30 | R86: 365 | S86: 83 | T86: 5145 | U86: Black Moutain Academy | V86: 5145-Black Moutain Academy | W86: 86 | X86: 83 | Y86: 0135 | Z86: Holland | AA86: 0135 Holland | AC86: 5303C | AD86: Day | AE86: Fall River Deaconess, Inc. | AF86: Day Program | AG86: 61174.01 | AH86: 283.2130093 | AI86: 2020-07-06 | AJ86: 2021-06-25 | AK86: 216 | AM86: H0491 | AN86: Atlantis Charter School | AO86: Charter | AQ86: 5242 | AR86: Seven Hills - Formerly Children's Extend
A87: 0083 | B87: East Bridgewater | C87: 0083 East Bridgewater | E87: H0492 | F87: Day | G87: Martin Luther King Jr. Charter School of Excellence | H87: H0492 Martin Luther King Jr. Charter School of Excellence | J87: 5338C | K87: Res Ed | L87: Easter Seals of New Hampshire | M87: Jolicouer - Krol Residential - Regular | N87: 205851.0137 | O87: 563.9754 | P87: 2020-07-01 | Q87: 2021-06-30 | R87: 365 | S87: 84 | T87: 5151 | U87: Boston Center for Blind Children | V87: 5151-Boston Center for Blind Children | W87: 87 | X87: 84 | Y87: 0136 | Z87: Holliston | AA87: 0136 Holliston | AC87: 5582A | AD87: Day | AE87: Franciscan Children's Hospital | AF87: Kennedy Day | AG87: 96029.84 | AH87: 480.1492 | AI87: 2020-07-06 | AJ87: 2021-06-16 | AK87: 200 | AM87: H0492 | AN87: Martin Luther King Jr. Charter School of Excellence | AO87: Charter | AQ87: 5245 | AR87: Mullins School
A88: 0084 | B88: East Brookfield | C88: 0084 East Brookfield | E88: H0493 | F88: Day | G88: Phoenix Charter Academy | H88: H0493 Phoenix Charter Academy | J88: 5338D | K88: Res Ed | L88: Easter Seals of New Hampshire | M88: Jolicouer - Krol Residential - Int | N88: 339766.184 | O88: 930.8663 | P88: 2020-07-01 | Q88: 2021-06-30 | R88: 365 | S88: 85 | T88: 5154 | U88: Boston Higashi Day School | V88: 5154-Boston Higashi Day School | W88: 88 | X88: 85 | Y88: 0137 | Z88: Holyoke | AA88: 0137 Holyoke | AC88: 5451Z | AD88: Res Ed | AE88: Greenwood School | AF88: Greenwood School | AG88: 25637.66058 | AH88: 382.6516505 | AI88: 2020-09-14 | AJ88: 2020-11-19 | AK88: 67 | AM88: H0493 | AN88: Phoenix Charter Academy | AO88: Charter | AQ88: 5247 | AR88: Chatterbox School
A89: 0085 | B89: Eastham | C89: 0085 Eastham | E89: H0494 | F89: Day | G89: Pioneer Charter School of Science | H89: H0494 Pioneer Charter School of Science | J89: 5338E | K89: Res Ed | L89: Easter Seals of New Hampshire | M89: Jolicouer - Zachery Road Residential - Regular | N89: 221674.9208 | O89: 607.3286 | P89: 2020-07-01 | Q89: 2021-06-30 | R89: 365 | S89: 86 | T89: 5154A | U89: Boston Higashi School | V89: 5154A-Boston Higashi School | W89: 89 | X89: 86 | Y89: 0138 | Z89: Hopedale | AA89: 0138 Hopedale | AC89: 5451A | AD89: Res Ed | AE89: Greenwood School | AF89: Greenwood School | AG89: 52286.75216 | AH89: 396.1117588 | AI89: 2020-12-07 | AJ89: 2021-05-27 | AK89: =199-AK88 -> 132 | AM89: H0494 | AN89: Pioneer Charter School of Science | AO89: Charter | AQ89: 5248 | AR89: Cherokee Creek School for Boys
A90: 0086 | B90: Easthampton | C90: 0086 Easthampton | E90: H0496 | F90: Day | G90: Global Learning Charter Public School | H90: H0496 Global Learning Charter Public School | J90: 5338F | K90: Res Ed | L90: Easter Seals of New Hampshire | M90: Jolicouer - Zachery Road Residential - Intensive | N90: 355590.0912 | O90: 974.2194 | P90: 2020-07-01 | Q90: 2021-06-30 | R90: 365 | S90: 87 | T90: 5154B | U90: Boston Higashi School | V90: 5154B-Boston Higashi School | W90: 90 | X90: 87 | Y90: 0139 | Z90: Hopkinton | AA90: 0139 Hopkinton | AC90: 5451Y | AD90: Day | AE90: Greenwood School | AF90: Greenwood School | AG90: 19157.14316 | AH90: 390.9621053 | AI90: 2020-09-14 | AJ90: 2020-11-19 | AK90: 49 | AM90: H0496 | AN90: Global Learning Charter Public School | AO90: Charter | AQ90: 5249 | AR90: The Children's Study Home
A91: 0087 | B91: East Longmeadow | C91: 0087 East Longmeadow | E91: H0497 | F91: Day | G91: Pioneer Valley Chinese Immersion Charter School | H91: H0497 Pioneer Valley Chinese Immersion Charter School | J91: 5338G | K91: Res Ed | L91: Easter Seals of New Hampshire | M91: Jolicouer - House III Males Residential - Regular | N91: 203384.7708 | O91: 557.2186 | P91: 2020-07-01 | Q91: 2021-06-30 | R91: 365 | S91: 88 | T91: 5154C | U91: Boston Higashi School | V91: 5154C-Boston Higashi School | W91: 91 | X91: 88 | Y91: 0141 | Z91: Hudson | AA91: 0141 Hudson | AC91: 5451B | AD91: Day | AE91: Greenwood School | AF91: Greenwood School | AG91: 39617.49333 | AH91: 404.2601361 | AI91: 2020-12-07 | AJ91: 2021-05-27 | AK91: =147-AK90 -> 98 | AM91: H0497 | AN91: Pioneer Valley Chinese Immersion Charter School | AO91: Charter | AQ91: 5250 | AR91: Christopher Donovan Day Program
A92: 0088 | B92: Easton | C92: 0088 Easton | E92: H0498 | F92: Day | G92: Veritas Preparatory Charter School | H92: H0498 Veritas Preparatory Charter School | J92: 5338H | K92: Res Ed | L92: Easter Seals of New Hampshire | M92: Jolicouer - House III Males Residential - Int | N92: 337299.9412 | O92: 924.1094 | P92: 2020-07-01 | Q92: 2021-06-30 | R92: 365 | S92: 89 | T92: 5155 | U92: Boston School for the Deaf | V92: 5155-Boston School for the Deaf | W92: 92 | X92: 89 | Y92: 0142 | Z92: Hull | AA92: 0142 Hull | AC92: 5454X | AD92: Day | AE92: Groden Center | AF92: Intensive Day Program Non Res Students (30 hours ) | AG92: 11703.58447 | AH92: 334.3881279 | AI92: 2020-07-06 | AJ92: 2020-08-31 | AK92: 35 | AM92: H0498 | AN92: Veritas Preparatory Charter School | AO92: Charter | AQ92: 5251 | AR92: Cherry Gulch, Inc
A93: 0089 | B93: Edgartown | C93: 0089 Edgartown | E93: H0499 | F93: Day | G93: Hampden Charter School of Science | H93: H0499 Hampden Charter School of Science | J93: 5338I | K93: Res Ed | L93: Easter Seals of New Hampshire | M93: DVPMTL Disabled MSchool - Lancaster - Regular | N93: 225950.5208 | O93: 619.0425 | P93: 2020-07-01 | Q93: 2021-06-30 | R93: 365 | S93: 90 | T93: 5157 | U93: Boston College Campus School | V93: 5157-Boston College Campus School | W93: 93 | X93: 90 | Y93: 0144 | Z93: Ipswich | AA93: 0144 Ipswich | AC93: 5454E | AD93: Day | AE93: Groden Center | AF93: Intensive Day Program Non Res Students (30 hours ) | AG93: 77625 | AH93: 352.84 | AI93: 2020-09-07 | AJ93: 2021-06-30 | AK93: 184 | AM93: H0499 | AN93: Hampden Charter School of Science | AO93: Charter | AQ93: 5253 | AR93: Prof Ctr for Handicapped Children
A94: 0090 | B94: Egremont | C94: 0090 Egremont | E94: H3501 | F94: Day | G94: Paulo Freire Social Justice Charter School | H94: H3501 Paulo Freire Social Justice Charter School | J94: 5338J | K94: Res Ed | L94: Easter Seals of New Hampshire | M94: DVPMTL Disabled MSchool - Lancaster - Int. | N94: 359865.69 | O94: 985.93 | P94: 2020-07-01 | Q94: 2021-06-30 | R94: 365 | S94: 91 | T94: 5157A | U94: Boston College Campus School | V94: 5157A-Boston College Campus School | W94: 94 | X94: 91 | Y94: 0145 | Z94: Kingston | AA94: 0145 Kingston | AC94: 5454Y | AD94: Res Ed | AE94: Groden Center | AF94: Resid. Inten. | AG94: 41307.28767 | AH94: 666.2465753 | AI94: 2020-07-01 | AJ94: 2020-08-31 | AK94: 62 | AM94: H3501 | AN94: Paulo Freire Social Justice Charter School | AO94: Charter | AQ94: 5255 | AR94: Class, Inc
A95: 0091 | B95: Erving | C95: 0091 Erving | E95: H3502 | F95: Day | G95: Baystate Academy Charter Public School | H95: H3502 Baystate Academy Charter Public School | J95: 5341B | K95: Day | L95: Lifespan School Solutions/Bradley Schools | M95: Standard Rate | N95: 55685 | O95: 259 | P95: 2020-07-06 | Q95: 2021-06-23 | R95: 215 | S95: 92 | T95: 5158 | U95: Bradley Hospital | V95: 5158-Bradley Hospital | W95: 95 | X95: 92 | Y95: 0148 | Z95: Lanesborough | AA95: 0148 Lanesborough | AC95: 5454C | AD95: Res Ed | AE95: Groden Center | AF95: Resid. Inten. | AG95: 213598.3973 | AH95: 704.9452055 | AI95: 2020-09-01 | AJ95: 2021-06-30 | AK95: =365-AK94 -> 303 | AM95: H3502 | AN95: Baystate Academy Charter Public School | AO95: Charter | AQ95: 5256 | AR95: Clark School
A96: 0092 | B96: Essex | C96: 0092 Essex | E96: H3503 | F96: Day | G96: Collegiate Charter School of Lowell | H96: H3503 Collegiate Charter School of Lowell | J96: 5341D | K96: Day | L96: Lifespan School Solutions/Bradley Schools | M96: Intensive Rate | N96: 66220 | O96: 308 | P96: 2020-07-06 | Q96: 2021-06-23 | R96: 215 | S96: 93 | T96: 5160 | U96: Brandon School & Treatment Center | V96: 5160-Brandon School & Treatment Center | W96: 96 | X96: 93 | Y96: 0149 | Z96: Lawrence | AA96: 0149 Lawrence | AC96: 5454Z | AD96: Day | AE96: Groden Center | AF96: Intensive Day Program fro Res students ( 33 3/4 hours ) | AG96: 13166.55251 | AH96: 376.1872146 | AI96: 2020-07-06 | AJ96: 2020-08-31 | AK96: 35 | AM96: H3503 | AN96: Collegiate Charter School of Lowell | AO96: Charter | AQ96: 5257 | AR96: Clarke School for the Deaf
A97: 0093 | B97: Everett | C97: 0093 Everett | E97: H3505 | F97: Day | G97: UP Academy Charter School of Dorchester | H97: H3505 UP Academy Charter School of Dorchester | J97: 5341E | K97: Day | L97: Lifespan School Solutions/Bradley Schools | M97: Intensive Rate | N97: 66220 | O97: 308 | P97: 2020-07-06 | Q97: 2021-06-23 | R97: 215 | S97: 94 | T97: 5160C | U97: Brandon Residential Treatment Center | V97: 5160C-Brandon Residential Treatment Center | W97: 97 | X97: 94 | Y97: 0150 | Z97: Lee | AA97: 0150 Lee | AC97: 5454B | AD97: Day | AE97: Groden Center | AF97: Intensive Day Program fro Res students ( 33 3/4 hours ) | AG97: 73037.96364 | AH97: 396.9454545 | AI97: 2020-09-07 | AJ97: 2021-06-30 | AK97: 184 | AM97: H3505 | AN97: UP Academy Charter School of Dorchester | AO97: Charter | AQ97: 5258 | AR97: Clearway School, Inc
A98: 0094 | B98: Fairhaven | C98: 0094 Fairhaven | E98: H3506 | F98: Day | G98: Pioneer Charter School of Science II (PCSS-II) | H98: H3506 Pioneer Charter School of Science II (PCSS-II) | J98: 5341J | K98: Day | L98: Lifespan School Solutions/Bradley Schools | M98: Standard Rate | N98: 55685 | O98: 259 | P98: 2020-07-06 | Q98: 2021-06-23 | R98: 215 | S98: 95 | T98: 5160D | U98: Brandon Residential Treatment Center | V98: 5160D-Brandon Residential Treatment Center | W98: 98 | X98: 95 | Y98: 0151 | Z98: Leicester | AA98: 0151 Leicester | AC98: 5472A | AD98: Res Ed | AE98: Grove | AF98: Grove School | AG98: 144000 | AH98: 491.4675768 | AI98: 2020-07-07 | AJ98: 2021-06-25 | AK98: 293 | AM98: H3506 | AN98: Pioneer Charter School of Science II (PCSS-II) | AO98: Charter | AQ98: 5259 | AR98: Comm Attainment & Transition/Cat
A99: 0095 | B99: Fall River | C99: 0095 Fall River | E99: H3508 | F99: Day | G99: Phoenix Academy Public Charter High School Springfield | H99: H3508 Phoenix Academy Public Charter High School Springfield | J99: 5341N | K99: Day | L99: Lifespan School Solutions/Bradley Schools | M99: Clinical Intensive | N99: 73530 | O99: 342 | P99: 2020-07-06 | Q99: 2021-06-23 | R99: 215 | S99: 96 | T99: 5160Q | U99: Brandon Residential Treatment Center | V99: 5160Q-Brandon Residential Treatment Center | W99: 99 | X99: 96 | Y99: 0152 | Z99: Lenox | AA99: 0152 Lenox | AC99: 5088G | AD99: Res Ed | AE99: Hillcrest Educational Centers, Inc. | AF99: Autism Spectrum Disorders | AG99: 373153.64 | AH99: 1022.33874 | AI99: 2020-07-01 | AJ99: 2021-06-30 | AK99: 365 | AM99: H3508 | AN99: Phoenix Academy Public Charter High School Springfield | AO99: Charter | AQ99: 5260 | AR99: Comcare
A100: 0096 | B100: Falmouth | C100: 0096 Falmouth | E100: H3509 | F100: Day | G100: Argosy Collegiate Charter School | H100: H3509 Argosy Collegiate Charter School | J100: 5341P | K100: Day | L100: Lifespan School Solutions/Bradley Schools | M100: Partnership Standard Rate | N100: 47085 | O100: 219 | P100: 2020-07-06 | Q100: 2021-06-23 | R100: 215 | S100: 97 | T100: 5163 | U100: Brehm Prep School | V100: 5163-Brehm Prep School | W100: 100 | X100: 97 | Y100: 0153 | Z100: Leominster | AA100: 0153 Leominster | AC100: 5088H | AD100: Day | AE100: Hillcrest Educational Centers, Inc. | AF100: ASD -Day program | AG100: 120874.64 | AH100: 559.6048148 | AI100: 2020-09-02 | AJ100: 2021-06-21 | AK100: 216 | AM100: H3509 | AN100: Argosy Collegiate Charter School | AO100: Charter | AQ100: 5261 | AR100: Nupath Autism Residential and Day Program (Formerly Cmarc/Boston Higashi?)
A101: 0097 | B101: Fitchburg | C101: 0097 Fitchburg | E101: H3510 | F101: Day | G101: Springfield Preparatory Charter School | H101: H3510 Springfield Preparatory Charter School | J101: 5341S | K101: Day | L101: Lifespan School Solutions/Bradley Schools | M101: Bradley School North, Intensive | N101: 66220 | O101: 308 | P101: 2020-07-06 | Q101: 2021-06-23 | R101: 215 | S101: 98 | T101: 5164 | U101: Bridgewell | V101: 5164-Bridgewell | W101: 101 | X101: 98 | Y101: 0154 | Z101: Leverett | AA101: 0154 Leverett | AC101: 5088D | AD101: Res Ed | AE101: Hillcrest Educational Centers, Inc. | AF101: Hillcrest | AG101: 217335.96 | AH101: 595.4409863 | AI101: 2020-07-01 | AJ101: 2021-06-30 | AK101: 365 | AM101: H3510 | AN101: Springfield Preparatory Charter School | AO101: Charter | AQ101: 5262 | AR101: Community Center School
A102: 0098 | B102: Florida | C102: 0098 Florida | E102: H3513 | F102: Day | G102: New Heights Charter School of Brockton | H102: H3513 New Heights Charter School of Brockton | J102: 5341T | K102: Day | L102: Lifespan School Solutions/Bradley Schools | M102: Bradley School North, Standard | N102: 55685 | O102: 259 | P102: 2020-07-06 | Q102: 2021-06-23 | R102: 215 | S102: 99 | T102: 5165 | U102: Broccoli Hall | V102: 5165-Broccoli Hall | W102: 102 | X102: 99 | Y102: 0155 | Z102: Lexington | AA102: 0155 Lexington | AC102: 5088E | AD102: Res Ed | AE102: Hillcrest Educational Centers, Inc. | AF102: Intensive Tx Unit | AG102: 351937.16 | AH102: 964.2113973 | AI102: 2020-07-01 | AJ102: 2021-06-30 | AK102: 365 | AM102: H3513 | AN102: New Heights Charter School of Brockton | AO102: Charter | AQ102: 5264 | AR102: Comm. Resources for Justice/Strategies
A103: 0099 | B103: Foxborough | C103: 0099 Foxborough | E103: H3514 | F103: Day | G103: Libertas Academy Charter School | H103: H3514 Libertas Academy Charter School | J103: 5343B | K103: Res Ed | L103: New England Center for Children | M103: N.E.C.C. Residen | N103: 250049.44 | O103: 685.067 | P103: 2020-07-01 | Q103: 2021-06-30 | R103: 365 | S103: 100 | T103: 5165A | U103: Broccoli Hall, Inc. | V103: 5165A-Broccoli Hall, Inc. | W103: 103 | X103: 100 | Y103: 0157 | Z103: Lincoln | AA103: 0157 Lincoln | AC103: 5088F | AD103: Day | AE103: Hillcrest Educational Centers, Inc. | AF103: Housatonic Academy | AG103: 59681.47 | AH103: 276.3031019 | AI103: 2020-07-07 | AJ103: 2021-06-21 | AK103: 216 | AM103: H3514 | AN103: Libertas Academy Charter School | AO103: Charter | AQ103: 5265 | AR103: Community Therapeutic Day School
A104: 0100 | B104: Framingham | C104: 0100 Framingham | E104: H3515 | F104: Day | G104: Old Sturbridge Academy Charter Public School | H104: H3515 Old Sturbridge Academy Charter Public School | J104: 5343C | K104: Res Ed | L104: New England Center for Children | M104: N.E.C.C. Severe | N104: 363879.49 | O104: 996.9301 | P104: 2020-07-01 | Q104: 2021-06-30 | R104: 365 | S104: 101 | T104: 5165Z | U104: Broccoli Hall, Inc. | V104: 5165Z-Broccoli Hall, Inc. | W104: 104 | X104: 101 | Y104: 0158 | Z104: Littleton | AA104: 0158 Littleton | AC104: 5495A | AD104: Res Ed | AE104: HMS School for Children with Cerebral Palsy | AF104: Residential Program 7 days | AG104: 163300 | AH104: 628.0769231 | AI104: 2020-09-13 | AJ104: 2021-06-30 | AK104: 260 | AM104: H3515 | AN104: Old Sturbridge Academy Charter Public School | AO104: Charter | AQ104: 5266 | AR104: Crc Health Group - Southeast Journeys
A105: 0101 | B105: Franklin | C105: 0101 Franklin | E105: H3516 | F105: Day | G105: Hampden Charter School of Science West | H105: H3516 Hampden Charter School of Science West | J105: 5343D | K105: Day | L105: New England Center for Children | M105: Intensive Instruction | N105: 125419.65 | O105: 554.9542 | P105: 2020-07-06 | Q105: 2021-06-30 | R105: 226 | S105: 102 | T105: 5170 | U105: The Bridge Center/King Solomon Foundation for Handicapped Children | V105: 5170-The Bridge Center/King Solomon Foundation for Handicapped Children | W105: 105 | X105: 102 | Y105: 0159 | Z105: Longmeadow | AA105: 0159 Longmeadow | AC105: 5495B | AD105: Day | AE105: HMS School for Children with Cerebral Palsy | AF105: Extended school Year | AG105: 13770 | AH105: 510 | AI105: 2020-07-01 | AJ105: 2020-07-21 | AK105: 27 | AM105: H3516 | AN105: Hampden Charter School of Science West | AO105: Charter | AQ105: 5267 | AR105: The Conerstone School/Cranston Arc
A106: 0102 | B106: Freetown | C106: 0102 Freetown | E106: H3517 | F106: Day | G106: Map Academy Charter School | H106: H3517 Map Academy Charter School | J106: 5343E | K106: Res Ed | L106: New England Center for Children | M106: Intermediate | N106: 336589.41 | O106: 922.1628 | P106: 2020-07-01 | Q106: 2021-06-30 | R106: 365 | S106: 103 | T106: 5177 | U106: Brockton Area Multi-Services | V106: 5177-Brockton Area Multi-Services | W106: 106 | X106: 103 | Y106: 0160 | Z106: Lowell | AA106: 0160 Lowell | AC106: 5095Z | AD106: Res Ed | AE106: Home for Little Wanderers | AF106: Southeast Campus Res. | AG106: 94299.26548 | AH106: 616.3350685 | AI106: 2020-07-01 | AJ106: 2020-11-30 | AK106: 153 | AM106: H3517 | AN106: Map Academy Charter School | AO106: Charter | AQ106: 5268 | AR106: Concord Familt and Youth Services
A107: 0103 | B107: Gardner | C107: 0103 Gardner | E107: H3518 | F107: Day | G107: Phoenix Academy Public Charter High School Lawrence | H107: H3518 Phoenix Academy Public Charter High School Lawrence | J107: 5360A | K107: Day | L107: Milestones, Inc. | M107: Milestones Day School | N107: 90906.3237 | O107: 554.3069 | P107: 2020-10-01 | Q107: 2021-06-17 | R107: 164 | S107: 104 | T107: 5177G | U107: Specialized Education Services, Inc. | V107: 5177G-Specialized Education Services, Inc. | W107: 107 | X107: 104 | Y107: 0161 | Z107: Ludlow | AA107: 0161 Ludlow | AC107: 5095A | AD107: Res Ed | AE107: Home for Little Wanderers | AF107: Southeast Campus Res. | AG107: 142149.8508 | AH107: 670.5181644 | AI107: 2020-12-01 | AJ107: 2021-06-30 | AK107: =365-153 -> 212 | AM107: H3518 | AN107: Phoenix Academy Public Charter High School Lawrence | AO107: Charter | AQ107: 5269 | AR107: Ct Children's Medical Center
A108: 0104 | B108: Aquinnah | C108: 0104 Aquinnah | E108: L0001 | F108: Day | G108: Abington | H108: L0001 Abington | J108: 5360Z | K108: Day | L108: Milestones, Inc. | M108: Milestones Day School | N108: 24065.1546 | O108: 462.7914 | P108: 2020-07-06 | Q108: 2020-09-30 | R108: 52 | S108: 105 | T108: 5177H | U108: Specialized Education Services, Inc. | V108: 5177H-Specialized Education Services, Inc. | W108: 108 | X108: 105 | Y108: 0162 | Z108: Lunenburg | AA108: 0162 Lunenburg | AC108: 5095Y | AD108: Day | AE108: Home for Little Wanderers | AF108: Southeast Campus Day | AG108: 32659.29037 | AH108: 347.4392593 | AI108: 2020-07-06 | AJ108: 2020-11-30 | AK108: 94 | AM108: L0001 | AN108: Abington | AO108: Public | AQ108: 5270 | AR108: Connecticut Institute for the Blind
A109: 0105 | B109: Georgetown | C109: 0105 Georgetown | E109: L0003 | F109: Day | G109: Acushnet | H109: L0003 Acushnet | J109: 5365A | K109: Day | L109: R. F. Kennedy Action Corps | M109: Exp. With Travel | N109: 41084.1782 | O109: 328.6734 | P109: 2020-12-01 | Q109: 2021-06-21 | R109: 125 | S109: 106 | T109: 5180 | U109: Bromley Brook School | V109: 5180-Bromley Brook School | W109: 109 | X109: 106 | Y109: 0163 | Z109: Lynn | AA109: 0163 Lynn | AC109: 5095B | AD109: Day | AE109: Home for Little Wanderers | AF109: Southeast Campus Day | AG109: 54764.96972 | AH109: 448.8931944 | AI109: 2020-12-01 | AJ109: 2021-06-16 | AK109: =216-AK108 -> 122 | AM109: L0003 | AN109: Acushnet | AO109: Public | AQ109: 5271 | AR109: Creative Education Inc.
A110: 0106 | B110: Gill | C110: 0106 Gill | E110: L0005 | F110: Day | G110: Agawam | H110: L0005 Agawam | J110: 5365Z | K110: Day | L110: R. F. Kennedy Action Corps | M110: Exp. With Travel | N110: 28392.6699 | O110: 312.0074 | P110: 2020-07-01 | Q110: 2020-11-30 | R110: 91 | S110: 107 | T110: 5183 | U110: Brown & Sullivan | V110: 5183-Brown & Sullivan | W110: 110 | X110: 107 | Y110: 0164 | Z110: Lynnfield | AA110: 0164 Lynnfield | AC110: 5785E | AD110: Day | AE110: Home for Little Wanderers | AF110: Clifford Day | AG110: 84735.9328 | AH110: 470.7551822 | AI110: 2020-09-02 | AJ110: 2021-06-17 | AK110: 180 | AM110: L0005 | AN110: Agawam | AO110: Public | AQ110: 5272 | AR110: Crossroads
A111: 0107 | B111: Gloucester | C111: 0107 Gloucester | E111: L0007 | F111: Day | G111: Amesbury | H111: L0007 Amesbury | J111: 5381A | K111: Day | L111: James Farr Academy | M111: Farr Academy | N111: 93160.85 | O111: 517.5603 | P111: 2020-09-08 | Q111: 2021-06-17 | R111: 180 | S111: 108 | T111: 5185 | U111: Brown School/San Marcos Treatment Ctr | V111: 5185-Brown School/San Marcos Treatment Ctr | W111: 111 | X111: 108 | Y111: 0165 | Z111: Malden | AA111: 0165 Malden | AC111: 5785F | AD111: Res Ed | AE111: Home for Little Wanderers | AF111: Clifford Res | AG111: 228718.2315 | AH111: 626.6252917 | AI111: 2020-07-01 | AJ111: 2021-06-30 | AK111: 365 | AM111: L0007 | AN111: Amesbury | AO111: Public | AQ111: 5273 | AR111: Coastal Connections/New Ventures Prog
A112: 0108 | B112: Goshen | C112: 0108 Goshen | E112: L0008 | F112: Day | G112: Amherst | H112: L0008 Amherst | J112: 5381C | K112: Summer | L112: James Farr Academy | M112: Farr Academy Summer | N112: 8532.18 | O112: 341.2872 | P112: 2020-07-06 | Q112: 2020-08-07 | R112: 25 | S112: 109 | T112: 5186 | U112: Burnham Brook School (Synergistice Lrng Corp) | V112: 5186-Burnham Brook School (Synergistice Lrng Corp) | W112: 112 | X112: 109 | Y112: 0167 | Z112: Mansfield | AA112: 0167 Mansfield | AC112: 5785G | AD112: Summer | AE112: Home for Little Wanderers | AF112: Clifford Academy 36 Day | AG112: 11347.81 | AH112: 315.2169444 | AI112: 2020-07-06 | AJ112: 2020-08-24 | AK112: 36 | AM112: L0008 | AN112: Amherst | AO112: Public | AQ112: 5274 | AR112: Cotting School, Inc
A113: 0109 | B113: Gosnold | C113: 0109 Gosnold | E113: L0009 | F113: Day | G113: Andover | H113: L0009 Andover | J113: 5385A | K113: Res Ed | L113: Evergreen Center, Inc. | M113: BDU | N113: 254556.32 | O113: 697.4146 | P113: 2020-07-01 | Q113: 2021-06-30 | R113: 365 | S113: 110 | T113: 5188 | U113: Cadmus Lifesharing Association Inc. | V113: 5188-Cadmus Lifesharing Association Inc. | W113: 113 | X113: 110 | Y113: 0168 | Z113: Marblehead | AA113: 0168 Marblehead | AC113: 5415A | AD113: Day | AE113: Hopeful Journeys Education Center, Inc. | AF113: Hopeful Journeys | AG113: 123701.97 | AH113: 572.6943056 | AI113: 2020-07-08 | AJ113: 2021-06-30 | AK113: 216 | AM113: L0009 | AN113: Andover | AO113: Public | AQ113: 5275 | AR113: Crossroads School
A114: 0110 | B114: Grafton | C114: 0110 Grafton | E114: L0010 | F114: Day | G114: Arlington | H114: L0010 Arlington | J114: 5385B | K114: Res Ed | L114: Evergreen Center, Inc. | M114: Multi H. | N114: 230109.52 | O114: 630.437 | P114: 2020-07-01 | Q114: 2021-06-30 | R114: 365 | S114: 111 | T114: 5190 | U114: Cambridge School of Weston | V114: 5190-Cambridge School of Weston | W114: 114 | X114: 111 | Y114: 0169 | Z114: Marion | AA114: 0169 Marion | AC114: 5488A | AD114: Day | AE114: Horace Mann | AF114: Darnell School | AG114: 98454.36 | AH114: 445.4948416 | AI114: 2020-07-01 | AJ114: 2021-06-18 | AK114: 221 | AM114: L0010 | AN114: Arlington | AO114: Public | AQ114: 5276 | AR114: Crotched Mountain Rehab Center
A115: 0111 | B115: Granby | C115: 0111 Granby | E115: L0014 | F115: Day | G115: Ashland | H115: L0014 Ashland | J115: 5415A | K115: Day | L115: Hopeful Journeys Education Center, Inc. | M115: Hopeful Journeys | N115: 123701.97 | O115: 572.6943 | P115: 2020-07-08 | Q115: 2021-06-30 | R115: 216 | S115: 112 | T115: 5200 | U115: Camp Hill | V115: 5200-Camp Hill | W115: 115 | X115: 112 | Y115: 0170 | Z115: Marlborough | AA115: 0170 Marlborough | AC115: 5534A | AD115: Res Ed | AE115: Italian Home for Children, Inc. | AF115: Italian Home Res | AG115: 201167.82 | AH115: 551.1447123 | AI115: 2020-07-01 | AJ115: 2021-06-30 | AK115: 365 | AM115: L0014 | AN115: Ashland | AO115: Public | AQ115: 5277 | AR115: Dublin School
A116: 0112 | B116: Granville | C116: 0112 Granville | E116: L0016 | F116: Day | G116: Attleboro | H116: L0016 Attleboro | J116: 5440A | K116: Day | L116: Margaret Gifford School | M116: Gifford School | N116: 65897.39 | O116: 366.0966 | P116: 2020-08-31 | Q116: 2021-06-15 | R116: 180 | S116: 113 | T116: 5202 | U116: Camp Northwood | V116: 5202-Camp Northwood | W116: 116 | X116: 113 | Y116: 0171 | Z116: Marshfield | AA116: 0171 Marshfield | AC116: 5534B | AD116: Day | AE116: Italian Home for Children, Inc. | AF116: Italian Home Day | AG116: 87624.04 | AH116: 398.2910909 | AI116: 2020-07-06 | AJ116: 2021-06-23 | AK116: 220 | AM116: L0016 | AN116: Attleboro | AO116: Public | AQ116: 5296 | AR116: Cardinal Cushing Sch & Training Center
A117: 0113 | B117: Great Barrington | C117: 0113 Great Barrington | E117: L0017 | F117: Day | G117: Auburn | H117: L0017 Auburn | J117: 5440B | K117: Summer | L117: Margaret Gifford School | M117: Gifford Summer | N117: 6086.94 | O117: 304.347 | P117: 2020-07-01 | Q117: 2020-07-29 | R117: 20 | S117: 114 | T117: 5203 | U117: Triumph Center, Inc / Camp Triumph | V117: 5203-Triumph Center, Inc / Camp Triumph | W117: 117 | X117: 114 | Y117: 0172 | Z117: Mashpee | AA117: 0172 Mashpee | AC117: 5534Q | AD117: Day | AE117: Italian Home for Children, Inc. | AF117: Italian Home Day | AG117: 87624.04 | AH117: 240.065863 | AI117: 2020-07-01 | AJ117: 2021-06-30 | AK117: 365 | AM117: L0017 | AN117: Auburn | AO117: Public | AQ117: 5297 | AR117: Inst for Developmental Disabil
A118: 0114 | B118: Greenfield | C118: 0114 Greenfield | E118: L0018 | F118: Day | G118: Avon | H118: L0018 Avon | J118: 5451A | K118: Res Ed | L118: Greenwood School | M118: Greenwood School | N118: 52286.7522 | O118: 396.1118 | P118: 2020-12-07 | Q118: 2021-05-27 | R118: 132 | S118: 115 | T118: 5204 | U118: Paul Center for Learning and Recreation | V118: 5204-Paul Center for Learning and Recreation | W118: 118 | X118: 115 | Y118: 0173 | Z118: Mattapoisett | AA118: 0173 Mattapoisett | AC118: 5381A | AD118: Day | AE118: James Farr Academy | AF118: Farr Academy | AG118: 93160.85 | AH118: 517.5602778 | AI118: 2020-09-08 | AJ118: 2021-06-17 | AK118: 180 | AM118: L0018 | AN118: Avon | AO118: Public | AQ118: 5300 | AR118: Crossroads Center for Children
A119: 0115 | B119: Groton | C119: 0115 Groton | E119: L0020 | F119: Day | G119: Barnstable | H119: L0020 Barnstable | J119: 5451B | K119: Day | L119: Greenwood School | M119: Greenwood School | N119: 39617.4933 | O119: 404.2601 | P119: 2020-12-07 | Q119: 2021-05-27 | R119: 98 | S119: 116 | T119: 5209 | U119: Carroll School | V119: 5209-Carroll School | W119: 119 | X119: 116 | Y119: 0174 | Z119: Maynard | AA119: 0174 Maynard | AC119: 5381C | AD119: Summer | AE119: James Farr Academy | AF119: Farr Academy Summer | AG119: 8532.18 | AH119: 341.2872 | AI119: 2020-07-06 | AJ119: 2020-08-07 | AK119: 25 | AM119: L0020 | AN119: Barnstable | AO119: Public | AQ119: 5303 | AR119: Fall River Deaconess Home
A120: 0116 | B120: Groveland | C120: 0116 Groveland | E120: L0023 | F120: Day | G120: Bedford | H120: L0023 Bedford | J120: 5451Y | K120: Day | L120: Greenwood School | M120: Greenwood School | N120: 19157.1432 | O120: 390.9621 | P120: 2020-09-14 | Q120: 2020-11-19 | R120: 49 | S120: 117 | T120: 5210 | U120: Carroll Center for the Blind | V120: 5210-Carroll Center for the Blind | W120: 120 | X120: 117 | Y120: 0175 | Z120: Medfield | AA120: 0175 Medfield | AC120: 5097A | AD120: Day | AE120: Judge Baker Children's Center, Inc. | AF120: Manville | AG120: 96110.91 | AH120: 533.9495 | AI120: 2020-09-14 | AJ120: 2021-06-23 | AK120: 180 | AM120: L0023 | AN120: Bedford | AO120: Public | AQ120: 5304 | AR120: Darrow School
A121: 0117 | B121: Hadley | C121: 0117 Hadley | E121: L0024 | F121: Day | G121: Belchertown | H121: L0024 Belchertown | J121: 5451Z | K121: Res Ed | L121: Greenwood School | M121: Greenwood School | N121: 25637.6606 | O121: 382.6517 | P121: 2020-09-14 | Q121: 2020-11-19 | R121: 67 | S121: 118 | T121: 5211 | U121: Cascade School | V121: 5211-Cascade School | W121: 121 | X121: 118 | Y121: 0176 | Z121: Medford | AA121: 0176 Medford | AC121: 5097B | AD121: Summer | AE121: Judge Baker Children's Center, Inc. | AF121: Manville-Summer | AG121: 9552.46 | AH121: 477.623 | AI121: 2020-07-06 | AJ121: 2020-08-06 | AK121: 20 | AM121: L0024 | AN121: Belchertown | AO121: Public | AQ121: 5306 | AR121: Schools for Children, Inc
A122: 0118 | B122: Halifax | C122: 0118 Halifax | E122: L0025 | F122: Day | G122: Bellingham | H122: L0025 Bellingham | J122: 5454B | K122: Day | L122: Groden Center | M122: Intensive Day Program fro Res students ( 33 3/4 hours ) | N122: 73037.9636 | O122: 396.9455 | P122: 2020-09-07 | Q122: 2021-06-30 | R122: 184 | S122: 119 | T122: 5212 | U122: Castle School, Inc | V122: 5212-Castle School, Inc | W122: 122 | X122: 119 | Y122: 0177 | Z122: Medway | AA122: 0177 Medway | AC122: 5120A | AD122: Res Ed | AE122: Judge Rotenberg Educational Center | AF122: Judge Rotenberg | AG122: 277915.18 | AH122: 761.4114521 | AI122: 2020-07-01 | AJ122: 2021-06-30 | AK122: 365 | AM122: L0025 | AN122: Bellingham | AO122: Public | AQ122: 5315 | AR122: Deck House School
A123: 0119 | B123: Hamilton | C123: 0119 Hamilton | E123: L0026 | F123: Day | G123: Belmont | H123: L0026 Belmont | J123: 5454C | K123: Res Ed | L123: Groden Center | M123: Resid. Inten. | N123: 213598.3973 | O123: 704.9452 | P123: 2020-09-01 | Q123: 2021-06-30 | R123: 303 | S123: 120 | T123: 5215 | U123: Catalyst Residential Treatment Program | V123: 5215-Catalyst Residential Treatment Program | W123: 123 | X123: 120 | Y123: 0178 | Z123: Melrose | AA123: 0178 Melrose | AC123: 5112B | AD123: Day | AE123: Justice Resource Institute | AF123: Bay Cove | AG123: 80080.83 | AH123: 364.0037727 | AI123: 2020-07-01 | AJ123: 2021-06-30 | AK123: 220 | AM123: L0026 | AN123: Belmont | AO123: Public | AQ123: 5317 | AR123: Delta Projects
A124: 0120 | B124: Hampden | C124: 0120 Hampden | E124: L0027 | F124: Day | G124: Berkley | H124: L0027 Berkley | J124: 5454E | K124: Day | L124: Groden Center | M124: Intensive Day Program Non Res Students (30 hours ) | N124: 77625 | O124: 352.84 | P124: 2020-09-07 | Q124: 2021-06-30 | R124: 184 | S124: 121 | T124: 5220 | U124: Cedars Residential | V124: 5220-Cedars Residential | W124: 124 | X124: 121 | Y124: 0181 | Z124: Methuen | AA124: 0181 Methuen | AC124: 5127C | AD124: Res Ed | AE124: Justice Resource Institute | AF124: Berkshire Meadows | AG124: 237166.28 | AH124: 649.7706301 | AI124: 2020-07-01 | AJ124: 2021-06-30 | AK124: 365 | AM124: L0027 | AN124: Berkley | AO124: Public | AQ124: 5320 | AR124: Desisto School
A125: 0121 | B125: Hancock | C125: 0121 Hancock | E125: L0030 | F125: Day | G125: Beverly | H125: L0030 Beverly | J125: 5454X | K125: Day | L125: Groden Center | M125: Intensive Day Program Non Res Students (30 hours ) | N125: 11703.5845 | O125: 334.3881 | P125: 2020-07-06 | Q125: 2020-08-31 | R125: 35 | S125: 122 | T125: 5223 | U125: Cedu Middle School | V125: 5223-Cedu Middle School | W125: 125 | X125: 122 | Y125: 0182 | Z125: Middleborough | AA125: 0182 Middleborough | AC125: 5127D | AD125: Day | AE125: Justice Resource Institute | AF125: Victor School | AG125: 58982.08 | AH125: 273.0651852 | AI125: 2020-07-01 | AJ125: 2021-06-25 | AK125: 216 | AM125: L0030 | AN125: Beverly | AO125: Public | AQ125: 5324 | AR125: Devereux School
A126: 0122 | B126: Hanover | C126: 0122 Hanover | E126: L0031 | F126: Day | G126: Billerica | H126: L0031 Billerica | J126: 5454Y | K126: Res Ed | L126: Groden Center | M126: Resid. Inten. | N126: 41307.2877 | O126: 666.2466 | P126: 2020-07-01 | Q126: 2020-08-31 | R126: 62 | S126: 123 | T126: 5224 | U126: Center for Applied Behavioral Instruction | V126: 5224-Center for Applied Behavioral Instruction | W126: 126 | X126: 123 | Y126: 0184 | Z126: Middleton | AA126: 0184 Middleton | AC126: 5127E | AD126: Res Ed | AE126: Justice Resource Institute | AF126: Littleton Academy | AG126: 271193.94 | AH126: 742.9970959 | AI126: 2021-01-01 | AJ126: 2021-06-30 | AK126: 365 | AM126: L0031 | AN126: Billerica | AO126: Public | AQ126: 5325 | AR126: Devereux - Kanner Center
A127: 0123 | B127: Hanson | C127: 0123 Hanson | E127: L0035 | F127: Day | G127: Boston | H127: L0035 Boston | J127: 5454Z | K127: Day | L127: Groden Center | M127: Intensive Day Program fro Res students ( 33 3/4 hours ) | N127: 13166.5525 | O127: 376.1872 | P127: 2020-07-06 | Q127: 2020-08-31 | R127: 35 | S127: 124 | T127: 5224A | U127: Center for Applied Behavioral Instruction | V127: 5224A-Center for Applied Behavioral Instruction | W127: 127 | X127: 124 | Y127: 0185 | Z127: Milford | AA127: 0185 Milford | AC127: 5695A | AD127: Day | AE127: Justice Resource Institute | AF127: Granite Day Ed | AG127: 68174.11 | AH127: 337.4955941 | AI127: 2020-07-01 | AJ127: 2021-06-15 | AK127: 202 | AM127: L0035 | AN127: Boston | AO127: Public | AQ127: 5328 | AR127: Discovery Ranch
A128: 0124 | B128: Hardwick | C128: 0124 Hardwick | E128: L0036 | F128: Day | G128: Bourne | H128: L0036 Bourne | J128: 5472A | K128: Res Ed | L128: Grove | M128: Grove School | N128: 144000 | O128: 491.4676 | P128: 2020-07-07 | Q128: 2021-06-25 | R128: 293 | S128: 125 | T128: 5226 | U128: Center on Deafness | V128: 5226-Center on Deafness | W128: 128 | X128: 125 | Y128: 0186 | Z128: Millbury | AA128: 0186 Millbury | AC128: 5992D | AD128: Day | AE128: Justice Resource Institute | AF128: Anchor Academy | AG128: 57101.72 | AH128: 288.3925253 | AI128: 2020-08-17 | AJ128: 2021-06-22 | AK128: 198 | AM128: L0036 | AN128: Bourne | AO128: Public | AQ128: 5329 | AR128: Discovery Academy
A129: 0125 | B129: Harvard | C129: 0125 Harvard | E129: L0038 | F129: Day | G129: Boxford | H129: L0038 Boxford | J129: 5488A | K129: Day | L129: Horace Mann | M129: Darnell School | N129: 98454.36 | O129: 445.4948 | P129: 2020-07-01 | Q129: 2021-06-18 | R129: 221 | S129: 126 | T129: 5227 | U129: Center for School Crisis Intervention | V129: 5227-Center for School Crisis Intervention | W129: 129 | X129: 126 | Y129: 0187 | Z129: Millis | AA129: 0187 Millis | AC129: 5997F | AD129: Res Ed | AE129: Justice Resource Institute | AF129: Meadowridge | AG129: 213478.73 | AH129: 584.8732329 | AI129: 2020-07-01 | AJ129: 2021-06-30 | AK129: 365 | AM129: L0038 | AN129: Boxford | AO129: Public | AQ129: 5330 | AR129: EASTCONN Educational Services
A130: 0126 | B130: Harwich | C130: 0126 Harwich | E130: L0040 | F130: Day | G130: Braintree | H130: L0040 Braintree | J130: 5495A | K130: Res Ed | L130: HMS School for Children with Cerebral Palsy | M130: Residential Program 7 days | N130: 163300 | O130: 628.0769 | P130: 2020-09-13 | Q130: 2021-06-30 | R130: 260 | S130: 127 | T130: 5227A | U130: Springdale Education Center | V130: 5227A-Springdale Education Center | W130: 130 | X130: 127 | Y130: 0189 | Z130: Milton | AA130: 0189 Milton | AC130: 5607A | AD130: Day | AE130: Landmark Foundation | AF130: Landmark Day | AG130: 57596.23 | AH130: 319.9790556 | AI130: 2020-08-24 | AJ130: 2021-06-09 | AK130: 180 | AM130: L0040 | AN130: Braintree | AO130: Public | AQ130: 5331 | AR130: Easter Seals
A131: 0127 | B131: Hatfield | C131: 0127 Hatfield | E131: L0041 | F131: Day | G131: Brewster | H131: L0041 Brewster | J131: 5495B | K131: Day | L131: HMS School for Children with Cerebral Palsy | M131: Extended school Year | N131: 13770 | O131: 510 | P131: 2020-07-01 | Q131: 2021-01-31 | R131: 22 | S131: 128 | T131: 5227B | U131: Center for School Crisis Inter. & Assess. | V131: 5227B-Center for School Crisis Inter. & Assess. | W131: 131 | X131: 128 | Y131: 0191 | Z131: Monson | AA131: 0191 Monson | AC131: 5607B | AD131: Res Ed | AE131: Landmark Foundation | AF131: Landmark Residential | AG131: 76575.03 | AH131: 319.062625 | AI131: 2020-08-24 | AJ131: 2021-06-09 | AK131: 240 | AM131: L0041 | AN131: Brewster | AO131: Public | AQ131: 5333 | AR131: Eagleton School, Inc
A132: 0128 | B132: Haverhill | C132: 0128 Haverhill | E132: L0043 | F132: Day | G132: Brimfield | H132: L0043 Brimfield | J132: 5498B | K132: Day | L132: Lighthouse School | M132: Comp. Services Prog. | N132: 89011.37 | O132: 494.5076 | P132: 2020-09-02 | Q132: 2021-06-15 | R132: 180 | S132: 129 | T132: 5238 | U132: F L Chamberlain School | V132: 5238-F L Chamberlain School | W132: 132 | X132: 129 | Y132: 0196 | Z132: Nahant | AA132: =Y132&" "&Z132 -> 0196 Nahant | AC132: 5957C | AD132: Res Ed | AE132: Latham Centers, Inc. | AF132: Intensive | AG132: 250622.59 | AH132: 686.6372329 | AI132: 2020-07-01 | AJ132: 2021-06-30 | AK132: 365 | AM132: L0043 | AN132: Brimfield | AO132: Public | AQ132: 5334 | AR132: Eagle Hill - Greenwich
A133: 0129 | B133: Hawley | C133: =A133&" "&B133 -> 0129 Hawley | E133: L0044 | F133: Day | G133: Brockton | H133: =E133&" "&G133 -> L0044 Brockton | J133: 5530C | K133: Day | L133: Devereux Foundation of Mass., Inc. | M133: CARES | N133: 92347.06 | O133: 427.5327 | P133: 2020-07-01 | Q133: 2021-06-30 | R133: 216 | S133: 130 | T133: 5238E | U133: F. L. Chamberlain School, Inc. | V133: 5238E-F. L. Chamberlain School, Inc. | W133: 133 | X133: 130 | Y133: 0197 | Z133: Nantucket | AA133: 0197 Nantucket | AC133: 5614A | AD133: Day | AE133: League School of Boston | AF133: Day Ed | AG133: 105284.47 | AH133: 487.4281019 | AI133: 2020-07-08 | AJ133: 2021-06-14 | AK133: 216 | AM133: L0044 | AN133: Brockton | AO133: =IF(LEFT(AM133,1)="C","Col",IF(LEFT(AM133,1)="L","Public",IF(LEFT(AM133,1)="H","Charter",""))) -> Public | AQ133: 5335 | AR133: Eagle Hill School
A134: 0130 | B134: Heath | C134: 0130 Heath | E134: L0045 | F134: Day | G134: Brookfield | H134: L0045 Brookfield | J134: 5534A | K134: Res Ed | L134: Italian Home for Children, Inc. | M134: Italian Home Res | N134: 201167.82 | O134: 551.1447 | P134: 2020-07-01 | Q134: 2021-06-30 | R134: 365 | S134: 131 | T134: 5238F | U134: F. L. Chamberlain School, Inc. | V134: =T134&"-"&U134 -> 5238F-F. L. Chamberlain School, Inc. | W134: 134 | X134: 131 | Y134: 0198 | Z134: Natick | AA134: 0198 Natick | AC134: 5614B | AD134: Res Ed | AE134: League School of Boston | AF134: Fine House | AG134: 224785.05 | AH134: 615.8494521 | AI134: 2020-07-01 | AJ134: 2021-06-30 | AK134: 365 | AM134: L0045 | AN134: Brookfield | AO134: Public | AQ134: 5336 | AR134: Enable, Inc
A135: 0131 | B135: Hingham | C135: 0131 Hingham | E135: L0046 | F135: Day | G135: Brookline | H135: L0046 Brookline | J135: 5534B | K135: Day | L135: Italian Home for Children, Inc. | M135: Italian Home Day | N135: 87624.04 | O135: 398.2911 | P135: 2020-07-06 | Q135: 2021-06-23 | R135: 220 | S135: 132 | T135: 5240 | U135: Chapel Hill - Chauncy Hall | V135: 5240-Chapel Hill - Chauncy Hall | W135: 135 | X135: 132 | Y135: 0199 | Z135: Needham | AA135: 0199 Needham | AC135: 5617B | AD135: Res Ed | AE135: Learning Ctr. for the Deaf | AF135: Walden | AG135: 352060.16 | AH135: 964.5483836 | AI135: 2020-07-01 | AJ135: 2021-06-30 | AK135: 365 | AM135: L0046 | AN135: Brookline | AO135: Public | AQ135: 5337 | AR135: East Mountain Center
A136: 0132 | B136: Hinsdale | C136: 0132 Hinsdale | E136: L0048 | F136: Day | G136: Burlington | H136: L0048 Burlington | J136: 5534Q | K136: Day | L136: Italian Home for Children, Inc. | M136: Italian Home Day | N136: 87624.04 | O136: 240.0659 | P136: 2020-07-01 | Q136: 2021-06-30 | R136: 365 | S136: 133 | T136: 5241 | U136: Chapel Haven Inc. | V136: 5241-Chapel Haven Inc. | W136: 136 | X136: 133 | Y136: 0201 | Z136: New Bedford | AA136: 0201 New Bedford | AC136: 5617G | AD136: Day | AE136: Learning Ctr. for the Deaf | AF136: Day | AG136: 63492.26 | AH136: 320.6679798 | AI136: 2020-07-01 | AJ136: 2021-06-11 | AK136: 198 | AM136: L0048 | AN136: Burlington | AO136: Public | AQ136: 5338 | AR136: Easter Seals/Jolicoeur School
A137: 0133 | B137: Holbrook | C137: 0133 Holbrook | E137: L0049 | F137: Day | G137: Cambridge | H137: L0049 Cambridge | J137: 5582A | K137: Day | L137: Franciscan Children's Hospital | M137: Kennedy Day | N137: 96029.84 | O137: 480.1492 | P137: 2020-07-06 | Q137: 2021-06-16 | R137: 200 | S137: 134 | T137: 5242 | U137: Seven Hills - Formerly Children's Extend | V137: 5242-Seven Hills - Formerly Children's Extend | W137: 137 | X137: 134 | Y137: 0204 | Z137: Newburyport | AA137: 0204 Newburyport | AC137: 5617H | AD137: Day | AE137: Learning Ctr. for the Deaf | AF137: Intensive Day | AG137: 89593.51 | AH137: 452.4924747 | AI137: 2020-07-01 | AJ137: 2021-06-11 | AK137: 198 | AM137: L0049 | AN137: Cambridge | AO137: Public | AQ137: 5339 | AR137: Eagle Mountain
A138: 0134 | B138: Holden | C138: 0134 Holden | E138: L0050 | F138: Day | G138: Canton | H138: L0050 Canton | J138: 5607A | K138: Day | L138: Landmark Foundation | M138: Landmark Day | N138: 57596.23 | O138: 319.9791 | P138: 2020-08-24 | Q138: 2021-06-09 | R138: 180 | S138: 135 | T138: 5242A | U138: Seven Hills Foundation, Inc. | V138: 5242A-Seven Hills Foundation, Inc. | W138: 138 | X138: 135 | Y138: 0207 | Z138: Newton | AA138: 0207 Newton | AC138: 5617I | AD138: Res Ed | AE138: Learning Ctr. for the Deaf | AF138: Residential | AG138: 116212.45 | AH138: 586.9315657 | AI138: 2020-07-01 | AJ138: 2021-06-11 | AK138: 198 | AM138: L0050 | AN138: Canton | AO138: Public | AQ138: 5340 | AR138: Elan School
A139: 0135 | B139: Holland | C139: 0135 Holland | E139: L0051 | F139: Day | G139: Carlisle | H139: L0051 Carlisle | J139: 5607B | K139: Res Ed | L139: Landmark Foundation | M139: Landmark Residential | N139: 76575.03 | O139: 319.0626 | P139: 2020-08-24 | Q139: 2021-06-09 | R139: 240 | S139: 136 | T139: 5245 | U139: Mullins School | V139: 5245-Mullins School | W139: 139 | X139: 136 | Y139: 0208 | Z139: Norfolk | AA139: 0208 Norfolk | AC139: 5625A | AD139: Day | AE139: Learning Skills Academy, Inc. | AF139: Learning Skills Academy | AG139: 52347.6 | AH139: 290.82 | AI139: 2020-08-27 | AJ139: 2021-06-16 | AK139: 180 | AM139: L0051 | AN139: Carlisle | AO139: Public | AQ139: 5341 | AR139: Bradley Hospital
A140: 0136 | B140: Holliston | C140: 0136 Holliston | E140: L0052 | F140: Day | G140: Carver | H140: L0052 Carver | J140: 5614A | K140: Day | L140: League School of Boston | M140: Day Ed | N140: 105284.47 | O140: 487.4281 | P140: 2020-07-08 | Q140: 2021-06-14 | R140: 216 | S140: 137 | T140: 5247 | U140: Chatterbox School | V140: 5247-Chatterbox School | W140: 140 | X140: 137 | Y140: 0209 | Z140: North Adams | AA140: 0209 North Adams | AC140: 5625B | AD140: Day | AE140: Learning Skills Academy, Inc. | AF140: Summer | AG140: 2285.44 | AH140: 142.84 | AI140: 2020-07-06 | AJ140: 2020-07-30 | AK140: 16 | AM140: L0052 | AN140: Carver | AO140: Public | AQ140: 5343 | AR140: New England Center for Autism
A141: 0137 | B141: Holyoke | C141: 0137 Holyoke | E141: L0056 | F141: Day | G141: Chelmsford | H141: L0056 Chelmsford | J141: 5614B | K141: Res Ed | L141: League School of Boston | M141: Fine House | N141: 224785.05 | O141: 615.8495 | P141: 2020-07-01 | Q141: 2021-06-30 | R141: 365 | S141: 138 | T141: 5248 | U141: Cherokee Creek School for Boys | V141: 5248-Cherokee Creek School for Boys | W141: 141 | X141: 138 | Y141: 0210 | Z141: Northampton | AA141: 0210 Northampton | AC141: 5341B | AD141: Day | AE141: Lifespan School Solutions/Bradley Schools | AF141: Standard Rate | AG141: 55685 | AH141: 259 | AI141: 2020-07-06 | AJ141: 2021-06-23 | AK141: 215 | AM141: L0056 | AN141: Chelmsford | AO141: Public | AQ141: 5360 | AR141: Milestones
A142: 0138 | B142: Hopedale | C142: 0138 Hopedale | E142: L0057 | F142: Day | G142: Chelsea | H142: L0057 Chelsea | J142: 5617B | K142: Res Ed | L142: Learning Ctr. for the Deaf | M142: Walden | N142: 352060.16 | O142: 964.5484 | P142: 2020-07-01 | Q142: 2021-06-30 | R142: 365 | S142: 139 | T142: 5249 | U142: The Children's Study Home | V142: 5249-The Children's Study Home | W142: 142 | X142: 139 | Y142: 0211 | Z142: North Andover | AA142: 0211 North Andover | AC142: 5341D | AD142: Day | AE142: Lifespan School Solutions/Bradley Schools | AF142: Intensive Rate | AG142: 66220 | AH142: 308 | AI142: 2020-07-06 | AJ142: 2021-06-23 | AK142: 215 | AM142: L0057 | AN142: Chelsea | AO142: Public | AQ142: 5362 | AR142: Eliot Pearson School
A143: 0139 | B143: Hopkinton | C143: 0139 Hopkinton | E143: L0061 | F143: Day | G143: Chicopee | H143: L0061 Chicopee | J143: 5617G | K143: Day | L143: Learning Ctr. for the Deaf | M143: Day | N143: 63492.26 | O143: 320.668 | P143: 2020-07-01 | Q143: 2021-06-11 | R143: 198 | S143: 140 | T143: 5249A | U143: Children's Study Home | V143: 5249A-Children's Study Home | W143: 143 | X143: 140 | Y143: 0212 | Z143: North Attleborough | AA143: 0212 North Attleborough | AC143: 5341E | AD143: Day | AE143: Lifespan School Solutions/Bradley Schools | AF143: Intensive Rate | AG143: 66220 | AH143: 308 | AI143: 2020-07-06 | AJ143: 2021-06-23 | AK143: 215 | AM143: L0061 | AN143: Chicopee | AO143: Public | AQ143: 5365 | AR143: Experiment With Travel, Inc
A144: 0140 | B144: Hubbardston | C144: 0140 Hubbardston | E144: L0063 | F144: Day | G144: Clarksburg | H144: L0063 Clarksburg | J144: 5617H | K144: Day | L144: Learning Ctr. for the Deaf | M144: Intensive Day | N144: 89593.51 | O144: 452.4925 | P144: 2020-07-01 | Q144: 2021-06-11 | R144: 198 | S144: 141 | T144: 5249G | U144: Children's Study Home | V144: 5249G-Children's Study Home | W144: 144 | X144: 141 | Y144: 0213 | Z144: Northborough | AA144: 0213 Northborough | AC144: 5341J | AD144: Day | AE144: Lifespan School Solutions/Bradley Schools | AF144: Standard Rate | AG144: 55685 | AH144: 259 | AI144: 2020-07-06 | AJ144: 2021-06-23 | AK144: 215 | AM144: L0063 | AN144: Clarksburg | AO144: Public | AQ144: 5381 | AR144: James F Farr Academy
A145: 0141 | B145: Hudson | C145: 0141 Hudson | E145: L0064 | F145: Day | G145: Clinton | H145: L0064 Clinton | J145: 5617I | K145: Res Ed | L145: Learning Ctr. for the Deaf | M145: Residential | N145: 116212.45 | O145: 586.9316 | P145: 2020-07-01 | Q145: 2021-06-11 | R145: 198 | S145: 142 | T145: 5250 | U145: Christopher Donovan Day Program | V145: 5250-Christopher Donovan Day Program | W145: 145 | X145: 142 | Y145: 0214 | Z145: Northbridge | AA145: 0214 Northbridge | AC145: 5341N | AD145: Day | AE145: Lifespan School Solutions/Bradley Schools | AF145: Clinical Intensive | AG145: 73530 | AH145: 342 | AI145: 2020-07-06 | AJ145: 2021-06-23 | AK145: 215 | AM145: L0064 | AN145: Clinton | AO145: Public | AQ145: 5385 | AR145: Evergreen Center, Inc
A146: 0142 | B146: Hull | C146: 0142 Hull | E146: L0065 | F146: Day | G146: Cohasset | H146: L0065 Cohasset | J146: 5620B | K146: Day | L146: The learning Clinic, Inc. | M146: Day | N146: 74970.8 | O146: 325.96 | P146: 2020-07-01 | Q146: 2021-06-23 | R146: 230 | S146: 143 | T146: 5251 | U146: Cherry Gulch, Inc | V146: 5251-Cherry Gulch, Inc | W146: 146 | X146: 143 | Y146: 0215 | Z146: North Brookfield | AA146: 0215 North Brookfield | AC146: 5341P | AD146: Day | AE146: Lifespan School Solutions/Bradley Schools | AF146: Partnership Standard Rate | AG146: 47085 | AH146: 219 | AI146: 2020-07-06 | AJ146: 2021-06-23 | AK146: 215 | AM146: L0065 | AN146: Cohasset | AO146: Public | AQ146: 5387 | AR146: Eva Carlston Academy
A147: 0143 | B147: Huntington | C147: 0143 Huntington | E147: L0067 | F147: Day | G147: Concord | H147: L0067 Concord | J147: 5620E | K147: Res Ed | L147: The learning Clinic, Inc. | M147: Residential | N147: 147390.75 | O147: 403.8103 | P147: 2020-07-01 | Q147: 2021-06-30 | R147: 365 | S147: 144 | T147: 5253 | U147: Prof Ctr for Handicapped Children | V147: 5253-Prof Ctr for Handicapped Children | W147: 147 | X147: 144 | Y147: 0217 | Z147: North Reading | AA147: 0217 North Reading | AC147: 5341S | AD147: Day | AE147: Lifespan School Solutions/Bradley Schools | AF147: Bradley School North, Intensive | AG147: 66220 | AH147: 308 | AI147: 2020-07-06 | AJ147: 2021-06-23 | AK147: 215 | AM147: L0067 | AN147: Concord | AO147: Public | AQ147: 5390 | AR147: Falcon Ridge Ranch Res Treatment Center
A148: 0144 | B148: Ipswich | C148: 0144 Ipswich | E148: L0068 | F148: Day | G148: Conway | H148: L0068 Conway | J148: 5625A | K148: Day | L148: Learning Skills Academy, Inc. | M148: Learning Skills Academy | N148: 52347.6 | O148: 290.82 | P148: 2020-08-27 | Q148: 2021-06-16 | R148: 180 | S148: 145 | T148: 5253A | U148: Professional Ctr. for Handicapped Child. | V148: 5253A-Professional Ctr. for Handicapped Child. | W148: 148 | X148: 145 | Y148: 0218 | Z148: Norton | AA148: 0218 Norton | AC148: 5341T | AD148: Day | AE148: Lifespan School Solutions/Bradley Schools | AF148: Bradley School North, Standard | AG148: 55685 | AH148: 259 | AI148: 2020-07-06 | AJ148: 2021-06-23 | AK148: 215 | AM148: L0068 | AN148: Conway | AO148: Public | AQ148: 5401 | AR148: Fitchburg Ctr F/Brain Injured,
A149: 0145 | B149: Kingston | C149: 0145 Kingston | E149: L0071 | F149: Day | G149: Danvers | H149: L0071 Danvers | J149: 5625B | K149: Day | L149: Learning Skills Academy, Inc. | M149: Summer | N149: 2285.44 | O149: 142.84 | P149: 2020-07-06 | Q149: 2020-07-30 | R149: 16 | S149: 146 | T149: 5255 | U149: Class, Inc | V149: 5255-Class, Inc | W149: 149 | X149: 146 | Y149: 0219 | Z149: Norwell | AA149: 0219 Norwell | AC149: 5498B | AD149: Day | AE149: Lighthouse School | AF149: Comp. Services Prog. | AG149: 89011.37 | AH149: 494.5076111 | AI149: 2020-09-02 | AJ149: 2021-06-15 | AK149: 180 | AM149: L0071 | AN149: Danvers | AO149: Public | AQ149: 5403 | AR149: First Step Recreation Center
A150: 0146 | B150: Lakeville | C150: 0146 Lakeville | E150: L0072 | F150: Day | G150: Dartmouth | H150: L0072 Dartmouth | J150: 5643A | K150: Day | L150: Little People's School | M150: Learning Prep School | N150: 57242.22 | O150: 318.0123 | P150: 2020-09-08 | Q150: 2021-06-22 | R150: 180 | S150: 147 | T150: 5256 | U150: Clark School | V150: 5256-Clark School | W150: 150 | X150: 147 | Y150: 0220 | Z150: Norwood | AA150: 0220 Norwood | AC150: 5643A | AD150: Day | AE150: Little People's School | AF150: Learning Prep School | AG150: 57242.22 | AH150: 318.0123333 | AI150: 2020-09-08 | AJ150: 2021-06-22 | AK150: 180 | AM150: L0072 | AN150: Dartmouth | AO150: Public | AQ150: 5405 | AR150: Florida Institute of Neurological Rehab
A151: 0147 | B151: Lancaster | C151: 0147 Lancaster | E151: L0073 | F151: Day | G151: Dedham | H151: L0073 Dedham | J151: 5685B | K151: Res Ed | L151: MAB Community Services | M151: IVY Street School | N151: 252146.92 | O151: 690.8135 | P151: 2020-07-01 | Q151: 2021-06-30 | R151: 365 | S151: 148 | T151: 5257 | U151: Clarke School for the Deaf | V151: 5257-Clarke School for the Deaf | W151: 151 | X151: 148 | Y151: 0221 | Z151: Oak Bluffs | AA151: 0221 Oak Bluffs | AC151: 5685B | AD151: Res Ed | AE151: MAB Community Services | AF151: IVY Street School | AG151: 252146.92 | AH151: 690.8134795 | AI151: 2020-07-01 | AJ151: 2021-06-30 | AK151: 365 | AM151: L0073 | AN151: Dedham | AO151: Public | AQ151: 5406 | AR151: Founders School
A152: 0148 | B152: Lanesborough | C152: 0148 Lanesborough | E152: L0074 | F152: Day | G152: Deerfield | H152: L0074 Deerfield | J152: 5685C | K152: Day | L152: MAB Community Services | M152: IVY Street School Day Program | N152: 116403.95 | O152: 483.0039 | P152: 2020-07-01 | Q152: 2021-06-23 | R152: 241 | S152: 149 | T152: 5257A | U152: Clarke School for the Deaf | V152: 5257A-Clarke School for the Deaf | W152: 152 | X152: 149 | Y152: 0223 | Z152: Orange | AA152: 0223 Orange | AC152: 5685C | AD152: Day | AE152: MAB Community Services | AF152: IVY Street School Day Program | AG152: 116403.95 | AH152: 483.0039419 | AI152: 2020-07-01 | AJ152: 2021-06-23 | AK152: 241 | AM152: L0074 | AN152: Deerfield | AO152: Public | AQ152: 5407 | AR152: Forman School
A153: 0149 | B153: Lawrence | C153: 0149 Lawrence | E153: L0077 | F153: Day | G153: Douglas | H153: L0077 Douglas | J153: 5695A | K153: Day | L153: Justice Resource Institute | M153: Granite Day Ed | N153: 68174.11 | O153: 337.4956 | P153: 2020-07-01 | Q153: 2021-06-15 | R153: 202 | S153: 150 | T153: 5257B | U153: Clarke School for the Deaf | V153: 5257B-Clarke School for the Deaf | W153: 153 | X153: 150 | Y153: 0224 | Z153: Orleans | AA153: 0224 Orleans | AC153: 5440A | AD153: Day | AE153: Margaret Gifford School | AF153: Gifford School | AG153: 65897.39 | AH153: 366.0966111 | AI153: 2020-08-31 | AJ153: 2021-06-15 | AK153: 180 | AM153: L0077 | AN153: Douglas | AO153: Public | AQ153: 5408 | AR153: Four Winds School
A154: 0150 | B154: Lee | C154: 0150 Lee | E154: L0078 | F154: Day | G154: Dover | H154: L0078 Dover | J154: 5706B | K154: Res Ed | L154: May Institute | M154: Randolph Res. | N154: 254311.5 | O154: 696.7438 | P154: 2020-07-01 | Q154: 2021-06-30 | R154: 365 | S154: 151 | T154: 5257D | U154: Clarke School for the Deaf | V154: 5257D-Clarke School for the Deaf | W154: 154 | X154: 151 | Y154: 0226 | Z154: Oxford | AA154: 0226 Oxford | AC154: 5440B | AD154: Summer | AE154: Margaret Gifford School | AF154: Gifford Summer | AG154: 6086.94 | AH154: 304.347 | AI154: 2020-07-01 | AJ154: 2020-07-29 | AK154: 20 | AM154: L0078 | AN154: Dover | AO154: Public | AQ154: 5409 | AR154: Franklin Academy
A155: 0151 | B155: Leicester | C155: 0151 Leicester | E155: L0079 | F155: Day | G155: Dracut | H155: L0079 Dracut | J155: 5706E | K155: Day | L155: May Institute | M155: Randolph Day | N155: 122302.85 | O155: 520.4377 | P155: 2020-07-06 | Q155: 2021-06-23 | R155: 235 | S155: 152 | T155: 5258 | U155: Clearway School, Inc | V155: 5258-Clearway School, Inc | W155: 155 | X155: 152 | Y155: 0227 | Z155: Palmer | AA155: 0227 Palmer | AC155: 5049A | AD155: Day | AE155: Mass. Found. for Learning Disabilities | AF155: White Oak School | AG155: 49079.43 | AH155: 272.6635 | AI155: 2020-09-01 | AJ155: 2021-06-14 | AK155: 180 | AM155: L0079 | AN155: Dracut | AO155: Public | AQ155: 5411 | AR155: Foundations(Family Community Program)
A156: 0152 | B156: Lenox | C156: 0152 Lenox | E156: L0082 | F156: Day | G156: Duxbury | H156: L0082 Duxbury | J156: 5706G | K156: Day | L156: May Institute | M156: Brockton Rehabilitative D | N156: 122840.53 | O156: 522.7257 | P156: 2020-07-06 | Q156: 2021-06-25 | R156: 235 | S156: 153 | T156: 5258A | U156: Clearway School, Inc. | V156: 5258A-Clearway School, Inc. | W156: 156 | X156: 153 | Y156: 0229 | Z156: Peabody | AA156: 0229 Peabody | AC156: 5706B | AD156: Res Ed | AE156: May Institute | AF156: Randolph Res. | AG156: 254311.5 | AH156: 696.7438356 | AI156: 2020-07-01 | AJ156: 2021-06-30 | AK156: 365 | AM156: L0082 | AN156: Duxbury | AO156: Public | AQ156: 5415 | AR156: Hopeful Journeys Educational Center, Inc./Formerly Futures School
A157: 0153 | B157: Leominster | C157: 0153 Leominster | E157: L0083 | F157: Day | G157: East Bridgewater | H157: L0083 East Bridgewater | J157: 5706H | K157: Res Ed | L157: May Institute | M157: Brockton Rehabilitative R | N157: 266583.43 | O157: 730.3656 | P157: 2020-07-01 | Q157: 2021-06-30 | R157: 365 | S157: 154 | T157: 5258B | U157: Clearway School, Inc. | V157: 5258B-Clearway School, Inc. | W157: 157 | X157: 154 | Y157: 0230 | Z157: Pelham | AA157: 0230 Pelham | AC157: 5706E | AD157: Day | AE157: May Institute | AF157: Randolph Day | AG157: 122302.85 | AH157: 520.4376596 | AI157: 2020-07-06 | AJ157: 2021-06-23 | AK157: 235 | AM157: L0083 | AN157: East Bridgewater | AO157: Public | AQ157: 5418 | AR157: Gateway Academy
A158: 0154 | B158: Leverett | C158: 0154 Leverett | E158: L0085 | F158: Day | G158: Eastham | H158: L0085 Eastham | J158: 5706N | K158: Day | L158: May Institute | M158: West Springfield | N158: 124812.71 | O158: 562.2194 | P158: 2020-07-01 | Q158: 2021-06-30 | R158: 222 | S158: 155 | T158: 5259 | U158: Comm Attainment & Transition/Cat | V158: 5259-Comm Attainment & Transition/Cat | W158: 158 | X158: 155 | Y158: 0231 | Z158: Pembroke | AA158: 0231 Pembroke | AC158: 5706G | AD158: Day | AE158: May Institute | AF158: Brockton Rehabilitative D | AG158: 122840.53 | AH158: 522.7256596 | AI158: 2020-07-06 | AJ158: 2021-06-25 | AK158: 235 | AM158: L0085 | AN158: Eastham | AO158: Public | AQ158: 5420 | AR158: Gengras Center, St. Joseph's College
A159: 0155 | B159: Lexington | C159: 0155 Lexington | E159: L0086 | F159: Day | G159: Easthampton | H159: L0086 Easthampton | J159: 5706Q | K159: Day | L159: May Institute | M159: Brockton Rehabilitative D | N159: 122840.53 | O159: 336.5494 | P159: 2020-07-01 | Q159: 2021-06-30 | R159: 365 | S159: 156 | T159: 5260 | U159: Comcare | V159: 5260-Comcare | W159: 159 | X159: 156 | Y159: 0234 | Z159: Petersham | AA159: 0234 Petersham | AC159: 5706Q | AD159: Day | AE159: May Institute | AF159: Brockton Rehabilitative D | AG159: 122840.53 | AH159: 336.5493973 | AI159: 2020-07-01 | AJ159: 2021-06-30 | AK159: 365 | AM159: L0086 | AN159: Easthampton | AO159: Public | AQ159: 5425 | AR159: George Juuin Republic
A160: 0156 | B160: Leyden | C160: 0156 Leyden | E160: L0087 | F160: Day | G160: East Longmeadow | H160: L0087 East Longmeadow | J160: 5709A | K160: Day | L160: McAuley Nazareth Home for Boys | M160: Nazareth Day | N160: 36008.6 | O160: 166.7065 | P160: 2020-07-06 | Q160: 2021-06-18 | R160: 216 | S160: 157 | T160: 5261 | U160: Nupath Autism Residential and Day Program (Formerly Cmarc/Boston Higashi?) | V160: 5261-Nupath Autism Residential and Day Program (Formerly Cmarc/Boston Higashi?) | W160: 160 | X160: 157 | Y160: 0236 | Z160: Pittsfield | AA160: 0236 Pittsfield | AC160: 5706H | AD160: Res Ed | AE160: May Institute | AF160: Brockton Rehabilitative R | AG160: 266583.43 | AH160: 730.3655616 | AI160: 2020-07-01 | AJ160: 2021-06-30 | AK160: 365 | AM160: L0087 | AN160: East Longmeadow | AO160: Public | AQ160: 5440 | AR160: Gifford School & Day Center, I
A161: 0157 | B161: Lincoln | C161: 0157 Lincoln | E161: L0088 | F161: Day | G161: Easton | H161: L0088 Easton | J161: 5709B | K161: Res Ed | L161: McAuley Nazareth Home for Boys | M161: McAuley Nazareth | N161: 157272.35 | O161: 430.8832 | P161: 2020-07-01 | Q161: 2021-06-30 | R161: 365 | S161: 158 | T161: 5262 | U161: Community Center School | V161: 5262-Community Center School | W161: 161 | X161: 158 | Y161: 0238 | Z161: Plainville | AA161: 0238 Plainville | AC161: 5706N | AD161: Day | AE161: May Institute | AF161: West Springfield | AG161: 124812.71 | AH161: 562.2194144 | AI161: 2020-07-01 | AJ161: 2021-06-30 | AK161: 222 | AM161: L0088 | AN161: Easton | AO161: Public | AQ161: 5445 | AR161: Gow School
A162: 0158 | B162: Littleton | C162: 0158 Littleton | E162: L0089 | F162: Day | G162: Edgartown | H162: L0089 Edgartown | J162: 5710B | K162: Res Ed | L162: Melmark Home, Inc. | M162: Melmark N.E. | N162: 283101.2 | O162: 775.6197 | P162: 2020-07-01 | Q162: 2021-06-30 | R162: 365 | S162: 159 | T162: 5264 | U162: Comm. Resources for Justice/Strategies | V162: 5264-Comm. Resources for Justice/Strategies | W162: 162 | X162: 159 | Y162: 0239 | Z162: Plymouth | AA162: 0239 Plymouth | AC162: 5709B | AD162: Res Ed | AE162: McAuley Nazareth Home for Boys | AF162: McAuley Nazareth | AG162: 157272.35 | AH162: 430.8831507 | AI162: 2020-07-01 | AJ162: 2021-06-30 | AK162: 365 | AM162: L0089 | AN162: Edgartown | AO162: Public | AQ162: 5449 | AR162: The Granite House
A163: 0159 | B163: Longmeadow | C163: 0159 Longmeadow | E163: L0091 | F163: Day | G163: Erving | H163: L0091 Erving | J163: 5710C | K163: Day | L163: Melmark Home, Inc. | M163: Melmark Day | N163: 120068.02 | O163: 506.6161 | P163: 2020-07-01 | Q163: 2021-06-30 | R163: 237 | S163: 160 | T163: 5265 | U163: Community Therapeutic Day School | V163: 5265-Community Therapeutic Day School | W163: 163 | X163: 160 | Y163: 0240 | Z163: Plympton | AA163: 0240 Plympton | AC163: 5709A | AD163: Day | AE163: McAuley Nazareth Home for Boys | AF163: Nazareth Day | AG163: 36008.6 | AH163: 166.7064815 | AI163: 2020-07-06 | AJ163: 2021-06-18 | AK163: 216 | AM163: L0091 | AN163: Erving | AO163: Public | AQ163: 5451 | AR163: Greenwood School
A164: 0160 | B164: Lowell | C164: 0160 Lowell | E164: L0093 | F164: Day | G164: Everett | H164: L0093 Everett | J164: 5730A | K164: Day | L164: Meeting Street School | M164: Basic | N164: 63270.2056 | O164: 343.8598 | P164: 2020-09-14 | Q164: 2021-06-30 | R164: 184 | S164: 161 | T164: 5265A | U164: Community Therapeutic Day School | V164: 5265A-Community Therapeutic Day School | W164: 164 | X164: 161 | Y164: 0242 | Z164: Provincetown | AA164: 0242 Provincetown | AC164: 5036A | AD164: Day | AE164: McLean Hospital, Inc. | AF164: Arlington-Academy | AG164: 74850.93 | AH164: 378.035 | AI164: 2020-07-06 | AJ164: 2021-06-18 | AK164: 198 | AM164: L0093 | AN164: Everett | AO164: Public | AQ164: 5452 | AR164: Green Meadows School
A165: 0161 | B165: Ludlow | C165: 0161 Ludlow | E165: L0094 | F165: Day | G165: Fairhaven | H165: L0094 Fairhaven | J165: 5730C | K165: Day | L165: Meeting Street School | M165: Standard rate with 1 to 1 | N165: 113528 | O165: 617 | P165: 2020-09-14 | Q165: 2021-06-30 | R165: 184 | S165: 162 | T165: 5265B | U165: Community Therapeutic Day School | V165: 5265B-Community Therapeutic Day School | W165: 165 | X165: 162 | Y165: 0243 | Z165: Quincy | AA165: 0243 Quincy | AC165: 5036I | AD165: Day | AE165: McLean Hospital, Inc. | AF165: CNS | AG165: 108723.05 | AH165: 503.3474537 | AI165: 2020-07-08 | AJ165: 2021-06-17 | AK165: 216 | AM165: L0094 | AN165: Fairhaven | AO165: Public | AQ165: 5453 | AR165: Greenshire School
A166: 0162 | B166: Lunenburg | C166: 0162 Lunenburg | E166: L0095 | F166: Day | G166: Fall River | H166: L0095 Fall River | J166: 5730W | K166: Day | L166: Meeting Street School | M166: Standard rate with 1 to 1 | N166: 3028.4 | O166: 605.68 | P166: 2020-08-03 | Q166: 2020-08-07 | R166: 5 | S166: 163 | T166: 5266 | U166: Crc Health Group - Southeast Journeys | V166: 5266-Crc Health Group - Southeast Journeys | W166: 166 | X166: 163 | Y166: 0244 | Z166: Randolph | AA166: 0244 Randolph | AC166: 5730Z | AD166: Day | AE166: Meeting Street School | AF166: Basic | AG166: 6960.87 | AH166: 331.47 | AI166: 2020-07-01 | AJ166: 2020-07-30 | AK166: 21 | AM166: L0095 | AN166: Fall River | AO166: Public | AQ166: 5454 | AR166: Groden Center
A167: 0163 | B167: Lynn | C167: 0163 Lynn | E167: L0096 | F167: Day | G167: Falmouth | H167: L0096 Falmouth | J167: 5730X | K167: Day | L167: Meeting Street School | M167: Standard rate with 1 to 1 | N167: 12490.17 | O167: 594.77 | P167: 2020-07-01 | Q167: 2020-07-30 | R167: 21 | S167: 164 | T167: 5267 | U167: The Conerstone School/Cranston Arc | V167: 5267-The Conerstone School/Cranston Arc | W167: 167 | X167: 164 | Y167: 0246 | Z167: Reading | AA167: 0246 Reading | AC167: 5730Y | AD167: Day | AE167: Meeting Street School | AF167: Basic | AG167: 1687.75 | AH167: 337.55 | AI167: 2020-08-03 | AJ167: 2020-08-07 | AK167: 5 | AM167: L0096 | AN167: Falmouth | AO167: Public | AQ167: 5460 | AR167: Hallmark Devel. School/Formerly Northamp
A168: 0164 | B168: Lynnfield | C168: 0164 Lynnfield | E168: L0097 | F168: Day | G168: Fitchburg | H168: L0097 Fitchburg | J168: 5730Y | K168: Day | L168: Meeting Street School | M168: Basic | N168: 1687.75 | O168: 337.55 | P168: 2020-08-03 | Q168: 2020-08-07 | R168: 5 | S168: 165 | T168: 5268 | U168: Concord Familt and Youth Services | V168: 5268-Concord Familt and Youth Services | W168: 168 | X168: 165 | Y168: 0248 | Z168: Revere | AA168: 0248 Revere | AC168: 5730A | AD168: Day | AE168: Meeting Street School | AF168: Basic | AG168: 63270.20561 | AH168: 343.8598131 | AI168: 2020-09-14 | AJ168: 2021-06-30 | AK168: 184 | AM168: L0097 | AN168: Fitchburg | AO168: Public | AQ168: 5465 | AR168: Halyard, Llc
A169: 0165 | B169: Malden | C169: 0165 Malden | E169: L0098 | F169: Day | G169: Florida | H169: L0098 Florida | J169: 5730Z | K169: Day | L169: Meeting Street School | M169: Basic | N169: 6960.87 | O169: 331.47 | P169: 2020-07-01 | Q169: 2020-07-30 | R169: 21 | S169: 166 | T169: 5269 | U169: Ct Children's Medical Center | V169: 5269-Ct Children's Medical Center | W169: 169 | X169: 166 | Y169: 0249 | Z169: Richmond | AA169: 0249 Richmond | AC169: 5730X | AD169: Day | AE169: Meeting Street School | AF169: Standard rate with 1 to 1 | AG169: 12490.17 | AH169: 594.77 | AI169: 2020-07-01 | AJ169: 2020-07-30 | AK169: 21 | AM169: L0098 | AN169: Florida | AO169: Public | AQ169: 5467 | AR169: Hand in Hand Children's Center
A170: 0166 | B170: Manchester | C170: 0166 Manchester | E170: L0099 | F170: Day | G170: Foxborough | H170: L0099 Foxborough | J170: 5734A | K170: Day | L170: Merrimac Heights Academy | M170: Merrimac Heights Academy Day Program | N170: 88621.08 | O170: 492.3393 | P170: 2020-08-31 | Q170: 2021-06-14 | R170: 180 | S170: 167 | T170: 5270 | U170: Connecticut Institute for the Blind | V170: 5270-Connecticut Institute for the Blind | W170: 170 | X170: 167 | Y170: 0250 | Z170: Rochester | AA170: 0250 Rochester | AC170: 5730W | AD170: Day | AE170: Meeting Street School | AF170: Standard rate with 1 to 1 | AG170: 3028.4 | AH170: 605.68 | AI170: 2020-08-03 | AJ170: 2020-08-07 | AK170: 5 | AM170: L0099 | AN170: Foxborough | AO170: Public | AQ170: 5470 | AR170: Harbor Schools Inc
A171: 0167 | B171: Mansfield | C171: 0167 Mansfield | E171: L0100 | F171: Day | G171: Framingham | H171: L0100 Framingham | J171: 5752A | K171: Day | L171: Nashoba Learning Group, Inc. | M171: Nashoba Learning | N171: 114264.89 | O171: 529.0041 | P171: 2020-07-01 | Q171: 2021-06-23 | R171: 216 | S171: 168 | T171: 5271 | U171: Creative Education Inc. | V171: 5271-Creative Education Inc. | W171: 171 | X171: 168 | Y171: 0251 | Z171: Rockland | AA171: 0251 Rockland | AC171: 5730C | AD171: Day | AE171: Meeting Street School | AF171: Standard rate with 1 to 1 | AG171: 113528 | AH171: 617 | AI171: 2020-09-14 | AJ171: 2021-06-30 | AK171: 184 | AM171: L0100 | AN171: Framingham | AO171: Public | AQ171: 5471 | AR171: Hampshire Country School
A172: 0168 | B172: Marblehead | C172: 0168 Marblehead | E172: L0101 | F172: Day | G172: Franklin | H172: L0101 Franklin | J172: 5752Q | K172: Day | L172: Nashoba Learning Group, Inc. | M172: Nashoba Learning | N172: 114264.89 | O172: 313.0545 | P172: 2020-07-01 | Q172: 2021-06-30 | R172: 365 | S172: 169 | T172: 5272 | U172: Crossroads | V172: 5272-Crossroads | W172: 172 | X172: 169 | Y172: 0252 | Z172: Rockport | AA172: 0252 Rockport | AC172: 6054A | AD172: Day | AE172: Meeting Street School | AF172: Schwartz Center Day | AG172: 73652.26 | AH172: 333.2681448 | AI172: 2020-07-01 | AJ172: 2021-06-30 | AK172: 221 | AM172: L0101 | AN172: Franklin | AO172: Public | AQ172: 5472 | AR172: Grove School
A173: 0169 | B173: Marion | C173: 0169 Marion | E173: L0103 | F173: Day | G173: Gardner | H173: L0103 Gardner | J173: 5760A | K173: Day | L173: N. E. Adolescent Research Institute | M173: N.E.A.R.I. | N173: 78729.93 | O173: 357.8633 | P173: 2020-07-01 | Q173: 2021-06-21 | R173: 220 | S173: 170 | T173: 5272A | U173: Crossroads School Children, Inc. | V173: 5272A-Crossroads School Children, Inc. | W173: 173 | X173: 170 | Y173: 0253 | Z173: Rowe | AA173: 0253 Rowe | AC173: 5710B | AD173: Res Ed | AE173: Melmark Home, Inc. | AF173: Melmark N.E. | AG173: 283101.2 | AH173: 775.619726 | AI173: 2020-07-01 | AJ173: 2021-06-30 | AK173: 365 | AM173: L0103 | AN173: Gardner | AO173: Public | AQ173: 5473 | AR173: Harmony Hill School
A174: 0170 | B174: Marlborough | C174: 0170 Marlborough | E174: L0105 | F174: Day | G174: Georgetown | H174: L0105 Georgetown | J174: 5785E | K174: Day | L174: Home for Little Wanderers | M174: Clifford Day | N174: 84735.9328 | O174: 470.7552 | P174: 2020-09-02 | Q174: 2021-06-17 | R174: 180 | S174: 171 | T174: 5273 | U174: Coastal Connections/New Ventures Prog | V174: 5273-Coastal Connections/New Ventures Prog | W174: 174 | X174: 171 | Y174: 0258 | Z174: Salem | AA174: 0258 Salem | AC174: 5710C | AD174: Day | AE174: Melmark Home, Inc. | AF174: Melmark Day | AG174: 120068.02 | AH174: 506.6161181 | AI174: 2020-07-01 | AJ174: 2021-06-30 | AK174: 237 | AM174: L0105 | AN174: Georgetown | AO174: Public | AQ174: 5474 | AR174: Northeastn Family Institute Center
A175: 0171 | B175: Marshfield | C175: 0171 Marshfield | E175: L0107 | F175: Day | G175: Gloucester | H175: L0107 Gloucester | J175: 5785F | K175: Res Ed | L175: Home for Little Wanderers | M175: Clifford Res | N175: 228718.2315 | O175: 626.6253 | P175: 2020-07-01 | Q175: 2021-06-30 | R175: 365 | S175: 172 | T175: 5274 | U175: Cotting School, Inc | V175: 5274-Cotting School, Inc | W175: 175 | X175: 172 | Y175: 0261 | Z175: Sandwich | AA175: 0261 Sandwich | AC175: 5734A | AD175: Day | AE175: Merrimac Heights Academy | AF175: Merrimac Heights Academy Day Program | AG175: 88621.08 | AH175: 492.3393333 | AI175: 2020-08-31 | AJ175: 2021-06-14 | AK175: 180 | AM175: L0107 | AN175: Gloucester | AO175: Public | AQ175: 5475 | AR175: Healthcare Rehabilitation Center
A176: 0172 | B176: Mashpee | C176: 0172 Mashpee | E176: L0109 | F176: Day | G176: Gosnold | H176: L0109 Gosnold | J176: 5785G | K176: Summer | L176: Home for Little Wanderers | M176: Clifford Academy 36 Day | N176: 11347.81 | O176: 315.2169 | P176: 2020-07-06 | Q176: 2020-08-24 | R176: 36 | S176: 173 | T176: 5274A | U176: Cotting School, Inc. | V176: 5274A-Cotting School, Inc. | W176: 176 | X176: 173 | Y176: 0262 | Z176: Saugus | AA176: 0262 Saugus | AC176: 5360Z | AD176: Day | AE176: Milestones, Inc. | AF176: Milestones Day School | AG176: 24065.15463 | AH176: 462.7914352 | AI176: 2020-07-06 | AJ176: 2020-09-30 | AK176: 52 | AM176: L0109 | AN176: Gosnold | AO176: Public | AQ176: 5476 | AR176: Northwest Academy
A177: 0173 | B177: Mattapoisett | C177: 0173 Mattapoisett | E177: L0110 | F177: Day | G177: Grafton | H177: L0110 Grafton | J177: 5788A | K177: Day | L177: New England Academy | M177: NE Academy | N177: 66767.19 | O177: 337.208 | P177: 2020-08-19 | Q177: 2021-06-24 | R177: 198 | S177: 174 | T177: 5274B | U177: Cotting School, Inc. | V177: 5274B-Cotting School, Inc. | W177: 177 | X177: 174 | Y177: 0263 | Z177: Savoy | AA177: 0263 Savoy | AC177: 5360A | AD177: Day | AE177: Milestones, Inc. | AF177: Milestones Day School | AG177: 90906.3237 | AH177: 554.3068519 | AI177: 2020-10-01 | AJ177: 2021-06-17 | AK177: =216-AK176 -> 164 | AM177: L0110 | AN177: Grafton | AO177: Public | AQ177: 5477 | AR177: Eckerd Family Youth Alternatives
A178: 0174 | B178: Maynard | C178: 0174 Maynard | E178: L0111 | F178: Day | G178: Granby | H178: L0111 Granby | J178: 5811A | K178: Day | L178: Cutchins Programs for Children & Fam. | M178: New Directions | N178: 78585.0159 | O178: 360.4817 | P178: 2020-07-01 | Q178: 2021-06-30 | R178: 218 | S178: 175 | T178: 5274E | U178: Cotting School, Inc. | V178: 5274E-Cotting School, Inc. | W178: 178 | X178: 175 | Y178: 0264 | Z178: Scituate | AA178: 0264 Scituate | AC178: 5760A | AD178: Day | AE178: N. E. Adolescent Research Institute | AF178: N.E.A.R.I. | AG178: 78729.93 | AH178: 357.8633182 | AI178: 2020-07-01 | AJ178: 2021-06-21 | AK178: 220 | AM178: L0111 | AN178: Granby | AO178: Public | AQ178: 5480 | AR178: Chamberlain School
A179: 0175 | B179: Medfield | C179: 0175 Medfield | E179: L0114 | F179: Day | G179: Greenfield | H179: L0114 Greenfield | J179: 5885A | K179: Day | L179: Pathways | M179: Pathways Strategic Teaching Center | N179: 78909.417 | O179: 419.7309 | P179: 2020-09-01 | Q179: 2021-06-30 | R179: 188 | S179: 176 | T179: 5275 | U179: Crossroads School | V179: 5275-Crossroads School | W179: 179 | X179: 176 | Y179: 0265 | Z179: Seekonk | AA179: 0265 Seekonk | AC179: 5752A | AD179: Day | AE179: Nashoba Learning Group, Inc. | AF179: Nashoba Learning | AG179: 114264.89 | AH179: 529.0041204 | AI179: 2020-07-01 | AJ179: 2021-06-23 | AK179: 216 | AM179: L0114 | AN179: Greenfield | AO179: Public | AQ179: 5481 | AR179: Heritage Schools, Inc.
A180: 0176 | B180: Medford | C180: 0176 Medford | E180: L0117 | F180: Day | G180: Hadley | H180: L0117 Hadley | J180: 5885Z | K180: Day | L180: Pathways | M180: Pathways Strategic Teaching Center | N180: 13660.7143 | O180: 401.7857 | P180: 2020-07-01 | Q180: 2020-08-31 | R180: 34 | S180: 177 | T180: 5276 | U180: Crotched Mountain Rehab Center | V180: 5276-Crotched Mountain Rehab Center | W180: 180 | X180: 177 | Y180: 0266 | Z180: Sharon | AA180: 0266 Sharon | AC180: 5752Q | AD180: Day | AE180: Nashoba Learning Group, Inc. | AF180: Nashoba Learning | AG180: 114264.89 | AH180: 313.0544932 | AI180: 2020-07-01 | AJ180: 2021-06-30 | AK180: 365 | AM180: L0117 | AN180: Hadley | AO180: Public | AQ180: 5482 | AR180: Hidden Lake Academy
A181: 0177 | B181: Medway | C181: 0177 Medway | E181: L0118 | F181: Day | G181: Halifax | H181: L0118 Halifax | J181: 5887A | K181: Res Ed | L181: Dr. Franklin Perkins School, Inc. | M181: Intensive | N181: 226794.2771 | O181: 621.3542 | P181: 2020-07-01 | Q181: 2021-06-30 | R181: 365 | S181: 178 | T181: 5276A | U181: Crotched Mountain Rehabilitation | V181: 5276A-Crotched Mountain Rehabilitation | W181: 181 | X181: 178 | Y181: 0269 | Z181: Sherborn | AA181: 0269 Sherborn | AC181: 5788A | AD181: Day | AE181: New England Academy | AF181: NE Academy | AG181: 66767.19 | AH181: 337.2080303 | AI181: 2020-08-19 | AJ181: 2021-06-24 | AK181: 198 | AM181: L0118 | AN181: Halifax | AO181: Public | AQ181: 5483 | AR181: Greenery at Middleboro
A182: 0178 | B182: Melrose | C182: 0178 Melrose | E182: L0121 | F182: Day | G182: Hancock | H182: L0121 Hancock | J182: 5887B | K182: Day | L182: Dr. Franklin Perkins School, Inc. | M182: Day Program | N182: 76994.5378 | O182: 353.186 | P182: 2020-07-08 | Q182: 2021-06-23 | R182: 218 | S182: 179 | T182: 5276D | U182: Crotched Mountain Rehabilitation | V182: 5276D-Crotched Mountain Rehabilitation | W182: 182 | X182: 179 | Y182: 0271 | Z182: Shrewsbury | AA182: 0271 Shrewsbury | AC182: 5343B | AD182: Res Ed | AE182: New England Center for Children | AF182: N.E.C.C. Residen | AG182: 250049.44 | AH182: 685.0669589 | AI182: 2020-07-01 | AJ182: 2021-06-30 | AK182: 365 | AM182: L0121 | AN182: Hancock | AO182: Public | AQ182: 5484 | AR182: Highwatch Neurorehab. Center
A183: 0179 | B183: Mendon | C183: 0179 Mendon | E183: L0122 | F183: Day | G183: Hanover | H183: L0122 Hanover | J183: 5887Q | K183: Day | L183: Dr. Franklin Perkins School, Inc. | M183: Day Program | N183: 76994.5378 | O183: 210.9439 | P183: 2020-07-01 | Q183: 2021-06-30 | R183: 365 | S183: 180 | T183: 5277 | U183: Dublin School | V183: 5277-Dublin School | W183: 183 | X183: 180 | Y183: 0272 | Z183: Shutesbury | AA183: 0272 Shutesbury | AC183: 5343C | AD183: Res Ed | AE183: New England Center for Children | AF183: N.E.C.C. Severe | AG183: 363879.49 | AH183: 996.9301096 | AI183: 2020-07-01 | AJ183: 2021-06-30 | AK183: 365 | AM183: L0122 | AN183: Hanover | AO183: Public | AQ183: 5485 | AR183: Greenery at Middleboro
A184: 0180 | B184: Merrimac | C184: 0180 Merrimac | E184: L0125 | F184: Day | G184: Harvard | H184: L0125 Harvard | J184: 5889B | K184: Res Ed | L184: Perkins School for the Blind | M184: Blind | N184: 156246.42 | O184: 744.0306 | P184: 2020-07-01 | Q184: 2020-07-24 | R184: 18 | S184: 181 | T184: 5278 | U184: Cooperative for Human Services Residential Program | V184: 5278-Cooperative for Human Services Residential Program | W184: 184 | X184: 181 | Y184: 0273 | Z184: Somerset | AA184: 0273 Somerset | AC184: 5343D | AD184: Day | AE184: New England Center for Children | AF184: Intensive Instruction | AG184: 125419.65 | AH184: 554.9542035 | AI184: 2020-07-06 | AJ184: 2021-06-30 | AK184: 226 | AM184: L0125 | AN184: Harvard | AO184: Public | AQ184: 5486 | AR184: High Road Student Learning Ctr
A185: 0181 | B185: Methuen | C185: 0181 Methuen | E185: L0127 | F185: Day | G185: Hatfield | H185: L0127 Hatfield | J185: 5889D | K185: Day | L185: Perkins School for the Blind | M185: Blind | N185: 68887.62 | O185: 328.0363 | P185: 2020-07-01 | Q185: 2020-07-24 | R185: 18 | S185: 182 | T185: 5296 | U185: Cardinal Cushing Sch & Training Center | V185: 5296-Cardinal Cushing Sch & Training Center | W185: 185 | X185: 182 | Y185: 0274 | Z185: Somerville | AA185: 0274 Somerville | AC185: 5343E | AD185: Res Ed | AE185: New England Center for Children | AF185: Intermediate | AG185: 336589.41 | AH185: 922.1627671 | AI185: 2020-07-01 | AJ185: 2021-06-30 | AK185: 365 | AM185: L0127 | AN185: Hatfield | AO185: Public | AQ185: 5487 | AR185: Hope School
A186: 0182 | B186: Middleborough | C186: 0182 Middleborough | E186: L0128 | F186: Day | G186: Haverhill | H186: L0128 Haverhill | J186: 5889E | K186: Res Ed | L186: Perkins School for the Blind | M186: Multi-Impaired | N186: 245916.59 | O186: 1171.0314 | P186: 2020-07-01 | Q186: 2020-07-24 | R186: 18 | S186: 183 | T186: 5296A | U186: Cardinal Cushing School & Training Ctr. | V186: 5296A-Cardinal Cushing School & Training Ctr. | W186: 186 | X186: 183 | Y186: 0275 | Z186: Southampton | AA186: 0275 Southampton | AC186: 5113A | AD186: Day | AE186: New England Pediatric Nursing Home | AF186: Pediatric | AG186: 64458.08 | AH186: 256.8050996 | AI186: 2020-07-01 | AJ186: 2021-06-30 | AK186: 251 | AM186: L0128 | AN186: Haverhill | AO186: Public | AQ186: 5488 | AR186: Horace Mann Educ. Assoc./Darnell Sch
A187: 0183 | B187: Middlefield | C187: 0183 Middlefield | E187: L0131 | F187: Day | G187: Hingham | H187: L0131 Hingham | J187: 5889G | K187: Res Ed | L187: Perkins School for the Blind | M187: Severely Impaired | N187: 337123.89 | O187: 1605.3519 | P187: 2020-07-01 | Q187: 2020-07-24 | R187: 18 | S187: 184 | T187: 5296C | U187: Cardinal Cushing School & Training Ctr. | V187: 5296C-Cardinal Cushing School & Training Ctr. | W187: 187 | X187: 184 | Y187: 0276 | Z187: Southborough | AA187: 0276 Southborough | AC187: 6059A | AD187: Day | AE187: Northeast Behavioral Health | AF187: Solstice Day Program | AG187: 78421.03 | AH187: 363.0603241 | AI187: 2020-07-06 | AJ187: 2020-07-18 | AK187: 216 | AM187: L0131 | AN187: Hingham | AO187: Public | AQ187: 5489 | AR187: Holden School Inc
A188: 0184 | B188: Middleton | C188: 0184 Middleton | E188: L0133 | F188: Day | G188: Holbrook | H188: L0133 Holbrook | J188: 5889H | K188: Res Ed | L188: Perkins School for the Blind | M188: Deaf/Blind/Multi-Impaired | N188: 300950.11 | O188: 1433.0958 | P188: 2020-07-01 | Q188: 2020-07-24 | R188: 18 | S188: 185 | T188: 5296E | U188: Cardinal Cushing School & Training Ctr. | V188: 5296E-Cardinal Cushing School & Training Ctr. | W188: 188 | X188: 185 | Y188: 0277 | Z188: Southbridge | AA188: 0277 Southbridge | AC188: 5990A | AD188: Res Ed | AE188: Oak Grove School | AF188: Waterfall Canyon Academy | AG188: 159520 | AH188: 437.0410959 | AI188: 2020-07-01 | AJ188: 2021-06-30 | AK188: 365 | AM188: L0133 | AN188: Holbrook | AO188: Public | AQ188: 5490 | AR188: Hunter School
A189: 0185 | B189: Milford | C189: 0185 Milford | E189: L0135 | F189: Day | G189: Holland | H189: L0135 Holland | J189: 5889J | K189: Day | L189: Perkins School for the Blind | M189: Deaf/Blind/Multi-Impaired | N189: 150475.05 | O189: 716.5479 | P189: 2020-07-01 | Q189: 2020-07-24 | R189: 18 | S189: 186 | T189: 5297 | U189: Inst for Developmental Disabil | V189: 5297-Inst for Developmental Disabil | W189: 189 | X189: 186 | Y189: 0278 | Z189: South Hadley | AA189: 0278 South Hadley | AC189: 5885Z | AD189: Day | AE189: Pathways | AF189: Pathways Strategic Teaching Center | AG189: 13660.71429 | AH189: 401.7857143 | AI189: 2020-07-01 | AJ189: 2020-08-31 | AK189: 34 | AM189: L0135 | AN189: Holland | AO189: Public | AQ189: 5491 | AR189: Hyde School
A190: 0186 | B190: Millbury | C190: 0186 Millbury | E190: L0136 | F190: Day | G190: Holliston | H190: L0136 Holliston | J190: 5889K | K190: Day | L190: Perkins School for the Blind | M190: Multi-Impaired | N190: 123149.72 | O190: 586.4272 | P190: 2020-07-01 | Q190: 2020-07-24 | R190: 18 | S190: 187 | T190: 5297A | U190: Crystal Springs, Inc. | V190: 5297A-Crystal Springs, Inc. | W190: 190 | X190: 187 | Y190: 0281 | Z190: Springfield | AA190: 0281 Springfield | AC190: 5885A | AD190: Day | AE190: Pathways | AF190: Pathways Strategic Teaching Center | AG190: 78909.41704 | AH190: 419.7309417 | AI190: 2020-09-01 | AJ190: 2021-06-30 | AK190: 188 | AM190: L0136 | AN190: Holliston | AO190: Public | AQ190: 5495 | AR190: HMS School for Children with Cerebral Palsy
A191: 0187 | B191: Millis | C191: 0187 Millis | E191: L0137 | F191: Day | G191: Holyoke | H191: L0137 Holyoke | J191: 5889M | K191: Day | L191: Perkins School for the Blind | M191: Severely Impaired | N191: 151243.59 | O191: 720.2076 | P191: 2020-07-01 | Q191: 2020-07-24 | R191: 18 | S191: 188 | T191: 5300 | U191: Crossroads Center for Children | V191: 5300-Crossroads Center for Children | W191: 191 | X191: 188 | Y191: 0284 | Z191: Stoneham | AA191: 0284 Stoneham | AC191: 5889B | AD191: Res Ed | AE191: Perkins School for the Blind | AF191: Blind | AG191: 156246.42 | AH191: 744.0305714 | AI191: 2020-07-01 | AJ191: 2020-07-31 | AK191: 210 | AM191: L0137 | AN191: Holyoke | AO191: Public | AQ191: 5498 | AR191: Lighthouse School
A192: 0188 | B192: Millville | C192: 0188 Millville | E192: L0138 | F192: Day | G192: Hopedale | H192: L0138 Hopedale | J192: 5889O | K192: Day | L192: Perkins School for the Blind | M192: Day Program | N192: 137277.79 | O192: 669.6478 | P192: 2020-09-08 | Q192: 2021-06-25 | R192: 187 | S192: 189 | T192: 5303 | U192: Fall River Deaconess Home | V192: 5303-Fall River Deaconess Home | W192: 192 | X192: 189 | Y192: 0285 | Z192: Stoughton | AA192: 0285 Stoughton | AC192: 5889D | AD192: Day | AE192: Perkins School for the Blind | AF192: Blind | AG192: 68887.62 | AH192: 328.0362857 | AI192: 2020-07-01 | AJ192: 2020-07-31 | AK192: 210 | AM192: L0138 | AN192: Hopedale | AO192: Public | AQ192: 5515 | AR192: Innercept, LLC
A193: 0189 | B193: Milton | C193: 0189 Milton | E193: L0139 | F193: Day | G193: Hopkinton | H193: L0139 Hopkinton | J193: 5889P | K193: Res Ed | L193: Perkins School for the Blind | M193: Residential Program | N193: 268181.06 | O193: 947.6363 | P193: 2020-09-08 | Q193: 2021-06-25 | R193: 260 | S193: 190 | T193: 5303A | U193: Fall River Deaconess, Inc. | V193: 5303A-Fall River Deaconess, Inc. | W193: 193 | X193: 190 | Y193: 0287 | Z193: Sturbridge | AA193: 0287 Sturbridge | AC193: 5889E | AD193: Res Ed | AE193: Perkins School for the Blind | AF193: Multi-Impaired | AG193: 245916.59 | AH193: 1171.031381 | AI193: 2020-07-01 | AJ193: 2020-07-31 | AK193: 210 | AM193: L0139 | AN193: Hopkinton | AO193: Public | AQ193: 5518 | AR193: Inner Change Lake House, LLC / Lake House Academy
A194: 0190 | B194: Monroe | C194: 0190 Monroe | E194: L0141 | F194: Day | G194: Hudson | H194: L0141 Hudson | J194: 5889S | K194: Day | L194: Perkins School for the Blind | M194: Intermediate Day Program | N194: 177947.81 | O194: 868.0381 | P194: 2020-09-08 | Q194: 2021-06-25 | R194: 187 | S194: 191 | T194: 5303C | U194: Fall River Deaconess, Inc. | V194: 5303C-Fall River Deaconess, Inc. | W194: 194 | X194: 191 | Y194: 0288 | Z194: Sudbury | AA194: 0288 Sudbury | AC194: 5889G | AD194: Res Ed | AE194: Perkins School for the Blind | AF194: Severely Impaired | AG194: 337123.89 | AH194: 1605.351857 | AI194: 2020-07-01 | AJ194: 2020-07-31 | AK194: 210 | AM194: L0141 | AN194: Hudson | AO194: Public | AQ194: 5520 | AR194: Inspire for Autism, Inc
A195: 0191 | B195: Monson | C195: 0191 Monson | E195: L0142 | F195: Day | G195: Hull | H195: L0142 Hull | J195: 5889T | K195: Res Ed | L195: Perkins School for the Blind | M195: Intermediate Res. | N195: 338398.29 | O195: 1195.7537 | P195: 2020-09-08 | Q195: 2021-06-25 | R195: 260 | S195: 192 | T195: 5304 | U195: Darrow School | V195: 5304-Darrow School | W195: 195 | X195: 192 | Y195: 0289 | Z195: Sunderland | AA195: 0289 Sunderland | AC195: 5889H | AD195: Res Ed | AE195: Perkins School for the Blind | AF195: Deaf/Blind/Multi-Impaired | AG195: 300950.11 | AH195: 1433.095762 | AI195: 2020-07-01 | AJ195: 2020-07-31 | AK195: 210 | AM195: L0142 | AN195: Hull | AO195: Public | AQ195: 5525 | AR195: The Institute Day School
A196: 0192 | B196: Montague | C196: 0192 Montague | E196: L0144 | F196: Day | G196: Ipswich | H196: L0144 Ipswich | J196: 5889U | K196: Day | L196: Perkins School for the Blind | M196: Intensive Day Program | N196: 205248.08 | O196: 1001.2101 | P196: 2020-09-08 | Q196: 2021-06-25 | R196: 187 | S196: 193 | T196: 5306 | U196: Schools for Children, Inc | V196: 5306-Schools for Children, Inc | W196: 196 | X196: 193 | Y196: 0290 | Z196: Sutton | AA196: =Y196&" "&Z196 -> 0290 Sutton | AC196: 5889J | AD196: Day | AE196: Perkins School for the Blind | AF196: Deaf/Blind/Multi-Impaired | AG196: 150475.05 | AH196: 716.5478571 | AI196: 2020-07-01 | AJ196: 2020-07-31 | AK196: 210 | AM196: L0144 | AN196: Ipswich | AO196: Public | AQ196: 5526 | AR196: Inn Street Montessori School
A197: 0193 | B197: Monterey | C197: =A197&" "&B197 -> 0193 Monterey | E197: L0145 | F197: Day | G197: Kingston | H197: =E197&" "&G197 -> L0145 Kingston | J197: 5889V | K197: Res Ed | L197: Perkins School for the Blind | M197: Intensive Residential Program | N197: 394438.52 | O197: 1393.7757 | P197: 2020-09-08 | Q197: 2021-06-25 | R197: 260 | S197: 194 | T197: 5306B | U197: Schools for Children | V197: 5306B-Schools for Children | W197: 197 | X197: 194 | Y197: 0291 | Z197: Swampscott | AA197: 0291 Swampscott | AC197: 5889K | AD197: Day | AE197: Perkins School for the Blind | AF197: Multi-Impaired | AG197: 123149.72 | AH197: 586.4272381 | AI197: 2020-07-01 | AJ197: 2020-07-31 | AK197: 210 | AM197: L0145 | AN197: Kingston | AO197: =IF(LEFT(AM197,1)="C","Col",IF(LEFT(AM197,1)="L","Public",IF(LEFT(AM197,1)="H","Charter",""))) -> Public | AQ197: 5527 | AR197: Institute for Family/Life Learning
A198: 0194 | B198: Montgomery | C198: 0194 Montgomery | E198: L0148 | F198: Day | G198: Lanesborough | H198: L0148 Lanesborough | J198: 5915A | K198: Day | L198: Protestant Guild for Human Services/DBA The Guild for Human Services | M198: Learning Center Day | N198: 142952.9188 | O198: 610.9099 | P198: 2020-07-01 | Q198: 2021-06-29 | R198: 234 | S198: 195 | T198: 5306C | U198: Schools for Children | V198: =T198&"-"&U198 -> 5306C-Schools for Children | W198: 198 | X198: 195 | Y198: 0292 | Z198: Swansea | AA198: 0292 Swansea | AC198: 5889M | AD198: Day | AE198: Perkins School for the Blind | AF198: Severely Impaired | AG198: 151243.59 | AH198: 720.2075714 | AI198: 2020-07-01 | AJ198: 2020-07-31 | AK198: 210 | AM198: L0148 | AN198: Lanesborough | AO198: Public | AQ198: 5530 | AR198: Institute of Professional Practice
A199: 0195 | B199: Mount Washington | C199: 0195 Mount Washington | E199: L0149 | F199: Day | G199: Lawrence | H199: L0149 Lawrence | J199: 5915B | K199: Res Ed | L199: Protestant Guild for Human Services/DBA The Guild for Human Services | M199: Learning Center Res | N199: 312291.4468 | O199: 855.593 | P199: 2020-07-01 | Q199: 2021-06-30 | R199: 365 | S199: 196 | T199: 5306D | U199: Schools for Children | V199: 5306D-Schools for Children | W199: 199 | X199: 196 | Y199: 0293 | Z199: Taunton | AA199: 0293 Taunton | AC199: 5889O | AD199: Day | AE199: Perkins School for the Blind | AF199: Day Program | AG199: 137277.79 | AH199: 669.6477561 | AI199: 2020-08-01 | AJ199: 2021-06-25 | AK199: 205 | AM199: L0149 | AN199: Lawrence | AO199: Public | AQ199: 5532 | AR199: Intensive Education Academy, Inc
A200: 0196 | B200: Nahant | C200: 0196 Nahant | E200: L0150 | F200: Day | G200: Lee | H200: L0150 Lee | J200: 5940A | K200: Day | L200: Realizing Children's Strengths | M200: Intensive Day | N200: 132296.67 | O200: 598.6275 | P200: 2020-07-01 | Q200: 2021-06-15 | R200: 221 | S200: 197 | T200: 5315 | U200: Deck House School | V200: 5315-Deck House School | W200: 200 | X200: 197 | Y200: 0295 | Z200: Tewksbury | AA200: 0295 Tewksbury | AC200: 5889P | AD200: Res Ed | AE200: Perkins School for the Blind | AF200: Residential Program | AG200: 268181.06 | AH200: 947.6362544 | AI200: 2020-08-01 | AJ200: 2021-06-25 | AK200: 283 | AM200: L0150 | AN200: Lee | AO200: Public | AQ200: 5533 | AR200: Intergrated Learning Academy - Newton
A201: 0197 | B201: Nantucket | C201: 0197 Nantucket | E201: L0151 | F201: Day | G201: Leicester | H201: L0151 Leicester | J201: 5940B | K201: Day | L201: Realizing Children's Strengths | M201: Day Ed. | N201: 95872.48 | O201: 433.8121 | P201: 2020-07-01 | Q201: 2021-06-15 | R201: 221 | S201: 198 | T201: 5317 | U201: Delta Projects | V201: 5317-Delta Projects | W201: 201 | X201: 198 | Y201: 0296 | Z201: Tisbury | AA201: 0296 Tisbury | AC201: 5889S | AD201: Day | AE201: Perkins School for the Blind | AF201: Intermediate Day Program | AG201: 177947.81 | AH201: 868.0380976 | AI201: 2020-08-01 | AJ201: 2021-06-25 | AK201: 205 | AM201: L0151 | AN201: Leicester | AO201: Public | AQ201: 5534 | AR201: Italian Home for Children
... 999 more rows

Sheet convert (hidden)
A2: =Claim!C7&" - "&Claim!D7 -> - 0
A3: In District
A4: lea | C4: sec lea | E4: Sasid | I4: Student | O4: Placement | T4: Claims | Z4: Cost Share | AE4: In district | AG4: b1_36 | AJ4: b1_10 | AM4: d1_36 | AP4: d1_10 | AS4: d2_36 | AV4: d2_10 | AY4: d3_36 | BB4: d3_10 | BE4: d4_36 | BH4: d4_10 | BK4: d5_36 | BN4: d5_10 | BQ4: d6_36 | BT4: d6_10 | BW4: d7_36 | BZ4: d7_10 | CC4: d8_36 | CF4: d8_10 | CI4: e1_36 | CL4: e1_10 | CO4: e2_36 | CR4: e2_10 | CU4: f1_36 | CX4: f1_10 | DA4: f2_36 | DD4: f2_10 | DG4: f3_36 | DJ4: f3_10 | DM4: f4_36 | DP4: f4_10 | DS4: f5_36 | DV4: f5_10 | DY4: f6_36 | EB4: f6_10 | EE4: f7_36 | EH4: f7_10 | EK4: g1_36 | EN4: g1_10 | EQ4: g2_36 | ET4: g2_10 | EW4: g3_36 | EZ4: g3_10 | FC4: g4_36 | FF4: g4_10 | FI4: g5_36 | FL4: g5_10 | FO4: h1_36 | FR4: h1_10 | FU4: h2_36 | FX4: h2_10 | GA4: h3_36 | GD4: h3_10 | GG4: I1_36 | GJ4: I1_10 | GL4: j1
A5: lea_num | B5: lea_code | C5: sec_num | D5: sec_code | E5: Sasid | F5: claim_num | G5: Order | H5: SASID_claim | I5: last_name | J5: first_name | K5: DOB | L5: in_out | M5: prog_type | N5: prog_code | O5: place_type | P5: school | Q5: rate_ann | R5: rate_daily | S5: date_start | T5: date_end | U5: total_days | V5: claim_amt | W5: Sp_ind | X5: cs_dss | Y5: cs_lea | Z5: cs3 | AA5: cs3_amt | AB5: cs4 | AC5: cs4_amt | AD5: cs_total | AE5: days_in_cy | AF5: b1_36_type | AG5: b1_36_hour | AH5: b1_36_total | AI5: b1_10_type | AJ5: b1_10_hour | AK5: b1_10_total | AL5: d1_36_type | AM5: d1_36_hour | AN5: d1_36_Total | AO5: d1_10_type | AP5: d1_10_hour | AQ5: d1_10_Total | AR5: D2_36_type | AS5: D2_36_hour | AT5: D2_36_total | AU5: D2_10_type | AV5: D2_10_hour | AW5: D2_10_total | AX5: D3_36_type | AY5: D3_36_hour | AZ5: D3_36_Total | BA5: D3_10_type | BB5: D3_10_hour | BC5: D3_10_Total | BD5: D4_36_type | BE5: D4_36_hour | BF5: D4_36_Total | BG5: D4_10_type | BH5: D4_10_hour | BI5: D4_10_Total | BJ5: D5_36_type | BK5: D5_36_hour | BL5: D5_36_Total | BM5: D5_10_type | BN5: D5_10_hour | BO5: D5_10_Total | BP5: D6_36_type | BQ5: D6_36_hour | BR5: D6_36_Total | BS5: D6_10_type | BT5: D6_10_hour | BU5: D6_10_Total | BV5: D7_36_type | BW5: D7_36_hour | BX5: D7_36_Total | BY5: D7_10_type | BZ5: D7_10_hour | CA5: D7_10_Total | CB5: D8_36_type | CC5: D8_36_hour | CD5: D8_36_Total | CE5: D8_10_type | CF5: D8_10_hour | CG5: D8_10_Total | CH5: E1_36_type | CI5: E1_36_hour | CJ5: E1_36_Total | CK5: E1_10_type | CL5: E1_10_hour | CM5: E1_10_Total | CN5: E2_36_type | CO5: E2_36_hour | CP5: E2_36_total | CQ5: E2_10_type | CR5: E2_10_hour | CS5: E2_10_total | CT5: F1_36_type | CU5: F1_36_hour | CV5: F1_36_total | CW5: F1_10_type | CX5: F1_10_hour | CY5: F1_10_total | CZ5: F2_36_type | DA5: F2_36_hour | DB5: F2_36_Total | DC5: F2_10_type | DD5: F2_10_hour | DE5: F2_10_Total | DF5: F3_36_type | DG5: F3_36_hour | DH5: F3_36_Total | DI5: F3_10_type | DJ5: F3_10_hour | DK5: F3_10_Total | DL5: F4_36_type | DM5: F4_36_hour | DN5: F4_36_total | DO5: F4_10_type | DP5: F4_10_hour | DQ5: F4_10_Total | DR5: F5_36_type | DS5: F5_36_hour | DT5: F5_36_Total | DU5: F5_10_type | DV5: F5_10_hour | DW5: F5_10_Total | DX5: F6_36_type | DY5: F6_36_hour | DZ5: F6_36_Total | EA5: F6_10_type | EB5: F6_10_hour | EC5: F6_10_Total | ED5: F7_36_type | EE5: F7_36_hour | EF5: F7_36_Total | EG5: F7_10_type | EH5: F7_10_hour | EI5: F7_10_Total | EJ5: G1_36_type | EK5: G1_36_hour | EL5: G1_36_Total | EM5: G1_10_type | EN5: G1_10_hour | EO5: G1_10_Total | EP5: G2_36_type | EQ5: G2_36_hour | ER5: G2_36_Total | ES5: G2_10_type | ET5: G2_10_hour | EU5: G2_10_Total | EV5: G3_36_type | EW5: G3_36_hour | EX5: G3_36_Total | EY5: G3_10_type | EZ5: G3_10_hour | FA5: G3_10_Total | FB5: G4_36_type | FC5: G4_36_hour | FD5: G4_36_Total | FE5: G4_10_type | FF5: G4_10_hour | FG5: G4_10_Total | FH5: G5_36_type | FI5: G5_36_hour | FJ5: G5_36_Total | FK5: G5_10_type | FL5: G5_10_hour | FM5: G5_10_Total | FN5: H1_36_type | FO5: H1_36_hour | FP5: H1_36_Total | FQ5: H1_10_type | FR5: H1_10_hour | FS5: H1_10_Total | FT5: H2_36_type | FU5: H2_36_hour | FV5: H2_36_total | FW5: H2_10_type | FX5: H2_10_hour | FY5: H2_10_total | FZ5: h3_36_type | GA5: h3_36_hour | GB5: h3_36_Total | GC5: h3_10_type | GD5: h3_10_hour | GE5: h3_10_total | GF5: I1_36_type | GG5: I1_36_hour | GH5: I1_36_Total | GI5: I1_10_type | GJ5: I1_10_hour | GK5: I1_10_Total | GL5: J1
A6: =Claim!B2 -> 7 | B6: =Claim!C2 -> 0003 | C6: =IF(Claim!F2=4,4,Claim!F2) -> 4 | D6: =IF(Claim!F2=4,"",Claim!G2) ->  | E6: =IF(Claim!C7="","",Claim!C7) ->  | F6: 1 | G6: 0 | H6: =IF(F6<=9,E6&" - 0"&F6,E6&" - "&F6) -> - 01 | I6: =Claim!E7 ->  | J6: =Claim!F7 ->  | K6: =Claim!G7 -> 00:00:00 | L6: In District | M6: =Claim!D15 -> In District | O6: =Claim!D16 -> 0 | Q6: 0 | R6: 0 | S6: =Claim!E16 -> 00:00:00 | T6: =Claim!F16 -> 00:00:00 | U6: =IF(Claim!G16="",0,Claim!G16) -> 0 | V6: =IF(Claim!O52="",0,Claim!O52) -> 0 | W6: =IF(Claim!I7="","",Claim!I7) ->  | X6: =IF(Claim!N4="",0,Claim!N4) -> 0 | Y6: =IF(Claim!N5="",0,Claim!N5) -> 0 | Z6: =IF(Claim!M6="","",Claim!M6) ->  | AA6: =IF(Claim!N6="",0,Claim!N6) -> 0 | AB6: =IF(Claim!M7="","",Claim!M7) ->  | AC6: =IF(Claim!N7="",0,Claim!N7) -> 0 | AD6: =IF(Claim!O7="",0,Claim!O7) -> 0 | AE6: =IF(Claim!G14="",0,Claim!G14) -> 0 | AF6: =IF(Claim!I18="","",Claim!I18) ->  | AG6: =IF(Claim!J18="",0,Claim!J18) -> 0 | AH6: =IF(Claim!K18="",0,Claim!K18) -> 0 | AI6: =IF(Claim!L18="","",Claim!L18) ->  | AJ6: =IF(Claim!M18="",0,Claim!M18) -> 0 | AK6: =IF(Claim!N18="",0,Claim!N18) -> 0 | AL6: =IF(Claim!I20="","",Claim!I20) ->  | AM6: =IF(Claim!J20="",0,Claim!J20) -> 0 | AN6: =IF(Claim!K20="",0,Claim!K20) -> 0 | AO6: =IF(Claim!L20="","",Claim!L20) ->  | AP6: =IF(Claim!M20="",0,Claim!M20) -> 0 | AQ6: =IF(Claim!N20="",0,Claim!N20) -> 0 | AR6: =IF(Claim!I21="","",Claim!I21) ->  | AS6: =IF(Claim!J21="",0,Claim!J21) -> 0 | AT6: =IF(Claim!K21="",0,Claim!K21) -> 0 | AU6: =IF(Claim!L21="","",Claim!L21) ->  | AV6: =IF(Claim!M21="",0,Claim!M21) -> 0 | AW6: =IF(Claim!N21="",0,Claim!N21) -> 0 | AX6: =IF(Claim!I23="","",Claim!I23) ->  | AY6: =IF(Claim!J23="",0,Claim!J23) -> 0 | AZ6: =IF(Claim!K23="",0,Claim!K23) -> 0 | BA6: =IF(Claim!L23="","",Claim!L23) ->  | BB6: =IF(Claim!M23="",0,Claim!M23) -> 0 | BC6: =IF(Claim!N23="",0,Claim!N23) -> 0 | BD6: =IF(Claim!I24="","",Claim!I24) ->  | BE6: =IF(Claim!J24="",0,Claim!J24) -> 0 | BF6: =IF(Claim!K24="",0,Claim!K24) -> 0 | BG6: =IF(Claim!L24="","",Claim!L24) ->  | BH6: =IF(Claim!M24="",0,Claim!M24) -> 0 | BI6: =IF(Claim!N24="",0,Claim!N24) -> 0 | BJ6: =IF(Claim!I25="","",Claim!I25) ->  | BK6: =IF(Claim!J25="",0,Claim!J25) -> 0 | BL6: =IF(Claim!K25="",0,Claim!K25) -> 0 | BM6: =IF(Claim!L25="","",Claim!L25) ->  | BN6: =IF(Claim!M25="",0,Claim!M25) -> 0 | BO6: =IF(Claim!N25="",0,Claim!N25) -> 0 | BP6: =IF(Claim!I26="","",Claim!I26) ->  | BQ6: =IF(Claim!J26="",0,Claim!J26) -> 0 | BR6: =IF(Claim!K26="",0,Claim!K26) -> 0 | BS6: =IF(Claim!L26="","",Claim!L26) ->  | BT6: =IF(Claim!M26="",0,Claim!M26) -> 0 | BU6: =IF(Claim!N26="",0,Claim!N26) -> 0 | BV6: =IF(Claim!I27="","",Claim!I27) ->  | BW6: =IF(Claim!J27="",0,Claim!J27) -> 0 | BX6: =IF(Claim!K27="","",Claim!K27) -> 0 | BY6: =IF(Claim!L27="","",Claim!L27) ->  | BZ6: =IF(Claim!M27="",0,Claim!M27) -> 0 | CA6: =IF(Claim!N27="",0,Claim!N27) -> 0 | CB6: =IF(Claim!I28="","",Claim!I28) ->  | CC6: =IF(Claim!J28="",0,Claim!J28) -> 0 | CD6: =IF(Claim!K28="",0,Claim!K28) -> 0 | CE6: =IF(Claim!L28="","",Claim!L28) ->  | CF6: =IF(Claim!M28="",0,Claim!M28) -> 0 | CG6: =IF(Claim!N28="",0,Claim!N28) -> 0 | CH6: =IF(Claim!I30="","",Claim!I30) ->  | CI6: =IF(Claim!J30="",0,Claim!J30) -> 0 | CJ6: =IF(Claim!K30="",0,Claim!K30) -> 0 | CK6: =IF(Claim!L30="","",Claim!L30) ->  | CL6: =IF(Claim!M30="",0,Claim!M30) -> 0 | CM6: =IF(Claim!N30="","",Claim!N30) -> 0 | CN6: =IF(Claim!I31="","",Claim!I31) ->  | CO6: =IF(Claim!J31="",0,Claim!J31) -> 0 | CP6: =IF(Claim!K31="",0,Claim!K31) -> 0 | CQ6: =IF(Claim!L31="","",Claim!L31) ->  | CR6: =IF(Claim!M31="",0,Claim!M31) -> 0 | CS6: =IF(Claim!N31="",0,Claim!N31) -> 0 | CT6: =IF(Claim!I33="","",Claim!I33) ->  | CU6: =IF(Claim!J33="",0,Claim!J33) -> 0 | CV6: =IF(Claim!K33="",0,Claim!K33) -> 0 | CW6: =IF(Claim!L33="","",Claim!L33) ->  | CX6: =IF(Claim!M33="",0,Claim!M33) -> 0 | CY6: =IF(Claim!N33="",0,Claim!N33) -> 0 | CZ6: =IF(Claim!I34="","",Claim!I34) ->  | DA6: =IF(Claim!J34="",0,Claim!J34) -> 0 | DB6: =IF(Claim!K34="",0,Claim!K34) -> 0 | DC6: =IF(Claim!L34="","",Claim!L34) ->  | DD6: =IF(Claim!M34="",0,Claim!M34) -> 0 | DE6: =IF(Claim!N34="",0,Claim!N34) -> 0 | DF6: =IF(Claim!I35="","",Claim!I35) ->  | DG6: =IF(Claim!J35="",0,Claim!J35) -> 0 | DH6: =IF(Claim!K35="",0,Claim!K35) -> 0 | DI6: =IF(Claim!L35="","",Claim!L35) ->  | DJ6: =IF(Claim!M35="",0,Claim!M35) -> 0 | DK6: =IF(Claim!N35="",0,Claim!N35) -> 0 | DL6: =IF(Claim!I36="","",Claim!I36) ->  | DM6: =IF(Claim!J36="",0,Claim!J36) -> 0 | DN6: =IF(Claim!K36="",0,Claim!K36) -> 0 | DO6: =IF(Claim!L36="","",Claim!L36) ->  | DP6: =IF(Claim!M36="",0,Claim!M36) -> 0 | DQ6: =IF(Claim!N36="",0,Claim!N36) -> 0 | DR6: =IF(Claim!I37="","",Claim!I37) ->  | DS6: =IF(Claim!J37="",0,Claim!J37) -> 0 | DT6: =IF(Claim!K37="",0,Claim!K37) -> 0 | DU6: =IF(Claim!L37="","",Claim!L37) ->  | DV6: =IF(Claim!M37="",0,Claim!M37) -> 0 | DW6: =IF(Claim!N37="",0,Claim!N37) -> 0 | DX6: =IF(Claim!I38="","",Claim!I38) ->  | DY6: =IF(Claim!J38="",0,Claim!J38) -> 0 | DZ6: =IF(Claim!K38="",0,Claim!K38) -> 0 | EA6: =IF(Claim!L38="","",Claim!L38) ->  | EB6: =IF(Claim!M38="",0,Claim!M38) -> 0 | EC6: =IF(Claim!N38="",0,Claim!N38) -> 0 | ED6: =IF(Claim!I39="","",Claim!I39) ->  | EE6: =IF(Claim!J39="",0,Claim!J39) -> 0 | EF6: =IF(Claim!K39="",0,Claim!K39) -> 0 | EG6: =IF(Claim!L39="","",Claim!L39) ->  | EH6: =IF(Claim!M39="",0,Claim!M39) -> 0 | EI6: =IF(Claim!N39="",0,Claim!N39) -> 0 | EJ6: =IF(Claim!I41="","",Claim!I41) ->  | EK6: =IF(Claim!J41="",0,Claim!J41) -> 0 | EL6: =IF(Claim!K41="",0,Claim!K41) -> 0 | EM6: =IF(Claim!L41="","",Claim!L41) ->  | EN6: =IF(Claim!M41="",0,Claim!M41) -> 0 | EO6: =IF(Claim!N41="",0,Claim!N41) -> 0 | EP6: =IF(Claim!I42="","",Claim!I42) ->  | EQ6: =IF(Claim!J42="",0,Claim!J42) -> 0 | ER6: =IF(Claim!K42="",0,Claim!K42) -> 0 | ES6: =IF(Claim!L42="","",Claim!L42) ->  | ET6: =IF(Claim!M42="",0,Claim!M42) -> 0 | EU6: =IF(Claim!N42="",0,Claim!N42) -> 0 | EV6: =IF(Claim!I43="","",Claim!I43) ->  | EW6: =IF(Claim!J43="",0,Claim!J43) -> 0 | EX6: =IF(Claim!K43="",0,Claim!K43) -> 0 | EY6: =IF(Claim!L43="","",Claim!L43) ->  | EZ6: =IF(Claim!M43="",0,Claim!M43) -> 0 | FA6: =IF(Claim!N43="",0,Claim!N43) -> 0 | FB6: =IF(Claim!I44="","",Claim!I44) ->  | FC6: =IF(Claim!J44="",0,Claim!J44) -> 0 | FD6: =IF(Claim!K44="",0,Claim!K44) -> 0 | FE6: =IF(Claim!L44="","",Claim!L44) ->  | FF6: =IF(Claim!M44="",0,Claim!M44) -> 0 | FG6: =IF(Claim!N44="",0,Claim!N44) -> 0 | FH6: =IF(Claim!I45="","",Claim!I45) ->  | FI6: =IF(Claim!J45="",0,Claim!J45) -> 0 | FJ6: =IF(Claim!K45="",0,Claim!K45) -> 0 | FK6: =IF(Claim!L45="","",Claim!L45) ->  | FL6: =IF(Claim!M45="",0,Claim!M45) -> 0 | FM6: =IF(Claim!N45="","",Claim!N45) -> 0 | FN6: =IF(Claim!I47="","",Claim!I47) ->  | FO6: =IF(Claim!J47="",0,Claim!J47) -> 0 | FP6: =IF(Claim!K47="","",Claim!K47) -> 0 | FQ6: =IF(Claim!L47="","",Claim!L47) ->  | FR6: =IF(Claim!M47="",0,Claim!M47) -> 0 | FS6: =IF(Claim!N47="","",Claim!N47) -> 0 | FT6: =IF(Claim!I48="","",Claim!I48) ->  | FU6: =IF(Claim!J48="",0,Claim!J48) -> 0 | FV6: =IF(Claim!K48="","",Claim!K48) -> 0 | FW6: =IF(Claim!L48="","",Claim!L48) ->  | FX6: =IF(Claim!M48="",0,Claim!M48) -> 0 | FY6: =IF(Claim!N48="","",Claim!N48) -> 0 | FZ6: =IF(Claim!I49="","",Claim!I49) ->  | GA6: =IF(Claim!J49="",0,Claim!J49) -> 0 | GB6: =IF(Claim!K49="",0,Claim!K49) -> 0 | GC6: =IF(Claim!L49="","",Claim!L49) ->  | GD6: =IF(Claim!M49="",0,Claim!M49) -> 0 | GE6: =IF(Claim!N49="",0,Claim!N49) -> 0 | GF6: =IF(Claim!I50="","",Claim!I50) ->  | GG6: =IF(Claim!J50="",0,Claim!J50) -> 0 | GH6: =IF(Claim!K50="",0,Claim!K50) -> 0 | GI6: =IF(Claim!L50="","",Claim!L50) ->  | GJ6: =IF(Claim!M50="",0,Claim!M50) -> 0 | GK6: =IF(Claim!N50="",0,Claim!N50) -> 0 | GL6: =IF(Claim!H51="",0,Claim!H51) -> 0
A9: Out of District
A10: lea | C10: sec lea | E10: Sasid | I10: Student | O10: Placement | T10: Claims | Z10: Cost Share
A11: lea_num | B11: lea_code | C11: sec_num | D11: sec_code | E11: Sasid | F11: claim_num | G11: Order | H11: SASID_claim | I11: last_name | J11: first_name | K11: DOB | L11: in_out | M11: prog_type | N11: prog_code | O11: place_type | P11: school | Q11: rate_ann | R11: rate_daily | S11: date_start | T11: date_end | U11: total_days | V11: claim_amt | W11: Sp_ind | X11: cs_dss | Y11: cs_lea | Z11: cs3 | AA11: cs3_amt | AB11: cs4 | AC11: cs4_amt | AD11: cs_total
A12: =Claim!B2 -> 7 | B12: =Claim!C2 -> 0003 | C12: =IF(Claim!F2=4,4,Claim!F2) -> 4 | D12: =IF(Claim!F2=4,"",Claim!G2) ->  | E12: =IF(Claim!C7="","",Claim!C7) ->  | F12: 1 | G12: 5 | H12: =IF(F12<=9,E12&" - 0"&F12,E12&" - "&F12) -> - 01 | I12: =Claim!E7 ->  | J12: =Claim!F7 ->  | K12: =Claim!G7 -> 00:00:00 | L12: =Claim!H7 -> In District | M12: ESE/OSD Authorization for Pricing | N12: 5021 | O12: Day | P12: American School for the Deaf | Q12: 250000 | R12: 500 | S12: 2013-07-01 | T12: 2013-12-31 | U12: 100 | V12: 50000 | W12: =IF(Claim!I7="","",Claim!I7) ->  | X12: =IF(Claim!N4="",0,Claim!N4) -> 0 | Y12: =IF(Claim!N5="",0,Claim!N5) -> 0 | Z12: =IF(Claim!M6="","",Claim!M6) ->  | AA12: =IF(Claim!N6="",0,Claim!N6) -> 0 | AB12: =IF(Claim!M7="","",Claim!M7) ->  | AC12: =IF(Claim!N7="",0,Claim!N7) -> 0 | AD12: =IF(Claim!O7="",0,Claim!O7) -> 0 | AE12: 0 | AG12: 0 | AH12: 0 | AJ12: 0 | AK12: 0 | AM12: 0 | AN12: 0 | AP12: 0 | AQ12: 0 | AS12: 0 | AT12: 0 | AV12: 0 | AW12: 0 | AY12: 0 | AZ12: 0 | BB12: 0 | BC12: 0 | BE12: 0 | BF12: 0 | BH12: 0 | BI12: 0 | BK12: 0 | BL12: 0 | BN12: 0 | BO12: 0 | BQ12: 0 | BR12: 0 | BT12: 0 | BU12: 0 | BW12: 0 | BX12: 0 | BZ12: 0 | CA12: 0 | CC12: 0 | CD12: 0 | CF12: 0 | CG12: 0 | CI12: 0 | CJ12: 0 | CL12: 0 | CM12: 0 | CO12: 0 | CP12: 0 | CR12: 0 | CS12: 0 | CU12: 0 | CV12: 0 | CX12: 0 | CY12: 0 | DA12: 0 | DB12: 0 | DD12: 0 | DE12: 0 | DG12: 0 | DH12: 0 | DJ12: 0 | DK12: 0 | DM12: 0 | DN12: 0 | DP12: 0 | DQ12: 0 | DS12: 0 | DT12: 0 | DV12: 0 | DW12: 0 | DY12: 0 | DZ12: 0 | EB12: 0 | EC12: 0 | EE12: 0 | EF12: 0 | EH12: 0 | EI12: 0 | EK12: 0 | EL12: 0 | EN12: 0 | EO12: 0 | EQ12: 0 | ER12: 0 | ET12: 0 | EU12: 0 | EW12: 0 | EX12: 0 | EZ12: 0 | FA12: 0 | FC12: 0 | FD12: 0 | FF12: 0 | FG12: 0 | FI12: 0 | FJ12: 0 | FL12: 0 | FM12: 0 | FO12: 0 | FP12: 0 | FR12: 0 | FS12: 0 | FU12: 0 | FV12: 0 | FX12: 0 | FY12: 0 | GA12: 0 | GB12: 0 | GD12: 0 | GE12: 0 | GG12: 0 | GH12: 0 | GJ12: 0 | GK12: 0 | GL12: 0

Sheet Calendar (hidden)
A1: Entered | B1: Prog_Code | C1: Start_date_entered | D1: End_date_entered | E1: Start_Row | F1: End_Row | G1: Total_Days(cols)
B2: 5003A | C2: 2004-02-01 | D2: 2004-04-01 | F2: 193 | G2: =F2-E4+1 -> 
A3: Calendar | B3: Prog_col# | C3: =VLOOKUP(C2,A11:A365,1) ->  | D3: =VLOOKUP(D2,A11:A365,1) -> 
A4: =IF(AND(B4>0,B4<257),IF(B4>26,CHAR(64+INT((B4-1)/26)),"")&CHAR(65+MOD(B4-1,26)),"") -> A | B4: 1 | C4: =EXACT(C2,C3) ->  | D4: =EXACT(D2,D3) ->  | E4: =IF(C4=FALSE,E2-1,E2) -> 
E5: Program Calendar
A7: 5017A | B7: 5017B | C7: 5021C | D7: 5021E | E7: 5021G | F7: 5021Z | G7: 5034A | H7: 5036A | I7: 5036I | J7: 5049A | K7: 5088D | L7: 5088E | M7: 5088F | N7: 5088G | O7: 5088H | P7: 5095A | Q7: 5095B | R7: 5095Y | S7: 5095Z | T7: 5097A | U7: 5097B | V7: 5110A | W7: 5110B | X7: 5110C | Y7: 5112B | Z7: 5113A | AA7: 5120A | AB7: 5121A | AC7: 5121B | AD7: 5121Z | AE7: 5127C | AF7: 5127D | AG7: 5127E | AH7: 5134B | AI7: 5134C | AJ7: 5154A | AK7: 5154B | AL7: 5154C | AM7: 5157A | AN7: 5160C | AO7: 5160D | AP7: 5160Q | AQ7: 5165A | AR7: 5165Z | AS7: 5177G | AT7: 5177H | AU7: 5224A | AV7: 5227A | AW7: 5227B | AX7: 5238E | AY7: 5238F | AZ7: 5242A | BA7: 5249A | BB7: 5249G | BC7: 5253A | BD7: 5257A | BE7: 5257B | BF7: 5257D | BG7: 5258A | BH7: 5258B | BI7: 5265A | BJ7: 5265B | BK7: 5272A | BL7: 5274A | BM7: 5274B | BN7: 5274E | BO7: 5276A | BP7: 5276D | BQ7: 5296A | BR7: 5296C | BS7: 5296E | BT7: 5297A | BU7: 5303A | BV7: 5303C | BW7: 5306B | BX7: 5306C | BY7: 5306D | BZ7: 5324B | CA7: 5324D | CB7: 5324E | CC7: 5324P | CD7: 5324Q | CE7: 5338C | CF7: 5338D | CG7: 5338E | CH7: 5338F | CI7: 5338G | CJ7: 5338H | CK7: 5338I | CL7: 5338J | CM7: 5341B | CN7: 5341D | CO7: 5341E | CP7: 5341J | CQ7: 5341N | CR7: 5341P | CS7: 5341S | CT7: 5341T | CU7: 5343B | CV7: 5343C | CW7: 5343D | CX7: 5343E | CY7: 5360A | CZ7: 5360Z | DA7: 5365A | DB7: 5365Z | DC7: 5381A | DD7: 5381C | DE7: 5385A | DF7: 5385B | DG7: 5415A | DH7: 5440A | DI7: 5440B | DJ7: 5451A | DK7: 5451B | DL7: 5451Y | DM7: 5451Z | DN7: 5454B | DO7: 5454C | DP7: 5454E | DQ7: 5454X | DR7: 5454Y | DS7: 5454Z | DT7: 5472A | DU7: 5488A | DV7: 5495A | DW7: 5495B | DX7: 5498B | DY7: 5530C | DZ7: 5534A | EA7: 5534B | EB7: 5534Q | EC7: 5582A | ED7: 5607A | EE7: 5607B | EF7: 5614A | EG7: 5614B | EH7: 5617B | EI7: 5617G | EJ7: 5617H | EK7: 5617I | EL7: 5620B | EM7: 5620E | EN7: 5625A | EO7: 5625B | EP7: 5643A | EQ7: 5685B | ER7: 5685C | ES7: 5695A | ET7: 5706B | EU7: 5706E | EV7: 5706G | EW7: 5706H | EX7: 5706N | EY7: 5706Q | EZ7: 5709A | FA7: 5709B | FB7: 5710B | FC7: 5710C | FD7: 5730A | FE7: 5730C | FF7: 5730W | FG7: 5730X | FH7: 5730Y | FI7: 5730Z | FJ7: 5734A | FK7: 5752A | FL7: 5752Q | FM7: 5760A | FN7: 5785E | FO7: 5785F | FP7: 5785G | FQ7: 5788A | FR7: 5811A | FS7: 5885A | FT7: 5885Z | FU7: 5887A | FV7: 5887B | FW7: 5887Q | FX7: 5889B | FY7: 5889D | FZ7: 5889E | GA7: 5889G | GB7: 5889H | GC7: 5889J | GD7: 5889K | GE7: 5889M | GF7: 5889O | GG7: 5889P | GH7: 5889S | GI7: 5889T | GJ7: 5889U | GK7: 5889V | GL7: 5915A | GM7: 5915B | GN7: 5940A | GO7: 5940B | GP7: 5947C | GQ7: 5947Z | GR7: 5948A | GS7: 5948B | GT7: 5948Z | GU7: 5957C | GV7: 5969A | GW7: 5969Z | GX7: 5975A | GY7: 5975B | GZ7: 5985A | HA7: 5985C | HB7: 5985Q | HC7: 5985R | HD7: 5985Y | HE7: 5985Z | HF7: 5986C | HG7: 5990A | HH7: 5992D | HI7: 5995C | HJ7: 5997F
A8: =IF(MIN(A11:A380)=0,"",MIN(A11:A380)) -> 2020-07-01 | B8: 2020-07-01 | C8: 2020-09-02 | D8: 2020-09-02 | E8: 2020-08-01 | F8: 2020-07-01 | G8: 2020-07-01 | H8: 2020-07-06 | I8: 2020-07-08 | J8: 2020-08-31 | K8: 2020-07-01 | L8: 2020-07-01 | M8: 2020-07-07 | N8: 2020-07-01 | O8: 2020-09-02 | P8: 2020-12-01 | Q8: 2020-12-01 | R8: 2020-07-06 | S8: 2020-07-01 | T8: 2020-09-14 | U8: 2020-07-06 | V8: 2020-07-06 | W8: 2020-09-08 | X8: 2020-09-08 | Y8: 2020-07-01 | Z8: 2020-07-01 | AA8: 2020-07-01 | AB8: 2020-08-01 | AC8: 2020-08-25 | AD8: 2020-07-01 | AE8: 2020-07-01 | AF8: 2020-07-01 | AG8: 2021-01-01 | AH8: 2020-07-07 | AI8: 2020-07-07 | AJ8: 2020-07-06 | AK8: 2020-07-06 | AL8: 2020-07-01 | AM8: 2020-07-13 | AN8: 2020-07-06 | AO8: 2020-07-01 | AP8: 2020-07-01 | AQ8: 2020-10-01 | AR8: 2020-08-25 | AS8: 2020-09-02 | AT8: 2020-07-06 | AU8: 2020-07-01 | AV8: 2020-07-01 | AW8: 2020-07-01 | AX8: 2020-07-02 | AY8: 2020-07-01 | AZ8: 2020-07-01 | BA8: 2020-07-01 | BB8: 2020-09-08 | BC8: 2020-07-13 | BD8: 2020-09-02 | BE8: 2020-07-06 | BF8: 2020-07-06 | BG8: 2020-09-09 | BH8: 2020-07-01 | BI8: 2020-09-10 | BJ8: 2020-07-01 | BK8: 2020-07-08 | BL8: 2020-09-03 | BM8: =IF(MIN(BM11:BM380)=0,"",MIN(BM11:BM380)) -> 2020-07-06 | BN8: 2020-09-03 | BO8: 2020-07-01 | BP8: 2020-07-01 | BQ8: 2020-07-06 | BR8: 2020-07-01 | BS8: 2020-07-06 | BT8: 2020-07-01 | BU8: 2020-07-01 | BV8: 2020-07-06 | BW8: 2020-09-08 | BX8: 2020-07-01 | BY8: 2020-09-08 | BZ8: 2020-07-01 | CA8: 2020-07-01 | CB8: 2020-07-01 | CC8: 2020-07-01 | CD8: 2020-07-01 | CE8: 2020-07-01 | CF8: 2020-07-01 | CG8: 2020-07-01 | CH8: 2020-07-01 | CI8: 2020-07-01 | CJ8: 2020-07-01 | CK8: 2020-07-01 | CL8: 2020-07-01 | CM8: 2020-07-06 | CN8: 2020-07-06 | CO8: 2020-07-06 | CP8: 2020-07-06 | CQ8: 2020-07-06 | CR8: 2020-07-06 | CS8: 2020-07-06 | CT8: 2020-07-06 | CU8: 2020-07-01 | CV8: 2020-07-01 | CW8: 2020-07-06 | CX8: 2020-07-01 | CY8: 2020-10-01 | CZ8: 2020-07-06 | DA8: 2020-12-01 | DB8: 2020-07-01 | DC8: 2020-09-08 | DD8: 2020-07-06 | DE8: 2020-07-01 | DF8: 2020-07-01 | DG8: 2020-07-08 | DH8: 2020-08-31 | DI8: 2020-07-01 | DJ8: 2020-12-07 | DK8: 2020-12-07 | DL8: 2020-09-14 | DM8: 2020-09-14 | DN8: 2020-09-07 | DO8: 2020-09-01 | DP8: 2020-09-07 | DQ8: 2020-07-06 | DR8: 2020-07-01 | DS8: 2020-07-06 | DT8: 2020-07-07 | DU8: 2020-07-01 | DV8: 2020-09-13 | DW8: 2020-07-01 | DX8: 2020-09-02 | DY8: =IF(MIN(DY11:DY380)=0,"",MIN(DY11:DY380)) -> 2020-07-01 | DZ8: 2020-07-01 | EA8: 2020-07-06 | EB8: 2020-07-01 | EC8: 2020-07-06 | ED8: 2020-08-24 | EE8: 2020-08-24 | EF8: 2020-07-08 | EG8: 2020-07-01 | EH8: 2020-07-01 | EI8: 2020-07-01 | EJ8: 2020-07-01 | EK8: 2020-07-01 | EL8: 2020-07-01 | EM8: 2020-07-01 | EN8: 2020-08-27 | EO8: 2020-07-06 | EP8: 2020-09-08 | EQ8: 2020-07-01 | ER8: 2020-07-01 | ES8: 2020-07-01 | ET8: 2020-07-01 | EU8: 2020-07-06 | EV8: 2020-07-06 | EW8: 2020-07-01 | EX8: 2020-07-01 | EY8: 2020-07-01 | EZ8: 2020-07-06 | FA8: 2020-07-01 | FB8: 2020-07-01 | FC8: 2020-07-01 | FD8: 2020-09-14 | FE8: 2020-09-14 | FF8: 2020-08-03 | FG8: 2020-07-01 | FH8: 2020-08-03 | FI8: 2020-07-01 | FJ8: 2020-08-31 | FK8: 2020-07-01 | FL8: 2020-07-01 | FM8: 2020-07-01 | FN8: 2020-09-02 | FO8: 2020-07-01 | FP8: 2020-07-06 | FQ8: 2020-08-19 | FR8: 2020-07-01 | FS8: 2020-09-01 | FT8: 2020-07-01 | FU8: 2020-07-01 | FV8: 2020-07-08 | FW8: 2020-07-01 | FX8: 2020-07-01 | FY8: 2020-07-01 | FZ8: 2020-07-01 | GA8: 2020-07-01 | GB8: 2020-07-01 | GC8: 2020-07-01 | GD8: 2020-07-01 | GE8: 2020-07-01 | GF8: 2020-09-08 | GG8: 2020-09-08 | GH8: 2020-09-08 | GI8: 2020-09-08 | GJ8: 2020-09-08 | GK8: =IF(MIN(GK11:GK380)=0,"",MIN(GK11:GK380)) -> 2020-09-08 | GL8: 2020-07-01 | GM8: 2020-07-01 | GN8: 2020-07-01 | GO8: 2020-07-01 | GP8: 2020-09-02 | GQ8: 2020-07-06 | GR8: 2020-09-01 | GS8: 2020-07-07 | GT8: 2020-08-31 | GU8: 2020-07-01 | GV8: 2020-12-01 | GW8: 2020-07-06 | GX8: 2020-09-12 | GY8: 2020-09-12 | GZ8: 2020-08-01 | HA8: 2020-08-03 | HB8: 2020-08-01 | HC8: 2020-07-01 | HD8: 2020-07-01 | HE8: 2020-07-01 | HF8: 2020-09-01 | HG8: 2020-07-01 | HH8: =IF(MIN(HH11:HH380)=0,"",MIN(HH11:HH380)) -> 2020-08-17 | HI8: =IF(MIN(HI11:HI380)=0,"",MIN(HI11:HI380)) -> 2020-07-01 | HJ8: =IF(MIN(HJ11:HJ380)=0,"",MIN(HJ11:HJ380)) -> 2020-07-01
A9: =IF(MAX(A11:A380)=0,"",MAX(A11:A380)) -> 2021-06-30 | B9: 2021-06-30 | C9: 2021-06-14 | D9: 2021-06-14 | E9: 2021-06-30 | F9: 2020-07-31 | G9: 2021-06-30 | H9: 2021-06-18 | I9: 2021-06-17 | J9: 2021-06-14 | K9: 2021-06-30 | L9: 2021-06-30 | M9: 2021-06-21 | N9: 2021-06-30 | O9: 2021-06-21 | P9: 2021-06-30 | Q9: 2021-06-17 | R9: 2020-11-30 | S9: 2020-11-30 | T9: 2021-06-23 | U9: 2020-08-06 | V9: 2020-08-13 | W9: 2021-06-18 | X9: 2021-06-18 | Y9: 2021-06-30 | Z9: 2021-06-30 | AA9: 2021-06-30 | AB9: 2021-06-30 | AC9: 2021-06-11 | AD9: 2020-07-31 | AE9: 2021-06-30 | AF9: 2021-06-25 | AG9: 2021-06-30 | AH9: 2021-06-17 | AI9: 2021-06-17 | AJ9: 2021-06-27 | AK9: 2021-06-27 | AL9: 2021-06-30 | AM9: 2021-06-16 | AN9: 2021-06-22 | AO9: 2021-06-30 | AP9: 2021-06-30 | AQ9: 2021-06-11 | AR9: 2020-09-30 | AS9: 2021-06-17 | AT9: 2020-08-14 | AU9: 2021-06-30 | AV9: 2021-06-16 | AW9: 2021-06-16 | AX9: 2021-06-22 | AY9: 2021-06-30 | AZ9: 2021-06-30 | BA9: 2021-06-18 | BB9: 2021-06-18 | BC9: 2021-06-14 | BD9: 2021-06-16 | BE9: 2021-06-16 | BF9: 2021-06-18 | BG9: 2021-06-21 | BH9: 2020-07-31 | BI9: 2021-06-25 | BJ9: 2020-07-28 | BK9: 2021-06-28 | BL9: 2021-06-18 | BM9: =IF(MAX(BM11:BM380)=0,"",MAX(BM11:BM380)) -> 2020-08-07 | BN9: 2021-06-18 | BO9: 2021-06-30 | BP9: 2021-06-16 | BQ9: 2021-06-18 | BR9: 2021-06-30 | BS9: 2021-06-18 | BT9: 2021-06-30 | BU9: 2021-06-30 | BV9: 2021-06-25 | BW9: 2021-06-21 | BX9: 2020-08-12 | BY9: 2021-06-22 | BZ9: 2021-06-30 | CA9: 2021-06-30 | CB9: 2021-06-30 | CC9: 2021-06-30 | CD9: 2021-06-30 | CE9: 2021-06-30 | CF9: 2021-06-30 | CG9: 2021-06-30 | CH9: 2021-06-30 | CI9: 2021-06-30 | CJ9: 2021-06-30 | CK9: 2021-06-30 | CL9: 2021-06-30 | CM9: 2021-06-23 | CN9: 2021-06-23 | CO9: 2021-06-23 | CP9: 2021-06-23 | CQ9: 2021-06-23 | CR9: 2021-06-23 | CS9: 2021-06-23 | CT9: 2021-06-23 | CU9: 2021-06-30 | CV9: 2021-06-30 | CW9: 2021-06-30 | CX9: 2021-06-30 | CY9: 2021-06-17 | CZ9: 2020-09-30 | DA9: 2021-06-21 | DB9: 2020-11-30 | DC9: 2021-06-17 | DD9: 2020-08-07 | DE9: 2021-06-30 | DF9: 2021-06-30 | DG9: 2021-06-30 | DH9: 2021-06-15 | DI9: 2020-07-29 | DJ9: 2021-05-27 | DK9: 2021-05-27 | DL9: 2020-11-19 | DM9: 2020-11-19 | DN9: 2021-06-30 | DO9: 2021-06-30 | DP9: 2021-06-30 | DQ9: 2020-08-31 | DR9: 2020-08-31 | DS9: 2020-08-31 | DT9: 2021-06-25 | DU9: 2021-06-18 | DV9: 2021-06-30 | DW9: 2021-01-31 | DX9: 2021-06-15 | DY9: =IF(MAX(DY11:DY380)=0,"",MAX(DY11:DY380)) -> 2021-06-30 | DZ9: 2021-06-30 | EA9: 2021-06-23 | EB9: 2021-06-30 | EC9: 2021-06-16 | ED9: 2021-06-09 | EE9: 2021-06-09 | EF9: 2021-06-14 | EG9: 2021-06-30 | EH9: 2021-06-30 | EI9: 2021-06-11 | EJ9: 2021-06-11 | EK9: 2021-06-11 | EL9: 2021-06-23 | EM9: 2021-06-30 | EN9: 2021-06-16 | EO9: 2020-07-30 | EP9: 2021-06-22 | EQ9: 2021-06-30 | ER9: 2021-06-23 | ES9: 2021-06-15 | ET9: 2021-06-30 | EU9: 2021-06-23 | EV9: 2021-06-25 | EW9: 2021-06-30 | EX9: 2021-06-30 | EY9: 2021-06-30 | EZ9: 2021-06-18 | FA9: 2021-06-30 | FB9: 2021-06-30 | FC9: 2021-06-30 | FD9: 2021-06-30 | FE9: 2021-06-30 | FF9: 2020-08-07 | FG9: 2020-07-30 | FH9: 2020-08-07 | FI9: 2020-07-30 | FJ9: 2021-06-14 | FK9: 2021-06-23 | FL9: 2021-06-30 | FM9: 2021-06-21 | FN9: 2021-06-17 | FO9: 2021-06-30 | FP9: 2020-08-24 | FQ9: 2021-06-24 | FR9: 2021-06-30 | FS9: 2021-06-30 | FT9: 2020-08-31 | FU9: 2021-06-30 | FV9: 2021-06-23 | FW9: 2021-06-30 | FX9: 2020-07-24 | FY9: 2020-07-24 | FZ9: 2020-07-24 | GA9: 2020-07-24 | GB9: 2020-07-24 | GC9: 2020-07-24 | GD9: 2020-07-24 | GE9: 2020-07-24 | GF9: 2021-06-25 | GG9: 2021-06-25 | GH9: 2021-06-25 | GI9: 2021-06-25 | GJ9: 2021-06-25 | GK9: =IF(MAX(GK11:GK380)=0,"",MAX(GK11:GK380)) -> 2021-06-25 | GL9: 2021-06-29 | GM9: 2021-06-30 | GN9: 2021-06-15 | GO9: 2021-06-15 | GP9: 2021-06-22 | GQ9: 2020-08-13 | GR9: 2021-06-15 | GS9: 2020-08-06 | GT9: 2020-08-31 | GU9: 2021-06-30 | GV9: 2021-06-30 | GW9: 2020-11-30 | GX9: 2021-06-18 | GY9: 2021-06-19 | GZ9: 2021-06-30 | HA9: 2021-06-17 | HB9: 2021-06-30 | HC9: 2020-07-31 | HD9: 2020-07-31 | HE9: 2020-07-31 | HF9: 2021-06-16 | HG9: 2021-06-30 | HH9: =IF(MAX(HH11:HH380)=0,"",MAX(HH11:HH380)) -> 2021-06-22 | HI9: =IF(MAX(HI11:HI380)=0,"",MAX(HI11:HI380)) -> 2021-06-30 | HJ9: =IF(MAX(HJ11:HJ380)=0,"",MAX(HJ11:HJ380)) -> 2021-06-30
A10: =IF(COUNTA(A11:A380)=0,0,COUNTA(A11:A380)) -> 365 | B10: 237 | C10: 180 | D10: 180 | E10: 334 | F10: 31 | G10: 365 | H10: 198 | I10: 216 | J10: 180 | K10: 365 | L10: 365 | M10: 216 | N10: 365 | O10: 180 | P10: 212 | Q10: 122 | R10: 94 | S10: 153 | T10: 180 | U10: 20 | V10: 24 | W10: 180 | X10: 180 | Y10: 220 | Z10: 251 | AA10: 365 | AB10: 334 | AC10: 180 | AD10: 31 | AE10: 365 | AF10: 216 | AG10: 181 | AH10: 204 | AI10: 204 | AJ10: 217 | AK10: 304 | AL10: 365 | AM10: 198 | AN10: 216 | AO10: 365 | AP10: 365 | AQ10: 154 | AR10: 26 | AS10: 180 | AT10: 30 | AU10: 226 | AV10: 220 | AW10: 220 | AX10: 216 | AY10: 365 | AZ10: 250 | BA10: 216 | BB10: 180 | BC10: 198 | BD10: 180 | BE10: 198 | BF10: 192 | BG10: 180 | BH10: 22 | BI10: 180 | BJ10: 20 | BK10: 226 | BL10: 180 | BM10: =IF(COUNTA(BM11:BM380)=0,0,COUNTA(BM11:BM380)) -> 25 | BN10: 180 | BO10: 365 | BP10: 220 | BQ10: 216 | BR10: 365 | BS10: 315 | BT10: 365 | BU10: 365 | BV10: 216 | BW10: 180 | BX10: 30 | BY10: 180 | BZ10: 365 | CA10: 365 | CB10: 365 | CC10: 216 | CD10: 365 | CE10: 365 | CF10: 365 | CG10: 365 | CH10: 365 | CI10: 365 | CJ10: 365 | CK10: 365 | CL10: 365 | CM10: 215 | CN10: 215 | CO10: 215 | CP10: 215 | CQ10: 215 | CR10: 215 | CS10: 215 | CT10: 215 | CU10: 365 | CV10: 365 | CW10: 226 | CX10: 365 | CY10: 164 | CZ10: 52 | DA10: 125 | DB10: 91 | DC10: 180 | DD10: 25 | DE10: 365 | DF10: 365 | DG10: 216 | DH10: 180 | DI10: 20 | DJ10: 132 | DK10: 98 | DL10: 49 | DM10: 67 | DN10: 184 | DO10: 303 | DP10: 184 | DQ10: 35 | DR10: 62 | DS10: 35 | DT10: 293 | DU10: 221 | DV10: 260 | DW10: 22 | DX10: 180 | DY10: =IF(COUNTA(DY11:DY380)=0,0,COUNTA(DY11:DY380)) -> 216 | DZ10: 365 | EA10: 220 | EB10: 365 | EC10: 200 | ED10: 180 | EE10: 240 | EF10: 216 | EG10: 365 | EH10: 365 | EI10: 198 | EJ10: 198 | EK10: 198 | EL10: 230 | EM10: 365 | EN10: 180 | EO10: 16 | EP10: 180 | EQ10: 365 | ER10: 241 | ES10: 202 | ET10: 365 | EU10: 235 | EV10: 235 | EW10: 365 | EX10: 222 | EY10: 365 | EZ10: 216 | FA10: 365 | FB10: 365 | FC10: 237 | FD10: 184 | FE10: 184 | FF10: 5 | FG10: 21 | FH10: 5 | FI10: 21 | FJ10: 180 | FK10: 216 | FL10: 365 | FM10: 220 | FN10: 180 | FO10: 365 | FP10: 36 | FQ10: 198 | FR10: 218 | FS10: 188 | FT10: 34 | FU10: 365 | FV10: 218 | FW10: 365 | FX10: 18 | FY10: 18 | FZ10: 18 | GA10: 18 | GB10: 18 | GC10: 18 | GD10: 18 | GE10: 18 | GF10: 187 | GG10: 260 | GH10: 187 | GI10: 260 | GJ10: 187 | GK10: =IF(COUNTA(GK11:GK380)=0,0,COUNTA(GK11:GK380)) -> 260 | GL10: 234 | GM10: 365 | GN10: 221 | GO10: 221 | GP10: 187 | GQ10: 29 | GR10: 179 | GS10: 15 | GT10: 1 | GU10: 365 | GV10: 131 | GW10: 95 | GX10: 180 | GY10: 244 | GZ10: 334 | HA10: 198 | HB10: 334 | HC10: 31 | HD10: 22 | HE10: 31 | HF10: 180 | HG10: 365 | HH10: =IF(COUNTA(HH11:HH380)=0,0,COUNTA(HH11:HH380)) -> 198 | HI10: =IF(COUNTA(HI11:HI380)=0,0,COUNTA(HI11:HI380)) -> 365 | HJ10: =IF(COUNTA(HJ11:HJ380)=0,0,COUNTA(HJ11:HJ380)) -> 365
A11: 2020-07-01 | B11: 2020-07-01 | C11: 2020-09-02 | D11: 2020-09-02 | E11: 2020-08-01 | F11: 2020-07-01 | G11: 2020-07-01 | H11: 2020-07-06 | I11: 2020-07-08 | J11: 2020-08-31 | K11: 2020-07-01 | L11: 2020-07-01 | M11: 2020-07-07 | N11: 2020-07-01 | O11: 2020-09-02 | P11: 2020-12-01 | Q11: 2020-12-01 | R11: 2020-07-06 | S11: 2020-07-01 | T11: 2020-09-14 | U11: 2020-07-06 | V11: 2020-07-06 | W11: 2020-09-08 | X11: 2020-09-08 | Y11: 2020-07-01 | Z11: 2020-07-01 | AA11: 2020-07-01 | AB11: 2020-08-01 | AC11: 2020-08-25 | AD11: 2020-07-01 | AE11: 2020-07-01 | AF11: 2020-07-01 | AG11: 2021-01-01 | AH11: 2020-07-07 | AI11: 2020-07-07 | AJ11: 2020-07-06 | AK11: 2020-07-06 | AL11: 2020-07-01 | AM11: 2020-07-13 | AN11: 2020-07-06 | AO11: 2020-07-01 | AP11: 2020-07-01 | AQ11: 2020-10-01 | AR11: 2020-08-25 | AS11: 2020-09-02 | AT11: 2020-07-06 | AU11: 2020-07-01 | AV11: 2020-07-01 | AW11: 2020-07-01 | AX11: 2020-07-02 | AY11: 2020-07-01 | AZ11: 2020-07-01 | BA11: 2020-07-01 | BB11: 2020-09-08 | BC11: 2020-07-13 | BD11: 2020-09-02 | BE11: 2020-07-06 | BF11: 2020-07-06 | BG11: 2020-09-09 | BH11: 2020-07-01 | BI11: 2020-09-10 | BJ11: 2020-07-01 | BK11: 2020-07-08 | BL11: 2020-09-03 | BM11: 2020-07-06 | BN11: 2020-09-03 | BO11: 2020-07-01 | BP11: 2020-07-01 | BQ11: 2020-07-06 | BR11: 2020-07-01 | BS11: 2020-07-06 | BT11: 2020-07-01 | BU11: 2020-07-01 | BV11: 2020-07-06 | BW11: 2020-09-08 | BX11: 2020-07-01 | BY11: 2020-09-08 | BZ11: 2020-07-01 | CA11: 2020-07-01 | CB11: 2020-07-01 | CC11: 2020-07-01 | CD11: 2020-07-01 | CE11: 2020-07-01 | CF11: 2020-07-01 | CG11: 2020-07-01 | CH11: 2020-07-01 | CI11: 2020-07-01 | CJ11: 2020-07-01 | CK11: 2020-07-01 | CL11: 2020-07-01 | CM11: 2020-07-06 | CN11: 2020-07-06 | CO11: 2020-07-06 | CP11: 2020-07-06 | CQ11: 2020-07-06 | CR11: 2020-07-06 | CS11: 2020-07-06 | CT11: 2020-07-06 | CU11: 2020-07-01 | CV11: 2020-07-01 | CW11: 2020-07-06 | CX11: 2020-07-01 | CY11: 2020-10-01 | CZ11: 2020-07-06 | DA11: 2020-12-01 | DB11: 2020-07-01 | DC11: 2020-09-08 | DD11: 2020-07-06 | DE11: 2020-07-01 | DF11: 2020-07-01 | DG11: 2020-07-08 | DH11: 2020-08-31 | DI11: 2020-07-01 | DJ11: 2020-12-07 | DK11: 2020-12-07 | DL11: 2020-09-14 | DM11: 2020-09-14 | DN11: 2020-09-07 | DO11: 2020-09-01 | DP11: 2020-09-07 | DQ11: 2020-07-06 | DR11: 2020-07-01 | DS11: 2020-07-06 | DT11: 2020-07-07 | DU11: 2020-07-01 | DV11: 2020-09-13 | DW11: 2020-07-01 | DX11: 2020-09-02 | DY11: 2020-07-01 | DZ11: 2020-07-01 | EA11: 2020-07-06 | EB11: 2020-07-01 | EC11: 2020-07-06 | ED11: 2020-08-24 | EE11: 2020-08-24 | EF11: 2020-07-08 | EG11: 2020-07-01 | EH11: 2020-07-01 | EI11: 2020-07-01 | EJ11: 2020-07-01 | EK11: 2020-07-01 | EL11: 2020-07-01 | EM11: 2020-07-01 | EN11: 2020-08-27 | EO11: 2020-07-06 | EP11: 2020-09-08 | EQ11: 2020-07-01 | ER11: 2020-07-01 | ES11: 2020-07-01 | ET11: 2020-07-01 | EU11: 2020-07-06 | EV11: 2020-07-06 | EW11: 2020-07-01 | EX11: 2020-07-01 | EY11: 2020-07-01 | EZ11: 2020-07-06 | FA11: 2020-07-01 | FB11: 2020-07-01 | FC11: 2020-07-01 | FD11: 2020-09-14 | FE11: 2020-09-14 | FF11: 2020-08-03 | FG11: 2020-07-01 | FH11: 2020-08-03 | FI11: 2020-07-01 | FJ11: 2020-08-31 | FK11: 2020-07-01 | FL11: 2020-07-01 | FM11: 2020-07-01 | FN11: 2020-09-02 | FO11: 2020-07-01 | FP11: 2020-07-06 | FQ11: 2020-08-19 | FR11: 2020-07-01 | FS11: 2020-09-01 | FT11: 2020-07-01 | FU11: 2020-07-01 | FV11: 2020-07-08 | FW11: 2020-07-01 | FX11: 2020-07-01 | FY11: 2020-07-01 | FZ11: 2020-07-01 | GA11: 2020-07-01 | GB11: 2020-07-01 | GC11: 2020-07-01 | GD11: 2020-07-01 | GE11: 2020-07-01 | GF11: 2020-09-08 | GG11: 2020-09-08 | GH11: 2020-09-08 | GI11: 2020-09-08 | GJ11: 2020-09-08 | GK11: 2020-09-08 | GL11: 2020-07-01 | GM11: 2020-07-01 | GN11: 2020-07-01 | GO11: 2020-07-01 | GP11: 2020-09-02 | GQ11: 2020-07-06 | GR11: 2020-09-01 | GS11: 2020-07-07 | GT11: 2020-08-31 | GU11: 2020-07-01 | GV11: 2020-12-01 | GW11: 2020-07-06 | GX11: 2020-09-12 | GY11: 2020-09-12 | GZ11: 2020-08-01 | HA11: 2020-08-03 | HB11: 2020-08-01 | HC11: 2020-07-01 | HD11: 2020-07-01 | HE11: 2020-07-01 | HF11: 2020-09-01 | HG11: 2020-07-01 | HH11: 2020-08-17 | HI11: 2020-07-01 | HJ11: 2020-07-01
A12: 2020-07-02 | B12: 2020-07-02 | C12: 2020-09-03 | D12: 2020-09-03 | E12: 2020-08-02 | F12: 2020-07-02 | G12: 2020-07-02 | H12: 2020-07-07 | I12: 2020-07-09 | J12: 2020-09-01 | K12: 2020-07-02 | L12: 2020-07-02 | M12: 2020-07-08 | N12: 2020-07-02 | O12: 2020-09-03 | P12: 2020-12-02 | Q12: 2020-12-02 | R12: 2020-07-07 | S12: 2020-07-02 | T12: 2020-09-15 | U12: 2020-07-07 | V12: 2020-07-07 | W12: 2020-09-09 | X12: 2020-09-09 | Y12: 2020-07-02 | Z12: 2020-07-02 | AA12: 2020-07-02 | AB12: 2020-08-02 | AC12: 2020-08-26 | AD12: 2020-07-02 | AE12: 2020-07-02 | AF12: 2020-07-02 | AG12: 2021-01-02 | AH12: 2020-07-08 | AI12: 2020-07-08 | AJ12: 2020-07-07 | AK12: 2020-07-07 | AL12: 2020-07-02 | AM12: 2020-07-14 | AN12: 2020-07-07 | AO12: 2020-07-02 | AP12: 2020-07-02 | AQ12: 2020-10-02 | AR12: 2020-08-26 | AS12: 2020-09-03 | AT12: 2020-07-07 | AU12: 2020-07-02 | AV12: 2020-07-02 | AW12: 2020-07-02 | AX12: 2020-07-03 | AY12: 2020-07-02 | AZ12: 2020-07-02 | BA12: 2020-07-02 | BB12: 2020-09-09 | BC12: 2020-07-14 | BD12: 2020-09-03 | BE12: 2020-07-07 | BF12: 2020-07-07 | BG12: 2020-09-10 | BH12: 2020-07-02 | BI12: 2020-09-11 | BJ12: 2020-07-02 | BK12: 2020-07-09 | BL12: 2020-09-08 | BM12: 2020-07-07 | BN12: 2020-09-08 | BO12: 2020-07-02 | BP12: 2020-07-02 | BQ12: 2020-07-07 | BR12: 2020-07-02 | BS12: 2020-07-07 | BT12: 2020-07-02 | BU12: 2020-07-02 | BV12: 2020-07-07 | BW12: 2020-09-09 | BX12: 2020-07-02 | BY12: 2020-09-09 | BZ12: 2020-07-02 | CA12: 2020-07-02 | CB12: 2020-07-02 | CC12: 2020-07-02 | CD12: 2020-07-02 | CE12: 2020-07-02 | CF12: 2020-07-02 | CG12: 2020-07-02 | CH12: 2020-07-02 | CI12: 2020-07-02 | CJ12: 2020-07-02 | CK12: 2020-07-02 | CL12: 2020-07-02 | CM12: 2020-07-07 | CN12: 2020-07-07 | CO12: 2020-07-07 | CP12: 2020-07-07 | CQ12: 2020-07-07 | CR12: 2020-07-07 | CS12: 2020-07-07 | CT12: 2020-07-07 | CU12: 2020-07-02 | CV12: 2020-07-02 | CW12: 2020-07-07 | CX12: 2020-07-02 | CY12: 2020-10-02 | CZ12: 2020-07-07 | DA12: 2020-12-02 | DB12: 2020-07-02 | DC12: 2020-09-09 | DD12: 2020-07-07 | DE12: 2020-07-02 | DF12: 2020-07-02 | DG12: 2020-07-09 | DH12: 2020-09-01 | DI12: 2020-07-02 | DJ12: 2020-12-08 | DK12: 2020-12-08 | DL12: 2020-09-15 | DM12: 2020-09-15 | DN12: 2020-09-08 | DO12: 2020-09-02 | DP12: 2020-09-08 | DQ12: 2020-07-07 | DR12: 2020-07-02 | DS12: 2020-07-07 | DT12: 2020-07-08 | DU12: 2020-07-02 | DV12: 2020-09-14 | DW12: 2020-07-02 | DX12: 2020-09-03 | DY12: 2020-07-02 | DZ12: 2020-07-02 | EA12: 2020-07-07 | EB12: 2020-07-02 | EC12: 2020-07-07 | ED12: 2020-08-25 | EE12: 2020-08-25 | EF12: 2020-07-09 | EG12: 2020-07-02 | EH12: 2020-07-02 | EI12: 2020-07-02 | EJ12: 2020-07-02 | EK12: 2020-07-02 | EL12: 2020-07-02 | EM12: 2020-07-02 | EN12: 2020-08-31 | EO12: 2020-07-07 | EP12: 2020-09-09 | EQ12: 2020-07-02 | ER12: 2020-07-02 | ES12: 2020-07-02 | ET12: 2020-07-02 | EU12: 2020-07-07 | EV12: 2020-07-07 | EW12: 2020-07-02 | EX12: 2020-07-02 | EY12: 2020-07-02 | EZ12: 2020-07-07 | FA12: 2020-07-02 | FB12: 2020-07-02 | FC12: 2020-07-02 | FD12: 2020-09-15 | FE12: 2020-09-15 | FF12: 2020-08-04 | FG12: 2020-07-02 | FH12: 2020-08-04 | FI12: 2020-07-02 | FJ12: 2020-09-01 | FK12: 2020-07-02 | FL12: 2020-07-02 | FM12: 2020-07-02 | FN12: 2020-09-03 | FO12: 2020-07-02 | FP12: 2020-07-07 | FQ12: 2020-08-20 | FR12: 2020-07-02 | FS12: 2020-09-02 | FT12: 2020-07-02 | FU12: 2020-07-02 | FV12: 2020-07-09 | FW12: 2020-07-02 | FX12: 2020-07-02 | FY12: 2020-07-02 | FZ12: 2020-07-02 | GA12: 2020-07-02 | GB12: 2020-07-02 | GC12: 2020-07-02 | GD12: 2020-07-02 | GE12: 2020-07-02 | GF12: 2020-09-09 | GG12: 2020-09-09 | GH12: 2020-09-09 | GI12: 2020-09-09 | GJ12: 2020-09-09 | GK12: 2020-09-09 | GL12: 2020-07-02 | GM12: 2020-07-02 | GN12: 2020-07-02 | GO12: 2020-07-02 | GP12: 2020-09-03 | GQ12: 2020-07-07 | GR12: 2020-09-02 | GS12: 2020-07-08 | GU12: 2020-07-02 | GV12: 2020-12-02 | GW12: 2020-07-07 | GX12: 2020-09-14 | GY12: 2020-09-13 | GZ12: 2020-08-02 | HA12: 2020-08-04 | HB12: 2020-08-02 | HC12: 2020-07-02 | HD12: 2020-07-02 | HE12: 2020-07-02 | HF12: 2020-09-02 | HG12: 2020-07-02 | HH12: 2020-08-18 | HI12: 2020-07-02 | HJ12: 2020-07-02
A13: 2020-07-03 | B13: 2020-07-06 | C13: 2020-09-04 | D13: 2020-09-04 | E13: 2020-08-03 | F13: 2020-07-03 | G13: 2020-07-03 | H13: 2020-07-08 | I13: 2020-07-10 | J13: 2020-09-02 | K13: 2020-07-03 | L13: 2020-07-03 | M13: 2020-07-09 | N13: 2020-07-03 | O13: 2020-09-04 | P13: 2020-12-03 | Q13: 2020-12-03 | R13: 2020-07-08 | S13: 2020-07-03 | T13: 2020-09-16 | U13: 2020-07-08 | V13: 2020-07-08 | W13: 2020-09-10 | X13: 2020-09-10 | Y13: 2020-07-06 | Z13: 2020-07-06 | AA13: 2020-07-03 | AB13: 2020-08-03 | AC13: 2020-08-27 | AD13: 2020-07-03 | AE13: 2020-07-03 | AF13: 2020-07-06 | AG13: 2021-01-03 | AH13: 2020-07-09 | AI13: 2020-07-09 | AJ13: 2020-07-08 | AK13: 2020-07-08 | AL13: 2020-07-03 | AM13: 2020-07-15 | AN13: 2020-07-08 | AO13: 2020-07-03 | AP13: 2020-07-03 | AQ13: 2020-10-05 | AR13: 2020-08-27 | AS13: 2020-09-04 | AT13: 2020-07-08 | AU13: 2020-07-03 | AV13: 2020-07-06 | AW13: 2020-07-06 | AX13: 2020-07-06 | AY13: 2020-07-03 | AZ13: 2020-07-06 | BA13: 2020-07-06 | BB13: 2020-09-10 | BC13: 2020-07-15 | BD13: 2020-09-04 | BE13: 2020-07-08 | BF13: 2020-07-08 | BG13: 2020-09-11 | BH13: 2020-07-06 | BI13: 2020-09-14 | BJ13: 2020-07-03 | BK13: 2020-07-10 | BL13: 2020-09-09 | BM13: 2020-07-08 | BN13: 2020-09-09 | BO13: 2020-07-03 | BP13: 2020-07-06 | BQ13: 2020-07-08 | BR13: 2020-07-03 | BS13: 2020-07-08 | BT13: 2020-07-03 | BU13: 2020-07-03 | BV13: 2020-07-08 | BW13: 2020-09-10 | BX13: 2020-07-06 | BY13: 2020-09-10 | BZ13: 2020-07-03 | CA13: 2020-07-03 | CB13: 2020-07-03 | CC13: 2020-07-03 | CD13: 2020-07-03 | CE13: 2020-07-03 | CF13: 2020-07-03 | CG13: 2020-07-03 | CH13: 2020-07-03 | CI13: 2020-07-03 | CJ13: 2020-07-03 | CK13: 2020-07-03 | CL13: 2020-07-03 | CM13: 2020-07-08 | CN13: 2020-07-08 | CO13: 2020-07-08 | CP13: 2020-07-08 | CQ13: 2020-07-08 | CR13: 2020-07-08 | CS13: 2020-07-08 | CT13: 2020-07-08 | CU13: 2020-07-03 | CV13: 2020-07-03 | CW13: 2020-07-08 | CX13: 2020-07-03 | CY13: 2020-10-05 | CZ13: 2020-07-08 | DA13: 2020-12-03 | DB13: 2020-07-06 | DC13: 2020-09-10 | DD13: 2020-07-08 | DE13: 2020-07-03 | DF13: 2020-07-03 | DG13: 2020-07-10 | DH13: 2020-09-02 | DI13: 2020-07-06 | DJ13: 2020-12-09 | DK13: 2020-12-09 | DL13: 2020-09-16 | DM13: 2020-09-16 | DN13: 2020-09-09 | DO13: 2020-09-03 | DP13: 2020-09-09 | DQ13: 2020-07-08 | DR13: 2020-07-03 | DS13: 2020-07-08 | DT13: 2020-07-09 | DU13: 2020-07-06 | DV13: 2020-09-15 | DW13: 2020-07-03 | DX13: 2020-09-08 | DY13: 2020-07-03 | DZ13: 2020-07-03 | EA13: 2020-07-08 | EB13: 2020-07-03 | EC13: 2020-07-08 | ED13: 2020-08-26 | EE13: 2020-08-26 | EF13: 2020-07-10 | EG13: 2020-07-03 | EH13: 2020-07-03 | EI13: 2020-07-06 | EJ13: 2020-07-06 | EK13: 2020-07-06 | EL13: 2020-07-06 | EM13: 2020-07-03 | EN13: 2020-09-01 | EO13: 2020-07-08 | EP13: 2020-09-10 | EQ13: 2020-07-03 | ER13: 2020-07-06 | ES13: 2020-07-06 | ET13: 2020-07-03 | EU13: 2020-07-08 | EV13: 2020-07-08 | EW13: 2020-07-03 | EX13: 2020-07-13 | EY13: 2020-07-03 | EZ13: 2020-07-08 | FA13: 2020-07-03 | FB13: 2020-07-03 | FC13: 2020-07-13 | FD13: 2020-09-16 | FE13: 2020-09-16 | FF13: 2020-08-05 | FG13: 2020-07-06 | FH13: 2020-08-05 | FI13: 2020-07-06 | FJ13: 2020-09-02 | FK13: 2020-07-13 | FL13: 2020-07-03 | FM13: 2020-07-06 | FN13: 2020-09-04 | FO13: 2020-07-03 | FP13: 2020-07-08 | FQ13: 2020-08-21 | FR13: 2020-07-06 | FS13: 2020-09-03 | FT13: 2020-07-03 | FU13: 2020-07-03 | FV13: 2020-07-10 | FW13: 2020-07-03 | FX13: 2020-07-03 | FY13: 2020-07-03 | FZ13: 2020-07-03 | GA13: 2020-07-03 | GB13: 2020-07-03 | GC13: 2020-07-03 | GD13: 2020-07-03 | GE13: 2020-07-03 | GF13: 2020-09-10 | GG13: 2020-09-10 | GH13: 2020-09-10 | GI13: 2020-09-10 | GJ13: 2020-09-10 | GK13: 2020-09-10 | GL13: 2020-07-06 | GM13: 2020-07-03 | GN13: 2020-07-06 | GO13: 2020-07-06 | GP13: 2020-09-04 | GQ13: 2020-07-08 | GR13: 2020-09-03 | GS13: 2020-07-09 | GU13: 2020-07-03 | GV13: 2020-12-03 | GW13: 2020-07-08 | GX13: 2020-09-15 | GY13: 2020-09-14 | GZ13: 2020-08-03 | HA13: 2020-08-05 | HB13: 2020-08-03 | HC13: 2020-07-03 | HD13: 2020-07-06 | HE13: 2020-07-03 | HF13: 2020-09-03 | HG13: 2020-07-03 | HH13: 2020-08-19 | HI13: 2020-07-03 | HJ13: 2020-07-03
A14: 2020-07-04 | B14: 2020-07-07 | C14: 2020-09-08 | D14: 2020-09-08 | E14: 2020-08-04 | F14: 2020-07-04 | G14: 2020-07-04 | H14: 2020-07-09 | I14: 2020-07-13 | J14: 2020-09-03 | K14: 2020-07-04 | L14: 2020-07-04 | M14: 2020-07-10 | N14: 2020-07-04 | O14: 2020-09-08 | P14: 2020-12-04 | Q14: 2020-12-04 | R14: 2020-07-09 | S14: 2020-07-04 | T14: 2020-09-17 | U14: 2020-07-09 | V14: 2020-07-09 | W14: 2020-09-11 | X14: 2020-09-11 | Y14: 2020-07-07 | Z14: 2020-07-07 | AA14: 2020-07-04 | AB14: 2020-08-04 | AC14: 2020-08-28 | AD14: 2020-07-04 | AE14: 2020-07-04 | AF14: 2020-07-07 | AG14: 2021-01-04 | AH14: 2020-07-13 | AI14: 2020-07-13 | AJ14: 2020-07-09 | AK14: 2020-07-09 | AL14: 2020-07-04 | AM14: 2020-07-16 | AN14: 2020-07-09 | AO14: 2020-07-04 | AP14: 2020-07-04 | AQ14: 2020-10-06 | AR14: 2020-08-28 | AS14: 2020-09-08 | AT14: 2020-07-09 | AU14: 2020-07-13 | AV14: 2020-07-07 | AW14: 2020-07-07 | AX14: 2020-07-07 | AY14: 2020-07-04 | AZ14: 2020-07-07 | BA14: 2020-07-07 | BB14: 2020-09-11 | BC14: 2020-07-16 | BD14: 2020-09-08 | BE14: 2020-07-09 | BF14: 2020-07-09 | BG14: 2020-09-14 | BH14: 2020-07-07 | BI14: 2020-09-15 | BJ14: 2020-07-06 | BK14: 2020-07-13 | BL14: 2020-09-10 | BM14: 2020-07-09 | BN14: 2020-09-10 | BO14: 2020-07-04 | BP14: 2020-07-07 | BQ14: 2020-07-09 | BR14: 2020-07-04 | BS14: 2020-07-09 | BT14: 2020-07-04 | BU14: 2020-07-04 | BV14: 2020-07-09 | BW14: 2020-09-11 | BX14: 2020-07-07 | BY14: 2020-09-11 | BZ14: 2020-07-04 | CA14: 2020-07-04 | CB14: 2020-07-04 | CC14: 2020-07-13 | CD14: 2020-07-04 | CE14: 2020-07-04 | CF14: 2020-07-04 | CG14: 2020-07-04 | CH14: 2020-07-04 | CI14: 2020-07-04 | CJ14: 2020-07-04 | CK14: 2020-07-04 | CL14: 2020-07-04 | CM14: 2020-07-09 | CN14: 2020-07-09 | CO14: 2020-07-09 | CP14: 2020-07-09 | CQ14: 2020-07-09 | CR14: 2020-07-09 | CS14: 2020-07-09 | CT14: 2020-07-09 | CU14: 2020-07-04 | CV14: 2020-07-04 | CW14: 2020-07-09 | CX14: 2020-07-04 | CY14: 2020-10-06 | CZ14: 2020-07-09 | DA14: 2020-12-04 | DB14: 2020-07-07 | DC14: 2020-09-11 | DD14: 2020-07-09 | DE14: 2020-07-04 | DF14: 2020-07-04 | DG14: 2020-07-13 | DH14: 2020-09-03 | DI14: 2020-07-07 | DJ14: 2020-12-10 | DK14: 2020-12-10 | DL14: 2020-09-17 | DM14: 2020-09-17 | DN14: 2020-09-10 | DO14: 2020-09-04 | DP14: 2020-09-10 | DQ14: 2020-07-09 | DR14: 2020-07-04 | DS14: 2020-07-09 | DT14: 2020-07-10 | DU14: 2020-07-07 | DV14: 2020-09-16 | DW14: 2020-07-04 | DX14: 2020-09-09 | DY14: 2020-07-13 | DZ14: 2020-07-04 | EA14: 2020-07-09 | EB14: 2020-07-04 | EC14: 2020-07-09 | ED14: 2020-08-27 | EE14: 2020-08-27 | EF14: 2020-07-13 | EG14: 2020-07-04 | EH14: 2020-07-04 | EI14: 2020-07-07 | EJ14: 2020-07-07 | EK14: 2020-07-07 | EL14: 2020-07-07 | EM14: 2020-07-04 | EN14: 2020-09-02 | EO14: 2020-07-09 | EP14: 2020-09-11 | EQ14: 2020-07-04 | ER14: 2020-07-07 | ES14: 2020-07-07 | ET14: 2020-07-04 | EU14: 2020-07-09 | EV14: 2020-07-09 | EW14: 2020-07-04 | EX14: 2020-07-14 | EY14: 2020-07-04 | EZ14: 2020-07-09 | FA14: 2020-07-04 | FB14: 2020-07-04 | FC14: 2020-07-14 | FD14: 2020-09-17 | FE14: 2020-09-17 | FF14: 2020-08-06 | FG14: 2020-07-07 | FH14: 2020-08-06 | FI14: 2020-07-07 | FJ14: 2020-09-03 | FK14: 2020-07-14 | FL14: 2020-07-04 | FM14: 2020-07-07 | FN14: 2020-09-08 | FO14: 2020-07-04 | FP14: 2020-07-09 | FQ14: 2020-08-24 | FR14: 2020-07-07 | FS14: 2020-09-04 | FT14: 2020-07-13 | FU14: 2020-07-04 | FV14: 2020-07-13 | FW14: 2020-07-04 | FX14: 2020-07-06 | FY14: 2020-07-06 | FZ14: 2020-07-06 | GA14: 2020-07-06 | GB14: 2020-07-06 | GC14: 2020-07-06 | GD14: 2020-07-06 | GE14: 2020-07-06 | GF14: 2020-09-11 | GG14: 2020-09-11 | GH14: 2020-09-11 | GI14: 2020-09-11 | GJ14: 2020-09-11 | GK14: 2020-09-11 | GL14: 2020-07-07 | GM14: 2020-07-04 | GN14: 2020-07-07 | GO14: 2020-07-07 | GP14: 2020-09-07 | GQ14: 2020-07-09 | GR14: 2020-09-08 | GS14: 2020-07-14 | GU14: 2020-07-04 | GV14: 2020-12-04 | GW14: 2020-07-09 | GX14: 2020-09-16 | GY14: 2020-09-15 | GZ14: 2020-08-04 | HA14: 2020-08-06 | HB14: 2020-08-04 | HC14: 2020-07-04 | HD14: 2020-07-07 | HE14: 2020-07-04 | HF14: 2020-09-04 | HG14: 2020-07-04 | HH14: 2020-08-20 | HI14: 2020-07-04 | HJ14: 2020-07-04
A15: 2020-07-05 | B15: 2020-07-08 | C15: 2020-09-09 | D15: 2020-09-09 | E15: 2020-08-05 | F15: 2020-07-05 | G15: 2020-07-05 | H15: 2020-07-10 | I15: 2020-07-14 | J15: 2020-09-04 | K15: 2020-07-05 | L15: 2020-07-05 | M15: 2020-07-13 | N15: 2020-07-05 | O15: 2020-09-09 | P15: 2020-12-05 | Q15: 2020-12-07 | R15: 2020-07-10 | S15: 2020-07-05 | T15: 2020-09-18 | U15: 2020-07-13 | V15: 2020-07-13 | W15: 2020-09-14 | X15: 2020-09-14 | Y15: 2020-07-08 | Z15: 2020-07-08 | AA15: 2020-07-05 | AB15: 2020-08-05 | AC15: 2020-08-31 | AD15: 2020-07-05 | AE15: 2020-07-05 | AF15: 2020-07-08 | AG15: 2021-01-05 | AH15: 2020-07-14 | AI15: 2020-07-14 | AJ15: 2020-07-10 | AK15: 2020-07-10 | AL15: 2020-07-05 | AM15: 2020-07-17 | AN15: 2020-07-10 | AO15: 2020-07-05 | AP15: 2020-07-05 | AQ15: 2020-10-07 | AR15: 2020-08-31 | AS15: 2020-09-09 | AT15: 2020-07-10 | AU15: 2020-07-14 | AV15: 2020-07-08 | AW15: 2020-07-08 | AX15: 2020-07-08 | AY15: 2020-07-05 | AZ15: 2020-07-08 | BA15: 2020-07-08 | BB15: 2020-09-14 | BC15: 2020-07-17 | BD15: 2020-09-09 | BE15: 2020-07-10 | BF15: 2020-07-13 | BG15: 2020-09-15 | BH15: 2020-07-08 | BI15: 2020-09-16 | BJ15: 2020-07-07 | BK15: 2020-07-14 | BL15: 2020-09-11 | BM15: 2020-07-10 | BN15: 2020-09-11 | BO15: 2020-07-05 | BP15: 2020-07-08 | BQ15: 2020-07-10 | BR15: 2020-07-05 | BS15: 2020-07-10 | BT15: 2020-07-05 | BU15: 2020-07-05 | BV15: 2020-07-10 | BW15: 2020-09-14 | BX15: 2020-07-08 | BY15: 2020-09-14 | BZ15: 2020-07-05 | CA15: 2020-07-05 | CB15: 2020-07-05 | CC15: 2020-07-14 | CD15: 2020-07-05 | CE15: 2020-07-05 | CF15: 2020-07-05 | CG15: 2020-07-05 | CH15: 2020-07-05 | CI15: 2020-07-05 | CJ15: 2020-07-05 | CK15: 2020-07-05 | CL15: 2020-07-05 | CM15: 2020-07-10 | CN15: 2020-07-10 | CO15: 2020-07-10 | CP15: 2020-07-10 | CQ15: 2020-07-10 | CR15: 2020-07-10 | CS15: 2020-07-10 | CT15: 2020-07-10 | CU15: 2020-07-05 | CV15: 2020-07-05 | CW15: 2020-07-10 | CX15: 2020-07-05 | CY15: 2020-10-07 | CZ15: 2020-07-10 | DA15: 2020-12-07 | DB15: 2020-07-08 | DC15: 2020-09-14 | DD15: 2020-07-10 | DE15: 2020-07-05 | DF15: 2020-07-05 | DG15: 2020-07-14 | DH15: 2020-09-04 | DI15: 2020-07-08 | DJ15: 2020-12-11 | DK15: 2020-12-11 | DL15: 2020-09-18 | DM15: 2020-09-18 | DN15: 2020-09-11 | DO15: 2020-09-05 | DP15: 2020-09-11 | DQ15: 2020-07-10 | DR15: 2020-07-05 | DS15: 2020-07-10 | DT15: 2020-07-11 | DU15: 2020-07-08 | DV15: 2020-09-17 | DW15: 2020-07-05 | DX15: 2020-09-10 | DY15: 2020-07-14 | DZ15: 2020-07-05 | EA15: 2020-07-10 | EB15: 2020-07-05 | EC15: 2020-07-10 | ED15: 2020-08-28 | EE15: 2020-08-28 | EF15: 2020-07-14 | EG15: 2020-07-05 | EH15: 2020-07-05 | EI15: 2020-07-08 | EJ15: 2020-07-08 | EK15: 2020-07-08 | EL15: 2020-07-08 | EM15: 2020-07-05 | EN15: 2020-09-03 | EO15: 2020-07-13 | EP15: 2020-09-14 | EQ15: 2020-07-05 | ER15: 2020-07-08 | ES15: 2020-07-08 | ET15: 2020-07-05 | EU15: 2020-07-10 | EV15: 2020-07-10 | EW15: 2020-07-05 | EX15: 2020-07-15 | EY15: 2020-07-05 | EZ15: 2020-07-10 | FA15: 2020-07-05 | FB15: 2020-07-05 | FC15: 2020-07-15 | FD15: 2020-09-18 | FE15: 2020-09-18 | FF15: 2020-08-07 | FG15: 2020-07-08 | FH15: 2020-08-07 | FI15: 2020-07-08 | FJ15: 2020-09-08 | FK15: 2020-07-15 | FL15: 2020-07-05 | FM15: 2020-07-08 | FN15: 2020-09-09 | FO15: 2020-07-05 | FP15: 2020-07-10 | FQ15: 2020-08-25 | FR15: 2020-07-08 | FS15: 2020-09-09 | FT15: 2020-07-14 | FU15: 2020-07-05 | FV15: 2020-07-14 | FW15: 2020-07-05 | FX15: 2020-07-07 | FY15: 2020-07-07 | FZ15: 2020-07-07 | GA15: 2020-07-07 | GB15: 2020-07-07 | GC15: 2020-07-07 | GD15: 2020-07-07 | GE15: 2020-07-07 | GF15: 2020-09-14 | GG15: 2020-09-12 | GH15: 2020-09-14 | GI15: 2020-09-12 | GJ15: 2020-09-14 | GK15: 2020-09-12 | GL15: 2020-07-08 | GM15: 2020-07-05 | GN15: 2020-07-08 | GO15: 2020-07-08 | GP15: 2020-09-08 | GQ15: 2020-07-10 | GR15: 2020-09-09 | GS15: 2020-07-15 | GU15: 2020-07-05 | GV15: 2020-12-07 | GW15: 2020-07-10 | GX15: 2020-09-17 | GY15: 2020-09-16 | GZ15: 2020-08-05 | HA15: 2020-08-07 | HB15: 2020-08-05 | HC15: 2020-07-05 | HD15: 2020-07-08 | HE15: 2020-07-05 | HF15: 2020-09-08 | HG15: 2020-07-05 | HH15: 2020-08-21 | HI15: 2020-07-05 | HJ15: 2020-07-05
A16: 2020-07-06 | B16: 2020-07-09 | C16: 2020-09-10 | D16: 2020-09-10 | E16: 2020-08-06 | F16: 2020-07-06 | G16: 2020-07-06 | H16: 2020-07-13 | I16: 2020-07-15 | J16: 2020-09-08 | K16: 2020-07-06 | L16: 2020-07-06 | M16: 2020-07-14 | N16: 2020-07-06 | O16: 2020-09-10 | P16: 2020-12-06 | Q16: 2020-12-08 | R16: 2020-07-13 | S16: 2020-07-06 | T16: 2020-09-21 | U16: 2020-07-14 | V16: 2020-07-14 | W16: 2020-09-15 | X16: 2020-09-15 | Y16: 2020-07-09 | Z16: 2020-07-09 | AA16: 2020-07-06 | AB16: 2020-08-06 | AC16: 2020-09-01 | AD16: 2020-07-06 | AE16: 2020-07-06 | AF16: 2020-07-09 | AG16: 2021-01-06 | AH16: 2020-07-15 | AI16: 2020-07-15 | AJ16: 2020-07-13 | AK16: 2020-07-11 | AL16: 2020-07-06 | AM16: 2020-07-20 | AN16: 2020-07-13 | AO16: 2020-07-06 | AP16: 2020-07-06 | AQ16: 2020-10-08 | AR16: 2020-09-01 | AS16: 2020-09-10 | AT16: 2020-07-13 | AU16: 2020-07-15 | AV16: 2020-07-09 | AW16: 2020-07-09 | AX16: 2020-07-09 | AY16: 2020-07-06 | AZ16: 2020-07-09 | BA16: 2020-07-09 | BB16: 2020-09-15 | BC16: 2020-07-20 | BD16: 2020-09-10 | BE16: 2020-07-13 | BF16: 2020-07-14 | BG16: 2020-09-16 | BH16: 2020-07-09 | BI16: 2020-09-17 | BJ16: 2020-07-08 | BK16: 2020-07-15 | BL16: 2020-09-14 | BM16: 2020-07-13 | BN16: 2020-09-14 | BO16: 2020-07-06 | BP16: 2020-07-09 | BQ16: 2020-07-13 | BR16: 2020-07-06 | BS16: 2020-07-11 | BT16: 2020-07-06 | BU16: 2020-07-06 | BV16: 2020-07-13 | BW16: 2020-09-15 | BX16: 2020-07-09 | BY16: 2020-09-15 | BZ16: 2020-07-06 | CA16: 2020-07-06 | CB16: 2020-07-06 | CC16: 2020-07-15 | CD16: 2020-07-06 | CE16: 2020-07-06 | CF16: 2020-07-06 | CG16: 2020-07-06 | CH16: 2020-07-06 | CI16: 2020-07-06 | CJ16: 2020-07-06 | CK16: 2020-07-06 | CL16: 2020-07-06 | CM16: 2020-07-13 | CN16: 2020-07-13 | CO16: 2020-07-13 | CP16: 2020-07-13 | CQ16: 2020-07-13 | CR16: 2020-07-13 | CS16: 2020-07-13 | CT16: 2020-07-13 | CU16: 2020-07-06 | CV16: 2020-07-06 | CW16: 2020-07-13 | CX16: 2020-07-06 | CY16: 2020-10-08 | CZ16: 2020-07-13 | DA16: 2020-12-08 | DB16: 2020-07-09 | DC16: 2020-09-15 | DD16: 2020-07-13 | DE16: 2020-07-06 | DF16: 2020-07-06 | DG16: 2020-07-15 | DH16: 2020-09-08 | DI16: 2020-07-09 | DJ16: 2020-12-12 | DK16: 2020-12-14 | DL16: 2020-09-21 | DM16: 2020-09-19 | DN16: 2020-09-14 | DO16: 2020-09-06 | DP16: 2020-09-14 | DQ16: 2020-07-13 | DR16: 2020-07-06 | DS16: 2020-07-13 | DT16: 2020-07-12 | DU16: 2020-07-09 | DV16: 2020-09-18 | DW16: 2020-07-06 | DX16: 2020-09-11 | DY16: 2020-07-15 | DZ16: 2020-07-06 | EA16: 2020-07-13 | EB16: 2020-07-06 | EC16: 2020-07-13 | ED16: 2020-08-31 | EE16: 2020-08-29 | EF16: 2020-07-15 | EG16: 2020-07-06 | EH16: 2020-07-06 | EI16: 2020-07-09 | EJ16: 2020-07-09 | EK16: 2020-07-09 | EL16: 2020-07-09 | EM16: 2020-07-06 | EN16: 2020-09-08 | EO16: 2020-07-14 | EP16: 2020-09-15 | EQ16: 2020-07-06 | ER16: 2020-07-09 | ES16: 2020-07-09 | ET16: 2020-07-06 | EU16: 2020-07-13 | EV16: 2020-07-13 | EW16: 2020-07-06 | EX16: 2020-07-16 | EY16: 2020-07-06 | EZ16: 2020-07-13 | FA16: 2020-07-06 | FB16: 2020-07-06 | FC16: 2020-07-16 | FD16: 2020-09-21 | FE16: 2020-09-21 | FG16: 2020-07-09 | FI16: 2020-07-09 | FJ16: 2020-09-09 | FK16: 2020-07-16 | FL16: 2020-07-06 | FM16: 2020-07-09 | FN16: 2020-09-10 | FO16: 2020-07-06 | FP16: 2020-07-13 | FQ16: 2020-08-26 | FR16: 2020-07-09 | FS16: 2020-09-10 | FT16: 2020-07-15 | FU16: 2020-07-06 | FV16: 2020-07-15 | FW16: 2020-07-06 | FX16: 2020-07-08 | FY16: 2020-07-08 | FZ16: 2020-07-08 | GA16: 2020-07-08 | GB16: 2020-07-08 | GC16: 2020-07-08 | GD16: 2020-07-08 | GE16: 2020-07-08 | GF16: 2020-09-15 | GG16: 2020-09-13 | GH16: 2020-09-15 | GI16: 2020-09-13 | GJ16: 2020-09-15 | GK16: 2020-09-13 | GL16: 2020-07-09 | GM16: 2020-07-06 | GN16: 2020-07-09 | GO16: 2020-07-09 | GP16: 2020-09-09 | GQ16: 2020-07-13 | GR16: 2020-09-10 | GS16: 2020-07-16 | GU16: 2020-07-06 | GV16: 2020-12-08 | GW16: 2020-07-13 | GX16: 2020-09-18 | GY16: 2020-09-17 | GZ16: 2020-08-06 | HA16: 2020-08-10 | HB16: 2020-08-06 | HC16: 2020-07-06 | HD16: 2020-07-09 | HE16: 2020-07-06 | HF16: 2020-09-09 | HG16: 2020-07-06 | HH16: 2020-08-24 | HI16: 2020-07-06 | HJ16: 2020-07-06
A17: 2020-07-07 | B17: 2020-07-10 | C17: 2020-09-11 | D17: 2020-09-11 | E17: 2020-08-07 | F17: 2020-07-07 | G17: 2020-07-07 | H17: 2020-07-14 | I17: 2020-07-16 | J17: 2020-09-09 | K17: 2020-07-07 | L17: 2020-07-07 | M17: 2020-07-15 | N17: 2020-07-07 | O17: 2020-09-11 | P17: 2020-12-07 | Q17: 2020-12-09 | R17: 2020-07-14 | S17: 2020-07-07 | T17: 2020-09-22 | U17: 2020-07-15 | V17: 2020-07-15 | W17: 2020-09-16 | X17: 2020-09-16 | Y17: 2020-07-10 | Z17: 2020-07-10 | AA17: 2020-07-07 | AB17: 2020-08-07 | AC17: 2020-09-02 | AD17: 2020-07-07 | AE17: 2020-07-07 | AF17: 2020-07-10 | AG17: 2021-01-07 | AH17: 2020-07-16 | AI17: 2020-07-16 | AJ17: 2020-07-14 | AK17: 2020-07-12 | AL17: 2020-07-07 | AM17: 2020-07-21 | AN17: 2020-07-14 | AO17: 2020-07-07 | AP17: 2020-07-07 | AQ17: 2020-10-09 | AR17: 2020-09-02 | AS17: 2020-09-11 | AT17: 2020-07-14 | AU17: 2020-07-16 | AV17: 2020-07-10 | AW17: 2020-07-10 | AX17: 2020-07-10 | AY17: 2020-07-07 | AZ17: 2020-07-10 | BA17: 2020-07-10 | BB17: 2020-09-16 | BC17: 2020-07-21 | BD17: 2020-09-11 | BE17: 2020-07-14 | BF17: 2020-07-15 | BG17: 2020-09-17 | BH17: 2020-07-10 | BI17: 2020-09-18 | BJ17: 2020-07-09 | BK17: 2020-07-16 | BL17: 2020-09-15 | BM17: 2020-07-14 | BN17: 2020-09-15 | BO17: 2020-07-07 | BP17: 2020-07-10 | BQ17: 2020-07-14 | BR17: 2020-07-07 | BS17: 2020-07-12 | BT17: 2020-07-07 | BU17: 2020-07-07 | BV17: 2020-07-14 | BW17: 2020-09-16 | BX17: 2020-07-10 | BY17: 2020-09-16 | BZ17: 2020-07-07 | CA17: 2020-07-07 | CB17: 2020-07-07 | CC17: 2020-07-16 | CD17: 2020-07-07 | CE17: 2020-07-07 | CF17: 2020-07-07 | CG17: 2020-07-07 | CH17: 2020-07-07 | CI17: 2020-07-07 | CJ17: 2020-07-07 | CK17: 2020-07-07 | CL17: 2020-07-07 | CM17: 2020-07-14 | CN17: 2020-07-14 | CO17: 2020-07-14 | CP17: 2020-07-14 | CQ17: 2020-07-14 | CR17: 2020-07-14 | CS17: 2020-07-14 | CT17: 2020-07-14 | CU17: 2020-07-07 | CV17: 2020-07-07 | CW17: 2020-07-14 | CX17: 2020-07-07 | CY17: 2020-10-09 | CZ17: 2020-07-14 | DA17: 2020-12-09 | DB17: 2020-07-10 | DC17: 2020-09-16 | DD17: 2020-07-14 | DE17: 2020-07-07 | DF17: 2020-07-07 | DG17: 2020-07-16 | DH17: 2020-09-09 | DI17: 2020-07-10 | DJ17: 2020-12-13 | DK17: 2020-12-15 | DL17: 2020-09-22 | DM17: 2020-09-20 | DN17: 2020-09-15 | DO17: 2020-09-07 | DP17: 2020-09-15 | DQ17: 2020-07-14 | DR17: 2020-07-07 | DS17: 2020-07-14 | DT17: 2020-07-13 | DU17: 2020-07-10 | DV17: 2020-09-19 | DW17: 2020-07-07 | DX17: 2020-09-14 | DY17: 2020-07-16 | DZ17: 2020-07-07 | EA17: 2020-07-14 | EB17: 2020-07-07 | EC17: 2020-07-14 | ED17: 2020-09-01 | EE17: 2020-08-30 | EF17: 2020-07-16 | EG17: 2020-07-07 | EH17: 2020-07-07 | EI17: 2020-07-10 | EJ17: 2020-07-10 | EK17: 2020-07-10 | EL17: 2020-07-10 | EM17: 2020-07-07 | EN17: 2020-09-09 | EO17: 2020-07-15 | EP17: 2020-09-16 | EQ17: 2020-07-07 | ER17: 2020-07-10 | ES17: 2020-07-10 | ET17: 2020-07-07 | EU17: 2020-07-14 | EV17: 2020-07-14 | EW17: 2020-07-07 | EX17: 2020-07-17 | EY17: 2020-07-07 | EZ17: 2020-07-14 | FA17: 2020-07-07 | FB17: 2020-07-07 | FC17: 2020-07-17 | FD17: 2020-09-22 | FE17: 2020-09-22 | FG17: 2020-07-10 | FI17: 2020-07-10 | FJ17: 2020-09-10 | FK17: 2020-07-17 | FL17: 2020-07-07 | FM17: 2020-07-10 | FN17: 2020-09-11 | FO17: 2020-07-07 | FP17: 2020-07-14 | FQ17: 2020-08-27 | FR17: 2020-07-10 | FS17: 2020-09-11 | FT17: 2020-07-16 | FU17: 2020-07-07 | FV17: 2020-07-16 | FW17: 2020-07-07 | FX17: 2020-07-09 | FY17: 2020-07-09 | FZ17: 2020-07-09 | GA17: 2020-07-09 | GB17: 2020-07-09 | GC17: 2020-07-09 | GD17: 2020-07-09 | GE17: 2020-07-09 | GF17: 2020-09-16 | GG17: 2020-09-14 | GH17: 2020-09-16 | GI17: 2020-09-14 | GJ17: 2020-09-16 | GK17: 2020-09-14 | GL17: 2020-07-10 | GM17: 2020-07-07 | GN17: 2020-07-10 | GO17: 2020-07-10 | GP17: 2020-09-10 | GQ17: 2020-07-14 | GR17: 2020-09-11 | GS17: 2020-07-21 | GU17: 2020-07-07 | GV17: 2020-12-09 | GW17: 2020-07-14 | GX17: 2020-09-21 | GY17: 2020-09-18 | GZ17: 2020-08-07 | HA17: 2020-08-11 | HB17: 2020-08-07 | HC17: 2020-07-07 | HD17: 2020-07-10 | HE17: 2020-07-07 | HF17: 2020-09-10 | HG17: 2020-07-07 | HH17: 2020-08-25 | HI17: 2020-07-07 | HJ17: 2020-07-07
A18: 2020-07-08 | B18: 2020-07-13 | C18: 2020-09-14 | D18: 2020-09-14 | E18: 2020-08-08 | F18: 2020-07-08 | G18: 2020-07-08 | H18: 2020-07-15 | I18: 2020-07-17 | J18: 2020-09-10 | K18: 2020-07-08 | L18: 2020-07-08 | M18: 2020-07-16 | N18: 2020-07-08 | O18: 2020-09-14 | P18: 2020-12-08 | Q18: 2020-12-10 | R18: 2020-07-15 | S18: 2020-07-08 | T18: 2020-09-23 | U18: 2020-07-16 | V18: 2020-07-16 | W18: 2020-09-17 | X18: 2020-09-17 | Y18: 2020-07-13 | Z18: 2020-07-13 | AA18: 2020-07-08 | AB18: 2020-08-08 | AC18: 2020-09-03 | AD18: 2020-07-08 | AE18: 2020-07-08 | AF18: 2020-07-13 | AG18: 2021-01-08 | AH18: 2020-07-20 | AI18: 2020-07-20 | AJ18: 2020-07-15 | AK18: 2020-07-13 | AL18: 2020-07-08 | AM18: 2020-07-22 | AN18: 2020-07-15 | AO18: 2020-07-08 | AP18: 2020-07-08 | AQ18: 2020-10-13 | AR18: 2020-09-03 | AS18: 2020-09-14 | AT18: 2020-07-15 | AU18: 2020-07-17 | AV18: 2020-07-13 | AW18: 2020-07-13 | AX18: 2020-07-13 | AY18: 2020-07-08 | AZ18: 2020-07-13 | BA18: 2020-07-13 | BB18: 2020-09-17 | BC18: 2020-07-22 | BD18: 2020-09-14 | BE18: 2020-07-15 | BF18: 2020-07-16 | BG18: 2020-09-18 | BH18: 2020-07-13 | BI18: 2020-09-21 | BJ18: 2020-07-10 | BK18: 2020-07-17 | BL18: 2020-09-16 | BM18: 2020-07-15 | BN18: 2020-09-16 | BO18: 2020-07-08 | BP18: 2020-07-13 | BQ18: 2020-07-15 | BR18: 2020-07-08 | BS18: 2020-07-13 | BT18: 2020-07-08 | BU18: 2020-07-08 | BV18: 2020-07-15 | BW18: 2020-09-17 | BX18: 2020-07-13 | BY18: 2020-09-17 | BZ18: 2020-07-08 | CA18: 2020-07-08 | CB18: 2020-07-08 | CC18: 2020-07-17 | CD18: 2020-07-08 | CE18: 2020-07-08 | CF18: 2020-07-08 | CG18: 2020-07-08 | CH18: 2020-07-08 | CI18: 2020-07-08 | CJ18: 2020-07-08 | CK18: 2020-07-08 | CL18: 2020-07-08 | CM18: 2020-07-15 | CN18: 2020-07-15 | CO18: 2020-07-15 | CP18: 2020-07-15 | CQ18: 2020-07-15 | CR18: 2020-07-15 | CS18: 2020-07-15 | CT18: 2020-07-15 | CU18: 2020-07-08 | CV18: 2020-07-08 | CW18: 2020-07-15 | CX18: 2020-07-08 | CY18: 2020-10-13 | CZ18: 2020-07-15 | DA18: 2020-12-10 | DB18: 2020-07-13 | DC18: 2020-09-17 | DD18: 2020-07-15 | DE18: 2020-07-08 | DF18: 2020-07-08 | DG18: 2020-07-17 | DH18: 2020-09-10 | DI18: 2020-07-13 | DJ18: 2020-12-14 | DK18: 2020-12-16 | DL18: 2020-09-23 | DM18: 2020-09-21 | DN18: 2020-09-16 | DO18: 2020-09-08 | DP18: 2020-09-16 | DQ18: 2020-07-15 | DR18: 2020-07-08 | DS18: 2020-07-15 | DT18: 2020-07-14 | DU18: 2020-07-13 | DV18: 2020-09-20 | DW18: 2020-07-08 | DX18: 2020-09-15 | DY18: 2020-07-17 | DZ18: 2020-07-08 | EA18: 2020-07-15 | EB18: 2020-07-08 | EC18: 2020-07-15 | ED18: 2020-09-02 | EE18: 2020-08-31 | EF18: 2020-07-17 | EG18: 2020-07-08 | EH18: 2020-07-08 | EI18: 2020-07-13 | EJ18: 2020-07-13 | EK18: 2020-07-13 | EL18: 2020-07-13 | EM18: 2020-07-08 | EN18: 2020-09-10 | EO18: 2020-07-16 | EP18: 2020-09-17 | EQ18: 2020-07-08 | ER18: 2020-07-13 | ES18: 2020-07-13 | ET18: 2020-07-08 | EU18: 2020-07-15 | EV18: 2020-07-15 | EW18: 2020-07-08 | EX18: 2020-07-20 | EY18: 2020-07-08 | EZ18: 2020-07-15 | FA18: 2020-07-08 | FB18: 2020-07-08 | FC18: 2020-07-20 | FD18: 2020-09-23 | FE18: 2020-09-23 | FG18: 2020-07-13 | FI18: 2020-07-13 | FJ18: 2020-09-11 | FK18: 2020-07-20 | FL18: 2020-07-08 | FM18: 2020-07-13 | FN18: 2020-09-14 | FO18: 2020-07-08 | FP18: 2020-07-15 | FQ18: 2020-08-28 | FR18: 2020-07-13 | FS18: 2020-09-14 | FT18: 2020-07-17 | FU18: 2020-07-08 | FV18: 2020-07-17 | FW18: 2020-07-08 | FX18: 2020-07-10 | FY18: 2020-07-10 | FZ18: 2020-07-10 | GA18: 2020-07-10 | GB18: 2020-07-10 | GC18: 2020-07-10 | GD18: 2020-07-10 | GE18: 2020-07-10 | GF18: 2020-09-17 | GG18: 2020-09-15 | GH18: 2020-09-17 | GI18: 2020-09-15 | GJ18: 2020-09-17 | GK18: 2020-09-15 | GL18: 2020-07-13 | GM18: 2020-07-08 | GN18: 2020-07-13 | GO18: 2020-07-13 | GP18: 2020-09-11 | GQ18: 2020-07-15 | GR18: 2020-09-14 | GS18: 2020-07-22 | GU18: 2020-07-08 | GV18: 2020-12-10 | GW18: 2020-07-15 | GX18: 2020-09-22 | GY18: 2020-09-19 | GZ18: 2020-08-08 | HA18: 2020-08-12 | HB18: 2020-08-08 | HC18: 2020-07-08 | HD18: 2020-07-13 | HE18: 2020-07-08 | HF18: 2020-09-11 | HG18: 2020-07-08 | HH18: 2020-08-26 | HI18: 2020-07-08 | HJ18: 2020-07-08
A19: 2020-07-09 | B19: 2020-07-14 | C19: 2020-09-15 | D19: 2020-09-15 | E19: 2020-08-09 | F19: 2020-07-09 | G19: 2020-07-09 | H19: 2020-07-16 | I19: 2020-07-20 | J19: 2020-09-11 | K19: 2020-07-09 | L19: 2020-07-09 | M19: 2020-07-17 | N19: 2020-07-09 | O19: 2020-09-15 | P19: 2020-12-09 | Q19: 2020-12-11 | R19: 2020-07-16 | S19: 2020-07-09 | T19: 2020-09-24 | U19: 2020-07-20 | V19: 2020-07-20 | W19: 2020-09-18 | X19: 2020-09-18 | Y19: 2020-07-14 | Z19: 2020-07-14 | AA19: 2020-07-09 | AB19: 2020-08-09 | AC19: 2020-09-04 | AD19: 2020-07-09 | AE19: 2020-07-09 | AF19: 2020-07-14 | AG19: 2021-01-09 | AH19: 2020-07-21 | AI19: 2020-07-21 | AJ19: 2020-07-16 | AK19: 2020-07-14 | AL19: 2020-07-09 | AM19: 2020-07-23 | AN19: 2020-07-16 | AO19: 2020-07-09 | AP19: 2020-07-09 | AQ19: 2020-10-14 | AR19: 2020-09-04 | AS19: 2020-09-15 | AT19: 2020-07-16 | AU19: 2020-07-20 | AV19: 2020-07-14 | AW19: 2020-07-14 | AX19: 2020-07-14 | AY19: 2020-07-09 | AZ19: 2020-07-14 | BA19: 2020-07-14 | BB19: 2020-09-18 | BC19: 2020-07-23 | BD19: 2020-09-15 | BE19: 2020-07-16 | BF19: 2020-07-20 | BG19: 2020-09-21 | BH19: 2020-07-14 | BI19: 2020-09-22 | BJ19: 2020-07-13 | BK19: 2020-07-20 | BL19: 2020-09-17 | BM19: 2020-07-16 | BN19: 2020-09-17 | BO19: 2020-07-09 | BP19: 2020-07-14 | BQ19: 2020-07-16 | BR19: 2020-07-09 | BS19: 2020-07-14 | BT19: 2020-07-09 | BU19: 2020-07-09 | BV19: 2020-07-16 | BW19: 2020-09-18 | BX19: 2020-07-14 | BY19: 2020-09-21 | BZ19: 2020-07-09 | CA19: 2020-07-09 | CB19: 2020-07-09 | CC19: 2020-07-20 | CD19: 2020-07-09 | CE19: 2020-07-09 | CF19: 2020-07-09 | CG19: 2020-07-09 | CH19: 2020-07-09 | CI19: 2020-07-09 | CJ19: 2020-07-09 | CK19: 2020-07-09 | CL19: 2020-07-09 | CM19: 2020-07-16 | CN19: 2020-07-16 | CO19: 2020-07-16 | CP19: 2020-07-16 | CQ19: 2020-07-16 | CR19: 2020-07-16 | CS19: 2020-07-16 | CT19: 2020-07-16 | CU19: 2020-07-09 | CV19: 2020-07-09 | CW19: 2020-07-16 | CX19: 2020-07-09 | CY19: 2020-10-14 | CZ19: 2020-07-16 | DA19: 2020-12-11 | DB19: 2020-07-14 | DC19: 2020-09-18 | DD19: 2020-07-16 | DE19: 2020-07-09 | DF19: 2020-07-09 | DG19: 2020-07-20 | DH19: 2020-09-11 | DI19: 2020-07-14 | DJ19: 2020-12-15 | DK19: 2020-12-17 | DL19: 2020-09-24 | DM19: 2020-09-22 | DN19: 2020-09-17 | DO19: 2020-09-09 | DP19: 2020-09-17 | DQ19: 2020-07-16 | DR19: 2020-07-09 | DS19: 2020-07-16 | DT19: 2020-07-15 | DU19: 2020-07-14 | DV19: 2020-09-21 | DW19: 2020-07-09 | DX19: 2020-09-16 | DY19: 2020-07-20 | DZ19: 2020-07-09 | EA19: 2020-07-16 | EB19: 2020-07-09 | EC19: 2020-07-16 | ED19: 2020-09-03 | EE19: 2020-09-01 | EF19: 2020-07-20 | EG19: 2020-07-09 | EH19: 2020-07-09 | EI19: 2020-07-14 | EJ19: 2020-07-14 | EK19: 2020-07-14 | EL19: 2020-07-14 | EM19: 2020-07-09 | EN19: 2020-09-11 | EO19: 2020-07-20 | EP19: 2020-09-18 | EQ19: 2020-07-09 | ER19: 2020-07-14 | ES19: 2020-07-14 | ET19: 2020-07-09 | EU19: 2020-07-16 | EV19: 2020-07-16 | EW19: 2020-07-09 | EX19: 2020-07-21 | EY19: 2020-07-09 | EZ19: 2020-07-16 | FA19: 2020-07-09 | FB19: 2020-07-09 | FC19: 2020-07-21 | FD19: 2020-09-24 | FE19: 2020-09-24 | FG19: 2020-07-14 | FI19: 2020-07-14 | FJ19: 2020-09-14 | FK19: 2020-07-21 | FL19: 2020-07-09 | FM19: 2020-07-14 | FN19: 2020-09-15 | FO19: 2020-07-09 | FP19: 2020-07-16 | FQ19: 2020-08-31 | FR19: 2020-07-14 | FS19: 2020-09-15 | FT19: 2020-07-20 | FU19: 2020-07-09 | FV19: 2020-07-20 | FW19: 2020-07-09 | FX19: 2020-07-13 | FY19: 2020-07-13 | FZ19: 2020-07-13 | GA19: 2020-07-13 | GB19: 2020-07-13 | GC19: 2020-07-13 | GD19: 2020-07-13 | GE19: 2020-07-13 | GF19: 2020-09-18 | GG19: 2020-09-16 | GH19: 2020-09-18 | GI19: 2020-09-16 | GJ19: 2020-09-18 | GK19: 2020-09-16 | GL19: 2020-07-14 | GM19: 2020-07-09 | GN19: 2020-07-14 | GO19: 2020-07-14 | GP19: 2020-09-14 | GQ19: 2020-07-16 | GR19: 2020-09-15 | GS19: 2020-07-23 | GU19: 2020-07-09 | GV19: 2020-12-11 | GW19: 2020-07-16 | GX19: 2020-09-23 | GY19: 2020-09-20 | GZ19: 2020-08-09 | HA19: 2020-08-13 | HB19: 2020-08-09 | HC19: 2020-07-09 | HD19: 2020-07-14 | HE19: 2020-07-09 | HF19: 2020-09-14 | HG19: 2020-07-09 | HH19: 2020-08-27 | HI19: 2020-07-09 | HJ19: 2020-07-09
A20: 2020-07-10 | B20: 2020-07-15 | C20: 2020-09-16 | D20: 2020-09-16 | E20: 2020-08-10 | F20: 2020-07-10 | G20: 2020-07-10 | H20: 2020-07-17 | I20: 2020-07-21 | J20: 2020-09-14 | K20: 2020-07-10 | L20: 2020-07-10 | M20: 2020-07-20 | N20: 2020-07-10 | O20: 2020-09-16 | P20: 2020-12-10 | Q20: 2020-12-14 | R20: 2020-07-17 | S20: 2020-07-10 | T20: 2020-09-25 | U20: 2020-07-21 | V20: 2020-07-21 | W20: 2020-09-21 | X20: 2020-09-21 | Y20: 2020-07-15 | Z20: 2020-07-15 | AA20: 2020-07-10 | AB20: 2020-08-10 | AC20: 2020-09-08 | AD20: 2020-07-10 | AE20: 2020-07-10 | AF20: 2020-07-15 | AG20: 2021-01-10 | AH20: 2020-07-22 | AI20: 2020-07-22 | AJ20: 2020-07-17 | AK20: 2020-07-15 | AL20: 2020-07-10 | AM20: 2020-07-24 | AN20: 2020-07-17 | AO20: 2020-07-10 | AP20: 2020-07-10 | AQ20: 2020-10-15 | AR20: 2020-09-08 | AS20: 2020-09-16 | AT20: 2020-07-17 | AU20: 2020-07-21 | AV20: 2020-07-15 | AW20: 2020-07-15 | AX20: 2020-07-15 | AY20: 2020-07-10 | AZ20: 2020-07-15 | BA20: 2020-07-15 | BB20: 2020-09-21 | BC20: 2020-07-24 | BD20: 2020-09-16 | BE20: 2020-07-17 | BF20: 2020-07-21 | BG20: 2020-09-22 | BH20: 2020-07-15 | BI20: 2020-09-23 | BJ20: 2020-07-14 | BK20: 2020-07-21 | BL20: 2020-09-18 | BM20: 2020-07-17 | BN20: 2020-09-18 | BO20: 2020-07-10 | BP20: 2020-07-15 | BQ20: 2020-07-17 | BR20: 2020-07-10 | BS20: 2020-07-15 | BT20: 2020-07-10 | BU20: 2020-07-10 | BV20: 2020-07-17 | BW20: 2020-09-21 | BX20: 2020-07-15 | BY20: 2020-09-22 | BZ20: 2020-07-10 | CA20: 2020-07-10 | CB20: 2020-07-10 | CC20: 2020-07-21 | CD20: 2020-07-10 | CE20: 2020-07-10 | CF20: 2020-07-10 | CG20: 2020-07-10 | CH20: 2020-07-10 | CI20: 2020-07-10 | CJ20: 2020-07-10 | CK20: 2020-07-10 | CL20: 2020-07-10 | CM20: 2020-07-17 | CN20: 2020-07-17 | CO20: 2020-07-17 | CP20: 2020-07-17 | CQ20: 2020-07-17 | CR20: 2020-07-17 | CS20: 2020-07-17 | CT20: 2020-07-17 | CU20: 2020-07-10 | CV20: 2020-07-10 | CW20: 2020-07-17 | CX20: 2020-07-10 | CY20: 2020-10-15 | CZ20: 2020-07-17 | DA20: 2020-12-14 | DB20: 2020-07-15 | DC20: 2020-09-21 | DD20: 2020-07-17 | DE20: 2020-07-10 | DF20: 2020-07-10 | DG20: 2020-07-21 | DH20: 2020-09-14 | DI20: 2020-07-15 | DJ20: 2020-12-16 | DK20: 2021-01-11 | DL20: 2020-09-25 | DM20: 2020-09-23 | DN20: 2020-09-18 | DO20: 2020-09-10 | DP20: 2020-09-18 | DQ20: 2020-07-17 | DR20: 2020-07-10 | DS20: 2020-07-17 | DT20: 2020-07-16 | DU20: 2020-07-15 | DV20: 2020-09-22 | DW20: 2020-07-10 | DX20: 2020-09-17 | DY20: 2020-07-21 | DZ20: 2020-07-10 | EA20: 2020-07-17 | EB20: 2020-07-10 | EC20: 2020-07-17 | ED20: 2020-09-04 | EE20: 2020-09-02 | EF20: 2020-07-21 | EG20: 2020-07-10 | EH20: 2020-07-10 | EI20: 2020-07-15 | EJ20: 2020-07-15 | EK20: 2020-07-15 | EL20: 2020-07-15 | EM20: 2020-07-10 | EN20: 2020-09-14 | EO20: 2020-07-21 | EP20: 2020-09-21 | EQ20: 2020-07-10 | ER20: 2020-07-15 | ES20: 2020-07-15 | ET20: 2020-07-10 | EU20: 2020-07-17 | EV20: 2020-07-17 | EW20: 2020-07-10 | EX20: 2020-07-22 | EY20: 2020-07-10 | EZ20: 2020-07-17 | FA20: 2020-07-10 | FB20: 2020-07-10 | FC20: 2020-07-22 | FD20: 2020-09-25 | FE20: 2020-09-25 | FG20: 2020-07-15 | FI20: 2020-07-15 | FJ20: 2020-09-15 | FK20: 2020-07-22 | FL20: 2020-07-10 | FM20: 2020-07-15 | FN20: 2020-09-16 | FO20: 2020-07-10 | FP20: 2020-07-17 | FQ20: 2020-09-01 | FR20: 2020-07-15 | FS20: 2020-09-16 | FT20: 2020-07-21 | FU20: 2020-07-10 | FV20: 2020-07-21 | FW20: 2020-07-10 | FX20: 2020-07-14 | FY20: 2020-07-14 | FZ20: 2020-07-14 | GA20: 2020-07-14 | GB20: 2020-07-14 | GC20: 2020-07-14 | GD20: 2020-07-14 | GE20: 2020-07-14 | GF20: 2020-09-21 | GG20: 2020-09-17 | GH20: 2020-09-21 | GI20: 2020-09-17 | GJ20: 2020-09-21 | GK20: 2020-09-17 | GL20: 2020-07-15 | GM20: 2020-07-10 | GN20: 2020-07-15 | GO20: 2020-07-15 | GP20: 2020-09-15 | GQ20: 2020-07-17 | GR20: 2020-09-16 | GS20: 2020-07-28 | GU20: 2020-07-10 | GV20: 2020-12-14 | GW20: 2020-07-17 | GX20: 2020-09-24 | GY20: 2020-09-21 | GZ20: 2020-08-10 | HA20: 2020-08-14 | HB20: 2020-08-10 | HC20: 2020-07-10 | HD20: 2020-07-15 | HE20: 2020-07-10 | HF20: 2020-09-15 | HG20: 2020-07-10 | HH20: 2020-08-28 | HI20: 2020-07-10 | HJ20: 2020-07-10
A21: 2020-07-11 | B21: 2020-07-16 | C21: 2020-09-17 | D21: 2020-09-17 | E21: 2020-08-11 | F21: 2020-07-11 | G21: 2020-07-11 | H21: 2020-07-20 | I21: 2020-07-22 | J21: 2020-09-15 | K21: 2020-07-11 | L21: 2020-07-11 | M21: 2020-07-21 | N21: 2020-07-11 | O21: 2020-09-17 | P21: 2020-12-11 | Q21: 2020-12-15 | R21: 2020-07-20 | S21: 2020-07-11 | T21: 2020-09-28 | U21: 2020-07-22 | V21: 2020-07-22 | W21: 2020-09-22 | X21: 2020-09-22 | Y21: 2020-07-16 | Z21: 2020-07-16 | AA21: 2020-07-11 | AB21: 2020-08-11 | AC21: 2020-09-09 | AD21: 2020-07-11 | AE21: 2020-07-11 | AF21: 2020-07-16 | AG21: 2021-01-11 | AH21: 2020-07-23 | AI21: 2020-07-23 | AJ21: 2020-07-20 | AK21: 2020-07-16 | AL21: 2020-07-11 | AM21: 2020-07-27 | AN21: 2020-07-20 | AO21: 2020-07-11 | AP21: 2020-07-11 | AQ21: 2020-10-16 | AR21: 2020-09-09 | AS21: 2020-09-17 | AT21: 2020-07-20 | AU21: 2020-07-22 | AV21: 2020-07-16 | AW21: 2020-07-16 | AX21: 2020-07-16 | AY21: 2020-07-11 | AZ21: 2020-07-16 | BA21: 2020-07-16 | BB21: 2020-09-22 | BC21: 2020-07-27 | BD21: 2020-09-17 | BE21: 2020-07-20 | BF21: 2020-07-22 | BG21: 2020-09-23 | BH21: 2020-07-16 | BI21: 2020-09-24 | BJ21: 2020-07-15 | BK21: 2020-07-22 | BL21: 2020-09-21 | BM21: 2020-07-20 | BN21: 2020-09-21 | BO21: 2020-07-11 | BP21: 2020-07-16 | BQ21: 2020-07-20 | BR21: 2020-07-11 | BS21: 2020-07-16 | BT21: 2020-07-11 | BU21: 2020-07-11 | BV21: 2020-07-20 | BW21: 2020-09-22 | BX21: 2020-07-16 | BY21: 2020-09-23 | BZ21: 2020-07-11 | CA21: 2020-07-11 | CB21: 2020-07-11 | CC21: 2020-07-22 | CD21: 2020-07-11 | CE21: 2020-07-11 | CF21: 2020-07-11 | CG21: 2020-07-11 | CH21: 2020-07-11 | CI21: 2020-07-11 | CJ21: 2020-07-11 | CK21: 2020-07-11 | CL21: 2020-07-11 | CM21: 2020-07-20 | CN21: 2020-07-20 | CO21: 2020-07-20 | CP21: 2020-07-20 | CQ21: 2020-07-20 | CR21: 2020-07-20 | CS21: 2020-07-20 | CT21: 2020-07-20 | CU21: 2020-07-11 | CV21: 2020-07-11 | CW21: 2020-07-20 | CX21: 2020-07-11 | CY21: 2020-10-16 | CZ21: 2020-07-20 | DA21: 2020-12-15 | DB21: 2020-07-16 | DC21: 2020-09-22 | DD21: 2020-07-20 | DE21: 2020-07-11 | DF21: 2020-07-11 | DG21: 2020-07-22 | DH21: 2020-09-15 | DI21: 2020-07-16 | DJ21: 2020-12-17 | DK21: 2021-01-12 | DL21: 2020-09-28 | DM21: 2020-09-24 | DN21: 2020-09-21 | DO21: 2020-09-11 | DP21: 2020-09-21 | DQ21: 2020-07-20 | DR21: 2020-07-11 | DS21: 2020-07-20 | DT21: 2020-07-17 | DU21: 2020-07-16 | DV21: 2020-09-23 | DW21: 2020-07-11 | DX21: 2020-09-18 | DY21: 2020-07-22 | DZ21: 2020-07-11 | EA21: 2020-07-20 | EB21: 2020-07-11 | EC21: 2020-07-20 | ED21: 2020-09-08 | EE21: 2020-09-03 | EF21: 2020-07-22 | EG21: 2020-07-11 | EH21: 2020-07-11 | EI21: 2020-07-16 | EJ21: 2020-07-16 | EK21: 2020-07-16 | EL21: 2020-07-16 | EM21: 2020-07-11 | EN21: 2020-09-15 | EO21: 2020-07-22 | EP21: 2020-09-22 | EQ21: 2020-07-11 | ER21: 2020-07-16 | ES21: 2020-07-16 | ET21: 2020-07-11 | EU21: 2020-07-20 | EV21: 2020-07-20 | EW21: 2020-07-11 | EX21: 2020-07-23 | EY21: 2020-07-11 | EZ21: 2020-07-20 | FA21: 2020-07-11 | FB21: 2020-07-11 | FC21: 2020-07-23 | FD21: 2020-09-28 | FE21: 2020-09-28 | FG21: 2020-07-16 | FI21: 2020-07-16 | FJ21: 2020-09-16 | FK21: 2020-07-23 | FL21: 2020-07-11 | FM21: 2020-07-16 | FN21: 2020-09-17 | FO21: 2020-07-11 | FP21: 2020-07-20 | FQ21: 2020-09-02 | FR21: 2020-07-16 | FS21: 2020-09-17 | FT21: 2020-07-22 | FU21: 2020-07-11 | FV21: 2020-07-22 | FW21: 2020-07-11 | FX21: 2020-07-15 | FY21: 2020-07-15 | FZ21: 2020-07-15 | GA21: 2020-07-15 | GB21: 2020-07-15 | GC21: 2020-07-15 | GD21: 2020-07-15 | GE21: 2020-07-15 | GF21: 2020-09-22 | GG21: 2020-09-18 | GH21: 2020-09-22 | GI21: 2020-09-18 | GJ21: 2020-09-22 | GK21: 2020-09-18 | GL21: 2020-07-16 | GM21: 2020-07-11 | GN21: 2020-07-16 | GO21: 2020-07-16 | GP21: 2020-09-16 | GQ21: 2020-07-20 | GR21: 2020-09-17 | GS21: 2020-07-29 | GU21: 2020-07-11 | GV21: 2020-12-15 | GW21: 2020-07-20 | GX21: 2020-09-25 | GY21: 2020-09-22 | GZ21: 2020-08-11 | HA21: 2020-08-17 | HB21: 2020-08-11 | HC21: 2020-07-11 | HD21: 2020-07-16 | HE21: 2020-07-11 | HF21: 2020-09-16 | HG21: 2020-07-11 | HH21: 2020-08-31 | HI21: 2020-07-11 | HJ21: 2020-07-11
A22: 2020-07-12 | B22: 2020-07-17 | C22: 2020-09-18 | D22: 2020-09-18 | E22: 2020-08-12 | F22: 2020-07-12 | G22: 2020-07-12 | H22: 2020-07-21 | I22: 2020-07-23 | J22: 2020-09-16 | K22: 2020-07-12 | L22: 2020-07-12 | M22: 2020-07-22 | N22: 2020-07-12 | O22: 2020-09-18 | P22: 2020-12-12 | Q22: 2020-12-16 | R22: 2020-07-21 | S22: 2020-07-12 | T22: 2020-09-29 | U22: 2020-07-23 | V22: 2020-07-23 | W22: 2020-09-23 | X22: 2020-09-23 | Y22: 2020-07-17 | Z22: 2020-07-17 | AA22: 2020-07-12 | AB22: 2020-08-12 | AC22: 2020-09-10 | AD22: 2020-07-12 | AE22: 2020-07-12 | AF22: 2020-07-17 | AG22: 2021-01-12 | AH22: 2020-07-27 | AI22: 2020-07-27 | AJ22: 2020-07-21 | AK22: 2020-07-17 | AL22: 2020-07-12 | AM22: 2020-07-28 | AN22: 2020-07-21 | AO22: 2020-07-12 | AP22: 2020-07-12 | AQ22: 2020-10-19 | AR22: 2020-09-10 | AS22: 2020-09-18 | AT22: 2020-07-21 | AU22: 2020-07-23 | AV22: 2020-07-17 | AW22: 2020-07-17 | AX22: 2020-07-17 | AY22: 2020-07-12 | AZ22: 2020-07-17 | BA22: 2020-07-17 | BB22: 2020-09-23 | BC22: 2020-07-28 | BD22: 2020-09-18 | BE22: 2020-07-21 | BF22: 2020-07-23 | BG22: 2020-09-24 | BH22: 2020-07-17 | BI22: 2020-09-25 | BJ22: 2020-07-16 | BK22: 2020-07-23 | BL22: 2020-09-22 | BM22: 2020-07-21 | BN22: 2020-09-22 | BO22: 2020-07-12 | BP22: 2020-07-17 | BQ22: 2020-07-21 | BR22: 2020-07-12 | BS22: 2020-07-17 | BT22: 2020-07-12 | BU22: 2020-07-12 | BV22: 2020-07-21 | BW22: 2020-09-23 | BX22: 2020-07-17 | BY22: 2020-09-24 | BZ22: 2020-07-12 | CA22: 2020-07-12 | CB22: 2020-07-12 | CC22: 2020-07-23 | CD22: 2020-07-12 | CE22: 2020-07-12 | CF22: 2020-07-12 | CG22: 2020-07-12 | CH22: 2020-07-12 | CI22: 2020-07-12 | CJ22: 2020-07-12 | CK22: 2020-07-12 | CL22: 2020-07-12 | CM22: 2020-07-21 | CN22: 2020-07-21 | CO22: 2020-07-21 | CP22: 2020-07-21 | CQ22: 2020-07-21 | CR22: 2020-07-21 | CS22: 2020-07-21 | CT22: 2020-07-21 | CU22: 2020-07-12 | CV22: 2020-07-12 | CW22: 2020-07-21 | CX22: 2020-07-12 | CY22: 2020-10-19 | CZ22: 2020-07-21 | DA22: 2020-12-16 | DB22: 2020-07-17 | DC22: 2020-09-23 | DD22: 2020-07-21 | DE22: 2020-07-12 | DF22: 2020-07-12 | DG22: 2020-07-23 | DH22: 2020-09-16 | DI22: 2020-07-17 | DJ22: 2021-01-11 | DK22: 2021-01-13 | DL22: 2020-09-29 | DM22: 2020-09-25 | DN22: 2020-09-22 | DO22: 2020-09-12 | DP22: 2020-09-22 | DQ22: 2020-07-21 | DR22: 2020-07-12 | DS22: 2020-07-21 | DT22: 2020-07-18 | DU22: 2020-07-17 | DV22: 2020-09-24 | DW22: 2020-07-12 | DX22: 2020-09-21 | DY22: 2020-07-23 | DZ22: 2020-07-12 | EA22: 2020-07-21 | EB22: 2020-07-12 | EC22: 2020-07-21 | ED22: 2020-09-09 | EE22: 2020-09-04 | EF22: 2020-07-23 | EG22: 2020-07-12 | EH22: 2020-07-12 | EI22: 2020-07-17 | EJ22: 2020-07-17 | EK22: 2020-07-17 | EL22: 2020-07-17 | EM22: 2020-07-12 | EN22: 2020-09-16 | EO22: 2020-07-23 | EP22: 2020-09-23 | EQ22: 2020-07-12 | ER22: 2020-07-17 | ES22: 2020-07-17 | ET22: 2020-07-12 | EU22: 2020-07-21 | EV22: 2020-07-21 | EW22: 2020-07-12 | EX22: 2020-07-24 | EY22: 2020-07-12 | EZ22: 2020-07-21 | FA22: 2020-07-12 | FB22: 2020-07-12 | FC22: 2020-07-24 | FD22: 2020-09-29 | FE22: 2020-09-29 | FG22: 2020-07-17 | FI22: 2020-07-17 | FJ22: 2020-09-17 | FK22: 2020-07-24 | FL22: 2020-07-12 | FM22: 2020-07-17 | FN22: 2020-09-18 | FO22: 2020-07-12 | FP22: 2020-07-21 | FQ22: 2020-09-03 | FR22: 2020-07-17 | FS22: 2020-09-18 | FT22: 2020-07-23 | FU22: 2020-07-12 | FV22: 2020-07-23 | FW22: 2020-07-12 | FX22: 2020-07-16 | FY22: 2020-07-16 | FZ22: 2020-07-16 | GA22: 2020-07-16 | GB22: 2020-07-16 | GC22: 2020-07-16 | GD22: 2020-07-16 | GE22: 2020-07-16 | GF22: 2020-09-23 | GG22: 2020-09-19 | GH22: 2020-09-23 | GI22: 2020-09-19 | GJ22: 2020-09-23 | GK22: 2020-09-19 | GL22: 2020-07-17 | GM22: 2020-07-12 | GN22: 2020-07-17 | GO22: 2020-07-17 | GP22: 2020-09-17 | GQ22: 2020-07-21 | GR22: 2020-09-18 | GS22: 2020-07-30 | GU22: 2020-07-12 | GV22: 2020-12-16 | GW22: 2020-07-21 | GX22: 2020-09-28 | GY22: 2020-09-23 | GZ22: 2020-08-12 | HA22: 2020-08-18 | HB22: 2020-08-12 | HC22: 2020-07-12 | HD22: 2020-07-17 | HE22: 2020-07-12 | HF22: 2020-09-17 | HG22: 2020-07-12 | HH22: 2020-09-01 | HI22: 2020-07-12 | HJ22: 2020-07-12
A23: 2020-07-13 | B23: 2020-07-20 | C23: 2020-09-21 | D23: 2020-09-21 | E23: 2020-08-13 | F23: 2020-07-13 | G23: 2020-07-13 | H23: 2020-07-22 | I23: 2020-07-24 | J23: 2020-09-17 | K23: 2020-07-13 | L23: 2020-07-13 | M23: 2020-07-23 | N23: 2020-07-13 | O23: 2020-09-21 | P23: 2020-12-13 | Q23: 2020-12-17 | R23: 2020-07-22 | S23: 2020-07-13 | T23: 2020-09-30 | U23: 2020-07-27 | V23: 2020-07-27 | W23: 2020-09-24 | X23: 2020-09-24 | Y23: 2020-07-20 | Z23: 2020-07-20 | AA23: 2020-07-13 | AB23: 2020-08-13 | AC23: 2020-09-11 | AD23: 2020-07-13 | AE23: 2020-07-13 | AF23: 2020-07-20 | AG23: 2021-01-13 | AH23: 2020-07-28 | AI23: 2020-07-28 | AJ23: 2020-07-22 | AK23: 2020-07-18 | AL23: 2020-07-13 | AM23: 2020-07-29 | AN23: 2020-07-22 | AO23: 2020-07-13 | AP23: 2020-07-13 | AQ23: 2020-10-20 | AR23: 2020-09-11 | AS23: 2020-09-21 | AT23: 2020-07-22 | AU23: 2020-07-24 | AV23: 2020-07-20 | AW23: 2020-07-20 | AX23: 2020-07-20 | AY23: 2020-07-13 | AZ23: 2020-07-20 | BA23: 2020-07-20 | BB23: 2020-09-24 | BC23: 2020-07-29 | BD23: 2020-09-21 | BE23: 2020-07-22 | BF23: 2020-09-03 | BG23: 2020-09-25 | BH23: 2020-07-20 | BI23: 2020-09-28 | BJ23: 2020-07-17 | BK23: 2020-07-24 | BL23: 2020-09-23 | BM23: 2020-07-22 | BN23: 2020-09-23 | BO23: 2020-07-13 | BP23: 2020-07-20 | BQ23: 2020-07-22 | BR23: 2020-07-13 | BS23: 2020-07-18 | BT23: 2020-07-13 | BU23: 2020-07-13 | BV23: 2020-07-22 | BW23: 2020-09-24 | BX23: 2020-07-20 | BY23: 2020-09-25 | BZ23: 2020-07-13 | CA23: 2020-07-13 | CB23: 2020-07-13 | CC23: 2020-07-24 | CD23: 2020-07-13 | CE23: 2020-07-13 | CF23: 2020-07-13 | CG23: 2020-07-13 | CH23: 2020-07-13 | CI23: 2020-07-13 | CJ23: 2020-07-13 | CK23: 2020-07-13 | CL23: 2020-07-13 | CM23: 2020-07-22 | CN23: 2020-07-22 | CO23: 2020-07-22 | CP23: 2020-07-22 | CQ23: 2020-07-22 | CR23: 2020-07-22 | CS23: 2020-07-22 | CT23: 2020-07-22 | CU23: 2020-07-13 | CV23: 2020-07-13 | CW23: 2020-07-22 | CX23: 2020-07-13 | CY23: 2020-10-20 | CZ23: 2020-07-22 | DA23: 2020-12-17 | DB23: 2020-07-20 | DC23: 2020-09-24 | DD23: 2020-07-22 | DE23: 2020-07-13 | DF23: 2020-07-13 | DG23: 2020-07-24 | DH23: 2020-09-17 | DI23: 2020-07-20 | DJ23: 2021-01-12 | DK23: 2021-01-14 | DL23: 2020-09-30 | DM23: 2020-09-26 | DN23: 2020-09-23 | DO23: 2020-09-13 | DP23: 2020-09-23 | DQ23: 2020-07-22 | DR23: 2020-07-13 | DS23: 2020-07-22 | DT23: 2020-07-19 | DU23: 2020-07-20 | DV23: 2020-09-25 | DW23: 2020-07-13 | DX23: 2020-09-22 | DY23: 2020-07-24 | DZ23: 2020-07-13 | EA23: 2020-07-22 | EB23: 2020-07-13 | EC23: 2020-07-22 | ED23: 2020-09-10 | EE23: 2020-09-05 | EF23: 2020-07-24 | EG23: 2020-07-13 | EH23: 2020-07-13 | EI23: 2020-07-20 | EJ23: 2020-07-20 | EK23: 2020-07-20 | EL23: 2020-07-20 | EM23: 2020-07-13 | EN23: 2020-09-17 | EO23: 2020-07-27 | EP23: 2020-09-24 | EQ23: 2020-07-13 | ER23: 2020-07-20 | ES23: 2020-07-20 | ET23: 2020-07-13 | EU23: 2020-07-22 | EV23: 2020-07-22 | EW23: 2020-07-13 | EX23: 2020-07-27 | EY23: 2020-07-13 | EZ23: 2020-07-22 | FA23: 2020-07-13 | FB23: 2020-07-13 | FC23: 2020-07-27 | FD23: 2020-09-30 | FE23: 2020-09-30 | FG23: 2020-07-20 | FI23: 2020-07-20 | FJ23: 2020-09-18 | FK23: 2020-07-27 | FL23: 2020-07-13 | FM23: 2020-07-20 | FN23: 2020-09-21 | FO23: 2020-07-13 | FP23: 2020-07-22 | FQ23: 2020-09-04 | FR23: 2020-07-20 | FS23: 2020-09-21 | FT23: 2020-07-24 | FU23: 2020-07-13 | FV23: 2020-07-24 | FW23: 2020-07-13 | FX23: 2020-07-17 | FY23: 2020-07-17 | FZ23: 2020-07-17 | GA23: 2020-07-17 | GB23: 2020-07-17 | GC23: 2020-07-17 | GD23: 2020-07-17 | GE23: 2020-07-17 | GF23: 2020-09-24 | GG23: 2020-09-20 | GH23: 2020-09-24 | GI23: 2020-09-20 | GJ23: 2020-09-24 | GK23: 2020-09-20 | GL23: 2020-07-20 | GM23: 2020-07-13 | GN23: 2020-07-20 | GO23: 2020-07-20 | GP23: 2020-09-18 | GQ23: 2020-07-22 | GR23: 2020-09-21 | GS23: 2020-08-04 | GU23: 2020-07-13 | GV23: 2020-12-17 | GW23: 2020-07-22 | GX23: 2020-09-29 | GY23: 2020-09-24 | GZ23: 2020-08-13 | HA23: 2020-08-19 | HB23: 2020-08-13 | HC23: 2020-07-13 | HD23: 2020-07-20 | HE23: 2020-07-13 | HF23: 2020-09-18 | HG23: 2020-07-13 | HH23: 2020-09-02 | HI23: 2020-07-13 | HJ23: 2020-07-13
A24: 2020-07-14 | B24: 2020-07-21 | C24: 2020-09-22 | D24: 2020-09-22 | E24: 2020-08-14 | F24: 2020-07-14 | G24: 2020-07-14 | H24: 2020-07-23 | I24: 2020-07-27 | J24: 2020-09-18 | K24: 2020-07-14 | L24: 2020-07-14 | M24: 2020-07-24 | N24: 2020-07-14 | O24: 2020-09-22 | P24: 2020-12-14 | Q24: 2020-12-18 | R24: 2020-07-23 | S24: 2020-07-14 | T24: 2020-10-01 | U24: 2020-07-28 | V24: 2020-07-28 | W24: 2020-09-25 | X24: 2020-09-25 | Y24: 2020-07-21 | Z24: 2020-07-21 | AA24: 2020-07-14 | AB24: 2020-08-14 | AC24: 2020-09-14 | AD24: 2020-07-14 | AE24: 2020-07-14 | AF24: 2020-07-21 | AG24: 2021-01-14 | AH24: 2020-07-29 | AI24: 2020-07-29 | AJ24: 2020-07-23 | AK24: 2020-07-19 | AL24: 2020-07-14 | AM24: 2020-07-30 | AN24: 2020-07-23 | AO24: 2020-07-14 | AP24: 2020-07-14 | AQ24: 2020-10-21 | AR24: 2020-09-14 | AS24: 2020-09-22 | AT24: 2020-07-23 | AU24: 2020-07-27 | AV24: 2020-07-21 | AW24: 2020-07-21 | AX24: 2020-07-21 | AY24: 2020-07-14 | AZ24: 2020-07-21 | BA24: 2020-07-21 | BB24: 2020-09-25 | BC24: 2020-07-30 | BD24: 2020-09-22 | BE24: 2020-07-23 | BF24: 2020-09-04 | BG24: 2020-09-28 | BH24: 2020-07-21 | BI24: 2020-09-29 | BJ24: 2020-07-20 | BK24: 2020-07-27 | BL24: 2020-09-24 | BM24: 2020-07-23 | BN24: 2020-09-24 | BO24: 2020-07-14 | BP24: 2020-07-21 | BQ24: 2020-07-23 | BR24: 2020-07-14 | BS24: 2020-07-19 | BT24: 2020-07-14 | BU24: 2020-07-14 | BV24: 2020-07-23 | BW24: 2020-09-25 | BX24: 2020-07-21 | BY24: 2020-09-28 | BZ24: 2020-07-14 | CA24: 2020-07-14 | CB24: 2020-07-14 | CC24: 2020-07-27 | CD24: 2020-07-14 | CE24: 2020-07-14 | CF24: 2020-07-14 | CG24: 2020-07-14 | CH24: 2020-07-14 | CI24: 2020-07-14 | CJ24: 2020-07-14 | CK24: 2020-07-14 | CL24: 2020-07-14 | CM24: 2020-07-23 | CN24: 2020-07-23 | CO24: 2020-07-23 | CP24: 2020-07-23 | CQ24: 2020-07-23 | CR24: 2020-07-23 | CS24: 2020-07-23 | CT24: 2020-07-23 | CU24: 2020-07-14 | CV24: 2020-07-14 | CW24: 2020-07-23 | CX24: 2020-07-14 | CY24: 2020-10-21 | CZ24: 2020-07-23 | DA24: 2020-12-18 | DB24: 2020-07-21 | DC24: 2020-09-25 | DD24: 2020-07-23 | DE24: 2020-07-14 | DF24: 2020-07-14 | DG24: 2020-07-28 | DH24: 2020-09-18 | DI24: 2020-07-21 | DJ24: 2021-01-13 | DK24: 2021-01-15 | DL24: 2020-10-01 | DM24: 2020-09-27 | DN24: 2020-09-24 | DO24: 2020-09-14 | DP24: 2020-09-24 | DQ24: 2020-07-23 | DR24: 2020-07-14 | DS24: 2020-07-23 | DT24: 2020-07-20 | DU24: 2020-07-21 | DV24: 2020-09-26 | DW24: 2020-07-14 | DX24: 2020-09-23 | DY24: 2020-07-27 | DZ24: 2020-07-14 | EA24: 2020-07-23 | EB24: 2020-07-14 | EC24: 2020-07-23 | ED24: 2020-09-11 | EE24: 2020-09-06 | EF24: 2020-07-27 | EG24: 2020-07-14 | EH24: 2020-07-14 | EI24: 2020-07-21 | EJ24: 2020-07-21 | EK24: 2020-07-21 | EL24: 2020-07-21 | EM24: 2020-07-14 | EN24: 2020-09-18 | EO24: 2020-07-28 | EP24: 2020-09-25 | EQ24: 2020-07-14 | ER24: 2020-07-21 | ES24: 2020-07-21 | ET24: 2020-07-14 | EU24: 2020-07-23 | EV24: 2020-07-23 | EW24: 2020-07-14 | EX24: 2020-07-28 | EY24: 2020-07-14 | EZ24: 2020-07-23 | FA24: 2020-07-14 | FB24: 2020-07-14 | FC24: 2020-07-28 | FD24: 2020-10-01 | FE24: 2020-10-01 | FG24: 2020-07-21 | FI24: 2020-07-21 | FJ24: 2020-09-21 | FK24: 2020-07-28 | FL24: 2020-07-14 | FM24: 2020-07-21 | FN24: 2020-09-22 | FO24: 2020-07-14 | FP24: 2020-07-23 | FQ24: 2020-09-08 | FR24: 2020-07-21 | FS24: 2020-09-22 | FT24: 2020-07-27 | FU24: 2020-07-14 | FV24: 2020-07-27 | FW24: 2020-07-14 | FX24: 2020-07-20 | FY24: 2020-07-20 | FZ24: 2020-07-20 | GA24: 2020-07-20 | GB24: 2020-07-20 | GC24: 2020-07-20 | GD24: 2020-07-20 | GE24: 2020-07-20 | GF24: 2020-09-25 | GG24: 2020-09-21 | GH24: 2020-09-25 | GI24: 2020-09-21 | GJ24: 2020-09-25 | GK24: 2020-09-21 | GL24: 2020-07-21 | GM24: 2020-07-14 | GN24: 2020-07-21 | GO24: 2020-07-21 | GP24: 2020-09-21 | GQ24: 2020-07-23 | GR24: 2020-09-22 | GS24: 2020-08-05 | GU24: 2020-07-14 | GV24: 2020-12-18 | GW24: 2020-07-23 | GX24: 2020-09-30 | GY24: 2020-09-25 | GZ24: 2020-08-14 | HA24: 2020-08-20 | HB24: 2020-08-14 | HC24: 2020-07-14 | HD24: 2020-07-21 | HE24: 2020-07-14 | HF24: 2020-09-21 | HG24: 2020-07-14 | HH24: 2020-09-03 | HI24: 2020-07-14 | HJ24: 2020-07-14
A25: 2020-07-15 | B25: 2020-07-22 | C25: 2020-09-23 | D25: 2020-09-23 | E25: 2020-08-15 | F25: 2020-07-15 | G25: 2020-07-15 | H25: 2020-07-24 | I25: 2020-07-28 | J25: 2020-09-21 | K25: 2020-07-15 | L25: 2020-07-15 | M25: 2020-07-27 | N25: 2020-07-15 | O25: 2020-09-23 | P25: 2020-12-15 | Q25: 2020-12-21 | R25: 2020-07-24 | S25: 2020-07-15 | T25: 2020-10-02 | U25: 2020-07-29 | V25: 2020-07-29 | W25: 2020-09-28 | X25: 2020-09-28 | Y25: 2020-07-22 | Z25: 2020-07-22 | AA25: 2020-07-15 | AB25: 2020-08-15 | AC25: 2020-09-15 | AD25: 2020-07-15 | AE25: 2020-07-15 | AF25: 2020-07-22 | AG25: 2021-01-15 | AH25: 2020-07-30 | AI25: 2020-07-30 | AJ25: 2020-07-24 | AK25: 2020-07-20 | AL25: 2020-07-15 | AM25: 2020-07-31 | AN25: 2020-07-24 | AO25: 2020-07-15 | AP25: 2020-07-15 | AQ25: 2020-10-22 | AR25: 2020-09-15 | AS25: 2020-09-23 | AT25: 2020-07-24 | AU25: 2020-07-28 | AV25: 2020-07-22 | AW25: 2020-07-22 | AX25: 2020-07-22 | AY25: 2020-07-15 | AZ25: 2020-07-22 | BA25: 2020-07-22 | BB25: 2020-09-28 | BC25: 2020-07-31 | BD25: 2020-09-23 | BE25: 2020-07-24 | BF25: 2020-09-08 | BG25: 2020-09-29 | BH25: 2020-07-22 | BI25: 2020-09-30 | BJ25: 2020-07-21 | BK25: 2020-07-28 | BL25: 2020-09-25 | BM25: 2020-07-24 | BN25: 2020-09-25 | BO25: 2020-07-15 | BP25: 2020-07-22 | BQ25: 2020-07-24 | BR25: 2020-07-15 | BS25: 2020-07-20 | BT25: 2020-07-15 | BU25: 2020-07-15 | BV25: 2020-07-24 | BW25: 2020-09-29 | BX25: 2020-07-22 | BY25: 2020-09-29 | BZ25: 2020-07-15 | CA25: 2020-07-15 | CB25: 2020-07-15 | CC25: 2020-07-28 | CD25: 2020-07-15 | CE25: 2020-07-15 | CF25: 2020-07-15 | CG25: 2020-07-15 | CH25: 2020-07-15 | CI25: 2020-07-15 | CJ25: 2020-07-15 | CK25: 2020-07-15 | CL25: 2020-07-15 | CM25: 2020-07-24 | CN25: 2020-07-24 | CO25: 2020-07-24 | CP25: 2020-07-24 | CQ25: 2020-07-24 | CR25: 2020-07-24 | CS25: 2020-07-24 | CT25: 2020-07-24 | CU25: 2020-07-15 | CV25: 2020-07-15 | CW25: 2020-07-24 | CX25: 2020-07-15 | CY25: 2020-10-22 | CZ25: 2020-07-24 | DA25: 2020-12-21 | DB25: 2020-07-22 | DC25: 2020-09-28 | DD25: 2020-07-24 | DE25: 2020-07-15 | DF25: 2020-07-15 | DG25: 2020-07-29 | DH25: 2020-09-21 | DI25: 2020-07-22 | DJ25: 2021-01-14 | DK25: 2021-01-18 | DL25: 2020-10-02 | DM25: 2020-09-28 | DN25: 2020-09-25 | DO25: 2020-09-15 | DP25: 2020-09-25 | DQ25: 2020-07-24 | DR25: 2020-07-15 | DS25: 2020-07-24 | DT25: 2020-07-21 | DU25: 2020-07-22 | DV25: 2020-09-27 | DW25: 2020-07-15 | DX25: 2020-09-24 | DY25: 2020-07-28 | DZ25: 2020-07-15 | EA25: 2020-07-24 | EB25: 2020-07-15 | EC25: 2020-07-24 | ED25: 2020-09-12 | EE25: 2020-09-08 | EF25: 2020-07-28 | EG25: 2020-07-15 | EH25: 2020-07-15 | EI25: 2020-07-22 | EJ25: 2020-07-22 | EK25: 2020-07-22 | EL25: 2020-07-22 | EM25: 2020-07-15 | EN25: 2020-09-21 | EO25: 2020-07-29 | EP25: 2020-09-29 | EQ25: 2020-07-15 | ER25: 2020-07-22 | ES25: 2020-08-24 | ET25: 2020-07-15 | EU25: 2020-07-24 | EV25: 2020-07-24 | EW25: 2020-07-15 | EX25: 2020-07-29 | EY25: 2020-07-15 | EZ25: 2020-07-24 | FA25: 2020-07-15 | FB25: 2020-07-15 | FC25: 2020-07-29 | FD25: 2020-10-02 | FE25: 2020-10-02 | FG25: 2020-07-22 | FI25: 2020-07-22 | FJ25: 2020-09-22 | FK25: 2020-07-29 | FL25: 2020-07-15 | FM25: 2020-07-22 | FN25: 2020-09-23 | FO25: 2020-07-15 | FP25: 2020-07-24 | FQ25: 2020-09-09 | FR25: 2020-07-22 | FS25: 2020-09-23 | FT25: 2020-07-28 | FU25: 2020-07-15 | FV25: 2020-07-28 | FW25: 2020-07-15 | FX25: 2020-07-21 | FY25: 2020-07-21 | FZ25: 2020-07-21 | GA25: 2020-07-21 | GB25: 2020-07-21 | GC25: 2020-07-21 | GD25: 2020-07-21 | GE25: 2020-07-21 | GF25: 2020-09-28 | GG25: 2020-09-22 | GH25: 2020-09-28 | GI25: 2020-09-22 | GJ25: 2020-09-28 | GK25: 2020-09-22 | GL25: 2020-07-22 | GM25: 2020-07-15 | GN25: 2020-07-22 | GO25: 2020-07-22 | GP25: 2020-09-22 | GQ25: 2020-07-24 | GR25: 2020-09-23 | GS25: 2020-08-06 | GU25: 2020-07-15 | GV25: 2020-12-21 | GW25: 2020-07-24 | GX25: 2020-10-01 | GY25: 2020-09-26 | GZ25: 2020-08-15 | HA25: 2020-08-21 | HB25: 2020-08-15 | HC25: 2020-07-15 | HD25: 2020-07-22 | HE25: 2020-07-15 | HF25: 2020-09-22 | HG25: 2020-07-15 | HH25: 2020-09-04 | HI25: 2020-07-15 | HJ25: 2020-07-15
A26: 2020-07-16 | B26: 2020-07-23 | C26: 2020-09-24 | D26: 2020-09-24 | E26: 2020-08-16 | F26: 2020-07-16 | G26: 2020-07-16 | H26: 2020-07-27 | I26: 2020-07-29 | J26: 2020-09-22 | K26: 2020-07-16 | L26: 2020-07-16 | M26: 2020-07-28 | N26: 2020-07-16 | O26: 2020-09-24 | P26: 2020-12-16 | Q26: 2020-12-22 | R26: 2020-07-27 | S26: 2020-07-16 | T26: 2020-10-05 | U26: 2020-07-30 | V26: 2020-07-30 | W26: 2020-09-29 | X26: 2020-09-29 | Y26: 2020-07-23 | Z26: 2020-07-23 | AA26: 2020-07-16 | AB26: 2020-08-16 | AC26: 2020-09-16 | AD26: 2020-07-16 | AE26: 2020-07-16 | AF26: 2020-07-23 | AG26: 2021-01-16 | AH26: 2020-08-03 | AI26: 2020-08-03 | AJ26: 2020-07-27 | AK26: 2020-07-21 | AL26: 2020-07-16 | AM26: 2020-08-03 | AN26: 2020-07-27 | AO26: 2020-07-16 | AP26: 2020-07-16 | AQ26: 2020-10-23 | AR26: 2020-09-16 | AS26: 2020-09-24 | AT26: 2020-07-27 | AU26: 2020-07-29 | AV26: 2020-07-23 | AW26: 2020-07-23 | AX26: 2020-07-23 | AY26: 2020-07-16 | AZ26: 2020-07-23 | BA26: 2020-07-23 | BB26: 2020-09-29 | BC26: 2020-08-03 | BD26: 2020-09-24 | BE26: 2020-07-27 | BF26: 2020-09-09 | BG26: 2020-09-30 | BH26: 2020-07-23 | BI26: 2020-10-01 | BJ26: 2020-07-22 | BK26: 2020-07-29 | BL26: 2020-09-28 | BM26: 2020-07-27 | BN26: 2020-09-28 | BO26: 2020-07-16 | BP26: 2020-07-23 | BQ26: 2020-07-27 | BR26: 2020-07-16 | BS26: 2020-07-21 | BT26: 2020-07-16 | BU26: 2020-07-16 | BV26: 2020-07-27 | BW26: 2020-09-30 | BX26: 2020-07-23 | BY26: 2020-09-30 | BZ26: 2020-07-16 | CA26: 2020-07-16 | CB26: 2020-07-16 | CC26: 2020-07-29 | CD26: 2020-07-16 | CE26: 2020-07-16 | CF26: 2020-07-16 | CG26: 2020-07-16 | CH26: 2020-07-16 | CI26: 2020-07-16 | CJ26: 2020-07-16 | CK26: 2020-07-16 | CL26: 2020-07-16 | CM26: 2020-07-27 | CN26: 2020-07-27 | CO26: 2020-07-27 | CP26: 2020-07-27 | CQ26: 2020-07-27 | CR26: 2020-07-27 | CS26: 2020-07-27 | CT26: 2020-07-27 | CU26: 2020-07-16 | CV26: 2020-07-16 | CW26: 2020-07-27 | CX26: 2020-07-16 | CY26: 2020-10-23 | CZ26: 2020-07-27 | DA26: 2020-12-22 | DB26: 2020-07-23 | DC26: 2020-09-29 | DD26: 2020-07-27 | DE26: 2020-07-16 | DF26: 2020-07-16 | DG26: 2020-07-30 | DH26: 2020-09-22 | DI26: 2020-07-23 | DJ26: 2021-01-15 | DK26: 2021-01-19 | DL26: 2020-10-05 | DM26: 2020-09-29 | DN26: 2020-09-28 | DO26: 2020-09-16 | DP26: 2020-09-28 | DQ26: 2020-07-27 | DR26: 2020-07-16 | DS26: 2020-07-27 | DT26: 2020-07-22 | DU26: 2020-07-23 | DV26: 2020-09-28 | DW26: 2020-07-16 | DX26: 2020-09-25 | DY26: 2020-07-29 | DZ26: 2020-07-16 | EA26: 2020-07-27 | EB26: 2020-07-16 | EC26: 2020-07-27 | ED26: 2020-09-14 | EE26: 2020-09-09 | EF26: 2020-07-29 | EG26: 2020-07-16 | EH26: 2020-07-16 | EI26: 2020-07-23 | EJ26: 2020-07-23 | EK26: 2020-07-23 | EL26: 2020-07-23 | EM26: 2020-07-16 | EN26: 2020-09-22 | EO26: 2020-07-30 | EP26: 2020-09-30 | EQ26: 2020-07-16 | ER26: 2020-07-23 | ES26: 2020-08-25 | ET26: 2020-07-16 | EU26: 2020-07-27 | EV26: 2020-07-27 | EW26: 2020-07-16 | EX26: 2020-07-30 | EY26: 2020-07-16 | EZ26: 2020-07-27 | FA26: 2020-07-16 | FB26: 2020-07-16 | FC26: 2020-07-30 | FD26: 2020-10-05 | FE26: 2020-10-05 | FG26: 2020-07-23 | FI26: 2020-07-23 | FJ26: 2020-09-23 | FK26: 2020-07-30 | FL26: 2020-07-16 | FM26: 2020-07-23 | FN26: 2020-09-24 | FO26: 2020-07-16 | FP26: 2020-07-27 | FQ26: 2020-09-10 | FR26: 2020-07-23 | FS26: 2020-09-24 | FT26: 2020-07-29 | FU26: 2020-07-16 | FV26: 2020-07-29 | FW26: 2020-07-16 | FX26: 2020-07-22 | FY26: 2020-07-22 | FZ26: 2020-07-22 | GA26: 2020-07-22 | GB26: 2020-07-22 | GC26: 2020-07-22 | GD26: 2020-07-22 | GE26: 2020-07-22 | GF26: 2020-09-29 | GG26: 2020-09-23 | GH26: 2020-09-29 | GI26: 2020-09-23 | GJ26: 2020-09-29 | GK26: 2020-09-23 | GL26: 2020-07-23 | GM26: 2020-07-16 | GN26: 2020-07-23 | GO26: 2020-07-23 | GP26: 2020-09-23 | GQ26: 2020-07-27 | GR26: 2020-09-24 | GU26: 2020-07-16 | GV26: 2020-12-22 | GW26: 2020-07-27 | GX26: 2020-10-02 | GY26: 2020-09-27 | GZ26: 2020-08-16 | HA26: 2020-08-31 | HB26: 2020-08-16 | HC26: 2020-07-16 | HD26: 2020-07-23 | HE26: 2020-07-16 | HF26: 2020-09-23 | HG26: 2020-07-16 | HH26: 2020-09-08 | HI26: 2020-07-16 | HJ26: 2020-07-16
A27: 2020-07-17 | B27: 2020-07-24 | C27: 2020-09-25 | D27: 2020-09-25 | E27: 2020-08-17 | F27: 2020-07-17 | G27: 2020-07-17 | H27: 2020-07-28 | I27: 2020-07-30 | J27: 2020-09-23 | K27: 2020-07-17 | L27: 2020-07-17 | M27: 2020-07-29 | N27: 2020-07-17 | O27: 2020-09-25 | P27: 2020-12-17 | Q27: 2020-12-23 | R27: 2020-07-28 | S27: 2020-07-17 | T27: 2020-10-06 | U27: 2020-08-03 | V27: 2020-08-03 | W27: 2020-09-30 | X27: 2020-09-30 | Y27: 2020-07-24 | Z27: 2020-07-24 | AA27: 2020-07-17 | AB27: 2020-08-17 | AC27: 2020-09-17 | AD27: 2020-07-17 | AE27: 2020-07-17 | AF27: 2020-07-24 | AG27: 2021-01-17 | AH27: 2020-08-04 | AI27: 2020-08-04 | AJ27: 2020-07-28 | AK27: 2020-07-22 | AL27: 2020-07-17 | AM27: 2020-08-04 | AN27: 2020-07-28 | AO27: 2020-07-17 | AP27: 2020-07-17 | AQ27: 2020-10-26 | AR27: 2020-09-17 | AS27: 2020-09-25 | AT27: 2020-07-28 | AU27: 2020-07-30 | AV27: 2020-07-24 | AW27: 2020-07-24 | AX27: 2020-07-24 | AY27: 2020-07-17 | AZ27: 2020-07-24 | BA27: 2020-07-24 | BB27: 2020-09-30 | BC27: 2020-08-04 | BD27: 2020-09-25 | BE27: 2020-07-28 | BF27: 2020-09-10 | BG27: 2020-10-01 | BH27: 2020-07-24 | BI27: 2020-10-02 | BJ27: 2020-07-23 | BK27: 2020-07-30 | BL27: 2020-09-29 | BM27: 2020-07-28 | BN27: 2020-09-29 | BO27: 2020-07-17 | BP27: 2020-07-24 | BQ27: 2020-07-28 | BR27: 2020-07-17 | BS27: 2020-07-22 | BT27: 2020-07-17 | BU27: 2020-07-17 | BV27: 2020-07-28 | BW27: 2020-10-01 | BX27: 2020-07-24 | BY27: 2020-10-01 | BZ27: 2020-07-17 | CA27: 2020-07-17 | CB27: 2020-07-17 | CC27: 2020-07-30 | CD27: 2020-07-17 | CE27: 2020-07-17 | CF27: 2020-07-17 | CG27: 2020-07-17 | CH27: 2020-07-17 | CI27: 2020-07-17 | CJ27: 2020-07-17 | CK27: 2020-07-17 | CL27: 2020-07-17 | CM27: 2020-07-28 | CN27: 2020-07-28 | CO27: 2020-07-28 | CP27: 2020-07-28 | CQ27: 2020-07-28 | CR27: 2020-07-28 | CS27: 2020-07-28 | CT27: 2020-07-28 | CU27: 2020-07-17 | CV27: 2020-07-17 | CW27: 2020-07-28 | CX27: 2020-07-17 | CY27: 2020-10-26 | CZ27: 2020-07-28 | DA27: 2020-12-23 | DB27: 2020-07-24 | DC27: 2020-09-30 | DD27: 2020-07-28 | DE27: 2020-07-17 | DF27: 2020-07-17 | DG27: 2020-07-31 | DH27: 2020-09-23 | DI27: 2020-07-24 | DJ27: 2021-01-16 | DK27: 2021-01-20 | DL27: 2020-10-06 | DM27: 2020-09-30 | DN27: 2020-09-29 | DO27: 2020-09-17 | DP27: 2020-09-29 | DQ27: 2020-07-28 | DR27: 2020-07-17 | DS27: 2020-07-28 | DT27: 2020-07-23 | DU27: 2020-07-27 | DV27: 2020-09-29 | DW27: 2020-07-17 | DX27: 2020-09-28 | DY27: 2020-07-30 | DZ27: 2020-07-17 | EA27: 2020-07-28 | EB27: 2020-07-17 | EC27: 2020-07-28 | ED27: 2020-09-15 | EE27: 2020-09-10 | EF27: 2020-07-30 | EG27: 2020-07-17 | EH27: 2020-07-17 | EI27: 2020-07-24 | EJ27: 2020-07-24 | EK27: 2020-07-24 | EL27: 2020-07-24 | EM27: 2020-07-17 | EN27: 2020-09-23 | EP27: 2020-10-01 | EQ27: 2020-07-17 | ER27: 2020-07-24 | ES27: 2020-08-26 | ET27: 2020-07-17 | EU27: 2020-07-28 | EV27: 2020-07-28 | EW27: 2020-07-17 | EX27: 2020-07-31 | EY27: 2020-07-17 | EZ27: 2020-07-28 | FA27: 2020-07-17 | FB27: 2020-07-17 | FC27: 2020-07-31 | FD27: 2020-10-06 | FE27: 2020-10-06 | FG27: 2020-07-24 | FI27: 2020-07-24 | FJ27: 2020-09-24 | FK27: 2020-07-31 | FL27: 2020-07-17 | FM27: 2020-07-24 | FN27: 2020-09-25 | FO27: 2020-07-17 | FP27: 2020-07-28 | FQ27: 2020-09-11 | FR27: 2020-07-24 | FS27: 2020-09-25 | FT27: 2020-07-30 | FU27: 2020-07-17 | FV27: 2020-07-30 | FW27: 2020-07-17 | FX27: 2020-07-23 | FY27: 2020-07-23 | FZ27: 2020-07-23 | GA27: 2020-07-23 | GB27: 2020-07-23 | GC27: 2020-07-23 | GD27: 2020-07-23 | GE27: 2020-07-23 | GF27: 2020-09-30 | GG27: 2020-09-24 | GH27: 2020-09-30 | GI27: 2020-09-24 | GJ27: 2020-09-30 | GK27: 2020-09-24 | GL27: 2020-07-24 | GM27: 2020-07-17 | GN27: 2020-07-24 | GO27: 2020-07-24 | GP27: 2020-09-24 | GQ27: 2020-07-28 | GR27: 2020-09-25 | GU27: 2020-07-17 | GV27: 2021-01-04 | GW27: 2020-07-28 | GX27: 2020-10-05 | GY27: 2020-09-28 | GZ27: 2020-08-17 | HA27: 2020-09-01 | HB27: 2020-08-17 | HC27: 2020-07-17 | HD27: 2020-07-24 | HE27: 2020-07-17 | HF27: 2020-09-24 | HG27: 2020-07-17 | HH27: 2020-09-09 | HI27: 2020-07-17 | HJ27: 2020-07-17
A28: 2020-07-18 | B28: 2020-07-27 | C28: 2020-09-28 | D28: 2020-09-28 | E28: 2020-08-18 | F28: 2020-07-18 | G28: 2020-07-18 | H28: 2020-07-29 | I28: 2020-07-31 | J28: 2020-09-24 | K28: 2020-07-18 | L28: 2020-07-18 | M28: 2020-07-30 | N28: 2020-07-18 | O28: 2020-09-28 | P28: 2020-12-18 | Q28: 2021-01-04 | R28: 2020-07-29 | S28: 2020-07-18 | T28: 2020-10-07 | U28: 2020-08-04 | V28: 2020-08-04 | W28: 2020-10-01 | X28: 2020-10-01 | Y28: 2020-07-27 | Z28: 2020-07-27 | AA28: 2020-07-18 | AB28: 2020-08-18 | AC28: 2020-09-18 | AD28: 2020-07-18 | AE28: 2020-07-18 | AF28: 2020-07-27 | AG28: 2021-01-18 | AH28: 2020-08-05 | AI28: 2020-08-05 | AJ28: 2020-07-29 | AK28: 2020-07-23 | AL28: 2020-07-18 | AM28: 2020-08-05 | AN28: 2020-07-29 | AO28: 2020-07-18 | AP28: 2020-07-18 | AQ28: 2020-10-27 | AR28: 2020-09-18 | AS28: 2020-09-28 | AT28: 2020-07-29 | AU28: 2020-07-31 | AV28: 2020-07-27 | AW28: 2020-07-27 | AX28: 2020-07-27 | AY28: 2020-07-18 | AZ28: 2020-07-27 | BA28: 2020-07-27 | BB28: 2020-10-01 | BC28: 2020-08-05 | BD28: 2020-09-28 | BE28: 2020-07-29 | BF28: 2020-09-11 | BG28: 2020-10-02 | BH28: 2020-07-27 | BI28: 2020-10-05 | BJ28: 2020-07-24 | BK28: 2020-07-31 | BL28: 2020-09-30 | BM28: 2020-07-29 | BN28: 2020-09-30 | BO28: 2020-07-18 | BP28: 2020-07-27 | BQ28: 2020-07-29 | BR28: 2020-07-18 | BS28: 2020-07-23 | BT28: 2020-07-18 | BU28: 2020-07-18 | BV28: 2020-07-29 | BW28: 2020-10-02 | BX28: 2020-07-27 | BY28: 2020-10-02 | BZ28: 2020-07-18 | CA28: 2020-07-18 | CB28: 2020-07-18 | CC28: 2020-07-31 | CD28: 2020-07-18 | CE28: 2020-07-18 | CF28: 2020-07-18 | CG28: 2020-07-18 | CH28: 2020-07-18 | CI28: 2020-07-18 | CJ28: 2020-07-18 | CK28: 2020-07-18 | CL28: 2020-07-18 | CM28: 2020-07-29 | CN28: 2020-07-29 | CO28: 2020-07-29 | CP28: 2020-07-29 | CQ28: 2020-07-29 | CR28: 2020-07-29 | CS28: 2020-07-29 | CT28: 2020-07-29 | CU28: 2020-07-18 | CV28: 2020-07-18 | CW28: 2020-07-29 | CX28: 2020-07-18 | CY28: 2020-10-27 | CZ28: 2020-07-29 | DA28: 2021-01-04 | DB28: 2020-07-27 | DC28: 2020-10-01 | DD28: 2020-07-29 | DE28: 2020-07-18 | DF28: 2020-07-18 | DG28: 2020-08-03 | DH28: 2020-09-24 | DI28: 2020-07-27 | DJ28: 2021-01-17 | DK28: 2021-01-21 | DL28: 2020-10-07 | DM28: 2020-10-01 | DN28: 2020-09-30 | DO28: 2020-09-18 | DP28: 2020-09-30 | DQ28: 2020-07-29 | DR28: 2020-07-18 | DS28: 2020-07-29 | DT28: 2020-07-24 | DU28: 2020-07-28 | DV28: 2020-09-30 | DW28: 2020-07-18 | DX28: 2020-09-29 | DY28: 2020-07-31 | DZ28: 2020-07-18 | EA28: 2020-07-29 | EB28: 2020-07-18 | EC28: 2020-07-29 | ED28: 2020-09-16 | EE28: 2020-09-11 | EF28: 2020-07-31 | EG28: 2020-07-18 | EH28: 2020-07-18 | EI28: 2020-07-27 | EJ28: 2020-07-27 | EK28: 2020-07-27 | EL28: 2020-07-27 | EM28: 2020-07-18 | EN28: 2020-09-24 | EP28: 2020-10-02 | EQ28: 2020-07-18 | ER28: 2020-07-27 | ES28: 2020-08-27 | ET28: 2020-07-18 | EU28: 2020-07-29 | EV28: 2020-07-29 | EW28: 2020-07-18 | EX28: 2020-08-03 | EY28: 2020-07-18 | EZ28: 2020-07-29 | FA28: 2020-07-18 | FB28: 2020-07-18 | FC28: 2020-08-03 | FD28: 2020-10-07 | FE28: 2020-10-07 | FG28: 2020-07-27 | FI28: 2020-07-27 | FJ28: 2020-09-25 | FK28: 2020-08-03 | FL28: 2020-07-18 | FM28: 2020-07-27 | FN28: 2020-09-28 | FO28: 2020-07-18 | FP28: 2020-07-29 | FQ28: 2020-09-14 | FR28: 2020-08-03 | FS28: 2020-09-28 | FT28: 2020-07-31 | FU28: 2020-07-18 | FV28: 2020-07-31 | FW28: 2020-07-18 | FX28: 2020-07-24 | FY28: 2020-07-24 | FZ28: 2020-07-24 | GA28: 2020-07-24 | GB28: 2020-07-24 | GC28: 2020-07-24 | GD28: 2020-07-24 | GE28: 2020-07-24 | GF28: 2020-10-01 | GG28: 2020-09-25 | GH28: 2020-10-01 | GI28: 2020-09-25 | GJ28: 2020-10-01 | GK28: 2020-09-25 | GL28: 2020-07-27 | GM28: 2020-07-18 | GN28: 2020-07-27 | GO28: 2020-07-27 | GP28: 2020-09-25 | GQ28: 2020-07-29 | GR28: 2020-09-28 | GU28: 2020-07-18 | GV28: 2021-01-05 | GW28: 2020-07-29 | GX28: 2020-10-06 | GY28: 2020-09-29 | GZ28: 2020-08-18 | HA28: 2020-09-02 | HB28: 2020-08-18 | HC28: 2020-07-18 | HD28: 2020-07-27 | HE28: 2020-07-18 | HF28: 2020-09-25 | HG28: 2020-07-18 | HH28: 2020-09-10 | HI28: 2020-07-18 | HJ28: 2020-07-18
A29: 2020-07-19 | B29: 2020-07-28 | C29: 2020-09-29 | D29: 2020-09-29 | E29: 2020-08-19 | F29: 2020-07-19 | G29: 2020-07-19 | H29: 2020-09-03 | I29: 2020-08-03 | J29: 2020-09-25 | K29: 2020-07-19 | L29: 2020-07-19 | M29: 2020-07-31 | N29: 2020-07-19 | O29: 2020-09-29 | P29: 2020-12-19 | Q29: 2021-01-05 | R29: 2020-07-30 | S29: 2020-07-19 | T29: 2020-10-08 | U29: 2020-08-05 | V29: 2020-08-05 | W29: 2020-10-02 | X29: 2020-10-02 | Y29: 2020-07-28 | Z29: 2020-07-28 | AA29: 2020-07-19 | AB29: 2020-08-19 | AC29: 2020-09-22 | AD29: 2020-07-19 | AE29: 2020-07-19 | AF29: 2020-07-28 | AG29: 2021-01-19 | AH29: 2020-08-06 | AI29: 2020-08-06 | AJ29: 2020-07-30 | AK29: 2020-07-24 | AL29: 2020-07-19 | AM29: 2020-08-06 | AN29: 2020-07-30 | AO29: 2020-07-19 | AP29: 2020-07-19 | AQ29: 2020-10-28 | AR29: 2020-09-21 | AS29: 2020-09-29 | AT29: 2020-07-30 | AU29: 2020-08-03 | AV29: 2020-07-28 | AW29: 2020-07-28 | AX29: 2020-07-28 | AY29: 2020-07-19 | AZ29: 2020-07-28 | BA29: 2020-07-28 | BB29: 2020-10-02 | BC29: 2020-08-06 | BD29: 2020-09-29 | BE29: 2020-09-02 | BF29: 2020-09-14 | BG29: 2020-10-05 | BH29: 2020-07-28 | BI29: 2020-10-06 | BJ29: 2020-07-27 | BK29: 2020-08-03 | BL29: 2020-10-01 | BM29: 2020-07-30 | BN29: 2020-10-01 | BO29: 2020-07-19 | BP29: 2020-07-28 | BQ29: 2020-07-30 | BR29: 2020-07-19 | BS29: 2020-07-24 | BT29: 2020-07-19 | BU29: 2020-07-19 | BV29: 2020-07-30 | BW29: 2020-10-05 | BX29: 2020-07-28 | BY29: 2020-10-05 | BZ29: 2020-07-19 | CA29: 2020-07-19 | CB29: 2020-07-19 | CC29: 2020-08-03 | CD29: 2020-07-19 | CE29: 2020-07-19 | CF29: 2020-07-19 | CG29: 2020-07-19 | CH29: 2020-07-19 | CI29: 2020-07-19 | CJ29: 2020-07-19 | CK29: 2020-07-19 | CL29: 2020-07-19 | CM29: 2020-07-30 | CN29: 2020-07-30 | CO29: 2020-07-30 | CP29: 2020-07-30 | CQ29: 2020-07-30 | CR29: 2020-07-30 | CS29: 2020-07-30 | CT29: 2020-07-30 | CU29: 2020-07-19 | CV29: 2020-07-19 | CW29: 2020-07-30 | CX29: 2020-07-19 | CY29: 2020-10-28 | CZ29: 2020-07-30 | DA29: 2021-01-05 | DB29: 2020-07-28 | DC29: 2020-10-02 | DD29: 2020-07-30 | DE29: 2020-07-19 | DF29: 2020-07-19 | DG29: 2020-08-04 | DH29: 2020-09-25 | DI29: 2020-07-28 | DJ29: 2021-01-18 | DK29: 2021-01-22 | DL29: 2020-10-08 | DM29: 2020-10-02 | DN29: 2020-10-01 | DO29: 2020-09-19 | DP29: 2020-10-01 | DQ29: 2020-07-30 | DR29: 2020-07-19 | DS29: 2020-07-30 | DT29: 2020-07-25 | DU29: 2020-07-29 | DV29: 2020-10-01 | DW29: 2020-07-19 | DX29: 2020-09-30 | DY29: 2020-08-03 | DZ29: 2020-07-19 | EA29: 2020-07-30 | EB29: 2020-07-19 | EC29: 2020-07-30 | ED29: 2020-09-17 | EE29: 2020-09-12 | EF29: 2020-08-03 | EG29: 2020-07-19 | EH29: 2020-07-19 | EI29: 2020-08-31 | EJ29: 2020-08-31 | EK29: 2020-08-31 | EL29: 2020-07-28 | EM29: 2020-07-19 | EN29: 2020-09-25 | EP29: 2020-10-05 | EQ29: 2020-07-19 | ER29: 2020-07-28 | ES29: 2020-08-28 | ET29: 2020-07-19 | EU29: 2020-07-30 | EV29: 2020-07-30 | EW29: 2020-07-19 | EX29: 2020-08-04 | EY29: 2020-07-19 | EZ29: 2020-07-30 | FA29: 2020-07-19 | FB29: 2020-07-19 | FC29: 2020-08-04 | FD29: 2020-10-08 | FE29: 2020-10-08 | FG29: 2020-07-28 | FI29: 2020-07-28 | FJ29: 2020-09-28 | FK29: 2020-08-04 | FL29: 2020-07-19 | FM29: 2020-07-28 | FN29: 2020-09-29 | FO29: 2020-07-19 | FP29: 2020-07-30 | FQ29: 2020-09-15 | FR29: 2020-08-04 | FS29: 2020-09-29 | FT29: 2020-08-03 | FU29: 2020-07-19 | FV29: 2020-08-03 | FW29: 2020-07-19 | GF29: 2020-10-02 | GG29: 2020-09-26 | GH29: 2020-10-02 | GI29: 2020-09-26 | GJ29: 2020-10-02 | GK29: 2020-09-26 | GL29: 2020-07-28 | GM29: 2020-07-19 | GN29: 2020-07-28 | GO29: 2020-07-28 | GP29: 2020-09-28 | GQ29: 2020-07-30 | GR29: 2020-09-29 | GU29: 2020-07-19 | GV29: 2021-01-06 | GW29: 2020-07-30 | GX29: 2020-10-07 | GY29: 2020-09-30 | GZ29: 2020-08-19 | HA29: 2020-09-03 | HB29: 2020-08-19 | HC29: 2020-07-19 | HD29: 2020-07-28 | HE29: 2020-07-19 | HF29: 2020-09-28 | HG29: 2020-07-19 | HH29: 2020-09-11 | HI29: 2020-07-19 | HJ29: 2020-07-19
A30: 2020-07-20 | B30: 2020-07-29 | C30: 2020-09-30 | D30: 2020-09-30 | E30: 2020-08-20 | F30: 2020-07-20 | G30: 2020-07-20 | H30: 2020-09-04 | I30: 2020-08-04 | J30: 2020-09-28 | K30: 2020-07-20 | L30: 2020-07-20 | M30: 2020-08-03 | N30: 2020-07-20 | O30: 2020-09-30 | P30: 2020-12-20 | Q30: 2021-01-06 | R30: 2020-07-31 | S30: 2020-07-20 | T30: 2020-10-09 | U30: 2020-08-06 | V30: 2020-08-06 | W30: 2020-10-05 | X30: 2020-10-05 | Y30: 2020-07-29 | Z30: 2020-07-29 | AA30: 2020-07-20 | AB30: 2020-08-20 | AC30: 2020-09-23 | AD30: 2020-07-20 | AE30: 2020-07-20 | AF30: 2020-07-29 | AG30: 2021-01-20 | AH30: 2020-08-10 | AI30: 2020-08-10 | AJ30: 2020-07-31 | AK30: 2020-07-25 | AL30: 2020-07-20 | AM30: 2020-08-07 | AN30: 2020-07-31 | AO30: 2020-07-20 | AP30: 2020-07-20 | AQ30: 2020-10-29 | AR30: 2020-09-22 | AS30: 2020-09-30 | AT30: 2020-07-31 | AU30: 2020-08-04 | AV30: 2020-07-29 | AW30: 2020-07-29 | AX30: 2020-07-29 | AY30: 2020-07-20 | AZ30: 2020-07-29 | BA30: 2020-07-29 | BB30: 2020-10-05 | BC30: 2020-08-07 | BD30: 2020-09-30 | BE30: 2020-09-03 | BF30: 2020-09-15 | BG30: 2020-10-06 | BH30: 2020-07-29 | BI30: 2020-10-07 | BJ30: 2020-07-28 | BK30: 2020-08-04 | BL30: 2020-10-02 | BM30: 2020-07-31 | BN30: 2020-10-02 | BO30: 2020-07-20 | BP30: 2020-07-29 | BQ30: 2020-07-31 | BR30: 2020-07-20 | BS30: 2020-07-25 | BT30: 2020-07-20 | BU30: 2020-07-20 | BV30: 2020-07-31 | BW30: 2020-10-06 | BX30: 2020-07-29 | BY30: 2020-10-06 | BZ30: 2020-07-20 | CA30: 2020-07-20 | CB30: 2020-07-20 | CC30: 2020-08-04 | CD30: 2020-07-20 | CE30: 2020-07-20 | CF30: 2020-07-20 | CG30: 2020-07-20 | CH30: 2020-07-20 | CI30: 2020-07-20 | CJ30: 2020-07-20 | CK30: 2020-07-20 | CL30: 2020-07-20 | CM30: 2020-07-31 | CN30: 2020-07-31 | CO30: 2020-07-31 | CP30: 2020-07-31 | CQ30: 2020-07-31 | CR30: 2020-07-31 | CS30: 2020-07-31 | CT30: 2020-07-31 | CU30: 2020-07-20 | CV30: 2020-07-20 | CW30: 2020-07-31 | CX30: 2020-07-20 | CY30: 2020-10-29 | CZ30: 2020-07-31 | DA30: 2021-01-06 | DB30: 2020-07-29 | DC30: 2020-10-05 | DD30: 2020-07-31 | DE30: 2020-07-20 | DF30: 2020-07-20 | DG30: 2020-08-05 | DH30: 2020-09-29 | DI30: 2020-07-29 | DJ30: 2021-01-19 | DK30: 2021-01-25 | DL30: 2020-10-09 | DM30: 2020-10-03 | DN30: 2020-10-02 | DO30: 2020-09-20 | DP30: 2020-10-02 | DQ30: 2020-07-31 | DR30: 2020-07-20 | DS30: 2020-07-31 | DT30: 2020-07-26 | DU30: 2020-07-30 | DV30: 2020-10-02 | DW30: 2020-07-20 | DX30: 2020-10-01 | DY30: 2020-08-04 | DZ30: 2020-07-20 | EA30: 2020-07-31 | EB30: 2020-07-20 | EC30: 2020-07-31 | ED30: 2020-09-18 | EE30: 2020-09-13 | EF30: 2020-08-04 | EG30: 2020-07-20 | EH30: 2020-07-20 | EI30: 2020-09-01 | EJ30: 2020-09-01 | EK30: 2020-09-01 | EL30: 2020-07-29 | EM30: 2020-07-20 | EN30: 2020-09-28 | EP30: 2020-10-06 | EQ30: 2020-07-20 | ER30: 2020-07-29 | ES30: 2020-08-31 | ET30: 2020-07-20 | EU30: 2020-07-31 | EV30: 2020-07-31 | EW30: 2020-07-20 | EX30: 2020-08-05 | EY30: 2020-07-20 | EZ30: 2020-07-31 | FA30: 2020-07-20 | FB30: 2020-07-20 | FC30: 2020-08-05 | FD30: 2020-10-09 | FE30: 2020-10-09 | FG30: 2020-07-29 | FI30: 2020-07-29 | FJ30: 2020-09-29 | FK30: 2020-08-05 | FL30: 2020-07-20 | FM30: 2020-07-29 | FN30: 2020-09-30 | FO30: 2020-07-20 | FP30: 2020-07-31 | FQ30: 2020-09-16 | FR30: 2020-08-05 | FS30: 2020-09-30 | FT30: 2020-08-04 | FU30: 2020-07-20 | FV30: 2020-08-04 | FW30: 2020-07-20 | GF30: 2020-10-05 | GG30: 2020-09-27 | GH30: 2020-10-05 | GI30: 2020-09-27 | GJ30: 2020-10-05 | GK30: 2020-09-27 | GL30: 2020-07-29 | GM30: 2020-07-20 | GN30: 2020-07-29 | GO30: 2020-07-29 | GP30: 2020-09-29 | GQ30: 2020-07-31 | GR30: 2020-09-30 | GU30: 2020-07-20 | GV30: 2021-01-07 | GW30: 2020-07-31 | GX30: 2020-10-08 | GY30: 2020-10-01 | GZ30: 2020-08-20 | HA30: 2020-09-04 | HB30: 2020-08-20 | HC30: 2020-07-20 | HD30: 2020-07-29 | HE30: 2020-07-20 | HF30: 2020-09-29 | HG30: 2020-07-20 | HH30: 2020-09-14 | HI30: 2020-07-20 | HJ30: 2020-07-20
